Workbook

Sheet PO
A2: PLANILHA DE ORÇAMENTO
A3: LOCALIDADE SINAPI: PORTO ALEGRE/RS
K5: DATA BASE: | L5: =+M.O.!$E$17 -> Abr/2021
A9: OBJETO: | B9: REURBANIZAÇÃO DA PRAÇA ARAGUAIA | D9: =CONCATENATE("Leis Sociais Horistas ",M.O.!$D$5," (SINAPI)") -> Leis Sociais Horistas s/desoneração (SINAPI) | L9: =+M.O.!$D$7 -> 1.111
A10: DATA: | B10: 2021-05-17 | D10: =CONCATENATE("Leis Sociais Mensalistas ",M.O.!$D$5," (SINAP)I") -> Leis Sociais Mensalistas s/desoneração (SINAP)I | L10: =+M.O.!$D$8 -> 0.6916
A11: ART nº: | B11: 11276669 | D11: BDI: | L11: =+M.O.!$F$7 -> 22,15%
D12: BDI diferenciado: | L12: =IF($L$11="28,21%",19.35%,13.7%) -> 0.137
D13: BDI de projeto: | L13: 0.1538
A15: Composição | B15: Item | C15: Descrição | D15: Quantidade | E15: Un | F15: Custo Unit.Mat.+Eq. | G15: Custo Unit. M.O. | H15: Custo Unit. | I15: Preço Unit.Mat.+Eq. | J15: Preço Unit. M.O. | K15: Preço Unit. | L15: Total
B16: 1 | C16: SERVIÇOS PRELIMINARES
A17: =CONCATENATE("SINAPI ",Composições!A12) -> SINAPI 98524 | B17: 1.1 | C17: LIMPEZA MANUAL DE VEGETAÇÃO EM TERRENO COM ENXADA | D17: 1006 | E17: m² | F17: 0 | G17: =+Composições!C15 -> 2.65 | H17: =+F17+G17 -> 2.65 | I17: =+K17-J17 -> 0 | J17: =+ROUND((G17*(1+$L$11)),2) -> 3.24 | K17: =+Composições!F21 -> 3.24 | L17: =TRUNC((D17*K17),2) -> 3259.44 | O17: =IF(D17=1,(IF(L17=Tabela!G12,"ok!","erro")),"") -> 
A18: =CONCATENATE("SINAPI ",Composições!A24) -> SINAPI 97633 | B18: 1.2 | C18: REMOÇÃO DE PASTILHAS CERÂMICAS | D18: 2.07 | E18: m² | F18: 0 | G18: =+Composições!C26 -> 17.57 | H18: =+F18+G18 -> 17.57 | I18: 0 | J18: =+TRUNC((G18*(1+$L$11)),2) -> 21.46 | K18: =+Composições!F32 -> 21.46 | L18: =TRUNC((D18*K18),2) -> 44.42
A19: =CONCATENATE("SMAMS ",Composições!A35) -> SMAMS 23 | B19: 1.3 | C19: REMOÇÃO DE MEIOS-FIOS | D19: 109 | E19: m | F19: 0 | G19: =+Composições!C37 -> 1.42 | H19: =+F19+G19 -> 1.42 | I19: 0 | J19: =+TRUNC((G19*(1+$L$11)),2) -> 1.73 | K19: =+Composições!F43 -> 1.73 | L19: 188.57
A20: =CONCATENATE("SMAMS ",Composições!A46) -> SMAMS 25 | B20: 1.4 | C20: REMOÇÃO DE PASSEIOS | D20: 11 | E20: m² | F20: 0 | G20: =+Composições!C49 -> 8.11 | H20: =+F20+G20 -> 8.11 | I20: 0 | J20: =+ROUND((G20*(1+$L$11)),2) -> 9.91 | K20: =+Composições!F55 -> 9.91 | L20: 109.01 | O20: =IF(D20=1,(IF(L20=Tabela!G15,"ok!","erro")),"") -> 
A21: =CONCATENATE("SMAMS ",Composições!A58) -> SMAMS 90 | B21: 1.5 | C21: REMOÇÃO MEIO-FIO VIÁRIO | D21: 44 | E21: m | F21: 0 | G21: =+Composições!C60 -> 17.11 | H21: 17.11 | I21: =+K21-J21 -> 0 | J21: =+ROUND((G21*(1+$L$11)),2) -> 20.9 | K21: =+Composições!F66 -> 20.9 | L21: 919.6 | O21: =IF(D21=1,(IF(L21=Tabela!G22,"ok!","erro")),"") -> 
A22: =CONCATENATE("SMAMS ",Composições!A69) -> SMAMS 101 | B22: 1.6 | C22: REMOÇÃO BANCO | D22: 6 | E22: un | F22: =+Composições!C76 -> 21.49 | G22: =+Composições!C79 -> 28.67 | H22: 50.16 | I22: 26.25 | J22: =+TRUNC((G22*(1+$L$11)),2) -> 35.02 | K22: =+Composições!F85 -> 61.27 | L22: 367.62 | O22: =IF(D22=1,(IF(L22=Tabela!G24,"ok!","erro")),"") -> 
A23: =CONCATENATE("SMAMS ",Composições!A88) -> SMAMS 160 | B23: 1.7 | C23: REMOÇÃO LIXEIRA | D23: 3 | E23: un | F23: =+Composições!C95 -> 23.63 | G23: =+Composições!C98 -> 20.85 | H23: 44.48 | I23: 28.87 | J23: 25.46 | K23: =+Composições!F104 -> 54.33 | L23: 162.99
A24: =CONCATENATE("SINAPI ",Composições!A107) -> SINAPI 99814 | B24: 1.8 | C24: LIMPEZA DE MONUMENTOS COM JATO DE ALTA PRESSÃO | D24: 21.3 | E24: m² | F24: =+Composições!C109 -> 0.02 | G24: =+Composições!C111 -> 1.52 | H24: =+F24+G24 -> 1.54 | I24: =+K24-J24 -> 0.03 | J24: =+TRUNC((G24*(1+$L$11)),2) -> 1.85 | K24: =+Composições!F117 -> 1.88 | L24: 40.04
A25: =CONCATENATE("SMAMS ",Composições!A120) -> SMAMS 170 | B25: 1.9 | C25: DESTOCAMENTO | D25: 6 | E25: un | F25: =+Composições!C123 -> 183.25 | G25: 0 | H25: 183.25 | I25: =+K25-J25 -> 223.84 | J25: 0 | K25: =+Composições!F129 -> 223.84 | L25: =TRUNC((D25*K25),2) -> 1343.04 | O25: =IF(D25=1,(IF(L25=Tabela!G61,"ok!","erro")),"") -> 
A26: =CONCATENATE("SMAMS ",Composições!A132) -> SMAMS 390 | B26: 1.10 | C26: REMOÇÃO DE ENTULHO C/CAÇAMBA | D26: 16 | E26: m³ | F26: =+Composições!C134 -> 114.64 | G26: =+Composições!C136 -> 11.97 | H26: 126.61 | I26: 140.03 | J26: =+TRUNC((G26*(1+$L$11)),2) -> 14.62 | K26: =+Composições!F142 -> 154.65 | L26: 2474.4 | O26: =IF(D26=1,(IF(L26=Tabela!G63,"ok!","erro")),"") -> 
B27: TOTAL DE SERVIÇOS PRELIMINARES | L27: =SUM(L17:L26) -> 8909.13
B28: 2 | C28: INSTALAÇÕES PROVISÓRIAS
A29: =CONCATENATE("SMAMS ",Composições!A145) -> SMAMS 500 | B29: 2.1 | C29: TAPUME EM CHAPA DE COMPENSADO RESINADO | D29: 88 | E29: m² | F29: =+Composições!C154 -> 26.2 | G29: =+Composições!C159 -> 41.09 | H29: =+F29+G29 -> 67.29 | I29: =+K29-J29 -> 32 | J29: =+TRUNC((G29*(1+$L$11)),2) -> 50.19 | K29: =+Composições!F165 -> 82.19 | L29: =TRUNC((D29*K29),2) -> 7232.72 | O29: =IF(D29=1,(IF(L29=Tabela!G72,"ok!","erro")),"") -> 
A30: =CONCATENATE("SMAMS ",Composições!A168) -> SMAMS 507 | B30: 2.2 | C30: DESMONTAGEM DE TAPUME | D30: 88 | E30: m² | F30: 0 | G30: =+Composições!C171 -> 2.2 | H30: 2.2 | I30: 0 | J30: =+ROUND((G30*(1+$L$11)),2) -> 2.69 | K30: =+Composições!$F$177 -> 2.69 | L30: 236.72
A31: =CONCATENATE("SMAMS ",Composições!A180) -> SMAMS 508 | B31: 2.3 | C31: TELHEIRO | D31: 12.5 | E31: m² | F31: =+Composições!C182*0.7 -> 269.584 | G31: =+Composições!C182*0.3 -> 115.536 | H31: 385.12 | I31: 329.3 | J31: 141.12 | K31: =+Composições!F188 -> 470.42 | L31: 5880.25
A32: =CONCATENATE("SMAMS ",Composições!A191) -> SMAMS 515 | B32: 2.4 | C32: LOCAÇÃO DE CONTAINER ESCRITÓRIO S/FRETE | D32: 100 | E32: % | F32: =+Composições!C193 -> 12.77 | G32: 0 | H32: 12.77 | I32: 15.6 | J32: =+TRUNC((G32*(1+$L$11)),4) -> 0 | K32: =+Composições!F199 -> 15.6 | L32: 1560 | O32: =IF(D32=1,(IF(L32=Tabela!G78,"ok!","erro")),"") -> 
A33: =CONCATENATE("SMAMS ",Composições!A202) -> SMAMS 517 | B33: 2.5 | C33: LOCAÇÃO CONTAINER SANITÁRIO S/FRETE | D33: 100 | E33: % | F33: =+Composições!C204 -> 18.56 | G33: 0 | H33: 18.56 | I33: 22.67 | J33: =+TRUNC((G33*(1+$L$11)),4) -> 0 | K33: =+Composições!F210 -> 22.67 | L33: 2267 | O33: =IF(D33=1,(IF(L33=Tabela!G79,"ok!","erro")),"") -> 
A34: =CONCATENATE("SMAMS ",Composições!A213) -> SMAMS 520 | B34: 2.6 | C34: FRETE P/ CONTAINER | D34: 2 | E34: cj | F34: =+Composições!C215 -> 831.6 | G34: 0 | H34: 831.6 | I34: 1015.8 | J34: 0 | K34: =+Composições!F221 -> 1015.8 | L34: 2031.6
A35: =CONCATENATE("SMAMS ",Composições!A224) -> SMAMS 530 | B35: 2.7 | C35: INSTALAÇÃO PROVISÓRIA DE ENERGIA | D35: 1 | E35: pt | F35: =+Composições!C246 -> 2127.22 | G35: =+Composições!C249 -> 86 | H35: 2213.22 | I35: 2598.41 | J35: 105.04 | K35: =+Composições!F255 -> 2703.45 | L35: 2703.45
A36: =CONCATENATE("SMAMS ",Composições!A258) -> SMAMS 535 | B36: 2.8 | C36: INSTALAÇÃO PROVISÓRIA DE ÁGUA | D36: 1 | E36: pt | F36: =0.7*Composições!C266 -> 560.224 | G36: =0.3*Composições!C266 -> 240.096 | H36: 800.32 | I36: 684.32 | J36: 293.27 | K36: =+Composições!F272 -> 977.59 | L36: 977.59
A37: =CONCATENATE("SMAMS ",Composições!A275) -> SMAMS 537 | B37: 2.9 | C37: INSTALAÇÃO PROVISÓRIA DE ESGOTO | D37: 1 | E37: pt | F37: =0.7*Composições!C280 -> 605.983 | G37: =0.3*Composições!C280 -> 259.707 | H37: 865.69 | I37: 740.21 | J37: 317.23 | K37: =+Composições!F286 -> 1057.44 | L37: 1057.44
A38: =CONCATENATE("SMAMS ",Composições!A289) -> SMAMS 542 | B38: 2.10 | C38: PLACA DE OBRA | D38: 2.88 | E38: m² | F38: =+Composições!C297 -> 122.21 | G38: =+Composições!C302 -> 21.64 | H38: 143.85 | I38: 149.28 | J38: 26.43 | K38: =+Composições!F308 -> 175.71 | L38: 506.04
A39: =CONCATENATE("SMAMS ",Composições!A311) -> SMAMS 552 | B39: 2.11 | C39: SINALIZAÇÃO COM TELA PLÁSTICA LARANJA FIXADA EM CONE PLÁSTICO | D39: 274 | E39: m | F39: =+Composições!C314 -> 5.25 | G39: =+Composições!C317 -> 4.68 | H39: 9.93 | I39: 6.42 | J39: 5.71 | K39: =+Composições!F323 -> 12.13 | L39: 3323.62
A40: =CONCATENATE("SINAPI ",Composições!A326) -> SINAPI 99064 | B40: 2.12 | C40: LOCAÇÃO | D40: 1195 | E40: m | F40: =+Composições!C328*0.07 -> 0.0357 | G40: =+Composições!$C$328*0.93 -> 0.4743 | H40: 0.51 | I40: 0.05 | J40: 0.57 | K40: =+Composições!F334 -> 0.62 | L40: 740.9 | O40: =IF(D40=1,(IF(L40=Tabela!G89,"ok!","erro")),"") -> 
A41: =CONCATENATE("SMAMS ",Composições!A337) -> SMAMS 565 | B41: 2.13 | C41: NIVELAMENTO | D41: 2918 | E41: m² | F41: =+Composições!C340 -> 0.02 | G41: =+Composições!C344 -> 0.22 | H41: 0.24 | I41: 0.03 | J41: 0.26 | K41: =+Composições!F350 -> 0.29 | L41: 846.22 | O41: =IF(D41=1,(IF(L41=Tabela!G90,"ok!","erro")),"") -> 
B42: TOTAL DE INSTALAÇÕES PROVISÓRIAS | L42: =SUM(L29:L41) -> 29363.55
B43: 3 | C43: ADMINISTRAÇÃO LOCAL
A44: =CONCATENATE("SMAMS ",Composições!A353) -> SMAMS 700 | B44: 3.1 | C44: ADMINISTRAÇÃO LOCAL | D44: 100 | E44: % | F44: 0 | G44: =+Composições!$C$363 -> 588.61 | H44: =+F44+G44 -> 588.61 | I44: =+K44-J44 -> 0 | J44: =ROUND((G44*(1+$L$11)),2) -> 718.99 | K44: =+Composições!$F$369 -> 718.99 | L44: =TRUNC((D44*K44),2) -> 71899
B45: TOTAL DE ADMINISTRAÇÃO LOCAL | L45: =SUM(L44) -> 71899
B46: 4 | C46: MOVIMENTO DE TERRA
A47: =CONCATENATE("SMAMS ",Composições!A418) -> SMAMS 1002 | B47: 4.1 | C47: MODELAGEM | D47: 2918 | E47: m² | F47: =+Composições!C421 -> 0.08 | G47: =+Composições!C424 -> 2.34 | H47: =+F47+G47 -> 2.42 | I47: =+K47-J47 -> 0.11 | J47: =+TRUNC((G47*(1+$L$11)),2) -> 2.85 | K47: =+Composições!F430 -> 2.96 | L47: =TRUNC((D47*K47),2) -> 8637.28 | O47: =IF(D47=1,(IF(L47=Tabela!G103,"ok!","erro")),"") -> 
A48: =CONCATENATE("SINAPI ",Composições!A433) -> SINAPI 93358 | B48: 4.2 | C48: ESCAVAÇÃO MANUAL DE SOLO ATÉ 1,30 m | D48: 100 | E48: m³ | F48: 0 | G48: =+Composições!C435 -> 67.68 | H48: 67.68 | I48: 0 | J48: 82.67 | K48: =+Composições!F441 -> 82.67 | L48: 8267 | O48: =IF(D48=1,(IF(L48=Tabela!G108,"ok!","erro")),"") -> 
A49: =CONCATENATE("SINAPI ",Composições!A444) -> SINAPI 101114 | B49: 4.3 | C49: ESCAVAÇÃO MECÂNICA DE SOLO | D49: 166 | E49: m³ | F49: =+Composições!C447 -> 2.69 | G49: =+Composições!C449 -> 0.53 | H49: 3.22 | I49: 3.29 | J49: 0.64 | K49: =+Composições!F455 -> 3.93 | L49: 652.38 | O49: =IF(D49=1,(IF(L49=Tabela!G109,"ok!","erro")),"") -> 
A50: =CONCATENATE("SMAMS ",Composições!A458) -> SMAMS 1100 | B50: 4.4 | C50: REMOÇÃO DO MATERIAL ESCAVADO | D50: 346 | E50: m³ | F50: =+Composições!C461 -> 29.57 | G50: 0 | H50: =+F50+G50 -> 29.57 | I50: =+K50-J50 -> 36.12 | J50: =+TRUNC((G50*(1+$L$11)),2) -> 0 | K50: =+Composições!F467 -> 36.12 | L50: 12497.52
B51: TOTAL DE MOVIMENTO DE TERRA | L51: =SUM(L47:L50) -> 30054.18
B52: 5 | C52: PAVIMENTAÇÃO
A53: =CONCATENATE("SMAMS ",Composições!A470) -> SMAMS 1900 | B53: 5.1 | C53: NIVELAMENTO CAIXA DE PASSAGEM | D53: 1 | E53: un | F53: =+Composições!C474 -> 9.71 | G53: =+Composições!C477 -> 14.96 | H53: =+F53+G53 -> 24.67 | I53: =+K53-J53 -> 11.86 | J53: =+TRUNC((G53*(1+$L$11)),2) -> 18.27 | K53: =+Composições!F483 -> 30.13 | L53: =TRUNC((D53*K53),2) -> 30.13
A54: =CONCATENATE("SMAMS ",Composições!A486) -> SMAMS 2022 | B54: 5.2 | C54: PISO CONCRETO ARMADO 8 cm - PASSEIO (PANO ÚNICO) | D54: 908 | E54: m² | F54: =+Composições!C497 -> 63.25 | G54: =+Composições!C502 -> 13.83 | H54: 77.08 | I54: 77.26 | J54: 16.89 | K54: =+Composições!F508 -> 94.15 | L54: 85488.2 | O54: =IF(D54=1,(IF(L54=Tabela!G116,"ok!","erro")),"") -> 
A55: =CONCATENATE("SMAMS ",Composições!A511) -> SMAMS 2070 | B55: 5.3 | C55: PISO PODOTÁTIL 25x25 cm | D55: 268 | E55: m | F55: =+Composições!C517 -> 20.24 | G55: =+Composições!C520 -> 8.14 | H55: 28.38 | I55: 24.73 | J55: 9.94 | K55: =+Composições!F526 -> 34.67 | L55: 9291.56 | O55: =IF(D55=1,(IF(L55=Tabela!G134,"ok!","erro")),"") -> 
B56: TOTAL DE PAVIMENTAÇÃO | L56: =SUM(L53:L55) -> 94809.89
B57: 6 | C57: MEIO-FIO
A58: =CONCATENATE("SMAMS ",Composições!A529) -> SMAMS 2223 | B58: 6.1 | C58: REPOSIÇÃO MEIO-FIO VIÁRIO | D58: 44 | E58: m | F58: =+Composições!C532 -> 1.47 | G58: =+Composições!C535 -> 14.89 | H58: =+F58+G58 -> 16.36 | I58: =+K58-J58 -> 1.8 | J58: =+TRUNC((G58*(1+$L$11)),2) -> 18.18 | K58: =+Composições!F541 -> 19.98 | L58: =TRUNC((D58*K58),2) -> 879.12 | O58: =IF(D58=1,(IF(L58=Tabela!G139,"ok!","erro")),"") -> 
B59: TOTAL DE MEIO-FIO | L59: =SUM(L58:L58) -> 879.12
B60: 7 | C60: ACESSIBILIDADE
A61: =CONCATENATE("SMAMS ",Composições!A544) -> SMAMS 2308 | B61: 7.1 | C61: RAMPA PPNE'S TIPO 1 - 1,50 m (ABA 1,50 m) | D61: 5 | E61: un | F61: =+Composições!C561 -> 527.73 | G61: =+Composições!C567 -> 363.2 | H61: =+F61+G61 -> 890.93 | I61: =+K61-J61 -> 644.63 | J61: =+TRUNC((G61*(1+$L$11)),2) -> 443.64 | K61: =+Composições!F573 -> 1088.27 | L61: =TRUNC((D61*K61),2) -> 5441.35
B62: TOTAL DE ACESSIBILIDADE | L62: =SUM(L61:L61) -> 5441.35
B63: 8 | C63: EQUIPAMENTOS/MOBILIÁRIO URBANO
A64: =CONCATENATE("SMAMS ",Composições!A576) -> SMAMS 2601 | B64: 8.1 | C64: BANCO B (C/ ENCOSTO) - L=2,00 m - PADRÃO SMAM | D64: 10 | E64: un | F64: =+Composições!C600 -> 757.47 | G64: =+Composições!C607 -> 443.26 | H64: =+F64+G64 -> 1200.73 | I64: =+K64-J64 -> 925.25 | J64: =+TRUNC((G64*(1+$L$11)),2) -> 541.44 | K64: =+Composições!F613 -> 1466.69 | L64: =TRUNC((D64*K64),2) -> 14666.9 | O64: =IF(D64=1,(IF(L64=Tabela!G168,"ok!","erro")),"") -> 
A65: =CONCATENATE("SMAMS ",Composições!A616) -> SMAMS 2671 | B65: 8.2 | C65: LIXEIRA METÁLICA | D65: 6 | E65: un | F65: =+Composições!C624 -> 682.62 | G65: =+Composições!C627 -> 70.3 | H65: 752.92 | I65: 833.82 | J65: 85.87 | K65: =+Composições!F633 -> 919.69 | L65: 5518.14 | O65: =IF(D65=1,(IF(L65=Tabela!G186,"ok!","erro")),"") -> 
A66: =CONCATENATE("SMAMS ",Composições!A636) -> SMAMS 2673 | B66: 8.3 | C66: PERGOLADO EM MADEIRA | D66: 2 | E66: un | F66: =+Composições!C648 -> 9198.88 | G66: =+Composições!C651 -> 736.85 | H66: =+F66+G66 -> 9935.73 | I66: =+K66-J66 -> 11236.43 | J66: =+TRUNC((G66*(1+$L$11)),2) -> 900.06 | K66: =+Composições!F657 -> 12136.49 | L66: 24272.98
A67: =CONCATENATE("SMAMS ",Composições!A660) -> SMAMS 2675 | B67: 8.4 | C67: REVESTIMENTO CERÂMICO | D67: 2.07 | E67: m² | F67: =+Composições!C663*0.82 -> 213.528 | G67: =+Composições!F665*0.18 -> 46.872 | H67: =+F67+G67 -> 260.4 | I67: =+K67-J67 -> 260.83 | J67: =+TRUNC((G67*(1+$L$11)),2) -> 57.25 | K67: =+Composições!$F$669 -> 318.08 | L67: =ROUND((D67*K67),2) -> 658.43
B68: TOTAL DE EQUIPAMENTOS/MOBILIÁRIO URBANO | L68: =SUM(L64:L67) -> 45116.45
B69: 9 | C69: PLANTIO
A70: =CONCATENATE("SMAMS ",Composições!A672) -> SMAMS 4105 | B70: 9.1 | C70: GRAMA CATARINA | D70: 1907 | E70: m² | F70: =+Composições!C675 -> 30.29 | G70: =+Composições!C678 -> 3.45 | H70: =+F70+G70 -> 33.74 | I70: =+K70-J70 -> 37 | J70: =+TRUNC((G70*(1+$L$11)),2) -> 4.21 | K70: =+Composições!F684 -> 41.21 | L70: =TRUNC((D70*K70),2) -> 78587.47 | O70: =IF(D70=1,(IF(L70=Tabela!G275,"ok!","erro")),"") -> 
B71: TOTAL DE PLANTIO | L71: =SUM(L70:L70) -> 78587.47
B72: TOTAL ORÇAMENTO | L72: =SUM(L17:L71)/2 -> 365060.14

Sheet Composições
A1: PLANILHA COMPOSIÇÕES SMAMUS
A3: =IF('Atualizações Cotações'!$B$4="NÃO",CONCATENATE("Data Base SINAPI: ",M.O.!$E$17," - Data das Cotações: ",Cotações!$N$3),CONCATENATE("Data Base SINAPI: ",M.O.!$E$17," - Data das Cotações: ",Cotações!$N$3," (Atualizadas pelo INCC de ",'Atualizações Cotações'!A11:B11,"/",'Atualizações Cotações'!$C$11,")")) -> Data Base SINAPI: Abr/2021 - Data das Cotações: Abril/2019 (Atualizadas pelo INCC de Abril/2021)
A5: OBJETO: | B5: =+PO!$B$9 -> REURBANIZAÇÃO DA PRAÇA ARAGUAIA | C5: Leis Sociais Horistas (SINAPI): | F5: =+M.O.!$D$7 -> 1.111
A6: DATA: | B6: =IF(PO!$B$10="","",PO!$B$10) -> 2021-05-17 | C6: Leis Sociais Mensalistas (SINAPI): | F6: =+M.O.!$D$8 -> 0.6916
A7: ART nº: | B7: =IF(PO!$B$11="","",PO!$B$11) -> 11276669 | C7: BDI: | F7: =+M.O.!$F$7 -> 22,15%
C8: BDI diferenciado: | F8: =IF($F$7="28,21%",19.35%,13.7%) -> 0.137
C9: BDI de projeto: | F9: =+PO!$L$13 -> 0.1538
A11: CÓDIGO | B11: DISCRIMINAÇÃO | C11: UN | D11: COEFIC. | E11: UNITÁRIO | F11: TOTAL
A12: 98524 | B12: LIMPEZA MANUAL DE VEGETAÇÃO EM TERRENO COM ENXADA | C12: m²
A13: =CONCATENATE("SINAPI C ",Insumos!$B$39) -> SINAPI C 88316 | B13: SERVENTE C/ ENCARGOS COMPLEMENTARES | C13: h | D13: 0.0718 | E13: =+Insumos!$G$39 -> 17.11 | F13: =TRUNC(D13*E13,2) -> 1.22
A14: SINAPI C 88441 | B14: JARDINEIRO C/ENCARGOS COMPLEMENTARES | C14: h | D14: 0.0718 | E14: =+Insumos!$G$27 -> 20 | F14: =TRUNC(D14*E14,2) -> 1.43
A15: SUB-TOTAL - MÃO-DE-OBRA: | C15: =SUM(F13:F14) -> 2.65
B17: CUSTO TOTAL: | F17: =C15 -> 2.65
B19: BDI: | C19: % | D19: =+$F$7 -> 22,15% | F19: =(F17*D19) -> 0.586975
B21: PREÇO: | F21: =ROUND(F17+F19,2) -> 3.24
A23: CÓDIGO | B23: DISCRIMINAÇÃO | C23: UN | D23: COEFIC. | E23: UNITÁRIO | F23: TOTAL
A24: 97633 | B24: REMOÇÃO DE PASTILHAS CERÂMICAS | C24: m²
A25: =CONCATENATE("SINAPI C ",'Composições Aux. SINAPI'!$A$42,) -> SINAPI C 97633 | B25: DEMOLIÇÃO DE REVESTIMENTO CERÂMICO, DE FORMA MANUAL, SEM REAPROVEITAMENTO | C25: m² | D25: 1 | E25: =+'Composições Aux. SINAPI'!$E$42:$F$42 -> 17.57 | F25: =TRUNC(D25*E25,2) -> 17.57
A26: SUB-TOTAL - MÃO-DE-OBRA: | C26: =SUM(F25:F25) -> 17.57
B28: CUSTO TOTAL: | F28: =C26 -> 17.57
B30: BDI: | C30: % | D30: =+$F$7 -> 22,15% | F30: =TRUNC(F28*D30,2) -> 3.89
B32: PREÇO: | F32: =+F28+F30 -> 21.46
A34: CÓDIGO | B34: DISCRIMINAÇÃO | C34: UN | D34: COEFIC. | E34: UNITÁRIO | F34: TOTAL
A35: 23 | B35: REMOÇÃO DE MEIOS-FIOS | C35: m
A36: =CONCATENATE("SINAPI C ",Insumos!$B$39) -> SINAPI C 88316 | B36: SERVENTE C/ ENCARGOS COMPLEMENTARES | C36: h | D36: 0.0833 | E36: =+Insumos!$G$39 -> 17.11 | F36: =TRUNC(D36*E36,2) -> 1.42
A37: SUB-TOTAL - MÃO-DE-OBRA: | C37: =SUM(F36:F36) -> 1.42
B39: CUSTO TOTAL: | F39: =C37 -> 1.42
B41: BDI: | C41: % | D41: =+$F$7 -> 22,15% | F41: =TRUNC(F39*D41,2) -> 0.31
B43: PREÇO: | F43: =+F39+F41 -> 1.73
A45: CÓDIGO | B45: DISCRIMINAÇÃO | C45: UN | D45: QUANT. | E45: UNITÁRIO | F45: TOTAL
A46: 25 | B46: REMOÇÃO DE PASSEIOS | C46: m²
A47: SINAPI C 88260 | B47: CALCETEIRO C/ENCARGOS COMPLEMENTARES | C47: h | D47: 0.3214 | E47: =+Insumos!$G$20 -> 19.37 | F47: =TRUNC(D47*E47,2) -> 6.22
A48: =CONCATENATE("SINAPI C ",Insumos!$B$39) -> SINAPI C 88316 | B48: SERVENTE C/ ENCARGOS COMPLEMENTARES | C48: h | D48: 0.1107 | E48: =+Insumos!$G$39 -> 17.11 | F48: =TRUNC(D48*E48,2) -> 1.89
A49: SUB-TOTAL - MÃO-DE-OBRA: | C49: =SUM(F47:F48) -> 8.11
B51: CUSTO TOTAL: | F51: =+C49 -> 8.11
B53: BDI: | C53: % | D53: =+$F$7 -> 22,15% | F53: =(F51*D53) -> 1.796365
B55: PREÇO: | F55: =ROUND(F51+F53,2) -> 9.91
A57: CÓDIGO | B57: DISCRIMINAÇÃO | C57: UN | D57: COEFIC. | E57: UNITÁRIO | F57: TOTAL
A58: 90 | B58: REMOÇÃO MEIO-FIO VIÁRIO | C58: m
A59: =CONCATENATE("SINAPI C ",Insumos!$B$39) -> SINAPI C 88316 | B59: SERVENTE C/ ENCARGOS COMPLEMENTARES | C59: h | D59: 1 | E59: =+Insumos!$G$39 -> 17.11 | F59: =TRUNC(D59*E59,2) -> 17.11
A60: SUB-TOTAL - MÃO-DE-OBRA: | C60: =SUM(F59:F59) -> 17.11
B62: CUSTO TOTAL: | F62: =+C60 -> 17.11
B64: BDI: | C64: % | D64: =+$F$7 -> 22,15% | F64: =(F62*D64) -> 3.789865
B66: PREÇO: | F66: =ROUND(F62+F64,2) -> 20.9
A68: CÓDIGO | B68: DISCRIMINAÇÃO | C68: UN | D68: COEFIC. | E68: UNITÁRIO | F68: TOTAL
A69: 101 | B69: REMOÇÃO BANCO S/ENCOSTO | C69: un
A70: =CONCATENATE("SINAPI C ",'Composições Aux. SINAPI'!$A$65,) -> SINAPI C 5795 | B70: MARTELETE OU ROMPEDOR PNEUMÁTICO MANUAL, 28 KG, COM SILENCIADOR (chp) | C70: chp | D70: 0.112 | E70: =+'Composições Aux. SINAPI'!$E$65:$F$65 -> 26.32 | F70: =TRUNC(D70*E70,2) -> 2.94
A71: =CONCATENATE("SINAPI C ",'Composições Aux. SINAPI'!$A$66,) -> SINAPI C 5952 | B71: MARTELETE OU ROMPEDOR PNEUMÁTICO MANUAL, 28 KG, COM SILENCIADOR (chi) | C71: chi | D71: 0.0317 | E71: =+'Composições Aux. SINAPI'!$E$66:$F$66 -> 24.38 | F71: 0.77
A72: =CONCATENATE("SINAPI C ",'Composições Aux. SINAPI'!$A$29,) -> SINAPI C 5953 | B72: COMPRESSOR DE AR REBOCÁVEL, VAZÃO 189 PCM, MOTOR DIESEL, POTÊNCIA 63 CV (chp) | C72: chp | D72: 0.112 | E72: =+'Composições Aux. SINAPI'!$E$29:$F$29 -> 39.24 | F72: 4.39
A73: =CONCATENATE("SINAPI C ",'Composições Aux. SINAPI'!$A$30,) -> SINAPI C 5954 | B73: COMPRESSOR DE AR REBOCÁVEL, VAZÃO 189 PCM, MOTOR DIESEL, POTÊNCIA 63 CV (chi) | C73: chi | D73: 0.0317 | E73: =+'Composições Aux. SINAPI'!$E$30:$F$30 -> 3.34 | F73: 0.1
A74: =CONCATENATE("COTAÇÃO ",Insumos!$B$132) -> COTAÇÃO 113 | B74: CAÇAMBA 4,00 m³ | C74: un | D74: 0.0234 | E74: =+Insumos!$G$132 -> 458.57 | F74: 10.73
A75: =CONCATENATE("SINAPI I ",Insumos!$B$89) -> SINAPI I 6081 | B75: ARGILA OU BARRO PARA ATERRO OU REATERRO | C75: m³ | D75: 0.09 | E75: =+Insumos!$G$89 -> 28.52 | F75: 2.56
A76: SUB-TOTAL - MATERIAL / EQUIPAMENTOS: | C76: =SUM(F70:F75) -> 21.49
A77: =CONCATENATE("SINAPI C ",Insumos!$B$36) -> SINAPI C 88309 | B77: PEDREIRO C/ENCARGOS COMPLEMENTARES | C77: h | D77: 0.022 | E77: =+Insumos!$G$36 -> 20.71 | F77: =TRUNC(D77*E77,2) -> 0.45
A78: =CONCATENATE("SINAPI C ",Insumos!$B$39) -> SINAPI C 88316 | B78: SERVENTE C/ ENCARGOS COMPLEMENTARES | C78: h | D78: 1.6497 | E78: =+Insumos!$G$39 -> 17.11 | F78: =TRUNC(D78*E78,2) -> 28.22
A79: SUB-TOTAL - MÃO-DE-OBRA: | C79: =SUM(F77:F78) -> 28.67
B81: CUSTO TOTAL: | F81: =+C76+C79 -> 50.16
B83: BDI: | C83: % | D83: =+$F$7 -> 22,15% | F83: =TRUNC(F81*D83,2) -> 11.11
B85: PREÇO: | F85: =+F81+F83 -> 61.27
A87: CÓDIGO | B87: DISCRIMINAÇÃO | C87: UN | D87: COEFIC. | E87: UNITÁRIO | F87: TOTAL
A88: 160 | B88: REMOÇÃO LIXEIRA | C88: un
A89: =CONCATENATE("SINAPI C ",'Composições Aux. SINAPI'!$A$65,) -> SINAPI C 5795 | B89: MARTELETE OU ROMPEDOR PNEUMÁTICO MANUAL, 28 KG, COM SILENCIADOR (chp) | C89: chp | D89: 0.1233 | E89: =+'Composições Aux. SINAPI'!$E$65:$F$65 -> 26.32 | F89: =TRUNC(D89*E89,2) -> 3.24
A90: =CONCATENATE("SINAPI C ",'Composições Aux. SINAPI'!$A$66,) -> SINAPI C 5952 | B90: MARTELETE OU ROMPEDOR PNEUMÁTICO MANUAL, 28 KG, COM SILENCIADOR (chi) | C90: chi | D90: 0.0349 | E90: =+'Composições Aux. SINAPI'!$E$66:$F$66 -> 24.38 | F90: 0.85
A91: =CONCATENATE("SINAPI C ",'Composições Aux. SINAPI'!$A$29,) -> SINAPI C 5953 | B91: COMPRESSOR DE AR REBOCÁVEL, VAZÃO 189 PCM, MOTOR DIESEL, POTÊNCIA 63 CV (chp) | C91: chp | D91: 0.1233 | E91: =+'Composições Aux. SINAPI'!$E$29:$F$29 -> 39.24 | F91: 4.83
A92: =CONCATENATE("SINAPI C ",'Composições Aux. SINAPI'!$A$30,) -> SINAPI C 5954 | B92: COMPRESSOR DE AR REBOCÁVEL, VAZÃO 189 PCM, MOTOR DIESEL, POTÊNCIA 63 CV (chi) | C92: chi | D92: 0.0349 | E92: =+'Composições Aux. SINAPI'!$E$30:$F$30 -> 3.34 | F92: 0.11
A93: =CONCATENATE("COTAÇÃO ",Insumos!$B$132) -> COTAÇÃO 113 | B93: CAÇAMBA 4,00 m³ | C93: un | D93: 0.0257 | E93: =+Insumos!$G$132 -> 458.57 | F93: 11.78
A94: =CONCATENATE("SINAPI I ",Insumos!$B$89) -> SINAPI I 6081 | B94: ARGILA OU BARRO PARA ATERRO OU REATERRO | C94: m³ | D94: 0.099 | E94: =+Insumos!$G$89 -> 28.52 | F94: 2.82
A95: SUB-TOTAL - MATERIAL / EQUIPAMENTOS: | C95: =SUM(F89:F94) -> 23.63
A96: =CONCATENATE("SINAPI C ",Insumos!$B$36) -> SINAPI C 88309 | B96: PEDREIRO C/ENCARGOS COMPLEMENTARES | C96: h | D96: 0.0242 | E96: =+Insumos!$G$36 -> 20.71 | F96: =TRUNC(D96*E96,2) -> 0.5
A97: =CONCATENATE("SINAPI C ",Insumos!$B$39) -> SINAPI C 88316 | B97: SERVENTE C/ ENCARGOS COMPLEMENTARES | C97: h | D97: 1.1897 | E97: =+Insumos!$G$39 -> 17.11 | F97: =TRUNC(D97*E97,2) -> 20.35
A98: SUB-TOTAL - MÃO-DE-OBRA: | C98: =SUM(F96:F97) -> 20.85
B100: CUSTO TOTAL: | F100: =+C95+C98 -> 44.48
B102: BDI: | C102: % | D102: =+$F$7 -> 22,15% | F102: =TRUNC(F100*D102,2) -> 9.85
B104: PREÇO: | F104: =+F100+F102 -> 54.33
A106: CÓDIGO | B106: DISCRIMINAÇÃO | C106: UN | D106: COEFIC. | E106: UNITÁRIO | F106: TOTAL
A107: 99814 | B107: LIMPEZA DE MONUMENTOS COM JATO DE ALTA PRESSÃO | C107: m²
A108: =CONCATENATE("SINAPI C ",'Composições Aux. SINAPI'!$A$62,) -> SINAPI C 99833 | B108: LAVADORA DE ALTA PRESSAO (LAVA-JATO) PARA AGUA FRIA | C108: m² | D108: 0.015 | E108: =+'Composições Aux. SINAPI'!$E$62:$F$62 -> 1.36 | F108: =TRUNC(D108*E108,2) -> 0.02
A109: SUB-TOTAL - MATERIAL / EQUIPAMENTOS: | C109: =SUM(F108) -> 0.02
A110: =CONCATENATE("SINAPI C ",Insumos!$B$39) -> SINAPI C 88316 | B110: SERVENTE C/ ENCARGOS COMPLEMENTARES | C110: h | D110: 0.089 | E110: =+Insumos!$G$39 -> 17.11 | F110: =TRUNC(D110*E110,2) -> 1.52
A111: SUB-TOTAL - MÃO-DE-OBRA: | C111: =SUM(F109:F110) -> 1.52
B113: CUSTO TOTAL: | F113: =+C109+C111 -> 1.54
B115: BDI: | C115: % | D115: =+$F$7 -> 22,15% | F115: =TRUNC(F113*D115,2) -> 0.34
B117: PREÇO: | F117: =+F113+F115 -> 1.88
A119: CÓDIGO | B119: DISCRIMINAÇÃO | C119: UN | D119: COEFIC. | E119: UNITÁRIO | F119: TOTAL
A120: 170 | B120: DESTOCAMENTO | C120: un
A121: =CONCATENATE("SINAPI C ",'Composições Aux. SINAPI'!$A$72) -> SINAPI C 5678 | B121: RETROESCAVADEIRA SOBRE RODAS, TRAÇÃO 4x4, POTÊNCIA 88 hp (chp) | C121: chp | D121: 1 | E121: =+'Composições Aux. SINAPI'!$E$72:$F$72 -> 109.42 | F121: =TRUNC(D121*E121,2) -> 109.42
A122: =CONCATENATE("SINAPI C ",'Composições Aux. SINAPI'!$A$73) -> SINAPI C 5679 | B122: RETROESCAVADEIRA SOBRE RODAS, TRAÇÃO 4x4, POTÊNCIA 88 hp (chi) | C122: chi | D122: 1.5 | E122: =+'Composições Aux. SINAPI'!$E$73:$F$73 -> 49.22 | F122: =TRUNC(D122*E122,2) -> 73.83
A123: SUB-TOTAL - MATERIAL / EQUIPAMENTOS: | C123: =SUM(F121:F122) -> 183.25
B125: CUSTO TOTAL: | F125: =+C123 -> 183.25
B127: BDI: | C127: % | D127: =+$F$7 -> 22,15% | F127: =(F125*D127) -> 40.589875
B129: PREÇO: | F129: =ROUND(F125+F127,2) -> 223.84
A131: CÓDIGO | B131: DISCRIMINAÇÃO | C131: UN | D131: COEFIC. | E131: UNITÁRIO | F131: TOTAL
A132: 390 | B132: REMOÇÃO DE ENTULHO C/CAÇAMBA | C132: m³
A133: =CONCATENATE("COTAÇÃO ",Insumos!$B$132) -> COTAÇÃO 113 | B133: CAÇAMBA 4,00 m³ | C133: un | D133: 0.25 | E133: =+Insumos!$G$132 -> 458.57 | F133: =TRUNC(D133*E133,2) -> 114.64
A134: SUB-TOTAL - MATERIAL / EQUIPAMENTOS: | C134: =SUM(F133) -> 114.64
A135: =CONCATENATE("SINAPI C ",Insumos!$B$39) -> SINAPI C 88316 | B135: SERVENTE C/ ENCARGOS COMPLEMENTARES | C135: h | D135: 0.7 | E135: =+Insumos!$G$39 -> 17.11 | F135: =TRUNC(D135*E135,2) -> 11.97
A136: SUB-TOTAL - MÃO-DE-OBRA: | C136: =SUM(F135) -> 11.97
B138: CUSTO TOTAL: | F138: =+C134+C136 -> 126.61
B140: BDI: | C140: % | D140: =+$F$7 -> 22,15% | F140: =TRUNC(F138*D140,2) -> 28.04
B142: PREÇO: | F142: =+F138+F140 -> 154.65
A144: CÓDIGO | B144: DISCRIMINAÇÃO | C144: UN | D144: COEFIC. | E144: UNITÁRIO | F144: TOTAL
A145: 500 | B145: TAPUME EM CHAPA DE COMPENSADO RESINADO | C145: m²
A146: =CONCATENATE("SINAPI I ",Insumos!$B$280) -> SINAPI I 2745 | B146: PONTALETE ROLIÇO S/TRATAMENTO EUCALIPTO D=8 A 11 cm | C146: m | D146: 0.2622 | E146: =+Insumos!$G$280 -> 3.16 | F146: =TRUNC(D146*E146,2) -> 0.82
A147: =CONCATENATE("SINAPI I ",Insumos!$B$302) -> SINAPI I 4460 | B147: SARRAFO NÃO APARELHADO 2,5 X 10 cm | C147: m | D147: 0.708 | E147: =+Insumos!$G$302 -> 7.48 | F147: 5.29
A148: =CONCATENATE("SINAPI I ",Insumos!$B$153) -> SINAPI I 1355 | B148: CHAPA DE MADEIRA COMPENSADA RESINADA 14 mm | C148: m² | D148: 0.525 | E148: =+Insumos!$G$153 -> 28.72 | F148: 15.07
A149: =CONCATENATE("SINAPI C ",'Composições Aux. SINAPI'!$A$79,) -> SINAPI C 91692 | B149: SERRA CIRCULAR DE BANCADA C/COIFA PARA DISCO 10" (chp) | C149: chp | D149: 0.0044 | E149: =+'Composições Aux. SINAPI'!$E$79 -> 26.7 | F149: 0.11
A150: =CONCATENATE("SINAPI C ",'Composições Aux. SINAPI'!$A$80) -> SINAPI C 91693 | B150: SERRA CIRCULAR DE BANCADA C/COIFA PARA DISCO 10" (chi) | C150: chi | D150: 0.0191 | E150: =+'Composições Aux. SINAPI'!$E$80 -> 23.89 | F150: 0.45
A151: =CONCATENATE("SINAPI I ",Insumos!$B$291) -> SINAPI I 5061 | B151: PREGO DE AÇO 18 x 27 C/CABEÇA | C151: kg | D151: 0.0428 | E151: =+Insumos!$G$291 -> 19.16 | F151: 0.82
A152: =CONCATENATE("SINAPI I ",Insumos!$B$356) -> SINAPI I 35693 | B152: TINTA LÁTEX ACRÍLICA ECONÔMICA, COR BRANCA | C152: l | D152: 0.2698 | E152: =+Insumos!$G$356 -> 11.2 | F152: 3.02
A153: =CONCATENATE("SINAPI I ",Insumos!$B$229) -> SINAPI I 3767 | B153: LIXA P/MADEIRA | C153: un | D153: 0.8 | E153: =+Insumos!$G$229 -> 0.78 | F153: 0.62
A154: SUB-TOTAL - MATERIAL / EQUIPAMENTOS: | C154: =SUM(F146:F153) -> 26.2
A155: =CONCATENATE("SINAPI C ",Insumos!$B$21) -> SINAPI C 88262 | B155: CARPINTEIRO C/ENCARGOS COMPLEMENTARES | C155: h | D155: 0.6127 | E155: =+Insumos!$G$21 -> 20.5 | F155: =TRUNC(D155*E155,2) -> 12.56
A156: =CONCATENATE("SINAPI C ",Insumos!$B$14) -> SINAPI C 88239 | B156: AJUDANTE DE CARPINTEIRO C/ENCARGOS COMPLEMENTARES | C156: h | D156: 0.2042 | E156: =+Insumos!$G$14 -> 17.06 | F156: =TRUNC(D156*E156,2) -> 3.48
A157: =CONCATENATE("SINAPI C ",Insumos!$B$37) -> SINAPI C 88310 | B157: PINTOR C/ENCARGOS COMPLEMENTARES | C157: h | D157: 0.8 | E157: =+Insumos!$G$37 -> 21.7 | F157: =TRUNC(D157*E157,2) -> 17.36
A158: =CONCATENATE("SINAPI C ",Insumos!$B$39) -> SINAPI C 88316 | B158: SERVENTE C/ ENCARGOS COMPLEMENTARES | C158: h | D158: 0.45 | E158: =+Insumos!$G$39 -> 17.11 | F158: =TRUNC(D158*E158,2) -> 7.69
A159: SUB-TOTAL - MÃO-DE-OBRA: | C159: =SUM(F155:F158) -> 41.09
B161: CUSTO TOTAL: | F161: =+C154+C159 -> 67.29
B163: BDI: | C163: % | D163: =+$F$7 -> 22,15% | F163: =TRUNC(F161*D163,2) -> 14.9
B165: PREÇO: | F165: =+F161+F163 -> 82.19
A167: CÓDIGO | B167: DISCRIMINAÇÃO | C167: UN | D167: COEFIC. | E167: UNITÁRIO | F167: TOTAL
A168: 507 | B168: DESMONTAGEM DE TAPUME | C168: m²
A169: =CONCATENATE("SINAPI C ",Insumos!$B$21) -> SINAPI C 88262 | B169: CARPINTEIRO C/ENCARGOS COMPLEMENTARES | C169: h | D169: 0.0408 | E169: =+Insumos!$G$21 -> 20.5 | F169: =TRUNC(D169*E169,2) -> 0.83
A170: =CONCATENATE("SINAPI C ",Insumos!$B$39) -> SINAPI C 88316 | B170: SERVENTE C/ ENCARGOS COMPLEMENTARES | C170: h | D170: 0.0801 | E170: =+Insumos!$G$39 -> 17.11 | F170: =TRUNC(D170*E170,2) -> 1.37
A171: SUB-TOTAL - MÃO-DE-OBRA: | C171: =SUM(F169:F170) -> 2.2
B173: CUSTO TOTAL: | F173: =+C171 -> 2.2
B175: BDI: | C175: % | D175: =+$F$7 -> 22,15% | F175: =ROUND(F173*D175,2) -> 0.49
B177: PREÇO: | F177: =+F173+F175 -> 2.69
A179: CÓDIGO | B179: DISCRIMINAÇÃO | C179: UN | D179: COEFIC. | E179: UNITÁRIO | F179: TOTAL
A180: 508 | B180: TELHEIRO | C180: m²
A181: =CONCATENATE("SINAPI C ",'Composições Aux. SINAPI'!$A$51) -> SINAPI C 93583 | B181: EXECUÇÃO DE CENTRAL DE FÔRMAS EM CANTEIRO DE OBRA | C181: m² | D181: 1 | E181: =+'Composições Aux. SINAPI'!$E$51:$F$51 -> 385.12 | F181: =TRUNC(D181*E181,2) -> 385.12
A182: SUB-TOTAL - MATERIAL / EQUIPAMENTOS: | C182: =SUM(F181:F181) -> 385.12
B184: CUSTO TOTAL: | F184: =+C182 -> 385.12
B186: BDI: | C186: % | D186: =+$F$7 -> 22,15% | F186: =TRUNC(F184*D186,2) -> 85.3
B188: PREÇO: | F188: =+F184+F186 -> 470.42
A190: CÓDIGO | B190: DISCRIMINAÇÃO | C190: UN | D190: COEFIC. | E190: UNITÁRIO | F190: TOTAL
A191: 515 | B191: LOCAÇÃO CONTAINER ESCRITÓRIO S/FRETE | C191: %
A192: =CONCATENATE("SINAPI I ",Insumos!$B$230) -> SINAPI I 10776 | B192: LOCAÇÃO DE CONTAINER ESCRITÓRIO | C192: ms | D192: 0.03 | E192: =+Insumos!$G$230 -> 425.78 | F192: =TRUNC(D192*E192,2) -> 12.77
A193: SUB-TOTAL - MATERIAL / EQUIPAMENTOS: | C193: =SUM(F192) -> 12.77
B195: CUSTO TOTAL: | F195: =+C193 -> 12.77
B197: BDI: | C197: % | D197: =+$F$7 -> 22,15% | F197: =ROUND(F195*D197,2) -> 2.83
B199: PREÇO: | F199: =+F195+F197 -> 15.6
A201: CÓDIGO | B201: DISCRIMINAÇÃO | C201: UN | D201: COEFIC. | E201: UNITÁRIO | F201: TOTAL
A202: 517 | B202: LOCAÇÃO CONTAINER SANITÁRIO S/FRETE | C202: %
A203: =CONCATENATE("SINAPI I ",Insumos!$B$231) -> SINAPI I 10777 | B203: LOCAÇÃO CONTAINER SANITÁRIO (3 BACIAS, 1 LAV., 1 MIC, 4 CHUVEIROS) | C203: ms | D203: 0.03 | E203: =+Insumos!$G$231 -> 618.8 | F203: =TRUNC(D203*E203,2) -> 18.56
A204: SUB-TOTAL - MATERIAL / EQUIPAMENTOS: | C204: =SUM(F203) -> 18.56
B206: CUSTO TOTAL: | F206: =+C204 -> 18.56
B208: BDI: | C208: % | D208: =+$F$7 -> 22,15% | F208: =ROUND(F206*D208,2) -> 4.11
B210: PREÇO: | F210: =+F206+F208 -> 22.67
A212: CÓDIGO | B212: DISCRIMINAÇÃO | C212: UN | D212: COEFIC. | E212: UNITÁRIO | F212: TOTAL
A213: 520 | B213: FRETE P/ CONTAINER | C213: cj
A214: =CONCATENATE("SINAPI C ",'Composições Aux. SINAPI'!$A$56) -> SINAPI C 93402 | B214: GUINDAUTO HIDRÁULICO, CAP. 3300 KG, INCLUSIVE CAMINHÃO TOCO | C214: chp | D214: 5 | E214: =+'Composições Aux. SINAPI'!$E$56 -> 166.32 | F214: =TRUNC(D214*E214,2) -> 831.6
A215: SUB-TOTAL - MATERIAL / EQUIPAMENTOS: | C215: =SUM(F214) -> 831.6
B217: CUSTO TOTAL: | F217: =+C215 -> 831.6
B219: BDI: | C219: % | D219: =+$F$7 -> 22,15% | F219: =ROUND(F217*D219,2) -> 184.2
B221: PREÇO: | F221: =+F217+F219 -> 1015.8
A223: CÓDIGO | B223: DISCRIMINAÇÃO | C223: UN | D223: COEFIC. | E223: UNITÁRIO | F223: TOTAL
A224: 530 | B224: INSTALAÇÃO PROVISÓRIA DE ENERGIA | C224: pt
A225: =CONCATENATE("SINAPI C ",'Composições Aux. SINAPI'!$A$46) -> SINAPI C 91872 | B225: ELETRODUTO RÍGIDO ROSCÁVEL, PVC, DN 32 mm (1"), PARA CIRCUITOS TERMINAIS | C225: m | D225: 6.05 | E225: =+'Composições Aux. SINAPI'!$E$46:$F$46 -> 14.51 | F225: =TRUNC(D225*E225,2) -> 87.78
A226: =CONCATENATE("SINAPI C ",'Composições Aux. SINAPI'!$A$64) -> SINAPI C 91885 | B226: LUVA PARA ELETRODUTO, PVC, ROSCÁVEL, DN 32 mm (1") | C226: un | D226: 1 | E226: =+'Composições Aux. SINAPI'!$E$64:$F$64 -> 8.61 | F226: 8.61
A227: =CONCATENATE("SINAPI C ",'Composições Aux. SINAPI'!$A$40) -> SINAPI C 91917 | B227: CURVA 90° PARA ELETRODUTO, PVC, ROSCÁVEL, DN 32 mm (1") | C227: un | D227: 1 | E227: =+'Composições Aux. SINAPI'!$E$40:$F$40 -> 14.32 | F227: 14.32
A228: =CONCATENATE("SINAPI C ",'Composições Aux. SINAPI'!$A$41) -> SINAPI C 91919 | B228: CURVA 180° P/ELETRODUTO, PVC, ROSCÁVEL, DN 32 mm (1") | C228: un | D228: 1 | E228: =+'Composições Aux. SINAPI'!$E$41:$F$41 -> 15.98 | F228: 15.98
A229: =CONCATENATE("SINAPI C ",'Composições Aux. SINAPI'!$A$24) -> SINAPI C 91933 | B229: CABO DE COBRE FLEXÍVEL ISOLADO, 10 mm², ANTI-CHAMA 0,6/1,0 kV | C229: m | D229: 22.2 | E229: =+'Composições Aux. SINAPI'!$E$24:$F$24 -> 15.49 | F229: 343.87
A230: =CONCATENATE("SINAPI C ",'Composições Aux. SINAPI'!$A$45) -> SINAPI C 93673 | B230: DISJUNTOR TRIPOLAR TIPO DIN, CORRENTE NOMINAL DE 50 A | C230: un | D230: 1 | E230: =+'Composições Aux. SINAPI'!$E$45:$F$45 -> 91.05 | F230: 91.05
A231: =CONCATENATE("SINAPI C ",'Composições Aux. SINAPI'!$A$35) -> SINAPI C 96977 | B231: CORDOALHA DE COBRE NU 50 mm², ENTERRADA, SEM ISOLADOR | C231: m | D231: 1.95 | E231: =+'Composições Aux. SINAPI'!$E$35:$F$35 -> 44.15 | F231: 86.09
A232: =CONCATENATE("SINAPI C ",'Composições Aux. SINAPI'!$A$57) -> SINAPI C 96986 | B232: HASTE DE ATERRAMENTO 3/4" PARA SPDA | C232: un | D232: 1 | E232: =+'Composições Aux. SINAPI'!$E$57:$F$57 -> 99.67 | F232: 99.67
A233: =CONCATENATE("SINAPI C ",'Composições Aux. SINAPI'!$A$21) -> SINAPI C 100578 | B233: ASSENTAMENTO DE POSTE DE CONCRETO COM COMPRIMENTO NOMINAL DE 9 m | C233: un | D233: 1 | E233: =+'Composições Aux. SINAPI'!$E$21:$F$21 -> 376.38 | F233: 376.38
A234: =CONCATENATE("SINAPI I ",Insumos!$B$90) -> SINAPI I 1094 | B234: ARMAÇÃO VERTICAL C/HASTE E CONTRA-PINO, EM CHAPA DE FG 3/16", C/1 ESTRIBO | C234: un | D234: 1 | E234: =+Insumos!$G$90 -> 13.98 | F234: 13.98
A235: =CONCATENATE("SINAPI I ",Insumos!$B$221) -> SINAPI I 3398 | B235: ISOLADOR DE PORCELANA, TIPO ROLDANA, DIMENSÕES DE 72 x 72 mm | C235: un | D235: 1 | E235: =+Insumos!$G$221 -> 4.18 | F235: 4.18
A236: =CONCATENATE("SINAPI I ",Insumos!$B$248) -> SINAPI I 4346 | B236: PARAFUSO FERRO POLIDO, SEXTAVADO, D=5/8", C/PORCA E ARRUELA DE PRESSÃO MÉDIA | C236: un | D236: 3 | E236: =+Insumos!$G$248 -> 5.85 | F236: 17.55
A237: =CONCATENATE("SINAPI I ",Insumos!$B$92) -> SINAPI I 11267 | B237: ARRUELA LISA, DE LATÃO POLIDO, DIÂMETRO NOMINAL 5/8", DIÂMETRO DO FURO = 17 mm | C237: un | D237: 2 | E237: =+Insumos!$G$92 -> 0.79 | F237: 1.58
A238: =CONCATENATE("SINAPI I ",Insumos!$B$168) -> SINAPI I 11864 | B238: CONECTOR METÁLICO TIPO PARAFUSO FENDIDO (SPLIT BOLT), PARA CABOS ATÉ 95 mm2 | C238: un | D238: 1 | E238: =+Insumos!$G$168 -> 27.22 | F238: 27.22
A239: =CONCATENATE("SINAPI I ",Insumos!$B$125) -> SINAPI I 11950 | B239: BUCHA NYLON S/ABA S6, C/PARAFUSO DE 4,2 x 40 mm EM AÇO ZINCADO C/ROSCA SOBERBA | C239: un | D239: 4 | E239: =+Insumos!$G$125 -> 0.31 | F239: 1.24
A240: =CONCATENATE("SINAPI I ",Insumos!$B$200) -> SINAPI I 14153 | B240: FITA METÁLICA PERFURADA, L = 18 mm, ROLO DE 30 m, CARGA RECOMENDADA = 30 kgf | C240: un | D240: 0.06 | E240: =+Insumos!$G$200 -> 52.91 | F240: 3.17
A241: =CONCATENATE("SINAPI I ",Insumos!$B$142) -> SINAPI I 34643 | B241: CAIXA INSPEÇÃO EM POLIETILENO PARA ATERRAMENTO E PÁRA RAIOS DIÂMETRO = 300 mm | C241: un | D241: 1 | E241: =+Insumos!$G$142 -> 18.85 | F241: 18.85
A242: =CONCATENATE("SINAPI I ",Insumos!$B$144) -> SINAPI I 39809 | B242: CAIXA P/MEDIDOR POLIFÁSICO, EM POLICARBONATO/TERMOPLÁSTICO, P/1 DISJUNTOR | C242: un | D242: 1 | E242: =+Insumos!$G$144 -> 129.53 | F242: 129.53
A243: =CONCATENATE("SINAPI I ",Insumos!$B$381) -> SINAPI I 39996 | B243: VERGALHÃO ZINCADO ROSCA TOTAL, 1/4 " (6,3 mm) | C243: m | D243: 0.1664 | E243: =+Insumos!$G$381 -> 3.54 | F243: 0.58
A244: =CONCATENATE("SINAPI I ",Insumos!$B$283) -> SINAPI I 39997 | B244: PORCA ZINCADA, SEXTAVADA, DIÂMETRO 1/4" | C244: un | D244: 2 | E244: =+Insumos!$G$283 -> 0.17 | F244: 0.34
A245: =CONCATENATE("SINAPI I ",Insumos!$B$284) -> SINAPI I 5044 | B245: POSTE DE CONCRETO CIRCULAR, 200 kg, H = 9 m | C245: un | D245: 1 | E245: =+Insumos!$G$284 -> 785.25 | F245: 785.25
A246: SUB-TOTAL - MATERIAL / EQUIPAMENTOS: | C246: =SUM(F225:F245) -> 2127.22
A247: =CONCATENATE("SINAPI C ",Insumos!$B$23) -> SINAPI C 88264 | B247: ELETRICISTA C/ENCARGOS COMPLEMENTARES | C247: h | D247: 3.5078 | E247: =+Insumos!$G$23 -> 22.61 | F247: =TRUNC(D247*E247,2) -> 79.31
A248: =CONCATENATE("SINAPI C ",Insumos!$B$16) -> SINAPI C 88247 | B248: AUXILIAR DE ELETRICISTA C/ENCARGOS COMPLEMENTARES | C248: h | D248: 0.3897 | E248: =+Insumos!$G$16 -> 17.17 | F248: =TRUNC(D248*E248,2) -> 6.69
A249: SUB-TOTAL - MÃO-DE-OBRA: | C249: =SUM(F247:F248) -> 86
B251: CUSTO TOTAL: | F251: =+C246+C249 -> 2213.22
B253: BDI: | C253: % | D253: =+$F$7 -> 22,15% | F253: =ROUND(F251*D253,2) -> 490.23
B255: PREÇO: | F255: =+F251+F253 -> 2703.45
A257: CÓDIGO | B257: DISCRIMINAÇÃO | C257: UN | D257: COEFIC. | E257: UNITÁRIO | F257: TOTAL
A258: 535 | B258: INSTALAÇÃO PROVISÓRIA DE ÁGUA | C258: pt
A259: =CONCATENATE("SINAPI C ",'Composições Aux. SINAPI'!$A$60) -> SINAPI C 89971 | B259: KIT DE REGISTRO DE GAVETA BRUTO DE LATÃO ½", INCLUSIVE CONEXÕES, ROSCÁVEL | C259: un | D259: 1 | E259: =+'Composições Aux. SINAPI'!$E$60:$F$60 -> 49.94 | F259: =TRUNC(D259*E259,2) -> 49.94
A260: =CONCATENATE("SINAPI C ",'Composições Aux. SINAPI'!$A$48) -> SINAPI C 93358 | B260: ESCAVAÇÃO MANUAL DE VALA COM PROFUNDIDADE MENOR OU IGUAL A 1,30 M | C260: m³ | D260: 0.16 | E260: =+'Composições Aux. SINAPI'!$E$48:$F$48 -> 67.68 | F260: 10.82
A261: =CONCATENATE("SINAPI C ",'Composições Aux. SINAPI'!$A$89) -> SINAPI C 89401 | B261: TUBO, PVC, SOLDÁVEL, DN 20MM - FORNECIMENTO E INSTALAÇÃO | C261: m | D261: 8 | E261: =+'Composições Aux. SINAPI'!$E$89:$F$89 -> 7.57 | F261: 60.56
A262: =CONCATENATE("SINAPI C ",'Composições Aux. SINAPI'!$A$59) -> SINAPI C 89358 | B262: JOELHO 90 GRAUS, PVC, SOLDÁVEL, DN 20MM - FORNECIMENTO E INSTALAÇÃO | C262: un | D262: 4 | E262: =+'Composições Aux. SINAPI'!$E$59:$F$59 -> 6.3 | F262: 25.2
A263: =CONCATENATE("SINAPI C ",'Composições Aux. SINAPI'!$A$25) -> SINAPI C 95676 | B263: CAIXA EM CONCRETO PRÉ-MOLDADO PARA ABRIGO DE HIDRÔMETRO COM DN 20 (½) | C263: un | D263: 1 | E263: =+'Composições Aux. SINAPI'!$E$25:$F$25 -> 79.55 | F263: 79.55
A264: =CONCATENATE("SINAPI C ",'Composições Aux. SINAPI'!$A$81) -> SINAPI C 86913 | B264: TORNEIRA CROMADA 1/2" OU 3/4" PARA TANQUE, PADRÃO POPULAR | C264: un | D264: 1 | E264: =+'Composições Aux. SINAPI'!$E$81:$F$81 -> 27.07 | F264: 27.07
A265: =CONCATENATE("COTAÇÃO ",Insumos!$B$339) -> COTAÇÃO 116 | B265: TAXA INSTALAÇÃO ÁGUA DMAE | C265: cj | D265: 1 | E265: =+Insumos!$G$339 -> 547.18 | F265: 547.18
A266: SUB-TOTAL - MATERIAL / EQUIPAMENTOS: | C266: =SUM(F259:F265) -> 800.32
B268: CUSTO TOTAL: | F268: =+C266 -> 800.32
B270: BDI: | C270: % | D270: =+$F$7 -> 22,15% | F270: =TRUNC(F268*D270,2) -> 177.27
B272: PREÇO: | F272: =+F268+F270 -> 977.59
A274: CÓDIGO | B274: DISCRIMINAÇÃO | C274: UN | D274: COEFIC. | E274: UNITÁRIO | F274: TOTAL
A275: 537 | B275: INSTALAÇÃO PROVISÓRIA DE ESGOTO | C275: pt
... 314 more rows

Sheet Composições Aux. SINAPI (hidden)
A1: COMPOSIÇÕES AUXILIARES
A3: =IF('Atualizações Cotações'!$B$4="NÃO",CONCATENATE("Data Base SINAPI: ",M.O.!$E$17," - Data das Cotações: ",Cotações!$N$3),CONCATENATE("Data Base SINAPI: ",M.O.!$E$17," - Data das Cotações: ",Cotações!$N$3," (Atualizadas pelo INCC de ",'Atualizações Cotações'!A11:B11,"/",'Atualizações Cotações'!$C$11,")")) -> Data Base SINAPI: Abr/2021 - Data das Cotações: Abril/2019 (Atualizadas pelo INCC de Abril/2021)
A6: =+M.O.!$D$5 -> s/desoneração | C6: Leis Sociais Horistas: | D6: =+M.O.!$D$7 -> 1.111 | E6: BDI= | F6: =+M.O.!$F$7 -> 22,15%
C7: Leis Sociais Mensalistas: | D7: =+M.O.!$D$8 -> 0.6916
A9: =+E16 -> Abr/2021 | C9: Vem da aba Comp.SINAPI c_des. | D9: Vem da aba Comp.SINAPI s_des. | E9: Valor utilizado na composição
A16: Código SINAPI | B16: Composição | C16: Custo (c/desoneração) | D16: Custo (s/desoneração) | E16: =+M.O.!$E$17 -> Abr/2021
A17: 87335 | B17: ARGAMASSA TRAÇO 1:2:8 (CIMENTO, CAL E AREIA MÉDIA) PARA EMBOÇO/MASSA ÚNICA/ASSENTAMENTO DE ALVENARIA DE VEDAÇÃO, PREPARO MECÂNICO | C17: =VLOOKUP(A17,'Comp.SINAPI c_des.'!$G$8:$K$50000,5,FALSE) -> 391.79 | D17: =VLOOKUP(A17,'Comp.SINAPI s_des.'!$G$8:$K$50000,5,FALSE) -> 403.55 | E17: =IF(M.O.!$D$5="c/desoneração",C17,(IF(M.O.!$D$5="s/desoneração",D17))) -> 403.55
A18: 88629 | B18: ARGAMASSA TRAÇO 1:3 (CIMENTO E AREIA MÉDIA), PREPARO MANUAL | C18: =VLOOKUP(A18,'Comp.SINAPI c_des.'!$G$8:$K$50000,5,FALSE) -> 506.97 | D18: =VLOOKUP(A18,'Comp.SINAPI s_des.'!$G$8:$K$50000,5,FALSE) -> 522.06 | E18: =IF(M.O.!$D$5="c/desoneração",C18,(IF(M.O.!$D$5="s/desoneração",D18))) -> 522.06
A19: 88630 | B19: ARGAMASSA TRAÇO 1:4 (CIMENTO E AREIA MÉDIA), PREPARO MECÂNICO COM BETONEIRA 400 L | C19: =VLOOKUP(A19,'Comp.SINAPI c_des.'!$G$8:$K$50000,5,FALSE) -> 367.16 | D19: =VLOOKUP(A19,'Comp.SINAPI s_des.'!$G$8:$K$50000,5,FALSE) -> 375.12 | E19: =IF(M.O.!$D$5="c/desoneração",C19,(IF(M.O.!$D$5="s/desoneração",D19))) -> 375.12
A20: 88631 | B20: ARGAMASSA TRAÇO 1:4 (EM VOLUME DE CIMENTO E AREIA MÉDIA ÚMIDA), PREPARO MANUAL | C20: =VLOOKUP(A20,'Comp.SINAPI c_des.'!$G$8:$K$50000,5,FALSE) -> 447.85 | D20: =VLOOKUP(A20,'Comp.SINAPI s_des.'!$G$8:$K$50000,5,FALSE) -> 462.44 | E20: =IF(M.O.!$D$5="c/desoneração",C20,(IF(M.O.!$D$5="s/desoneração",D20))) -> 462.44
A21: 100578 | B21: ASSENTAMENTO DE POSTE DE CONCRETO COM COMPRIMENTO NOMINAL DE 9 M, ENGASTAMENTO SIMPLES COM 1,5 M DE SOLO (NÃO INCLUI FORNECIMENTO) | C21: =VLOOKUP(A21,'Comp.SINAPI c_des.'!$G$8:$K$50000,5,FALSE) -> 363.98 | D21: =VLOOKUP(A21,'Comp.SINAPI s_des.'!$G$8:$K$50000,5,FALSE) -> 376.38 | E21: =IF(M.O.!$D$5="c/desoneração",C21,(IF(M.O.!$D$5="s/desoneração",D21))) -> 376.38
A22: 88830 | B22: BETONEIRA 400 l, POTÊNCIA 2 cv, SEM CARREGADOR (chp) | C22: =VLOOKUP(A22,'Comp.SINAPI c_des.'!$G$8:$K$50000,5,FALSE) -> 1.59 | D22: =VLOOKUP(A22,'Comp.SINAPI s_des.'!$G$8:$K$50000,5,FALSE) -> 1.59 | E22: =IF(M.O.!$D$5="c/desoneração",C22,(IF(M.O.!$D$5="s/desoneração",D22))) -> 1.59
A23: 88831 | B23: BETONEIRA 400 l, POTÊNCIA 2 cv, SEM CARREGADOR (chi) | C23: =VLOOKUP(A23,'Comp.SINAPI c_des.'!$G$8:$K$50000,5,FALSE) -> 0.28 | D23: =VLOOKUP(A23,'Comp.SINAPI s_des.'!$G$8:$K$50000,5,FALSE) -> 0.28 | E23: =IF(M.O.!$D$5="c/desoneração",C23,(IF(M.O.!$D$5="s/desoneração",D23))) -> 0.28
A24: 91933 | B24: CABO DE COBRE FLEXÍVEL ISOLADO, 10 MM², ANTI-CHAMA 0,6/1,0 KV, PARA CIRCUITOS TERMINAIS | C24: =VLOOKUP(A24,'Comp.SINAPI c_des.'!$G$8:$K$50000,5,FALSE) -> 15.15 | D24: =VLOOKUP(A24,'Comp.SINAPI s_des.'!$G$8:$K$50000,5,FALSE) -> 15.49 | E24: =IF(M.O.!$D$5="c/desoneração",C24,(IF(M.O.!$D$5="s/desoneração",D24))) -> 15.49
A25: 95676 | B25: CAIXA EM CONCRETO PRÉ-MOLDADO PARA ABRIGO DE HIDRÔMETRO COM DN 20 (½) | C25: =VLOOKUP(A25,'Comp.SINAPI c_des.'!$G$8:$K$50000,5,FALSE) -> 78.72 | D25: =VLOOKUP(A25,'Comp.SINAPI s_des.'!$G$8:$K$50000,5,FALSE) -> 79.55 | E25: =IF(M.O.!$D$5="c/desoneração",C25,(IF(M.O.!$D$5="s/desoneração",D25))) -> 79.55
A26: 100978 | B26: CARGA, MANOBRA E DESCARGA DE SOLOS E MATERIAIS GRANULARES EM CAMINHÃO BASCULANTE 10 M³ - CARGA COM ESCAVADEIRA HIDRÁULICA (CAÇAMBA DE 1,20 M³ / 155 HP) E DESCARGA LIVRE (UNIDADE: M3) | C26: =VLOOKUP(A26,'Comp.SINAPI c_des.'!$G$8:$K$50000,5,FALSE) -> 4.5 | D26: =VLOOKUP(A26,'Comp.SINAPI s_des.'!$G$8:$K$50000,5,FALSE) -> 4.61 | E26: =IF(M.O.!$D$5="c/desoneração",C26,(IF(M.O.!$D$5="s/desoneração",D26))) -> 4.61
A27: 91533 | B27: COMPACTADOR DE SOLOS DE PERCUSSÃO C/MOTOR A GASOLINA, POTÊNCIA 4 cv (chp) | C27: =VLOOKUP(A27,'Comp.SINAPI c_des.'!$G$8:$K$50000,5,FALSE) -> 28.97 | D27: =VLOOKUP(A27,'Comp.SINAPI s_des.'!$G$8:$K$50000,5,FALSE) -> 31.75 | E27: =IF(M.O.!$D$5="c/desoneração",C27,(IF(M.O.!$D$5="s/desoneração",D27))) -> 31.75
A28: 91534 | B28: COMPACTADOR DE SOLOS DE PERCUSSÃO C/MOTOR A GASOLINA, POTÊNCIA 4 cv (chi) | C28: =VLOOKUP(A28,'Comp.SINAPI c_des.'!$G$8:$K$50000,5,FALSE) -> 22.05 | D28: =VLOOKUP(A28,'Comp.SINAPI s_des.'!$G$8:$K$50000,5,FALSE) -> 24.83 | E28: =IF(M.O.!$D$5="c/desoneração",C28,(IF(M.O.!$D$5="s/desoneração",D28))) -> 24.83
A29: 5953 | B29: COMPRESSOR DE AR REBOCÁVEL, VAZÃO 189 PCM, PRESSÃO EFETIVA DE TRABALHO 102 PSI, MOTOR DIESEL, POTÊNCIA 63 CV - CHP DIURNO | C29: =VLOOKUP(A29,'Comp.SINAPI c_des.'!$G$8:$K$50000,5,FALSE) -> 39.24 | D29: =VLOOKUP(A29,'Comp.SINAPI s_des.'!$G$8:$K$50000,5,FALSE) -> 39.24 | E29: =IF(M.O.!$D$5="c/desoneração",C29,(IF(M.O.!$D$5="s/desoneração",D29))) -> 39.24
A30: 5954 | B30: COMPRESSOR DE AR REBOCÁVEL, VAZÃO 189 PCM, PRESSÃO EFETIVA DE TRABALHO 102 PSI, MOTOR DIESEL, POTÊNCIA 63 CV - CHI DIURNO | C30: =VLOOKUP(A30,'Comp.SINAPI c_des.'!$G$8:$K$50000,5,FALSE) -> 3.34 | D30: =VLOOKUP(A30,'Comp.SINAPI s_des.'!$G$8:$K$50000,5,FALSE) -> 3.34 | E30: =IF(M.O.!$D$5="c/desoneração",C30,(IF(M.O.!$D$5="s/desoneração",D30))) -> 3.34
A31: 96555 | B31: CONCRETAGEM DE BLOCOS DE COROAMENTO E VIGAS BALDRAME, FCK 30 MPA, COM USO DE JERICA  LANÇAMENTO, ADENSAMENTO E ACABAMENTO | C31: =VLOOKUP(A31,'Comp.SINAPI c_des.'!$G$8:$K$50000,5,FALSE) -> 521.19 | D31: =VLOOKUP(A31,'Comp.SINAPI s_des.'!$G$8:$K$50000,5,FALSE) -> 538.16 | E31: =IF(M.O.!$D$5="c/desoneração",C31,(IF(M.O.!$D$5="s/desoneração",D31))) -> 538.16
A32: 94963 | B32: CONCRETO fck = 15MPa, TRAÇO 1:3,4:3,5 (CIMENTO/ AREIA MÉDIA/ BRITA 1) - PREPARO MECÂNICO COM BETONEIRA 400 l | C32: =VLOOKUP(A32,'Comp.SINAPI c_des.'!$G$8:$K$50000,5,FALSE) -> 318.72 | D32: =VLOOKUP(A32,'Comp.SINAPI s_des.'!$G$8:$K$50000,5,FALSE) -> 326.3 | E32: =IF(M.O.!$D$5="c/desoneração",C32,(IF(M.O.!$D$5="s/desoneração",D32))) -> 326.3
A33: 94974 | B33: CONCRETO MAGRO PARA LASTRO, TRAÇO 1:4,5:4,5 (CIMENTO/ AREIA MÉDIA/ BRITA 1) - PREPARO MANUAL | C33: =VLOOKUP(A33,'Comp.SINAPI c_des.'!$G$8:$K$50000,5,FALSE) -> 377.1 | D33: =VLOOKUP(A33,'Comp.SINAPI s_des.'!$G$8:$K$50000,5,FALSE) -> 394.7 | E33: =IF(M.O.!$D$5="c/desoneração",C33,(IF(M.O.!$D$5="s/desoneração",D33))) -> 394.7
A34: 94962 | B34: CONCRETO MAGRO PARA LASTRO, TRAÇO 1:4,5:4,5 (CIMENTO/ AREIA MÉDIA/ BRITA 1) - PREPARO MECÂNICO COM BETONEIRA 400 L | C34: =VLOOKUP(A34,'Comp.SINAPI c_des.'!$G$8:$K$50000,5,FALSE) -> 281.31 | D34: =VLOOKUP(A34,'Comp.SINAPI s_des.'!$G$8:$K$50000,5,FALSE) -> 288.94 | E34: =IF(M.O.!$D$5="c/desoneração",C34,(IF(M.O.!$D$5="s/desoneração",D34))) -> 288.94
A35: 96977 | B35: CORDOALHA DE COBRE NU 50 MM², ENTERRADA, SEM ISOLADOR | C35: =VLOOKUP(A35,'Comp.SINAPI c_des.'!$G$8:$K$50000,5,FALSE) -> 44 | D35: =VLOOKUP(A35,'Comp.SINAPI s_des.'!$G$8:$K$50000,5,FALSE) -> 44.15 | E35: =IF(M.O.!$D$5="c/desoneração",C35,(IF(M.O.!$D$5="s/desoneração",D35))) -> 44.15
A36: 91283 | B36: CORTADORA DE PISO, POTÊNCIA 13 hp, C/DISCO DE CORTE DIAMANTADO 350 mm (chp) | C36: =VLOOKUP(A36,'Comp.SINAPI c_des.'!$G$8:$K$50000,5,FALSE) -> 20.77 | D36: =VLOOKUP(A36,'Comp.SINAPI s_des.'!$G$8:$K$50000,5,FALSE) -> 20.77 | E36: =IF(M.O.!$D$5="c/desoneração",C36,(IF(M.O.!$D$5="s/desoneração",D36))) -> 20.77
A37: 91285 | B37: CORTADORA DE PISO, POTÊNCIA 13 hp, C/DISCO DE CORTE DIAMANTADO 350 mm (chi) | C37: =VLOOKUP(A37,'Comp.SINAPI c_des.'!$G$8:$K$50000,5,FALSE) -> 0.81 | D37: =VLOOKUP(A37,'Comp.SINAPI s_des.'!$G$8:$K$50000,5,FALSE) -> 0.81 | E37: =IF(M.O.!$D$5="c/desoneração",C37,(IF(M.O.!$D$5="s/desoneração",D37))) -> 0.81
A38: 92791 | B38: CORTE E DOBRA DE AÇO CA-60, DIÂMETRO DE 5,0 MM, UTILIZADO EM ESTRUTURAS DIVERSAS, EXCETO LAJES (4,2 mm, 5 mm, 6 mm e 7 mm) | C38: =VLOOKUP(A38,'Comp.SINAPI c_des.'!$G$8:$K$50000,5,FALSE) -> 13.21 | D38: =VLOOKUP(A38,'Comp.SINAPI s_des.'!$G$8:$K$50000,5,FALSE) -> 13.39 | E38: =IF(M.O.!$D$5="c/desoneração",C38,(IF(M.O.!$D$5="s/desoneração",D38))) -> 13.39
A39: 92794 | B39: CORTE E DOBRA DE AÇO CA-50, DIÂMETRO DE 10,0 MM, UTILIZADO EM ESTRUTURAS DIVERSAS, EXCETO LAJES | C39: =VLOOKUP(A39,'Comp.SINAPI c_des.'!$G$8:$K$50000,5,FALSE) -> 13.01 | D39: =VLOOKUP(A39,'Comp.SINAPI s_des.'!$G$8:$K$50000,5,FALSE) -> 13.04 | E39: =IF(M.O.!$D$5="c/desoneração",C39,(IF(M.O.!$D$5="s/desoneração",D39))) -> 13.04
A40: 91917 | B40: CURVA 90 GRAUS PARA ELETRODUTO, PVC, ROSCÁVEL, DN 32 MM (1"), PARA CIRCUITOS TERMINAIS, INSTALADA EM PAREDE | C40: =VLOOKUP(A40,'Comp.SINAPI c_des.'!$G$8:$K$50000,5,FALSE) -> 13.16 | D40: =VLOOKUP(A40,'Comp.SINAPI s_des.'!$G$8:$K$50000,5,FALSE) -> 14.32 | E40: =IF(M.O.!$D$5="c/desoneração",C40,(IF(M.O.!$D$5="s/desoneração",D40))) -> 14.32
A41: 91919 | B41: CURVA 180 GRAUS PARA ELETRODUTO, PVC, ROSCÁVEL, DN 32 MM (1), PARA CIRCUITOS TERMINAIS, INSTALADA EM PAREDE | C41: =VLOOKUP(A41,'Comp.SINAPI c_des.'!$G$8:$K$50000,5,FALSE) -> 14.82 | D41: =VLOOKUP(A41,'Comp.SINAPI s_des.'!$G$8:$K$50000,5,FALSE) -> 15.98 | E41: =IF(M.O.!$D$5="c/desoneração",C41,(IF(M.O.!$D$5="s/desoneração",D41))) -> 15.98
A42: 97633 | B42: DEMOLIÇÃO DE REVESTIMENTO CERÂMICO, DE FORMA MANUAL, SEM REAPROVEITAMENTO | C42: =VLOOKUP(A42,'Comp.SINAPI c_des.'!$G$8:$K$50000,5,FALSE) -> 15.74 | D42: =VLOOKUP(A42,'Comp.SINAPI s_des.'!$G$8:$K$50000,5,FALSE) -> 17.57 | E42: =IF(M.O.!$D$5="c/desoneração",C42,(IF(M.O.!$D$5="s/desoneração",D42))) -> 17.57
A43: 95282 | B43: DESEMPENADEIRA DE CONCRETO, PESO DE 75KG, 4 PÁS, MOTOR A GASOLINA, POTÊNCIA 5,5 HP - CHP DIURNO | C43: =VLOOKUP(A43,'Comp.SINAPI c_des.'!$G$8:$K$50000,5,FALSE) -> 8.91 | D43: =VLOOKUP(A43,'Comp.SINAPI s_des.'!$G$8:$K$50000,5,FALSE) -> 8.91 | E43: =IF(M.O.!$D$5="c/desoneração",C43,(IF(M.O.!$D$5="s/desoneração",D43))) -> 8.91
A44: 95283 | B44: DESEMPENADEIRA DE CONCRETO, PESO DE 75KG, 4 PÁS, MOTOR A GASOLINA, POTÊNCIA 5,5 HP - CHI DIURNO | C44: =VLOOKUP(A44,'Comp.SINAPI c_des.'!$G$8:$K$50000,5,FALSE) -> 0.49 | D44: =VLOOKUP(A44,'Comp.SINAPI s_des.'!$G$8:$K$50000,5,FALSE) -> 0.49 | E44: =IF(M.O.!$D$5="c/desoneração",C44,(IF(M.O.!$D$5="s/desoneração",D44))) -> 0.49
A45: 93673 | B45: DISJUNTOR TRIPOLAR TIPO DIN, CORRENTE NOMINAL DE 50A | C45: =VLOOKUP(A45,'Comp.SINAPI c_des.'!$G$8:$K$50000,5,FALSE) -> 88.63 | D45: =VLOOKUP(A45,'Comp.SINAPI s_des.'!$G$8:$K$50000,5,FALSE) -> 91.05 | E45: =IF(M.O.!$D$5="c/desoneração",C45,(IF(M.O.!$D$5="s/desoneração",D45))) -> 91.05
A46: 91872 | B46: ELETRODUTO RÍGIDO ROSCÁVEL, PVC, DN 32 MM (1"), PARA CIRCUITOS TERMINAIS, INSTALADO EM PAREDE | C46: =VLOOKUP(A46,'Comp.SINAPI c_des.'!$G$8:$K$50000,5,FALSE) -> 13.68 | D46: =VLOOKUP(A46,'Comp.SINAPI s_des.'!$G$8:$K$50000,5,FALSE) -> 14.51 | E46: =IF(M.O.!$D$5="c/desoneração",C46,(IF(M.O.!$D$5="s/desoneração",D46))) -> 14.51
A47: 87532 | B47: EMBOÇO, PARA RECEBIMENTO DE CERÂMICA, EM ARGAMASSA TRAÇO 1:2:8, PREPARO MANUAL, APLICADO MANUALMENTE EM FACES INTERNAS DE PAREDES, PARA AMBIENTE COM ÁREA ENTRE 5M2 E 10M2, ESPESSURA DE 20MM, COM EXECUÇÃO DE TALISCAS | C47: =VLOOKUP(A47,'Comp.SINAPI c_des.'!$G$8:$K$50000,5,FALSE) -> 28.23 | D47: =VLOOKUP(A47,'Comp.SINAPI s_des.'!$G$8:$K$50000,5,FALSE) -> 30.21 | E47: =IF(M.O.!$D$5="c/desoneração",C47,(IF(M.O.!$D$5="s/desoneração",D47))) -> 30.21
A48: 93358 | B48: ESCAVAÇÃO MANUAL DE VALA COM PROFUNDIDADE MENOR OU IGUAL A 1,30 M | C48: =VLOOKUP(A48,'Comp.SINAPI c_des.'!$G$8:$K$50000,5,FALSE) -> 60.72 | D48: =VLOOKUP(A48,'Comp.SINAPI s_des.'!$G$8:$K$50000,5,FALSE) -> 67.68 | E48: =IF(M.O.!$D$5="c/desoneração",C48,(IF(M.O.!$D$5="s/desoneração",D48))) -> 67.68
A49: 5631 | B49: ESCAVADEIRA HIDRÁULICA SOBRE ESTEIRAS, POTÊNCIA 111 hp (chp) | C49: =VLOOKUP(A49,'Comp.SINAPI c_des.'!$G$8:$K$50000,5,FALSE) -> 156.58 | D49: =VLOOKUP(A49,'Comp.SINAPI s_des.'!$G$8:$K$50000,5,FALSE) -> 159.88 | E49: =IF(M.O.!$D$5="c/desoneração",C49,(IF(M.O.!$D$5="s/desoneração",D49))) -> 159.88
A50: 5632 | B50: ESCAVADEIRA HIDRÁULICA SOBRE ESTEIRAS, POTÊNCIA 111 hp (chi) | C50: =VLOOKUP(A50,'Comp.SINAPI c_des.'!$G$8:$K$50000,5,FALSE) -> 66.34 | D50: =VLOOKUP(A50,'Comp.SINAPI s_des.'!$G$8:$K$50000,5,FALSE) -> 69.64 | E50: =IF(M.O.!$D$5="c/desoneração",C50,(IF(M.O.!$D$5="s/desoneração",D50))) -> 69.64
A51: 93583 | B51: EXECUÇÃO DE CENTRAL DE FÔRMAS, PRODUÇÃO DE ARGAMASSA OU CONCRETO EM CANTEIRO DE OBRA, NÃO INCLUSO MOBILIÁRIO E EQUIPAMENTOS | C51: =VLOOKUP(A51,'Comp.SINAPI c_des.'!$G$8:$K$50000,5,FALSE) -> 375.21 | D51: =VLOOKUP(A51,'Comp.SINAPI s_des.'!$G$8:$K$50000,5,FALSE) -> 385.12 | E51: =IF(M.O.!$D$5="c/desoneração",C51,(IF(M.O.!$D$5="s/desoneração",D51))) -> 385.12
A52: 93584 | B52: EXECUÇÃO DE DEPÓSITO EM CANTEIRO DE OBRA EM CHAPA DE MADEIRA COMPENSADA, NÃO INCLUSO MOBILIÁRIO | C52: =VLOOKUP(A52,'Comp.SINAPI c_des.'!$G$8:$K$50000,5,FALSE) -> 721.39 | D52: =VLOOKUP(A52,'Comp.SINAPI s_des.'!$G$8:$K$50000,5,FALSE) -> 739.75 | E52: =IF(M.O.!$D$5="c/desoneração",C52,(IF(M.O.!$D$5="s/desoneração",D52))) -> 739.75
A53: 101905 | B53: EXTINTOR DE INCÊNDIO PORTÁTIL COM CARGA DE ÁGUA PRESSURIZADA DE 10 L, CLASSE A - FORNECIMENTO E INSTALAÇÃO | C53: =VLOOKUP(A53,'Comp.SINAPI c_des.'!$G$8:$K$50000,5,FALSE) -> 199.16 | D53: =VLOOKUP(A53,'Comp.SINAPI s_des.'!$G$8:$K$50000,5,FALSE) -> 200.91 | E53: =IF(M.O.!$D$5="c/desoneração",C53,(IF(M.O.!$D$5="s/desoneração",D53))) -> 200.91
A54: 101908 | B54: EXTINTOR DE INCÊNDIO PORTÁTIL COM CARGA DE PQS DE 4 KG, CLASSE BC - FORNECIMENTO E INSTALAÇÃO | C54: =VLOOKUP(A54,'Comp.SINAPI c_des.'!$G$8:$K$50000,5,FALSE) -> 193.1 | D54: =VLOOKUP(A54,'Comp.SINAPI s_des.'!$G$8:$K$50000,5,FALSE) -> 194.85 | E54: =IF(M.O.!$D$5="c/desoneração",C54,(IF(M.O.!$D$5="s/desoneração",D54))) -> 194.85
A55: 96531 | B55: FABRICAÇÃO, MONTAGEM E DESMONTAGEM DE FÔRMA PARA BLOCO DE COROAMENTO, EM MADEIRA SERRADA, E=25 MM, 2 UTILIZAÇÕES | C55: =VLOOKUP(A55,'Comp.SINAPI c_des.'!$G$8:$K$50000,5,FALSE) -> 93.09 | D55: =VLOOKUP(A55,'Comp.SINAPI s_des.'!$G$8:$K$50000,5,FALSE) -> 97.82 | E55: =IF(M.O.!$D$5="c/desoneração",C55,(IF(M.O.!$D$5="s/desoneração",D55))) -> 97.82
A56: 93402 | B56: GUINDAUTO HIDRÁULICO, CAP. 3.330 kg, INCLUSIVE CAMINHÃO TOCO (chp) | C56: =VLOOKUP(A56,'Comp.SINAPI c_des.'!$G$8:$K$50000,5,FALSE) -> 163.53 | D56: =VLOOKUP(A56,'Comp.SINAPI s_des.'!$G$8:$K$50000,5,FALSE) -> 166.32 | E56: =IF(M.O.!$D$5="c/desoneração",C56,(IF(M.O.!$D$5="s/desoneração",D56))) -> 166.32
A57: 96986 | B57: HASTE DE ATERRAMENTO 3/4 PARA SPDA | C57: =VLOOKUP(A57,'Comp.SINAPI c_des.'!$G$8:$K$50000,5,FALSE) -> 97.98 | D57: =VLOOKUP(A57,'Comp.SINAPI s_des.'!$G$8:$K$50000,5,FALSE) -> 99.67 | E57: =IF(M.O.!$D$5="c/desoneração",C57,(IF(M.O.!$D$5="s/desoneração",D57))) -> 99.67
A58: 89744 | B58: JOELHO 90 GRAUS, PVC, SERIE NORMAL, ESGOTO PREDIAL, DN 100 MM, FORNECIDO E INSTALADO | C58: =VLOOKUP(A58,'Comp.SINAPI c_des.'!$G$8:$K$50000,5,FALSE) -> 21.93 | D58: =VLOOKUP(A58,'Comp.SINAPI s_des.'!$G$8:$K$50000,5,FALSE) -> 22.89 | E58: =IF(M.O.!$D$5="c/desoneração",C58,(IF(M.O.!$D$5="s/desoneração",D58))) -> 22.89
A59: 89358 | B59: JOELHO 90 GRAUS, PVC, SOLDÁVEL, DN 20MM - FORNECIMENTO E INSTALAÇÃO | C59: =VLOOKUP(A59,'Comp.SINAPI c_des.'!$G$8:$K$50000,5,FALSE) -> 5.81 | D59: =VLOOKUP(A59,'Comp.SINAPI s_des.'!$G$8:$K$50000,5,FALSE) -> 6.3 | E59: =IF(M.O.!$D$5="c/desoneração",C59,(IF(M.O.!$D$5="s/desoneração",D59))) -> 6.3
A60: 89971 | B60: KIT DE REGISTRO DE GAVETA BRUTO DE LATÃO ½", INCLUSIVE CONEXÕES, ROSCÁVEL | C60: =VLOOKUP(A60,'Comp.SINAPI c_des.'!$G$8:$K$50000,5,FALSE) -> 48.54 | D60: =VLOOKUP(A60,'Comp.SINAPI s_des.'!$G$8:$K$50000,5,FALSE) -> 49.94 | E60: =IF(M.O.!$D$5="c/desoneração",C60,(IF(M.O.!$D$5="s/desoneração",D60))) -> 49.94
A61: 92873 | B61: LANÇAMENTO COM USO DE BALDES, ADENSAMENTO E ACABAMENTO DE CONCRETO EM ESTRUTURAS | C61: =VLOOKUP(A61,'Comp.SINAPI c_des.'!$G$8:$K$50000,5,FALSE) -> 154.46 | D61: =VLOOKUP(A61,'Comp.SINAPI s_des.'!$G$8:$K$50000,5,FALSE) -> 172.43 | E61: =IF(M.O.!$D$5="c/desoneração",C61,(IF(M.O.!$D$5="s/desoneração",D61))) -> 172.43
A62: 99833 | B62: LAVADORA DE ALTA PRESSÃO (LAVA-JATO) PARA ÁGUA FRIA, PRESSÃO DE OPERAÇÃO ENTRE 1400 E 1900 LIB/POL², VAZÃO MÁXIMA ENTRE 400 E 700 L/H - CHP DIURNO | C62: =VLOOKUP(A62,'Comp.SINAPI c_des.'!$G$8:$K$50000,5,FALSE) -> 1.36 | D62: =VLOOKUP(A62,'Comp.SINAPI s_des.'!$G$8:$K$50000,5,FALSE) -> 1.36 | E62: =IF(M.O.!$D$5="c/desoneração",C62,(IF(M.O.!$D$5="s/desoneração",D62))) -> 1.36
A63: 99058 | B63: LOCAÇÃO DE PONTO PARA REFERÊNCIA TOPOGRÁFICA | C63: =VLOOKUP(A63,'Comp.SINAPI c_des.'!$G$8:$K$50000,5,FALSE) -> 9.15 | D63: =VLOOKUP(A63,'Comp.SINAPI s_des.'!$G$8:$K$50000,5,FALSE) -> 10.33 | E63: =IF(M.O.!$D$5="c/desoneração",C63,(IF(M.O.!$D$5="s/desoneração",D63))) -> 10.33
A64: 91885 | B64: LUVA PARA ELETRODUTO, PVC, ROSCÁVEL, DN 32 MM (1"), PARA CIRCUITOS TERMINAIS, INSTALADA EM PAREDE | C64: =VLOOKUP(A64,'Comp.SINAPI c_des.'!$G$8:$K$50000,5,FALSE) -> 7.84 | D64: =VLOOKUP(A64,'Comp.SINAPI s_des.'!$G$8:$K$50000,5,FALSE) -> 8.61 | E64: =IF(M.O.!$D$5="c/desoneração",C64,(IF(M.O.!$D$5="s/desoneração",D64))) -> 8.61
A65: 5795 | B65: MARTELETE OU ROMPEDOR PNEUMÁTICO MANUAL, 28 KG, COM SILENCIADOR - CHP DIURNO | C65: =VLOOKUP(A65,'Comp.SINAPI c_des.'!$G$8:$K$50000,5,FALSE) -> 23.69 | D65: =VLOOKUP(A65,'Comp.SINAPI s_des.'!$G$8:$K$50000,5,FALSE) -> 26.32 | E65: =IF(M.O.!$D$5="c/desoneração",C65,(IF(M.O.!$D$5="s/desoneração",D65))) -> 26.32
A66: 5952 | B66: MARTELETE OU ROMPEDOR PNEUMÁTICO MANUAL, 28 KG, COM SILENCIADOR - CHI DIURNO | C66: =VLOOKUP(A66,'Comp.SINAPI c_des.'!$G$8:$K$50000,5,FALSE) -> 21.75 | D66: =VLOOKUP(A66,'Comp.SINAPI s_des.'!$G$8:$K$50000,5,FALSE) -> 24.38 | E66: =IF(M.O.!$D$5="c/desoneração",C66,(IF(M.O.!$D$5="s/desoneração",D66))) -> 24.38
A67: 97064 | B67: MONTAGEM E DESMONTAGEM DE ANDAIME TUBULAR TIPO TORRE (EXCLUSIVE ANDAIME E LIMPEZA) | C67: =VLOOKUP(A67,'Comp.SINAPI c_des.'!$G$8:$K$50000,5,FALSE) -> 14.38 | D67: =VLOOKUP(A67,'Comp.SINAPI s_des.'!$G$8:$K$50000,5,FALSE) -> 16.16 | E67: =IF(M.O.!$D$5="c/desoneração",C67,(IF(M.O.!$D$5="s/desoneração",D67))) -> 16.16
A68: 102215 | B68: PINTURA VERNIZ (INCOLOR) POLIURETÂNICO (RESINA ALQUÍDICA MODIFICADA) EM MADEIRA, 2 DEMÃOS | C68: =VLOOKUP(A68,'Comp.SINAPI c_des.'!$G$8:$K$50000,5,FALSE) -> 13.31 | D68: =VLOOKUP(A68,'Comp.SINAPI s_des.'!$G$8:$K$50000,5,FALSE) -> 14.35 | E68: =IF(M.O.!$D$5="c/desoneração",C68,(IF(M.O.!$D$5="s/desoneração",D68))) -> 14.35
A69: 91277 | B69: PLACA VIBRATÓRIA REVERSÍVEL, POTÊNCIA 5,5 cv (chp) | C69: =VLOOKUP(A69,'Comp.SINAPI c_des.'!$G$8:$K$50000,5,FALSE) -> 9.43 | D69: =VLOOKUP(A69,'Comp.SINAPI s_des.'!$G$8:$K$50000,5,FALSE) -> 9.43 | E69: =IF(M.O.!$D$5="c/desoneração",C69,(IF(M.O.!$D$5="s/desoneração",D69))) -> 9.43
A70: 91278 | B70: PLACA VIBRATÓRIA REVERSÍVEL, POTÊNCIA 5,5 cv (chi) | C70: =VLOOKUP(A70,'Comp.SINAPI c_des.'!$G$8:$K$50000,5,FALSE) -> 0.7 | D70: =VLOOKUP(A70,'Comp.SINAPI s_des.'!$G$8:$K$50000,5,FALSE) -> 0.7 | E70: =IF(M.O.!$D$5="c/desoneração",C70,(IF(M.O.!$D$5="s/desoneração",D70))) -> 0.7
A71: 96995 | B71: REATERRO MANUAL APILOADO COM SOQUETE | C71: =VLOOKUP(A71,'Comp.SINAPI c_des.'!$G$8:$K$50000,5,FALSE) -> 36.81 | D71: =VLOOKUP(A71,'Comp.SINAPI s_des.'!$G$8:$K$50000,5,FALSE) -> 41.04 | E71: =IF(M.O.!$D$5="c/desoneração",C71,(IF(M.O.!$D$5="s/desoneração",D71))) -> 41.04
A72: 5678 | B72: RETROESCAVADEIRA SOBRE RODAS, POTÊNCIA 88 hp (chp) | C72: =VLOOKUP(A72,'Comp.SINAPI c_des.'!$G$8:$K$50000,5,FALSE) -> 106.12 | D72: =VLOOKUP(A72,'Comp.SINAPI s_des.'!$G$8:$K$50000,5,FALSE) -> 109.42 | E72: =IF(M.O.!$D$5="c/desoneração",C72,(IF(M.O.!$D$5="s/desoneração",D72))) -> 109.42
A73: 5679 | B73: RETROESCAVADEIRA SOBRE RODAS, POTÊNCIA 88 hp (chi) | C73: =VLOOKUP(A73,'Comp.SINAPI c_des.'!$G$8:$K$50000,5,FALSE) -> 45.92 | D73: =VLOOKUP(A73,'Comp.SINAPI s_des.'!$G$8:$K$50000,5,FALSE) -> 49.22 | E73: =IF(M.O.!$D$5="c/desoneração",C73,(IF(M.O.!$D$5="s/desoneração",D73))) -> 49.22
A74: 87243 | B74: REVESTIMENTO CERÂMICO PARA PAREDES EXTERNAS EM PASTILHAS DE PORCELANA 5 X 5 CM (PLACAS DE 30 X 30 CM), ALINHADAS A PRUMO, APLICADO EM PANOS SEM VÃOS | C74: =VLOOKUP(A74,'Comp.SINAPI c_des.'!$G$8:$K$50000,5,FALSE) -> 227.01 | D74: =VLOOKUP(A74,'Comp.SINAPI s_des.'!$G$8:$K$50000,5,FALSE) -> 230.19 | E74: =IF(M.O.!$D$5="c/desoneração",C74,(IF(M.O.!$D$5="s/desoneração",D74))) -> 230.19
A75: 5684 | B75: ROLO COMPACTADOR VIBRATÓRIO DE UM CILINDRO AÇO LISO, POTÊNCIA 80 hp, PESO OPERACIONAL MÁXIMO 8,1 T, LARGURA DE TRABALHO 1,68 m (chp) | C75: =VLOOKUP(A75,'Comp.SINAPI c_des.'!$G$8:$K$50000,5,FALSE) -> 101.37 | D75: =VLOOKUP(A75,'Comp.SINAPI s_des.'!$G$8:$K$50000,5,FALSE) -> 103.73 | E75: =IF(M.O.!$D$5="c/desoneração",C75,(IF(M.O.!$D$5="s/desoneração",D75))) -> 103.73
A76: 5685 | B76: ROLO COMPACTADOR VIBRATÓRIO DE UM CILINDRO AÇO LISO, POTÊNCIA 80 hp, PESO OPERACIONAL MÁXIMO 8,1 T, LARGURA DE TRABALHO 1,68 m (chi) | C76: =VLOOKUP(A76,'Comp.SINAPI c_des.'!$G$8:$K$50000,5,FALSE) -> 39.28 | D76: =VLOOKUP(A76,'Comp.SINAPI s_des.'!$G$8:$K$50000,5,FALSE) -> 41.64 | E76: =IF(M.O.!$D$5="c/desoneração",C76,(IF(M.O.!$D$5="s/desoneração",D76))) -> 41.64
A77: 5867 | B77: ROLO COMPACTADOR VIBRATÓRIO TANDEM AÇO LISO, POTÊNCIA 58 hp, PESO SEM/COM LASTRO 6,5 / 9,4 t, LARGURA DE TRABALHO 1,2 m (chp) | C77: =VLOOKUP(A77,'Comp.SINAPI c_des.'!$G$8:$K$50000,5,FALSE) -> 100.65 | D77: =VLOOKUP(A77,'Comp.SINAPI s_des.'!$G$8:$K$50000,5,FALSE) -> 103.01 | E77: =IF(M.O.!$D$5="c/desoneração",C77,(IF(M.O.!$D$5="s/desoneração",D77))) -> 103.01
A78: 5869 | B78: ROLO COMPACTADOR VIBRATÓRIO TANDEM AÇO LISO, POTÊNCIA 58 hp, PESO SEM/COM LASTRO 6,5 / 9,4 t, LARGURA DE TRABALHO 1,2 m (chi) | C78: =VLOOKUP(A78,'Comp.SINAPI c_des.'!$G$8:$K$50000,5,FALSE) -> 44.06 | D78: =VLOOKUP(A78,'Comp.SINAPI s_des.'!$G$8:$K$50000,5,FALSE) -> 46.42 | E78: =IF(M.O.!$D$5="c/desoneração",C78,(IF(M.O.!$D$5="s/desoneração",D78))) -> 46.42
A79: 91692 | B79: SERRA CIRCULAR DE BANCADA COM MOTOR ELÉTRICO POTÊNCIA DE 5HP, COM COIFA PARA DISCO 10" - CHP DIURNO | C79: =VLOOKUP(A79,'Comp.SINAPI c_des.'!$G$8:$K$50000,5,FALSE) -> 23.92 | D79: =VLOOKUP(A79,'Comp.SINAPI s_des.'!$G$8:$K$50000,5,FALSE) -> 26.7 | E79: =IF(M.O.!$D$5="c/desoneração",C79,(IF(M.O.!$D$5="s/desoneração",D79))) -> 26.7
A80: 91693 | B80: SERRA CIRCULAR DE BANCADA COM MOTOR ELÉTRICO POTÊNCIA DE 5HP, COM COIFA PARA DISCO 10" - CHI DIURNO | C80: =VLOOKUP(A80,'Comp.SINAPI c_des.'!$G$8:$K$50000,5,FALSE) -> 21.11 | D80: =VLOOKUP(A80,'Comp.SINAPI s_des.'!$G$8:$K$50000,5,FALSE) -> 23.89 | E80: =IF(M.O.!$D$5="c/desoneração",C80,(IF(M.O.!$D$5="s/desoneração",D80))) -> 23.89
A81: 86913 | B81: TORNEIRA CROMADA 1/2" OU 3/4" PARA TANQUE, PADRÃO POPULAR | C81: =VLOOKUP(A81,'Comp.SINAPI c_des.'!$G$8:$K$50000,5,FALSE) -> 26.64 | D81: =VLOOKUP(A81,'Comp.SINAPI s_des.'!$G$8:$K$50000,5,FALSE) -> 27.07 | E81: =IF(M.O.!$D$5="c/desoneração",C81,(IF(M.O.!$D$5="s/desoneração",D81))) -> 27.07
A82: 95875 | B82: TRANSPORTE COM CAMINHÃO BASCULANTE DE 10 M³, EM VIA URBANA PAVIMENTADA, DMT ATÉ 30 KM (UNIDADE: M3XKM) | C82: =VLOOKUP(A82,'Comp.SINAPI c_des.'!$G$8:$K$50000,5,FALSE) -> 1.53 | D82: =VLOOKUP(A82,'Comp.SINAPI s_des.'!$G$8:$K$50000,5,FALSE) -> 1.56 | E82: =IF(M.O.!$D$5="c/desoneração",C82,(IF(M.O.!$D$5="s/desoneração",D82))) -> 1.56
A83: 91120 | B83: TRANSPORTE HORIZONTAL, TUBOS AÇO CARBONO LEVE/MÉDIO, PRETO/GALVANIZADO, COM DIÂM. MAIOR QUE 40 MM E MENOR OU IGUAL A 65 MM, MANUAL, 30 M | C83: =VLOOKUP(A83,'Comp.SINAPI c_des.'!$G$8:$K$50000,5,FALSE) ->  | D83: =VLOOKUP(A83,'Comp.SINAPI s_des.'!$G$8:$K$50000,5,FALSE) ->  | E83: =IF(M.O.!$D$5="c/desoneração",C83,(IF(M.O.!$D$5="s/desoneração",D83))) -> 
A84: 89032 | B84: TRATOR DE ESTEIRAS, POTÊNCIA 100 HP, COM LÂMINA (chp) | C84: =VLOOKUP(A84,'Comp.SINAPI c_des.'!$G$8:$K$50000,5,FALSE) -> 136.08 | D84: =VLOOKUP(A84,'Comp.SINAPI s_des.'!$G$8:$K$50000,5,FALSE) -> 139.53 | E84: =IF(M.O.!$D$5="c/desoneração",C84,(IF(M.O.!$D$5="s/desoneração",D84))) -> 139.53
A85: 89031 | B85: TRATOR DE ESTEIRAS, POTÊNCIA 100 HP, COM LÂMINA (chi) | C85: =VLOOKUP(A85,'Comp.SINAPI c_des.'!$G$8:$K$50000,5,FALSE) -> 52.95 | D85: =VLOOKUP(A85,'Comp.SINAPI s_des.'!$G$8:$K$50000,5,FALSE) -> 56.4 | E85: =IF(M.O.!$D$5="c/desoneração",C85,(IF(M.O.!$D$5="s/desoneração",D85))) -> 56.4
A86: 5851 | B86: TRATOR DE ESTEIRAS, POTÊNCIA 150 HP, COM LÂMINA (chp) | C86: =VLOOKUP(A86,'Comp.SINAPI c_des.'!$G$8:$K$50000,5,FALSE) -> 177.68 | D86: =VLOOKUP(A86,'Comp.SINAPI s_des.'!$G$8:$K$50000,5,FALSE) -> 181.13 | E86: =IF(M.O.!$D$5="c/desoneração",C86,(IF(M.O.!$D$5="s/desoneração",D86))) -> 181.13
A87: 5853 | B87: TRATOR DE ESTEIRAS, POTÊNCIA 150 HP, COM LÂMINA (chi) | C87: =VLOOKUP(A87,'Comp.SINAPI c_des.'!$G$8:$K$50000,5,FALSE) -> 61.16 | D87: =VLOOKUP(A87,'Comp.SINAPI s_des.'!$G$8:$K$50000,5,FALSE) -> 64.61 | E87: =IF(M.O.!$D$5="c/desoneração",C87,(IF(M.O.!$D$5="s/desoneração",D87))) -> 64.61
A88: 89714 | B88: TUBO PVC, SERIE NORMAL, ESGOTO PREDIAL, DN 100 MM, FORNECIDO E INSTALADO | C88: =VLOOKUP(A88,'Comp.SINAPI c_des.'!$G$8:$K$50000,5,FALSE) -> 48.66 | D88: =VLOOKUP(A88,'Comp.SINAPI s_des.'!$G$8:$K$50000,5,FALSE) -> 51.49 | E88: =IF(M.O.!$D$5="c/desoneração",C88,(IF(M.O.!$D$5="s/desoneração",D88))) -> 51.49
A89: 89401 | B89: TUBO, PVC, SOLDÁVEL, DN 20MM - FORNECIMENTO E INSTALAÇÃO | C89: =VLOOKUP(A89,'Comp.SINAPI c_des.'!$G$8:$K$50000,5,FALSE) -> 7.2 | D89: =VLOOKUP(A89,'Comp.SINAPI s_des.'!$G$8:$K$50000,5,FALSE) -> 7.57 | E89: =IF(M.O.!$D$5="c/desoneração",C89,(IF(M.O.!$D$5="s/desoneração",D89))) -> 7.57
A90: 90586 | B90: VIBRADOR DE IMERSÃO, DIÂMETRO DE PONTEIRA 45 mm, MOTOR ELÉTRICO TRIFÁSICO POTÊNCIA DE 2 CV - CHP DIURNO | C90: =VLOOKUP(A90,'Comp.SINAPI c_des.'!$G$8:$K$50000,5,FALSE) -> 1.74 | D90: =VLOOKUP(A90,'Comp.SINAPI s_des.'!$G$8:$K$50000,5,FALSE) -> 1.74 | E90: =IF(M.O.!$D$5="c/desoneração",C90,(IF(M.O.!$D$5="s/desoneração",D90))) -> 1.74
A91: 90587 | B91: VIBRADOR DE IMERSÃO, DIÂMETRO DE PONTEIRA 45 mm MOTOR ELÉTRICO TRIFÁSICO POTÊNCIA DE 2 CV - CHI DIURNO | C91: =VLOOKUP(A91,'Comp.SINAPI c_des.'!$G$8:$K$50000,5,FALSE) -> 0.39 | D91: =VLOOKUP(A91,'Comp.SINAPI s_des.'!$G$8:$K$50000,5,FALSE) -> 0.39 | E91: =IF(M.O.!$D$5="c/desoneração",C91,(IF(M.O.!$D$5="s/desoneração",D91))) -> 0.39

Sheet Insumos (hidden)
A1: INSUMOS
A3: =IF('Atualizações Cotações'!$B$4="NÃO",CONCATENATE("Data Base SINAPI: ",M.O.!$E$17," - Data das Cotações: ",Cotações!$N$3),CONCATENATE("Data Base SINAPI: ",M.O.!$E$17," - Data das Cotações: ",Cotações!$N$3," (Atualizadas pelo INCC de ",'Atualizações Cotações'!A11:B11,"/",'Atualizações Cotações'!$C$11,")")) -> Data Base SINAPI: Abr/2021 - Data das Cotações: Abril/2019 (Atualizadas pelo INCC de Abril/2021)
C6: Mão-de-obra
C7: Equipamento
C8: Material
A9: L. S. Horistas: | C9: =+M.O.!$D$7 -> 1.111 | D9: Selecionar
A10: L. S. Mensalistas: | C10: =+M.O.!$D$8 -> 0.6916 | D10: MEDIANA
A12: Item | B12: Código | C12: Insumo | D12: Un | E12: Tipo | F12: Origem | G12: Valor | H12: Observações
A13: 1 | B13: =+M.O.!A19 -> 88238 | C13: Ajudante de armador c/encargos complementares | D13: h | E13: MO | F13: SINAPI | G13: =+M.O.!$E$19 -> 15.67 | H13: Composição
A14: =+A13+1 -> 2 | B14: =+M.O.!A20 -> 88239 | C14: Ajudante de carpinteiro c/encargos complementares | D14: h | E14: MO | F14: SINAPI | G14: =+M.O.!$E$20 -> 17.06 | H14: Composição
A15: 3 | B15: =+M.O.!A31 -> 88245 | C15: Armador c/encargos complementares | D15: h | E15: MO | F15: SINAPI | G15: =+M.O.!$E$31 -> 20.6 | H15: Composição
A16: 4 | B16: 88247 | C16: Auxiliar de eletricista c/encargos complementares | D16: h | E16: MO | F16: SINAPI | G16: =+M.O.!$E$21 -> 17.17 | H16: Composição
A17: 5 | B17: =+M.O.!A23 -> 88248 | C17: Auxiliar de encanador c/encargos complementares | D17: h | E17: MO | F17: SINAPI | G17: =+M.O.!$E$23 -> 15.58 | H17: Composição
A18: 6 | B18: =+M.O.!A24 -> 88251 | C18: Auxiliar de serralheiro c/encargos complementares | D18: h | E18: MO | F18: SINAPI | G18: =+M.O.!$E$24 -> 16.49 | H18: Composição
A19: 7 | B19: =+M.O.!A22 -> 88253 | C19: Auxiliar de topógrafo c/encargos complemetares | D19: h | E19: MO | F19: SINAPI | G19: =+M.O.!$E$22 -> 13.69 | H19: Composição
A20: 8 | B20: =+M.O.!A28 -> 88260 | C20: Calceteiro c/encargos complementares | D20: h | E20: MO | F20: SINAPI | G20: =+M.O.!$E$28 -> 19.37 | H20: Composição
A21: 9 | B21: =+M.O.!A27 -> 88262 | C21: Carpinteiro c/encargos complementares | D21: h | E21: MO | F21: SINAPI | G21: =+M.O.!$E$27 -> 20.5 | H21: Composição
A22: 10 | B22: =+M.O.!A47 -> 88597 | C22: Desenhista detalhista c/encargos complementares | D22: h | E22: MO | F22: SINAPI | G22: =+M.O.!$E$47 -> 37.02 | H22: Composição
A23: 11 | B23: 88264 | C23: Eletricista c/encargos complementares | D23: h | E23: MO | F23: SINAPI | G23: =+M.O.!$E$34 -> 22.61 | H23: Composição
A24: 12 | B24: 88267 | C24: Encanador c/encargos complementares | D24: h | E24: MO | F24: SINAPI | G24: =+M.O.!$E$35 -> 20.39 | H24: Composição
A25: 13 | B25: =+M.O.!A44 -> 93572 | C25: Encarregado c/encargos complementares | D25: ms | E25: MO | F25: SINAPI | G25: =+M.O.!$E$44 -> 7776.17 | H25: Composição
A26: 14 | B26: =+M.O.!A48 -> 90778 | C26: Engenheiro Civil de Obra c/encargos complementares | D26: h | E26: MO | F26: SINAPI | G26: =+M.O.!$E$48 -> 107.37 | H26: Composição
A27: 15 | B27: =+M.O.!A33 -> 88441 | C27: Jardineiro c/encargos complementares | D27: h | E27: MO | F27: SINAPI | G27: =+M.O.!$E$33 -> 20 | H27: Composição
A28: 16 | B28: 88256 | C28: Ladrilhista c/encargos complementares | D28: h | E28: MO | F28: SINAPI | G28: =+M.O.!$E$29 -> 20.63 | H28: Composição
A29: 17 | B29: =+M.O.!A45 -> 94295 | C29: Mestre de Obras c/encargos complementares | D29: ms | E29: MO | F29: SINAPI | G29: =+M.O.!$E$45 -> 11643.3 | H29: Composição
A30: 18 | B30: 88281 | C30: Motorista de caminhão c/encargos complementares | D30: h | E30: MO | F30: SINAPI | G30: =+M.O.!$E$36 -> 22.14 | H30: Composição
A31: 19 | B31: 88286 | C31: Motorista Operador de Munck c/encargos complementares | D31: h | E31: MO | F31: SINAPI | G31: =+M.O.!$E$37 -> 23.89 | H31: Composição
A32: 20 | B32: 88377 | C32: Operador de betoneira c/encargos complementares | D32: h | E32: MO | F32: SINAPI | G32: =+M.O.!$E$38 -> 20.74 | H32: Composição
A33: 21 | B33: 88294 | C33: Operador de escavadeira c/encargos complementares | D33: h | E33: MO | F33: SINAPI | G33: =+M.O.!$E$39 -> 27.67 | H33: Composição
A34: 22 | B34: 88297 | C34: Operador de máquinas e equipamentos c/encargos complementares | D34: h | E34: MO | F34: SINAPI | G34: =+M.O.!$E$40 -> 23.8 | H34: Composição
A35: 23 | B35: 88298 | C35: Operador de martelete c/encargos complementares | D35: h | E35: MO | F35: SINAPI | G35: =+M.O.!$E$41 -> 22.65 | H35: Composição
A36: 24 | B36: =+M.O.!A25 -> 88309 | C36: Pedreiro c/encargos complementares | D36: h | E36: MO | F36: SINAPI | G36: =+M.O.!$E$25 -> 20.71 | H36: Composição
A37: 25 | B37: =+M.O.!A26 -> 88310 | C37: Pintor c/encargos complementares | D37: h | E37: MO | F37: SINAPI | G37: =+M.O.!$E$26 -> 21.7 | H37: Composição
A38: 26 | B38: =+M.O.!A32 -> 88315 | C38: Serralheiro c/encargos complementares | D38: h | E38: MO | F38: SINAPI | G38: =+M.O.!$E$32 -> 20.6 | H38: Composição
A39: 27 | B39: =+M.O.!A18 -> 88316 | C39: Servente c/encargos complementares | D39: h | E39: MO | F39: SINAPI | G39: =+M.O.!$E$18 -> 17.11 | H39: Composição
A40: 28 | B40: 88323 | C40: Telhadista c/encargos complementares | D40: h | E40: MO | F40: SINAPI | G40: =+M.O.!$E$30 -> 20.93 | H40: Composição
A41: 29 | B41: 90781 | C41: Topógrafo c/encargos complementares | D41: h | E41: MO | F41: SINAPI | G41: =+M.O.!$E$46 -> 31.8 | H41: Composição
A42: 30 | B42: 88324 | C42: Tratorista c/encargos complementares | D42: h | E42: MO | F42: SINAPI | G42: =+M.O.!$E$42 -> 28.69 | H42: Composição
A43: 31 | B43: 88326 | C43: Vigia (SINAPI) | D43: h | E43: MO | F43: SINAPI | G43: =+M.O.!$E$43 -> 22.41 | H43: Composição
A44: 32 | B44: - | C44: Vigia domingos e feriados c/encargos complementares | D44: h | E44: MO | F44: Sindicato | G44: =IF(M.O.!$D$5="c/desoneração",Vigia!AM52,Vigia!AM54) -> 30.36 | H44: Vem da planilha "Vigia"
A45: 33 | B45: - | C45: Vigia horas diurnas c/encargos complementares | D45: h | E45: MO | F45: Sindicato | G45: =IF(M.O.!$D$5="c/desoneração",Vigia!AM46,Vigia!AM48) -> 17.31
A46: 34 | B46: - | C46: Vigia horas noturnas regime 12x36 c/encargos complementares | D46: ms | E46: MO | F46: Sindicato | G46: =IF(M.O.!$D$5="c/desoneração",Vigia!AL36,Vigia!AL37) -> 3512.5
A47: =+A46+1 -> 35 | B47: =+Cotações!A10 -> 2 | C47: Betoneira 400 l Locação | D47: d | E47: EQ | F47: Cotação | G47: =TRUNC((IF($D$10="MÉDIA",Cotações!M10,Cotações!N10))*(1+'Atualizações Cotações'!$J$9),2) -> 58.79
A48: =+A47+1 -> 36 | B48: =+Cotações!A17 -> 8 | C48: Compressor de ar 175 PCM c/martelete pneumático Locação | D48: h | E48: EQ | F48: Cotação | G48: =TRUNC((IF($D$10="MÉDIA",Cotações!M17,Cotações!N17))*(1+'Atualizações Cotações'!$J$9),2)/8 -> 69.81375
A49: =+A48+1 -> 37 | B49: =+Cotações!A14 -> 6 | C49: Cortadora de piso Locação | D49: d | E49: EQ | F49: Cotação | G49: =TRUNC((IF($D$10="MÉDIA",Cotações!M14,Cotações!N14))*(1+'Atualizações Cotações'!$J$9),2) -> 70.54
A50: 38 | B50: =+Cotações!A15 -> 7 | C50: Esmerilhadeira | D50: d | E50: EQ | F50: Cotação | G50: =TRUNC((IF($D$10="MÉDIA",Cotações!M15,Cotações!N15))*(1+'Atualizações Cotações'!$J$9),2) -> 23.51
A51: 39 | B51: =+Cotações!A11 -> 3 | C51: Motor elétrico p/vibrador Locação | D51: d | E51: EQ | F51: Cotação | G51: =TRUNC((IF($D$10="MÉDIA",Cotações!M11,Cotações!N11))*(1+'Atualizações Cotações'!$J$9),2) -> 29.39
A52: 40 | B52: =+Cotações!A8 -> 1 | C52: Nível a laser | D52: d | E52: EQ | F52: Cotação | G52: =TRUNC((IF($D$10="MÉDIA",Cotações!M8,Cotações!N8))*(1+'Atualizações Cotações'!$J$9),2) -> 141.09
A53: 41 | B53: 7252 | C53: Nível ótico | D53: h | E53: EQ | F53: SINAPI | G53: =VLOOKUP(B53,'Insumos SINAPI'!$A$8:$E$5279,5,FALSE) -> 2.25
A54: 42 | B54: =+Cotações!A13 -> 5 | C54: Placa Vibratória Reversível Locação | D54: d | E54: EQ | F54: Cotação | G54: =TRUNC((IF($D$10="MÉDIA",Cotações!M13,Cotações!N13))*(1+'Atualizações Cotações'!$J$9),2) -> 105.82
A55: 43 | B55: =+Cotações!A21 -> 10 | C55: Retroescavadeira c/operador Locação | D55: h | E55: EQ | F55: Cotação | G55: =TRUNC((IF($D$10="MÉDIA",Cotações!M21,Cotações!N21))*(1+'Atualizações Cotações'!$J$9),2) -> 141.09
A56: 44 | B56: =+Cotações!A12 -> 4 | C56: Rolo compactador liso | D56: h | E56: EQ | F56: Cotação | G56: =TRUNC((IF($D$10="MÉDIA",Cotações!M12,Cotações!N12))*(1+'Atualizações Cotações'!$J$9),2) -> 66.14
A57: 45 | B57: 7247 | C57: Teodolito | D57: h | E57: EQ | F57: SINAPI | G57: =VLOOKUP(B57,'Insumos SINAPI'!$A$8:$E$5279,5,FALSE) -> 2.25
A58: 46 | B58: 43053 | C58: Aço CA-25 8,0 mm | D58: kg | E58: MAT | F58: SINAPI | G58: =VLOOKUP(B58,'Insumos SINAPI'!$A$8:$E$5279,5,FALSE) -> 11.05
A59: 47 | B59: 43054 | C59: Aço CA-25 10,0 mm | D59: kg | E59: MAT | F59: SINAPI | G59: =VLOOKUP(B59,'Insumos SINAPI'!$A$8:$E$5279,5,FALSE) -> 12.37
A60: 48 | B60: 43054 | C60: Aço CA-25 12,5 mm | D60: kg | E60: MAT | F60: SINAPI | G60: =VLOOKUP(B60,'Insumos SINAPI'!$A$8:$E$5279,5,FALSE) -> 12.37
A61: 49 | B61: 43054 | C61: Aço CA-25 16,0 mm | D61: kg | E61: MAT | F61: SINAPI | G61: =VLOOKUP(B61,'Insumos SINAPI'!$A$8:$E$5279,5,FALSE) -> 12.37
A62: 50 | B62: 43054 | C62: Aço CA-25 20,0 mm | D62: kg | E62: MAT | F62: SINAPI | G62: =VLOOKUP(B62,'Insumos SINAPI'!$A$8:$E$5279,5,FALSE) -> 12.37
A63: 51 | B63: 34449 | C63: Aço CA-50 1/4" (6,3 mm) - 0,248 kg/m | D63: kg | E63: MAT | F63: SINAPI | G63: =VLOOKUP(B63,'Insumos SINAPI'!$A$8:$E$5279,5,FALSE) -> 13.5
A64: 52 | B64: 32 | C64: Aço CA-50 1/4" (6,3 mm) - 0,248 kg/m - Vergalhão | D64: kg | E64: MAT | F64: SINAPI | G64: =VLOOKUP(B64,'Insumos SINAPI'!$A$8:$E$5279,5,FALSE) -> 12.14
A65: 53 | B65: 33 | C65: Aço CA-50 5/16" (8,0 mm) - 0,393 kg/m - Vergalhão | D65: kg | E65: MAT | F65: SINAPI | G65: =VLOOKUP(B65,'Insumos SINAPI'!$A$8:$E$5279,5,FALSE) -> 12.21
A66: =+A65+1 -> 54 | B66: 43058 | C66: Aço CA-50 10 mm (3/8") dobrado e cortado - 0,624 kg/m | D66: kg | E66: MAT | F66: SINAPI | G66: =VLOOKUP(B66,'Insumos SINAPI'!$A$8:$E$5279,5,FALSE) -> 11.45
A67: 55 | B67: 43058 | C67: Aço CA-50 1/2" (12,5 mm) - 0,963 kg/m | D67: kg | E67: MAT | F67: SINAPI | G67: =VLOOKUP(B67,'Insumos SINAPI'!$A$8:$E$5279,5,FALSE) -> 11.45
A68: 56 | B68: 43058 | C68: Aço CA-50 5/8" (16 mm) - 1,570 kg/m | D68: kg | E68: MAT | F68: SINAPI | G68: =VLOOKUP(B68,'Insumos SINAPI'!$A$8:$E$5279,5,FALSE) -> 11.45
A69: 57 | B69: 43058 | C69: Aço CA-50 3/4" (20 mm) - 2,480 kg/m | D69: kg | E69: MAT | F69: SINAPI | G69: =VLOOKUP(B69,'Insumos SINAPI'!$A$8:$E$5279,5,FALSE) -> 11.45
A70: 58 | B70: 43061 | C70: Aço CA-60 4,2mm - 0,109 kg/m | D70: kg | E70: MAT | F70: SINAPI | G70: =VLOOKUP(B70,'Insumos SINAPI'!$A$8:$E$5279,5,FALSE) -> 11.41
A71: 59 | B71: 43059 | C71: Aço CA-60 4,2mm - 0,109 kg/m - Vergalhão | D71: kg | E71: MAT | F71: SINAPI | G71: =VLOOKUP(B71,'Insumos SINAPI'!$A$8:$E$5279,5,FALSE) -> 10.89
A72: 60 | B72: 43061 | C72: Aço CA-60 5,0 mm - 0,157 kg/m | D72: kg | E72: MAT | F72: SINAPI | G72: =VLOOKUP(B72,'Insumos SINAPI'!$A$8:$E$5279,5,FALSE) -> 11.41
A73: 61 | B73: 43059 | C73: Aço CA-60 5,0 mm - 0,157 kg/m - Vergalhão | D73: kg | E73: MAT | F73: SINAPI | G73: =VLOOKUP(B73,'Insumos SINAPI'!$A$8:$E$5279,5,FALSE) -> 10.89
A74: 62 | B74: 43062 | C74: Aço CA-60 6,0 mm - 0,222 kg/m | D74: kg | E74: MAT | F74: SINAPI | G74: =VLOOKUP(B74,'Insumos SINAPI'!$A$8:$E$5279,5,FALSE) -> 12.07
A75: 63 | B75: 43059 | C75: Aço CA-60 6,0 mm - 0,222 kg/m - Vergalhão | D75: kg | E75: MAT | F75: SINAPI | G75: =VLOOKUP(B75,'Insumos SINAPI'!$A$8:$E$5279,5,FALSE) -> 10.89
A76: 64 | B76: 122 | C76: Adesivo Plástico para PVC, frasco com 850 g | D76: un | E76: MAT | F76: SINAPI | G76: =VLOOKUP(B76,'Insumos SINAPI'!$A$8:$E$5279,5,FALSE) -> 81.3
A77: 65 | B77: =+Cotações!A161 -> 118 | C77: Água tratada | D77: m³ | E77: MAT | F77: Cotação | G77: =TRUNC((IF($D$10="MÉDIA",Cotações!M161,Cotações!N161))*(1+'Atualizações Cotações'!$J$9),2) -> 4.72
A78: 66 | B78: 10527 | C78: Andaime metálico, tipo torre, largura de 1 a 1,5 m e altura de 1 m locação | D78: mxmês | E78: MAT | F78: SINAPI | G78: =VLOOKUP(B78,'Insumos SINAPI'!$A$8:$E$5279,5,FALSE) -> 21.78
A79: 67 | B79: 43131 | C79: Arame Galvanizado 8 BWG (0,101 kg/m) | D79: kg | E79: MAT | F79: SINAPI | G79: =VLOOKUP(B79,'Insumos SINAPI'!$A$8:$E$5279,5,FALSE) -> 25.72
A80: 68 | B80: 43131 | C80: Arame Galvanizado 10 BWG (0,0713 kg/m) | D80: kg | E80: MAT | F80: SINAPI | G80: =VLOOKUP(B80,'Insumos SINAPI'!$A$8:$E$5279,5,FALSE) -> 25.72
A81: 69 | B81: 43130 | C81: Arame Galvanizado 12 BWG (0,048 kg / m) | D81: kg | E81: MAT | F81: SINAPI | G81: =VLOOKUP(B81,'Insumos SINAPI'!$A$8:$E$5279,5,FALSE) -> 22.14
A82: 70 | B82: 43130 | C82: Arame galvanizado 14 BWG (0,026 kg/m) | D82: kg | E82: MAT | F82: SINAPI | G82: =VLOOKUP(B82,'Insumos SINAPI'!$A$8:$E$5279,5,FALSE) -> 22.14
A83: 71 | B83: 43132 | C83: Arame Recozido 18 BWG | D83: kg | E83: MAT | F83: SINAPI | G83: =VLOOKUP(B83,'Insumos SINAPI'!$A$8:$E$5279,5,FALSE) -> 22.14
A84: 72 | B84: 366 | C84: Areia fina | D84: m³ | E84: MAT | F84: SINAPI | G84: =VLOOKUP(B84,'Insumos SINAPI'!$A$8:$E$5279,5,FALSE) -> 62
A85: 73 | B85: 367 | C85: Areia grossa | D85: m³ | E85: MAT | F85: SINAPI | G85: =VLOOKUP(B85,'Insumos SINAPI'!$A$8:$E$5279,5,FALSE) -> 60
A86: 74 | B86: 370 | C86: Areia média | D86: m³ | E86: MAT | F86: SINAPI | G86: =VLOOKUP(B86,'Insumos SINAPI'!$A$8:$E$5279,5,FALSE) -> 62
A87: 75 | B87: =+Cotações!A156 -> 114 | C87: Areia Peneirada - posto obra | D87: m³ | E87: MAT | F87: Cotação | G87: =TRUNC((IF($D$10="MÉDIA",Cotações!M156,Cotações!N156))*(1+'Atualizações Cotações'!$J$9),2) -> 79.36
A88: 76 | B88: 1381 | C88: Argamassa Colante AC-I | D88: kg | E88: MAT | F88: SINAPI | G88: =VLOOKUP(B88,'Insumos SINAPI'!$A$8:$E$5279,5,FALSE) -> 0.49
A89: 77 | B89: 6081 | C89: Argila ou Barro para aterro ou reaterro | D89: m³ | E89: MAT | F89: SINAPI | G89: =VLOOKUP(B89,'Insumos SINAPI'!$A$8:$E$5279,5,FALSE) -> 28.52
A90: 78 | B90: 1094 | C90: Armação vertical com haste e contra-pino, em chapa de FG 3/16", com 1 estribo, sem isolador | D90: un | E90: MAT | F90: SINAPI | G90: =VLOOKUP(B90,'Insumos SINAPI'!$A$8:$E$5279,5,FALSE) -> 13.98
A91: 79 | B91: 39210 | C91: Arruela em alumínio, com rosca, de 1", para eletroduto | D91: un | E91: MAT | F91: SINAPI | G91: =VLOOKUP(B91,'Insumos SINAPI'!$A$8:$E$5279,5,FALSE) -> 0.77
A92: 80 | B92: 11267 | C92: Arruela redonda de latão, diâmetro externo = 34 mm, espessura = 2,5 mm, diâmetro do furo = 17 mm | D92: un | E92: MAT | F92: SINAPI | G92: =VLOOKUP(B92,'Insumos SINAPI'!$A$8:$E$5279,5,FALSE) -> 0.79
A93: 81 | B93: =+Cotações!A179 -> 128 | C93: ART | D93: un | E93: MAT | F93: Cotação | G93: =TRUNC((IF($D$10="MÉDIA",Cotações!M179,Cotações!N179))*(1+'Atualizações Cotações'!$J$9),2) -> 266.32
A94: 82 | B94: =+Cotações!A110 -> 82 | C94: (ATI) Abdominal | D94: un | E94: MAT | F94: Cotação | G94: =TRUNC((IF($D$10="MÉDIA",Cotações!M110,Cotações!N110))*(1+'Atualizações Cotações'!$J$9),2) -> 4115.4
A95: 83 | B95: =+Cotações!A111 -> 83 | C95: (ATI) Adução e abdução de pernas duplo | D95: un | E95: MAT | F95: Cotação | G95: =TRUNC((IF($D$10="MÉDIA",Cotações!M111,Cotações!N111))*(1+'Atualizações Cotações'!$J$9),2) -> 6937.4
A96: 84 | B96: =+Cotações!A112 -> 84 | C96: (ATI) Esqui triplo conjugado | D96: un | E96: MAT | F96: Cotação | G96: =TRUNC((IF($D$10="MÉDIA",Cotações!M112,Cotações!N112))*(1+'Atualizações Cotações'!$J$9),2) -> 7660.53
A97: 85 | B97: =+Cotações!A113 -> 85 | C97: (ATI) Jogo de barras | D97: un | E97: MAT | F97: Cotação | G97: =TRUNC((IF($D$10="MÉDIA",Cotações!M113,Cotações!N113))*(1+'Atualizações Cotações'!$J$9),2) -> 5820.36
A98: 86 | B98: =+Cotações!A114 -> 86 | C98: (ATI) Multiexercitador conjugado 6 funções | D98: un | E98: MAT | F98: Cotação | G98: =TRUNC((IF($D$10="MÉDIA",Cotações!M114,Cotações!N114))*(1+'Atualizações Cotações'!$J$9),2) -> 7819.27
A99: 87 | B99: =+Cotações!A115 -> 87 | C99: (ATI) Peitoral duplo | D99: un | E99: MAT | F99: Cotação | G99: =TRUNC((IF($D$10="MÉDIA",Cotações!M115,Cotações!N115))*(1+'Atualizações Cotações'!$J$9),2) -> 6672.84
A100: 88 | B100: =+Cotações!A116 -> 88 | C100: (ATI) Placa orientativa | D100: un | E100: MAT | F100: Cotação | G100: =TRUNC((IF($D$10="MÉDIA",Cotações!M116,Cotações!N116))*(1+'Atualizações Cotações'!$J$9),2) -> 4585.74
A101: 89 | B101: =+Cotações!A117 -> 89 | C101: (ATI) Pressão de pernas triplo conjugado | D101: un | E101: MAT | F101: Cotação | G101: =TRUNC((IF($D$10="MÉDIA",Cotações!M117,Cotações!N117))*(1+'Atualizações Cotações'!$J$9),2) -> 5996.73
A102: 90 | B102: =+Cotações!A118 -> 90 | C102: (ATI) Puxador duplo | D102: un | E102: MAT | F102: Cotação | G102: =TRUNC((IF($D$10="MÉDIA",Cotações!M118,Cotações!N118))*(1+'Atualizações Cotações'!$J$9),2) -> 6731.63
A103: 91 | B103: =+Cotações!A119 -> 91 | C103: (APC) Remada | D103: un | E103: MAT | F103: Cotação | G103: =TRUNC((IF($D$10="MÉDIA",Cotações!M119,Cotações!N119))*(1+'Atualizações Cotações'!$J$9),2) -> 3186.5
A104: 92 | B104: =+Cotações!A120 -> 92 | C104: (ATI) Simulador de caminhada triplo conjugado | D104: un | E104: MAT | F104: Cotação | G104: =TRUNC((IF($D$10="MÉDIA",Cotações!M120,Cotações!N120))*(1+'Atualizações Cotações'!$J$9),2) -> 7231.36
A105: 93 | B105: =+Cotações!A121 -> 93 | C105: (ATI) Simulador de remo | D105: un | E105: MAT | F105: Cotação | G105: =TRUNC((IF($D$10="MÉDIA",Cotações!M121,Cotações!N121))*(1+'Atualizações Cotações'!$J$9),2) -> 3997.82
A106: 94 | B106: =+Cotações!A122 -> 94 | C106: (APC) Voador peitoral e voador dorsal | D106: un | E106: MAT | F106: Cotação | G106: =TRUNC((IF($D$10="MÉDIA",Cotações!M122,Cotações!N122))*(1+'Atualizações Cotações'!$J$9),2) -> 4826.78
A107: 95 | B107: =+Cotações!A24 -> 12 | C107: Balizador h=1,05 m | D107: ms | E107: MAT | F107: Cotação | G107: =TRUNC((IF($D$10="MÉDIA",Cotações!M24,Cotações!N24))*(1+'Atualizações Cotações'!$J$9),2) -> 65.61
A108: 96 | B108: 546 | C108: Barra de ferro chata, retangular (qualquer bitola) | D108: kg | E108: MAT | F108: SINAPI | G108: =VLOOKUP(B108,'Insumos SINAPI'!$A$8:$E$5279,5,FALSE) -> 9.68
A109: 97 | B109: =+Cotações!A79 -> 60 | C109: Barra ferro chato 7/8" X 1/8" | D109: kg | E109: MAT | F109: Cotação | G109: =TRUNC((IF($D$10="MÉDIA",Cotações!M79,Cotações!N79))*(1+'Atualizações Cotações'!$J$9),2) -> 5.44
A110: 98 | B110: =+Cotações!A80 -> 61 | C110: Barra ferro chato 7/8" x 1/4" | D110: kg | E110: MAT | F110: Cotação | G110: =TRUNC((IF($D$10="MÉDIA",Cotações!M80,Cotações!N80))*(1+'Atualizações Cotações'!$J$9),2) -> 5.49
A111: 99 | B111: 546 | C111: Barra ferro chato 1" x 1/8" | D111: kg | E111: MAT | F111: SINAPI | G111: =VLOOKUP(B111,'Insumos SINAPI'!$A$8:$E$5279,5,FALSE) -> 9.68
A112: 100 | B112: =+Cotações!A81 -> 62 | C112: Barra ferro chato 1 1/4" x 1/4" | D112: kg | E112: MAT | F112: Cotação | G112: =TRUNC((IF($D$10="MÉDIA",Cotações!M81,Cotações!N81))*(1+'Atualizações Cotações'!$J$9),2) -> 5.49
A113: 101 | B113: 563 | C113: Barra ferro chato 1 1/2" x 3/8" | D113: m | E113: MAT | F113: SINAPI | G113: =VLOOKUP(B113,'Insumos SINAPI'!$A$8:$E$5279,5,FALSE) -> 27.77
A114: 102 | B114: =+Cotações!A82 -> 63 | C114: Barra ferro chato 2" x 1/8" | D114: kg | E114: MAT | F114: Cotação | G114: =TRUNC((IF($D$10="MÉDIA",Cotações!M82,Cotações!N82))*(1+'Atualizações Cotações'!$J$9),2) -> 5.83
A115: 103 | B115: 547 | C115: Barra ferro chato 2" x 3/8" | D115: kg | E115: MAT | F115: SINAPI | G115: =VLOOKUP(B115,'Insumos SINAPI'!$A$8:$E$5279,5,FALSE)/3.79 -> 9.778364116
A116: 104 | B116: =+Cotações!A124 -> 95 | C116: Basalto irregular | D116: m² | E116: MAT | F116: Cotação | G116: =TRUNC((IF($D$10="MÉDIA",Cotações!M124,Cotações!N124))*(1+'Atualizações Cotações'!$J$9),2) -> 39.97
A117: 105 | B117: =+Cotações!A125 -> 96 | C117: Basalto irregular meio retalhão | D117: m² | E117: MAT | F117: Cotação | G117: =TRUNC((IF($D$10="MÉDIA",Cotações!M125,Cotações!N125))*(1+'Atualizações Cotações'!$J$9),2) -> 123.46
A118: 106 | B118: =+Cotações!A126 -> 97 | C118: Basalto regular talhado | D118: m² | E118: MAT | F118: Cotação | G118: =TRUNC((IF($D$10="MÉDIA",Cotações!M126,Cotações!N126))*(1+'Atualizações Cotações'!$J$9),2) -> 82.3
A119: 107 | B119: =+Cotações!A127 -> 98 | C119: Basalto regular serrado | D119: m² | E119: MAT | F119: Cotação | G119: =TRUNC((IF($D$10="MÉDIA",Cotações!M127,Cotações!N127))*(1+'Atualizações Cotações'!$J$9),2) -> 107
A120: 108 | B120: 36155 | C120: Bloco concreto tipo holandês cor natural - 6 cm - 35 MPa | D120: m² | E120: MAT | F120: SINAPI | G120: =VLOOKUP(B120,'Insumos SINAPI'!$A$8:$E$5279,5,FALSE) -> 30.87
A121: 109 | B121: 36156 | C121: Bloco concreto tipo holandês colorido - 6 cm - 35 MPa | D121: m² | E121: MAT | F121: SINAPI | G121: =VLOOKUP(B121,'Insumos SINAPI'!$A$8:$E$5279,5,FALSE) -> 35.76
A122: 110 | B122: 36170 | C122: Bloco concreto tipo holandês cor natural - 8 cm - 35 MPa | D122: m² | E122: MAT | F122: SINAPI | G122: =VLOOKUP(B122,'Insumos SINAPI'!$A$8:$E$5279,5,FALSE) -> 39
A123: 111 | B123: =+Cotações!A157 -> 115 | C123: Brita 1 ou 2 - posto obra | D123: m³ | E123: MAT | F123: Cotação | G123: =TRUNC((IF($D$10="MÉDIA",Cotações!M157,Cotações!N157))*(1+'Atualizações Cotações'!$J$9),2) -> 76.42
A124: 112 | B124: 4350 | C124: Bucha de nylon 8 mm, L=40 mm, c/parafuso rosca soberba 4,8 x 50 mm | D124: un | E124: MAT | F124: SINAPI | G124: =VLOOKUP(B124,'Insumos SINAPI'!$A$8:$E$5279,5,FALSE) -> 0.36
A125: 113 | B125: 11950 | C125: Bucha de nylon sem aba S6. com parafuso de 4,2 mm x 4,2 mm em aço zincado com rosca soberba | D125: un | E125: MAT | F125: SINAPI | G125: =VLOOKUP(B125,'Insumos SINAPI'!$A$8:$E$5279,5,FALSE) -> 0.31
A126: 114 | B126: 20086 | C126: Bucha de redução de PVC, longa 50 x 40 mm, esgoto predial | D126: un | E126: MAT | F126: SINAPI | G126: =VLOOKUP(B126,'Insumos SINAPI'!$A$8:$E$5279,5,FALSE) -> 2.61
A127: 115 | B127: 39176 | C127: Bucha em alumínio, com rosca, de 1", para eletroduto | D127: cj | E127: MAT | F127: SINAPI | G127: =VLOOKUP(B127,'Insumos SINAPI'!$A$8:$E$5279,5,FALSE) -> 1.04
A128: 116 | B128: 4375 | C128: Bucha nylon S-6 4,2 x 38 | D128: un | E128: MAT | F128: SINAPI | G128: =VLOOKUP(B128,'Insumos SINAPI'!$A$8:$E$5279,5,FALSE) -> 0.15
A129: 117 | B129: 4376 | C129: Bucha nylon S-8 4,8 x 45 | D129: un | E129: MAT | F129: SINAPI | G129: =VLOOKUP(B129,'Insumos SINAPI'!$A$8:$E$5279,5,FALSE) -> 0.29
A130: 118 | B130: 41954 | C130: Cabo de aço galvanizado, diâmetro 9,53 mm | D130: kg | E130: MAT | F130: SINAPI | G130: =VLOOKUP(B130,'Insumos SINAPI'!$A$8:$E$5279,5,FALSE) -> 70.04
A131: 119 | B131: 857 | C131: Cabo de cobre nu 16 mm² meio duro | D131: m | E131: MAT | F131: SINAPI | G131: =VLOOKUP(B131,'Insumos SINAPI'!$A$8:$E$5279,5,FALSE) -> 13.1
A132: 120 | B132: =+Cotações!A154 -> 113 | C132: Caçamba 4,00 m³ | D132: un | E132: MAT | F132: Cotação | G132: =TRUNC((IF($D$10="MÉDIA",Cotações!M154,Cotações!N154))*(1+'Atualizações Cotações'!$J$9),2) -> 458.57
A133: 121 | B133: =+Cotações!A30 -> 16 | C133: Caibro cedrinho 5 x 7 cm | D133: m | E133: MAT | F133: Cotação | G133: =TRUNC((IF($D$10="MÉDIA",Cotações!M30,Cotações!N30))*(1+'Atualizações Cotações'!$J$9),2) -> 11.46
A134: =+A133+1 -> 122 | B134: =+Cotações!A31 -> 17 | C134: Caibro cedrinho 5 x 10 cm | D134: m | E134: MAT | F134: Cotação | G134: =TRUNC((IF($D$10="MÉDIA",Cotações!M31,Cotações!N31))*(1+'Atualizações Cotações'!$J$9),2) -> 15.76
A135: =+A134+1 -> 123 | B135: =+Cotações!A32 -> 18 | C135: Caibro cedrinho 5 x 15 cm | D135: m | E135: MAT | F135: Cotação | G135: =TRUNC((IF($D$10="MÉDIA",Cotações!M32,Cotações!N32))*(1+'Atualizações Cotações'!$J$9),2) -> 23.64
A136: 124 | B136: =+Cotações!A33 -> 19 | C136: Caibro cedrinho 8 x 8 cm | D136: m | E136: MAT | F136: Cotação | G136: =TRUNC((IF($D$10="MÉDIA",Cotações!M33,Cotações!N33))*(1+'Atualizações Cotações'!$J$9),2) -> 19.91
A137: 125 | B137: 4430 | C137: Caibro de madeira não aparelhada 5 x 6 cm | D137: m | E137: MAT | F137: SINAPI | G137: =VLOOKUP(B137,'Insumos SINAPI'!$A$8:$E$5279,5,FALSE) -> 10.6
A138: 126 | B138: =+Cotações!A53 -> 38 | C138: Caibro itaúba 5 x 5 cm | D138: m | E138: MAT | F138: Cotação | G138: =TRUNC((IF($D$10="MÉDIA",Cotações!M53,Cotações!N53))*(1+'Atualizações Cotações'!$J$9),2) -> 13.16
A139: 127 | B139: =+Cotações!A54 -> 39 | C139: Caibro itaúba 5 x 7 cm | D139: m | E139: MAT | F139: Cotação | G139: =TRUNC((IF($D$10="MÉDIA",Cotações!M54,Cotações!N54))*(1+'Atualizações Cotações'!$J$9),2) -> 19.87
A140: 128 | B140: =+Cotações!A55 -> 40 | C140: Caibro itaúba 5 x 10 cm | D140: m | E140: MAT | F140: Cotação | G140: =TRUNC((IF($D$10="MÉDIA",Cotações!M55,Cotações!N55))*(1+'Atualizações Cotações'!$J$9),2) -> 26.45
A141: 129 | B141: 4513 | C141: Caibro pinus 5 x 5 cm | D141: m | E141: MAT | F141: SINAPI | G141: =VLOOKUP(B141,'Insumos SINAPI'!$A$8:$E$5279,5,FALSE) -> 2.86
A142: 130 | B142: 34643 | C142: Caixa de inspeção em polietileno para aterramento e para raios, diâmetro = 300 mm | D142: un | E142: MAT | F142: SINAPI | G142: =VLOOKUP(B142,'Insumos SINAPI'!$A$8:$E$5279,5,FALSE) -> 18.85
A143: 131 | B143: 1062 | C143: Caixa de medição com visor, para 1 medidor trifásico, em chapa de aço galvanizado 18 USG | D143: un | E143: MAT | F143: SINAPI | G143: =VLOOKUP(B143,'Insumos SINAPI'!$A$8:$E$5279,5,FALSE) -> 316.75
A144: 132 | B144: 39809 | C144: Caixa para medidor polifásico, em policarbonato/termoplástico, para alojar 1 disjuntor | D144: un | E144: MAT | F144: SINAPI | G144: =VLOOKUP(B144,'Insumos SINAPI'!$A$8:$E$5279,5,FALSE) -> 129.53
A145: 133 | B145: 4777 | C145: Cantoneira aço (abas iguais) qualquer bitola, espessura entre 1/8" e 1/4" | D145: kg | E145: MAT | F145: SINAPI | G145: =VLOOKUP(B145,'Insumos SINAPI'!$A$8:$E$5279,5,FALSE) -> 9.63
A146: 134 | B146: 4777 | C146: Cantoneira ferro 1 1/4" x 3/16" | D146: kg | E146: MAT | F146: SINAPI | G146: =VLOOKUP(B146,'Insumos SINAPI'!$A$8:$E$5279,5,FALSE) -> 9.63
A147: 135 | B147: 4777 | C147: Cantoneira ferro 1 1/2" x 1/4" | D147: kg | E147: MAT | F147: SINAPI | G147: =VLOOKUP(B147,'Insumos SINAPI'!$A$8:$E$5279,5,FALSE) -> 9.63
A148: 136 | B148: 4777 | C148: Cantoneira ferro 3" x 3/16" | D148: kg | E148: MAT | F148: SINAPI | G148: =VLOOKUP(B148,'Insumos SINAPI'!$A$8:$E$5279,5,FALSE) -> 9.63
A149: 137 | B149: =+Cotações!A87 -> 67 | C149: Chapa aço inox e=1,00 mm | D149: m² | E149: MAT | F149: Cotação | G149: =TRUNC((IF($D$10="MÉDIA",Cotações!M87,Cotações!N87))*(1+'Atualizações Cotações'!$J$9),2) -> 193.42
A150: 138 | B150: 1355 | C150: Chapa compensado resinado 14 mm | D150: m² | E150: MAT | F150: SINAPI | G150: =VLOOKUP(B150,'Insumos SINAPI'!$A$8:$E$5279,5,FALSE) -> 28.72
A151: 139 | B151: 1347 | C151: Chapa de madeira compensada plastificada 12 mm | D151: m² | E151: MAT | F151: SINAPI | G151: =VLOOKUP(B151,'Insumos SINAPI'!$A$8:$E$5279,5,FALSE) -> 27.6
A152: 140 | B152: 1342 | C152: Chapa compensado plastificado 14 mm | D152: m² | E152: MAT | F152: SINAPI | G152: =(VLOOKUP(B152,'Insumos SINAPI'!$A$8:$E$5279,5,FALSE))/2.42 -> 29.39669421
A153: 141 | B153: 1355 | C153: Chapa de madeira compensada resinada 14 mm | D153: m² | E153: MAT | F153: SINAPI | G153: =VLOOKUP(B153,'Insumos SINAPI'!$A$8:$E$5279,5,FALSE) -> 28.72
A154: 142 | B154: 1333 | C154: Chapa de aço 1/2" | D154: kg | E154: MAT | F154: SINAPI | G154: =VLOOKUP(B154,'Insumos SINAPI'!$A$8:$E$5279,5,FALSE) -> 11.11
A155: 143 | B155: 1330 | C155: Chapa de aço 1/4" | D155: kg | E155: MAT | F155: SINAPI | G155: =VLOOKUP(B155,'Insumos SINAPI'!$A$8:$E$5279,5,FALSE) -> 11.01
A156: 144 | B156: =+Cotações!A85 -> 66 | C156: Chapa aço 3/16" | D156: kg | E156: MAT | F156: Cotação | G156: =TRUNC((IF($D$10="MÉDIA",Cotações!M85,Cotações!N85))*(1+'Atualizações Cotações'!$J$9),2) -> 5.82
A157: 145 | B157: =+Cotações!A89 -> 68 | C157: Chapa galvanizada 1/2" | D157: kg | E157: MAT | F157: Cotação | G157: =TRUNC((IF($D$10="MÉDIA",Cotações!M89,Cotações!N89))*(1+'Atualizações Cotações'!$J$9),2) -> 0
A158: 146 | B158: =+Cotações!A90 -> 69 | C158: Chapa galvanizada 1/4" | D158: kg | E158: MAT | F158: Cotação | G158: =TRUNC((IF($D$10="MÉDIA",Cotações!M90,Cotações!N90))*(1+'Atualizações Cotações'!$J$9),2) -> 0
A159: 147 | B159: =+Cotações!A91 -> 70 | C159: Chapa galvanizada 3/16" | D159: kg | E159: MAT | F159: Cotação | G159: =TRUNC((IF($D$10="MÉDIA",Cotações!M91,Cotações!N91))*(1+'Atualizações Cotações'!$J$9),2) -> 0
A160: 148 | B160: 34353 | C160: Cimento cola AC-2 | D160: kg | E160: MAT | F160: SINAPI | G160: =VLOOKUP(B160,'Insumos SINAPI'!$A$8:$E$5279,5,FALSE) -> 0.91
A161: 149 | B161: 1379 | C161: Cimento Portland CP-II 32 | D161: kg | E161: MAT | F161: SINAPI | G161: =VLOOKUP(B161,'Insumos SINAPI'!$A$8:$E$5279,5,FALSE) -> 0.64
A162: 150 | B162: 420 | C162: Cinta circular em aço galvanizado de 150 mm de diâmetro para fixação de caixa de medição | D162: un | E162: MAT | F162: SINAPI | G162: =VLOOKUP(B162,'Insumos SINAPI'!$A$8:$E$5279,5,FALSE) -> 20.85
A163: 151 | B163: =+Cotações!A164 -> 120 | C163: CIP | D163: un | E163: MAT | F163: Cotação | G163: =TRUNC((IF($D$10="MÉDIA",Cotações!M164,Cotações!N164))*(1+'Atualizações Cotações'!$J$9),2) -> 25.96
A164: 152 | B164: 34492 | C164: Concreto usinado bombeável, fck=20 MPa, slump = 100 +/- 20 mm, exclui serviço de bombeamento | D164: m³ | E164: MAT | F164: SINAPI | G164: =VLOOKUP(B164,'Insumos SINAPI'!$A$8:$E$5279,5,FALSE) -> 337.5
A165: 153 | B165: 1527 | C165: Concreto usinado bombeável, fck=25 MPa, slump = 100 +/- 20 mm, inclui serviço de bombeamento | D165: m³ | E165: MAT | F165: SINAPI | G165: =VLOOKUP(B165,'Insumos SINAPI'!$A$8:$E$5279,5,FALSE) -> 375.93
A166: 154 | B166: 34493 | C166: Concreto usinado bombeável, fck=25 MPa, slump = 100 +/- 20 mm, exclui serviço de bombeamento | D166: m³ | E166: MAT | F166: SINAPI | G166: =VLOOKUP(B166,'Insumos SINAPI'!$A$8:$E$5279,5,FALSE) -> 347.01
A167: 155 | B167: 1539 | C167: Conector metálico tipo parafuso fendido (split bolt), para cabos até 16 mm² | D167: un | E167: MAT | F167: SINAPI | G167: =VLOOKUP(B167,'Insumos SINAPI'!$A$8:$E$5279,5,FALSE) -> 6.52
A168: 156 | B168: 11864 | C168: Conector metálico tipo parafuso fendido (split bolt), para cabos até 95 mm² | D168: un | E168: MAT | F168: SINAPI | G168: =VLOOKUP(B168,'Insumos SINAPI'!$A$8:$E$5279,5,FALSE) -> 27.22
A169: 157 | B169: 34498 | C169: Cone de sinalização em PVC flexível, h=70/76 cm | D169: un | E169: MAT | F169: SINAPI | G169: =VLOOKUP(B169,'Insumos SINAPI'!$A$8:$E$5279,5,FALSE) -> 149.43
A170: 158 | B170: 1607 | C170: Conjunto arruelas de vedação 5/16" | D170: cj | E170: MAT | F170: SINAPI | G170: =VLOOKUP(B170,'Insumos SINAPI'!$A$8:$E$5279,5,FALSE) -> 0.14
A171: 159 | B171: =+Cotações!A101 -> 76 | C171: Corrente aço galvanizado 5 mm elo longo 22 x 45 mm | D171: kg | E171: MAT | F171: Cotação | G171: =TRUNC((IF($D$10="MÉDIA",Cotações!M101,Cotações!N101))*(1+'Atualizações Cotações'!$J$9),2) -> 27.74
A172: 160 | B172: =+Cotações!A177 -> 127 | C172: CUB-RS R 16-N | D172: un | E172: MAT | F172: Cotação | G172: =TRUNC((IF($D$10="MÉDIA",Cotações!M177,Cotações!N177))*(1+'Atualizações Cotações'!$J$9),2) -> 1736.85
A173: 161 | B173: =+Cotações!A173 -> 125 | C173: Cuba inox p/bebedouro 38 cm | D173: un | E173: MAT | F173: Cotação | G173: =TRUNC((IF($D$10="MÉDIA",Cotações!M173,Cotações!N173))*(1+'Atualizações Cotações'!$J$9),2) -> 183.19
A174: 162 | B174: =+Cotações!A95 -> 72 | C174: Cumeeira galvalume ondulada 0,50 mm | D174: un | E174: MAT | F174: Cotação | G174: =TRUNC((IF($D$10="MÉDIA",Cotações!M95,Cotações!N95))*(1+'Atualizações Cotações'!$J$9),2) -> 34.06
A175: 163 | B175: 7181 | C175: Cumeeira para telha cerâmica | D175: un | E175: MAT | F175: SINAPI | G175: =VLOOKUP(B175,'Insumos SINAPI'!$A$8:$E$5279,5,FALSE) -> 3.18
A176: 164 | B176: 12034 | C176: Curva PVC 180⁰ 3/4" p/eletroduto roscável | D176: un | E176: MAT | F176: SINAPI | G176: =VLOOKUP(B176,'Insumos SINAPI'!$A$8:$E$5279,5,FALSE) -> 3.93
A177: 165 | B177: 1966 | C177: Curva PVC curta 90 esgoto predial 100 mm | D177: un | E177: MAT | F177: SINAPI | G177: =VLOOKUP(B177,'Insumos SINAPI'!$A$8:$E$5279,5,FALSE) -> 24.85
A178: 166 | B178: 1970 | C178: Curva PVC longa 90 esgoto predial 100 mm | D178: un | E178: MAT | F178: SINAPI | G178: =VLOOKUP(B178,'Insumos SINAPI'!$A$8:$E$5279,5,FALSE) -> 52.29
A179: 167 | B179: 2692 | C179: Desmoldante p/formas de madeira | D179: l | E179: MAT | F179: SINAPI | G179: =VLOOKUP(B179,'Insumos SINAPI'!$A$8:$E$5279,5,FALSE) -> 4.29
A180: 168 | B180: 13887 | C180: Disco de corte diamantado para concreto 350 mm | D180: un | E180: MAT | F180: SINAPI | G180: =VLOOKUP(B180,'Insumos SINAPI'!$A$8:$E$5279,5,FALSE) -> 530.33
A181: 169 | B181: =+Cotações!A102 -> 77 | C181: Disco de corte MR 832 - 7" | D181: un | E181: MAT | F181: Cotação | G181: =TRUNC((IF($D$10="MÉDIA",Cotações!M102,Cotações!N102))*(1+'Atualizações Cotações'!$J$9),2) -> 26.92
A182: 170 | B182: 2392 | C182: Disjuntor tipo NEMA, tripolar 10 até 50 A | D182: un | E182: MAT | F182: SINAPI | G182: =VLOOKUP(B182,'Insumos SINAPI'!$A$8:$E$5279,5,FALSE) -> 78.54
A183: 171 | B183: 2433 | C183: Dobradiça em aço/ferro 3 x 2 1/2" s/anel | D183: un | E183: MAT | F183: SINAPI | G183: =VLOOKUP(B183,'Insumos SINAPI'!$A$8:$E$5279,5,FALSE) -> 9.35
A184: 172 | B184: =+Cotações!A185 -> 131 | C184: Dobradiça ferro galvanizado 4" x 3" | D184: un | E184: MAT | F184: Cotação | G184: =TRUNC((IF($D$10="MÉDIA",Cotações!M185,Cotações!N185))*(1+'Atualizações Cotações'!$J$9),2) -> 9.28
A185: 173 | B185: 11002 | C185: Eletrodo revestido AWS - E6013, diâmetro igual a 2,50 mm | D185: kg | E185: MAT | F185: SINAPI | G185: =VLOOKUP(B185,'Insumos SINAPI'!$A$8:$E$5279,5,FALSE) -> 39.07
A186: 174 | B186: 2685 | C186: Eletroduto de PVC roscável de 1", sem luva | D186: m | E186: MAT | F186: SINAPI | G186: =VLOOKUP(B186,'Insumos SINAPI'!$A$8:$E$5279,5,FALSE) -> 6.69
A187: 175 | B187: 2705 | C187: Energia elétrica | D187: kWh | E187: MAT | F187: SINAPI | G187: =VLOOKUP(B187,'Insumos SINAPI'!$A$8:$E$5279,5,FALSE) -> 0.87
A188: 176 | B188: 6141 | C188: Engate flexível PVC 1/2" x 30 | D188: un | E188: MAT | F188: SINAPI | G188: =VLOOKUP(B188,'Insumos SINAPI'!$A$8:$E$5279,5,FALSE) -> 4.9
A189: 177 | B189: 14439 | C189: Escora de Eucalipto d=8 a 11 cm | D189: m | E189: MAT | F189: SINAPI | G189: =VLOOKUP(B189,'Insumos SINAPI'!$A$8:$E$5279,5,FALSE) -> 3.92
A190: 178 | B190: =+Cotações!A162 -> 119 | C190: Esgoto cloacal | D190: m³ | E190: MAT | F190: Cotação | G190: =TRUNC((IF($D$10="MÉDIA",Cotações!M162,Cotações!N162))*(1+'Atualizações Cotações'!$J$9),2) -> 3.77
A191: 179 | B191: 39017 | C191: Espaçador circular em plástico, 4,2 a 12,5 mm | D191: m | E191: MAT | F191: SINAPI | G191: =VLOOKUP(B191,'Insumos SINAPI'!$A$8:$E$5279,5,FALSE) -> 0.13
A192: 180 | B192: =+Cotações!A104 -> 78 | C192: Esticador de arame | D192: un | E192: MAT | F192: Cotação | G192: =TRUNC((IF($D$10="MÉDIA",Cotações!M104,Cotações!N104))*(1+'Atualizações Cotações'!$J$9),2) -> 5.87
A193: 181 | B193: 10886 | C193: Extintor de incêndio de água pressurizada (AP) de 10 l, Classe A | D193: un | E193: MAT | F193: SINAPI | G193: =VLOOKUP(B193,'Insumos SINAPI'!$A$8:$E$5279,5,FALSE) -> 183.75
A194: 182 | B194: 10891 | C194: Extintor de incêndio de pó químico seco (PQS) de 4 kg, Classe BC | D194: un | E194: MAT | F194: SINAPI | G194: =VLOOKUP(B194,'Insumos SINAPI'!$A$8:$E$5279,5,FALSE) -> 177.69
A195: 183 | B195: 38125 | C195: Fertilizante orgânico composto, classe A | D195: kg | E195: MAT | F195: SINAPI | G195: =VLOOKUP(B195,'Insumos SINAPI'!$A$8:$E$5279,5,FALSE) -> 1.23
A196: 184 | B196: 938 | C196: Fio rígido 1,5 mm² - 750V | D196: m | E196: MAT | F196: SINAPI | G196: =VLOOKUP(B196,'Insumos SINAPI'!$A$8:$E$5279,5,FALSE) -> 1.44
A197: 185 | B197: 937 | C197: Fio rígido, isolação em PVC, 450/750 V 10 mm² | D197: m | E197: MAT | F197: SINAPI | G197: =VLOOKUP(B197,'Insumos SINAPI'!$A$8:$E$5279,5,FALSE) -> 8.89
A198: 186 | B198: 406 | C198: Fita aço inox para cintar poste L=19 mm, e=0,5 mm (Rolo de 30 m) | D198: un | E198: MAT | F198: SINAPI | G198: =VLOOKUP(B198,'Insumos SINAPI'!$A$8:$E$5279,5,FALSE) -> 79.28
A199: 187 | B199: 12815 | C199: Fita crepe rolo 25 mm x 50 m | D199: un | E199: MAT | F199: SINAPI | G199: =VLOOKUP(B199,'Insumos SINAPI'!$A$8:$E$5279,5,FALSE) -> 7.19
A200: 188 | B200: 14153 | C200: Fita metálica perfurada, L=18 mm, rolo de 30 m | D200: un | E200: MAT | F200: SINAPI | G200: =VLOOKUP(B200,'Insumos SINAPI'!$A$8:$E$5279,5,FALSE) -> 52.91
A201: 189 | B201: 3148 | C201: Fita veda rosca em rolos de 18 mm x 50 m | D201: un | E201: MAT | F201: SINAPI | G201: =VLOOKUP(B201,'Insumos SINAPI'!$A$8:$E$5279,5,FALSE) -> 17.18
A202: 190 | B202: 42015 | C202: Fita zebrada | D202: m | E202: MAT | F202: SINAPI | G202: =VLOOKUP(B202,'Insumos SINAPI'!$A$8:$E$5279,5,FALSE) -> 1.02
A203: 191 | B203: =+Cotações!A108 -> 81 | C203: Fradinho em ferro fundido | D203: un | E203: MAT | F203: Cotação | G203: =TRUNC((IF($D$10="MÉDIA",Cotações!M108,Cotações!N108))*(1+'Atualizações Cotações'!$J$9),2) -> 253.97
A204: =+A203+1 -> 192 | B204: 7307 | C204: Fundo anticorrosivo tipo zarcão | D204: l | E204: MAT | F204: SINAPI | G204: =VLOOKUP(B204,'Insumos SINAPI'!$A$8:$E$5279,5,FALSE) -> 28.15
... 183 more rows

Sheet M.O. (hidden)
A1: MÃO-DE-OBRA
A3: =CONCATENATE("Data Base SINAPI: ",$E$17) -> Data Base SINAPI: Abr/2021
C5: SELECIONAR: | D5: s/desoneração
A7: =D5 -> s/desoneração | C7: Leis Sociais Horistas: | D7: =IF($D$5="c/desoneração",'Encargos Sociais'!C42,'Encargos Sociais'!E42) -> 1.111 | E7: BDI= | F7: =IF($D$5="c/desoneração","28,21%","22,15%") -> 22,15%
C8: Leis Sociais Mensalistas: | D8: =IF($D$5="c/desoneração",'Encargos Sociais'!D42,'Encargos Sociais'!F42) -> 0.6916
A10: =+E17 -> Abr/2021 | C10: Vem da aba Comp.SINAPI c_des. | D10: Vem da aba Comp.SINAPI s_des. | E10: Valor utilizado
A17: Código | B17: Composição | C17: Custo unitário (c/desoneração) | D17: Custo unitário (s/desoneração) | E17: Abr/2021
A18: 88316 | B18: Servente | C18: =VLOOKUP(A18,'Comp.SINAPI c_des.'!$G$8:$K$50000,5,FALSE) -> 15.35 | D18: =VLOOKUP(A18,'Comp.SINAPI s_des.'!$G$8:$K$50000,5,FALSE) -> 17.11 | E18: =IF($D$5="c/desoneração",C18,(IF($D$5="s/desoneração",D18))) -> 17.11
A19: 88238 | B19: Ajudante de armador | C19: =VLOOKUP(A19,'Comp.SINAPI c_des.'!$G$8:$K$50000,5,FALSE) -> 14.11 | D19: =VLOOKUP(A19,'Comp.SINAPI s_des.'!$G$8:$K$50000,5,FALSE) -> 15.67 | E19: 15.67
A20: 88239 | B20: Ajudante de carpinteiro | C20: =VLOOKUP(A20,'Comp.SINAPI c_des.'!$G$8:$K$50000,5,FALSE) -> 15.31 | D20: =VLOOKUP(A20,'Comp.SINAPI s_des.'!$G$8:$K$50000,5,FALSE) -> 17.06 | E20: 17.06
A21: 88247 | B21: Auxiliar de eletricista | C21: =VLOOKUP(A21,'Comp.SINAPI c_des.'!$G$8:$K$50000,5,FALSE) -> 15.41 | D21: =VLOOKUP(A21,'Comp.SINAPI s_des.'!$G$8:$K$50000,5,FALSE) -> 17.17 | E21: 17.17
A22: 88253 | B22: Auxiliar de topógrafo | C22: =VLOOKUP(A22,'Comp.SINAPI c_des.'!$G$8:$K$50000,5,FALSE) -> 11.98 | D22: =VLOOKUP(A22,'Comp.SINAPI s_des.'!$G$8:$K$50000,5,FALSE) -> 13.69 | E22: 13.69
A23: 88248 | B23: Auxiliar de encanador | C23: =VLOOKUP(A23,'Comp.SINAPI c_des.'!$G$8:$K$50000,5,FALSE) -> 13.98 | D23: =VLOOKUP(A23,'Comp.SINAPI s_des.'!$G$8:$K$50000,5,FALSE) -> 15.58 | E23: 15.58
A24: 88251 | B24: Auxiliar de serralheiro | C24: =VLOOKUP(A24,'Comp.SINAPI c_des.'!$G$8:$K$50000,5,FALSE) -> 14.83 | D24: =VLOOKUP(A24,'Comp.SINAPI s_des.'!$G$8:$K$50000,5,FALSE) -> 16.49 | E24: 16.49
A25: 88309 | B25: Pedreiro | C25: =VLOOKUP(A25,'Comp.SINAPI c_des.'!$G$8:$K$50000,5,FALSE) -> 18.48 | D25: =VLOOKUP(A25,'Comp.SINAPI s_des.'!$G$8:$K$50000,5,FALSE) -> 20.71 | E25: 20.71
A26: 88310 | B26: Pintor | C26: =VLOOKUP(A26,'Comp.SINAPI c_des.'!$G$8:$K$50000,5,FALSE) -> 19.48 | D26: =VLOOKUP(A26,'Comp.SINAPI s_des.'!$G$8:$K$50000,5,FALSE) -> 21.7 | E26: 21.7
A27: 88262 | B27: Carpinteiro | C27: =VLOOKUP(A27,'Comp.SINAPI c_des.'!$G$8:$K$50000,5,FALSE) -> 18.28 | D27: =VLOOKUP(A27,'Comp.SINAPI s_des.'!$G$8:$K$50000,5,FALSE) -> 20.5 | E27: 20.5
A28: 88260 | B28: Calceteiro | C28: =VLOOKUP(A28,'Comp.SINAPI c_des.'!$G$8:$K$50000,5,FALSE) -> 17.31 | D28: =VLOOKUP(A28,'Comp.SINAPI s_des.'!$G$8:$K$50000,5,FALSE) -> 19.37 | E28: 19.37
A29: 88256 | B29: Ladrilhista | C29: =VLOOKUP(A29,'Comp.SINAPI c_des.'!$G$8:$K$50000,5,FALSE) -> 18.41 | D29: =VLOOKUP(A29,'Comp.SINAPI s_des.'!$G$8:$K$50000,5,FALSE) -> 20.63 | E29: 20.63
A30: 88323 | B30: Telhadista | C30: =VLOOKUP(A30,'Comp.SINAPI c_des.'!$G$8:$K$50000,5,FALSE) -> 18.64 | D30: =VLOOKUP(A30,'Comp.SINAPI s_des.'!$G$8:$K$50000,5,FALSE) -> 20.93 | E30: 20.93
A31: 88245 | B31: Armador | C31: =VLOOKUP(A31,'Comp.SINAPI c_des.'!$G$8:$K$50000,5,FALSE) -> 18.38 | D31: =VLOOKUP(A31,'Comp.SINAPI s_des.'!$G$8:$K$50000,5,FALSE) -> 20.6 | E31: 20.6
A32: 88315 | B32: Serralheiro | C32: =VLOOKUP(A32,'Comp.SINAPI c_des.'!$G$8:$K$50000,5,FALSE) -> 18.38 | D32: =VLOOKUP(A32,'Comp.SINAPI s_des.'!$G$8:$K$50000,5,FALSE) -> 20.6 | E32: 20.6
A33: 88441 | B33: Jardineiro | C33: =VLOOKUP(A33,'Comp.SINAPI c_des.'!$G$8:$K$50000,5,FALSE) -> 17.85 | D33: =VLOOKUP(A33,'Comp.SINAPI s_des.'!$G$8:$K$50000,5,FALSE) -> 20 | E33: 20
A34: 88264 | B34: Eletricista | C34: =VLOOKUP(A34,'Comp.SINAPI c_des.'!$G$8:$K$50000,5,FALSE) -> 20.11 | D34: =VLOOKUP(A34,'Comp.SINAPI s_des.'!$G$8:$K$50000,5,FALSE) -> 22.61 | E34: 22.61
A35: 88267 | B35: Encanador | C35: =VLOOKUP(A35,'Comp.SINAPI c_des.'!$G$8:$K$50000,5,FALSE) -> 18.15 | D35: =VLOOKUP(A35,'Comp.SINAPI s_des.'!$G$8:$K$50000,5,FALSE) -> 20.39 | E35: 20.39
A36: 88281 | B36: Motorista de caminhão | C36: =VLOOKUP(A36,'Comp.SINAPI c_des.'!$G$8:$K$50000,5,FALSE) -> 19.58 | D36: =VLOOKUP(A36,'Comp.SINAPI s_des.'!$G$8:$K$50000,5,FALSE) -> 22.14 | E36: 22.14
A37: 88286 | B37: Motorista Op. Munck | C37: =VLOOKUP(A37,'Comp.SINAPI c_des.'!$G$8:$K$50000,5,FALSE) -> 21.1 | D37: =VLOOKUP(A37,'Comp.SINAPI s_des.'!$G$8:$K$50000,5,FALSE) -> 23.89 | E37: 23.89
A38: 88377 | B38: Operador de betoneira | C38: =VLOOKUP(A38,'Comp.SINAPI c_des.'!$G$8:$K$50000,5,FALSE) -> 18.37 | D38: =VLOOKUP(A38,'Comp.SINAPI s_des.'!$G$8:$K$50000,5,FALSE) -> 20.74 | E38: 20.74
A39: 88294 | B39: Operador de escavadeira | C39: =VLOOKUP(A39,'Comp.SINAPI c_des.'!$G$8:$K$50000,5,FALSE) -> 24.37 | D39: =VLOOKUP(A39,'Comp.SINAPI s_des.'!$G$8:$K$50000,5,FALSE) -> 27.67 | E39: 27.67
A40: 88297 | B40: Operador de máq. e equip. | C40: =VLOOKUP(A40,'Comp.SINAPI c_des.'!$G$8:$K$50000,5,FALSE) -> 21.02 | D40: =VLOOKUP(A40,'Comp.SINAPI s_des.'!$G$8:$K$50000,5,FALSE) -> 23.8 | E40: 23.8
A41: 88298 | B41: Operador de martelete | C41: =VLOOKUP(A41,'Comp.SINAPI c_des.'!$G$8:$K$50000,5,FALSE) -> 20.02 | D41: =VLOOKUP(A41,'Comp.SINAPI s_des.'!$G$8:$K$50000,5,FALSE) -> 22.65 | E41: 22.65
A42: 88324 | B42: Tratorista | C42: =VLOOKUP(A42,'Comp.SINAPI c_des.'!$G$8:$K$50000,5,FALSE) -> 25.24 | D42: =VLOOKUP(A42,'Comp.SINAPI s_des.'!$G$8:$K$50000,5,FALSE) -> 28.69 | E42: 28.69
A43: 88326 | B43: Vigia (SINAPI) | C43: =VLOOKUP(A43,'Comp.SINAPI c_des.'!$G$8:$K$50000,5,FALSE) -> 19.92 | D43: =VLOOKUP(A43,'Comp.SINAPI s_des.'!$G$8:$K$50000,5,FALSE) -> 22.41 | E43: 22.41
A44: 93572 | B44: Encarregado (mês) | C44: =VLOOKUP(A44,'Comp.SINAPI c_des.'!$G$8:$K$50000,5,FALSE) -> 6753.56 | D44: =VLOOKUP(A44,'Comp.SINAPI s_des.'!$G$8:$K$50000,5,FALSE) -> 7776.17 | E44: 7776.17
A45: 94295 | B45: Mestre de Obras (mês) | C45: =VLOOKUP(A45,'Comp.SINAPI c_des.'!$G$8:$K$50000,5,FALSE) -> 10091.23 | D45: =VLOOKUP(A45,'Comp.SINAPI s_des.'!$G$8:$K$50000,5,FALSE) -> 11643.3 | E45: 11643.3
A46: 90781 | B46: Topógrafo | C46: =VLOOKUP(A46,'Comp.SINAPI c_des.'!$G$8:$K$50000,5,FALSE) -> 27.62 | D46: =VLOOKUP(A46,'Comp.SINAPI s_des.'!$G$8:$K$50000,5,FALSE) -> 31.8 | E46: 31.8
A47: 88597 | B47: Desenhista detalhista | C47: =VLOOKUP(A47,'Comp.SINAPI c_des.'!$G$8:$K$50000,5,FALSE) -> 32.14 | D47: =VLOOKUP(A47,'Comp.SINAPI s_des.'!$G$8:$K$50000,5,FALSE) -> 37.02 | E47: 37.02
A48: 90778 | B48: Engenheiro Civil de Obra | C48: =VLOOKUP(A48,'Comp.SINAPI c_des.'!$G$8:$K$50000,5,FALSE) -> 92.87 | D48: =VLOOKUP(A48,'Comp.SINAPI s_des.'!$G$8:$K$50000,5,FALSE) -> 107.37 | E48: 107.37

Sheet Planilha Cotações (hidden)
A1: PLANILHA DE COTAÇÕES DE INSUMOS
A2: =IF('Atualizações Cotações'!B4="NÃO",CONCATENATE("Data das Cotações: ",Cotações!$N$3),CONCATENATE("Data das Cotações: ",Cotações!$N$3," (Atualizadas pelo INCC de ",'Atualizações Cotações'!A11:B11,"/",'Atualizações Cotações'!C11,")")) -> Data das Cotações: Abril/2019 (Atualizadas pelo INCC de Abril/2021)
A4: OBJETO: | B4: =+PO!$B$9 -> REURBANIZAÇÃO DA PRAÇA ARAGUAIA
A5: DATA: | B5: =IF(PO!$B$10="","",PO!$B$10) -> 2021-05-17
A6: ART nº: | B6: =IF(PO!$B$11="","",PO!$B$11) -> 11276669
A7: *As cotações com valor em vermelho não fazem parte da média
A9: =+Cotações!A8 -> 1 | B9: Nível a laser | C9: d | D9: CNPJ | E9: Telefone | F9: Contato | G9: Data | H9: Valor | I9: =IF('Atualizações Cotações'!$B$4="NÃO","Valor adotado","Valor Atualizado") -> Valor Atualizado
A10: =+Cotações!D7 -> Allcomp | D10: 01.975.274/0001-69 | E10: =+Cotações!E7 -> 3024-7100 | F10: Rodrigo | G10: 2019-04-10 | H10: =+Cotações!D8 -> 120 | I10: =+Insumos!G52 -> 141.09
A11: =+Cotações!F7 -> RM | D11: 92.383.025/0001-30 | E11: =+Cotações!G7 -> 3375-1700 | F11: João | G11: 2019-04-09 | H11: =+Cotações!F8 -> 120
A12: =+Cotações!H7 -> Sulmak | D12: 10.331.818/0001-40 | E12: =+Cotações!I7 -> 2102-6063 | F12: Nicolas | G12: 2019-04-22 | H12: =+Cotações!H8 -> 80
A14: =+Cotações!A10 -> 2 | B14: Betoneira 400 l | C14: d | D14: CNPJ | E14: Telefone | F14: Contato | G14: Data | H14: Valor | I14: =IF('Atualizações Cotações'!$B$4="NÃO","Valor adotado","Valor Atualizado") -> Valor Atualizado
A15: =+Cotações!$D$9 -> Similar | D15: 05.097.342/0001-95 | E15: =+Cotações!$E$9 -> 3341-5866 | F15: Maurício | G15: 2019-04-09 | H15: =+Cotações!D10 -> 50 | I15: =+Insumos!G47 -> 58.79
A16: =+Cotações!$F$9 -> RM | D16: 92.383.025/0001-30 | E16: =+Cotações!$G$9 -> 3375-1700 | F16: João | G16: 2019-04-09 | H16: =+Cotações!F10 -> 50
A17: =+Cotações!$H$9 -> Sulmak | D17: 10.331.818/0001-40 | E17: =+Cotações!$I$9 -> 2102-6063 | F17: Nicolas | G17: 2019-04-22 | H17: =+Cotações!H10 -> 50
A19: =+Cotações!A11 -> 3 | B19: Motor elétrico p/vibrador | C19: d | D19: CNPJ | E19: Telefone | F19: Contato | G19: Data | H19: Valor | I19: =IF('Atualizações Cotações'!$B$4="NÃO","Valor adotado","Valor Atualizado") -> Valor Atualizado
A20: =+Cotações!$D$9 -> Similar | D20: 05.097.342/0001-95 | E20: =+Cotações!$E$9 -> 3341-5866 | F20: Maurício | G20: 2019-04-09 | H20: =+Cotações!D11 -> 20 | I20: =+Insumos!G51 -> 29.39
A21: =+Cotações!$F$9 -> RM | D21: 92.383.025/0001-30 | E21: =+Cotações!$G$9 -> 3375-1700 | F21: João | G21: 2019-04-09 | H21: =+Cotações!F11 -> 30
A22: =+Cotações!$H$9 -> Sulmak | D22: 10.331.818/0001-40 | E22: =+Cotações!$I$9 -> 2102-6063 | F22: Nicolas | G22: 2019-04-22 | H22: =+Cotações!H11 -> 25
A24: =+Cotações!A12 -> 4 | B24: Rolo compactador liso RCW900 | C24: h | D24: CNPJ | E24: Telefone | F24: Contato | G24: Data | H24: Valor | I24: =IF('Atualizações Cotações'!$B$4="NÃO","Valor adotado","Valor Atualizado") -> Valor Atualizado
A25: =+Cotações!$D$9 -> Similar | D25: 05.097.342/0001-95 | E25: =+Cotações!$E$9 -> 3341-5866 | F25: Maurício | G25: 2019-04-09 | H25: =+Cotações!D12 -> 56.25 | I25: =+Insumos!G56 -> 66.14
A26: =+Cotações!$F$9 -> RM | D26: 92.383.025/0001-30 | E26: =+Cotações!$G$9 -> 3375-1700 | F26: João | G26: 2019-04-09 | H26: =+Cotações!F12 -> 56.25
A27: =+Cotações!$H$9 -> Sulmak | D27: 10.331.818/0001-40 | E27: =+Cotações!$I$9 -> 2102-6063 | F27: Nicolas | G27: 2019-04-22 | H27: =+Cotações!H12 -> 50
A29: =+Cotações!A13 -> 5 | B29: Placa vibratória reversível CR3 | C29: d | D29: CNPJ | E29: Telefone | F29: Contato | G29: Data | H29: Valor | I29: =IF('Atualizações Cotações'!$B$4="NÃO","Valor adotado","Valor Atualizado") -> Valor Atualizado
A30: =+Cotações!$D$9 -> Similar | D30: 05.097.342/0001-95 | E30: =+Cotações!$E$9 -> 3341-5866 | F30: Maurício | G30: 2019-04-09 | H30: =+Cotações!D13 -> 90 | I30: =+Insumos!G54 -> 105.82
A31: =+Cotações!$F$9 -> RM | D31: 92.383.025/0001-30 | E31: =+Cotações!$G$9 -> 3375-1700 | F31: João | G31: 2019-04-09 | H31: =+Cotações!F13 -> 95
A32: =+Cotações!$H$9 -> Sulmak | D32: 10.331.818/0001-40 | E32: =+Cotações!$I$9 -> 2102-6063 | F32: Nicolas | G32: 2019-04-22 | H32: =+Cotações!H13 -> 90
A34: =+Cotações!A14 -> 6 | B34: Cortadora de piso 350 mm | C34: d | D34: CNPJ | E34: Telefone | F34: Contato | G34: Data | H34: Valor | I34: =IF('Atualizações Cotações'!$B$4="NÃO","Valor adotado","Valor Atualizado") -> Valor Atualizado
A35: =+Cotações!$D$9 -> Similar | D35: 05.097.342/0001-95 | E35: =+Cotações!$E$9 -> 3341-5866 | F35: Maurício | G35: 2019-04-09 | H35: =+Cotações!D14 -> 70 | I35: =+Insumos!G49 -> 70.54
A36: =+Cotações!$F$9 -> RM | D36: 92.383.025/0001-30 | E36: =+Cotações!$G$9 -> 3375-1700 | F36: João | G36: 2019-04-09 | H36: =+Cotações!F14 -> 60
A37: =+Cotações!$H$9 -> Sulmak | D37: 10.331.818/0001-40 | E37: =+Cotações!$I$9 -> 2102-6063 | F37: Nicolas | G37: 2019-04-22 | H37: =+Cotações!H14 -> 50
A39: =+Cotações!A15 -> 7 | B39: Esmerilhadeira 7" | C39: d | D39: CNPJ | E39: Telefone | F39: Contato | G39: Data | H39: Valor | I39: =IF('Atualizações Cotações'!$B$4="NÃO","Valor adotado","Valor Atualizado") -> Valor Atualizado
A40: =+Cotações!$D$9 -> Similar | D40: 05.097.342/0001-95 | E40: =+Cotações!$E$9 -> 3341-5866 | F40: Maurício | G40: 2019-04-09 | H40: =+Cotações!D15 -> 20 | I40: =+Insumos!G50 -> 23.51
A41: =+Cotações!$F$9 -> RM | D41: 92.383.025/0001-30 | E41: =+Cotações!$G$9 -> 3375-1700 | F41: João | G41: 2019-04-09 | H41: =+Cotações!F15 -> 20
A42: =+Cotações!$H$9 -> Sulmak | D42: 10.331.818/0001-40 | E42: =+Cotações!$I$9 -> 2102-6063 | F42: Nicolas | G42: 2019-04-22 | H42: =+Cotações!H15 -> 30
A44: =+Cotações!A17 -> 8 | B44: Compressor de ar 175 PCM c/martelete pneumático | C44: h | D44: CNPJ | E44: Telefone | F44: Contato | G44: Data | H44: Valor | I44: =IF('Atualizações Cotações'!$B$4="NÃO","Valor adotado","Valor Atualizado") -> Valor Atualizado
A45: =+Cotações!D16 -> Juceli | D45: 90.823.246/0001-56 | E45: =+Cotações!E16 -> 3341-1060 | F45: Janaína | G45: 2019-04-09 | H45: =TRUNC((Cotações!D17/8),2) -> 62.5 | I45: =+Insumos!G48 -> 69.81375
A46: =+Cotações!F16 -> Sul Air | D46: 87.936.795/0001-22 | E46: =+Cotações!G16 -> 3341-4378 | F46: Cássio | G46: 2019-04-23 | H46: =TRUNC((Cotações!F17/8),2) -> 56.25
A47: =+Cotações!H16 -> Hiper-Ar | D47: 02.992.980/0001-81 | E47: =+Cotações!I16 -> 3374-4923 | F47: Fabrício | G47: - | H47: =+Cotações!H17 -> -
A49: =+Cotações!A19 -> 9 | B49: Sanitário Químico | C49: ms | D49: CNPJ | E49: Telefone | F49: Contato | G49: Data | H49: Valor | I49: =IF('Atualizações Cotações'!$B$4="NÃO","Valor adotado","Valor Atualizado") -> Valor Atualizado
A50: =+Cotações!D18 -> Tecnisan | D50: 01.651.522/0001-16 | E50: =+Cotações!E18 -> 3428-6359 | F50: Júlio | G50: 2019-04-22 | H50: =+Cotações!D19 -> 650 | I50: =+Insumos!G232 -> 852.47
A51: Portosul | D51: 14.040.948/0001-85 | E51: =+Cotações!I18 -> 3045-4909 | F51: Carmen | G51: 2019-04-15 | H51: =+Cotações!H19 -> 1850
A52: Toalete | D52: 04.025.105/0001-56 | E52: 3334-9650 | F52: Pedro | G52: 2019-04-23 | H52: =+Cotações!J19 -> 650
A53: Freeban | D53: 12.077.472/0001-21 | E53: =+Cotações!G18 -> 3568-5221 | F53: Edson | G53: 2019-04-16 | H53: =+Cotações!F19 -> 800
A55: =+Cotações!A21 -> 10 | B55: Retroescavadeira c/operador | C55: d | D55: CNPJ | E55: Telefone | F55: Contato | G55: Data | H55: Valor | I55: =IF('Atualizações Cotações'!$B$4="NÃO","Valor adotado","Valor Atualizado") -> Valor Atualizado
A56: =+Cotações!D20 -> Planema | D56: 04.014.006/0001-79 | E56: =+Cotações!E20 -> 3242-9667 | F56: Fabiano | G56: 2019-04-16 | H56: =+Cotações!D21 -> 120 | I56: =+Insumos!G55 -> 141.09
A57: =+Cotações!F20 -> Sul Air | D57: 87.936.795/0001-22 | E57: =+Cotações!G20 -> 3341-4378 | F57: Cássio | G57: 2019-04-15 | H57: =+Cotações!F21 -> 112.5
A58: =+Cotações!H20 -> Dunorte | D58: 88.756.242/0001-50 | E58: =+Cotações!I20 -> 3361-4866 | F58: Isabel | G58: 2019-04-15 | H58: =+Cotações!H21 -> 137.5
A60: =+Cotações!A23 -> 11 | B60: Sinalizador eletrônico luminoso piscante | C60: un | D60: CNPJ | E60: Telefone | F60: Contato | G60: Data | H60: Valor | I60: =IF('Atualizações Cotações'!$B$4="NÃO","Valor adotado","Valor Atualizado") -> Valor Atualizado
A61: =+Cotações!$F$22 -> Telbrás | D61: 07.278.378/0001-09 | E61: =+Cotações!$G$22 -> 3466-3066 | F61: Andrei | H61: =+Cotações!F23 -> 80.41 | I61: =+Insumos!G306 -> 123.46
A62: =+Cotações!$H$22 -> Protefix | D62: 02.947.841/0001-36 | E62: =+Cotações!$I$22 -> 3222-0011 | F62: Lúcio | H62: =+Cotações!H23 -> 105
A63: =+Cotações!$D$22 -> Planeta | D63: 05.081.805/0001-20 | E63: =+Cotações!$E$22 -> 15 3305-8547 | F63: Gisele | H63: =+Cotações!D23 -> 121
A65: =+Cotações!A24 -> 12 | B65: Balizador h=1,05 | C65: un | D65: CNPJ | E65: Telefone | F65: Contato | G65: Data | H65: Valor | I65: =IF('Atualizações Cotações'!$B$4="NÃO","Valor adotado","Valor Atualizado") -> Valor Atualizado
A66: =+Cotações!$F$22 -> Telbrás | D66: 07.278.378/0001-09 | E66: =+Cotações!$G$22 -> 3466-3066 | F66: Andrei | H66: =+Cotações!F24 -> 47 | I66: =+Insumos!G107 -> 65.61
A67: =+Cotações!$H$22 -> Protefix | D67: 02.947.841/0001-36 | E67: =+Cotações!$I$22 -> 3222-0011 | F67: Lúcio | H67: =+Cotações!H24 -> 55.8
A68: =+Cotações!$D$22 -> Planeta | D68: 05.081.805/0001-20 | E68: =+Cotações!$E$22 -> 15 3305-8547 | F68: Gisele | H68: =+Cotações!D24 -> 67
A70: =+Cotações!A26 -> 13 | B70: Projeto de Sinalização | C70: un | D70: CNPJ | E70: Telefone | F70: Contato | G70: Data | H70: Valor | I70: =IF('Atualizações Cotações'!$B$4="NÃO","Valor adotado","Valor Atualizado") -> Valor Atualizado
A71: Empírico | D71: - | E71: - | F71: - | G71: 2019-04-15 | H71: =+Cotações!D26 -> 858.96 | I71: =+Insumos!G295 -> 1009.99
A72: 8 horas de engenheiro
A74: =+Cotações!A28 -> 14 | B74: Sarrafo cedrinho 2,5 x 2,5 cm | C74: m | D74: CNPJ | E74: Telefone | F74: Contato | G74: Data | H74: Valor | I74: =IF('Atualizações Cotações'!$B$4="NÃO","Valor adotado","Valor Atualizado") -> Valor Atualizado
A75: =+Cotações!$D$27 -> Madesul | D75: 08.700.319/0001-31 | E75: =+Cotações!$E$27 -> 3016-5500 | F75: Tatiane | G75: 2019-04-11 | H75: =+Cotações!D28 -> 2.1 | I75: =+Insumos!G299 -> 2.21
A76: =+Cotações!$F$27 -> Telharsul | D76: 04.821.045/0001-88 | E76: =+Cotações!$G$27 -> 3084-5474 | F76: Andreia | G76: 2019-04-15 | H76: =+Cotações!F28 -> 1.57
A77: =+Cotações!$H$27 -> Madeben | D77: 03.257.940/0003-10 | E77: =+Cotações!$I$27 -> 3072-0673 | F77: Saulo | G77: 2019-04-11 | H77: =+Cotações!H28 -> 1.66
A78: =+Cotações!$J$27 -> Guarujá | D78: 01.597.505/0001-48 | E78: =+Cotações!$K$27 -> 3246-5944 | F78: Alexandre | G78: 2019-04-11 | H78: =+Cotações!J28 -> 2.3
A80: =+Cotações!A29 -> 15 | B80: Sarrafo cedrinho 2,5 x 5,0 cm | C80: m | D80: CNPJ | E80: Telefone | F80: Contato | G80: Data | H80: Valor | I80: =IF('Atualizações Cotações'!$B$4="NÃO","Valor adotado","Valor Atualizado") -> Valor Atualizado
A81: =+Cotações!$D$27 -> Madesul | D81: 08.700.319/0001-31 | E81: =+Cotações!$E$27 -> 3016-5500 | F81: Tatiane | G81: 2019-04-11 | H81: =+Cotações!D29 -> 3.37 | I81: =+Insumos!G300 -> 3.939
A82: =+Cotações!$F$27 -> Telharsul | D82: 04.821.045/0001-88 | E82: =+Cotações!$G$27 -> 3084-5474 | F82: Andreia | G82: 2019-04-15 | H82: =+Cotações!F29 -> 3.13
A83: =+Cotações!$H$27 -> Madeben | D83: 03.257.940/0003-10 | E83: =+Cotações!$I$27 -> 3072-0673 | F83: Saulo | G83: 2019-04-11 | H83: =+Cotações!H29 -> 3.33
A84: =+Cotações!$J$27 -> Guarujá | D84: 01.597.505/0001-48 | E84: =+Cotações!$K$27 -> 3246-5944 | F84: Alexandre | G84: 2019-04-11 | H84: =+Cotações!J29 -> 4.3
A86: =+Cotações!A30 -> 16 | B86: Caibro cedrinho 5,0 x 7,0 cm | C86: m | D86: CNPJ | E86: Telefone | F86: Contato | G86: Data | H86: Valor | I86: =IF('Atualizações Cotações'!$B$4="NÃO","Valor adotado","Valor Atualizado") -> Valor Atualizado
A87: =+Cotações!$D$27 -> Madesul | D87: 08.700.319/0001-31 | E87: =+Cotações!$E$27 -> 3016-5500 | F87: Tatiane | G87: 2019-04-11 | H87: =+Cotações!D30 -> 10.12 | I87: =+Insumos!G133 -> 11.46
A88: =+Cotações!$F$27 -> Telharsul | D88: 04.821.045/0001-88 | E88: =+Cotações!$G$27 -> 3084-5474 | F88: Andreia | G88: 2019-04-15 | H88: =+Cotações!F30 -> 9.38
A89: =+Cotações!$H$27 -> Madeben | D89: 03.257.940/0003-10 | E89: =+Cotações!$I$27 -> 3072-0673 | F89: Saulo | G89: 2019-04-11 | H89: =+Cotações!H30 -> 9.32
A90: =+Cotações!$J$27 -> Guarujá | D90: 01.597.505/0001-48 | E90: =+Cotações!$K$27 -> 3246-5944 | F90: Alexandre | G90: 2019-04-11 | H90: =+Cotações!J30 -> 10.7
A92: =+Cotações!A31 -> 17 | B92: Caibro cedrinho 5,0 x 10,0 cm | C92: m | D92: CNPJ | E92: Telefone | F92: Contato | G92: Data | H92: Valor | I92: =IF('Atualizações Cotações'!$B$4="NÃO","Valor adotado","Valor Atualizado") -> Valor Atualizado
A93: =+Cotações!$D$27 -> Madesul | D93: 08.700.319/0001-31 | E93: =+Cotações!$E$27 -> 3016-5500 | F93: Tatiane | G93: 2019-04-11 | H93: =+Cotações!D31 -> 13.5 | I93: =+Insumos!G134 -> 15.76
A94: =+Cotações!$F$27 -> Telharsul | D94: 04.821.045/0001-88 | E94: =+Cotações!$G$27 -> 3084-5474 | F94: Andreia | G94: 2019-04-15 | H94: =+Cotações!F31 -> 12.5
A95: =+Cotações!$H$27 -> Madeben | D95: 03.257.940/0003-10 | E95: =+Cotações!$I$27 -> 3072-0673 | F95: Saulo | G95: 2019-04-11 | H95: =+Cotações!H31 -> 13.32
A96: =+Cotações!$J$27 -> Guarujá | D96: 01.597.505/0001-48 | E96: =+Cotações!$K$27 -> 3246-5944 | F96: Alexandre | G96: 2019-04-11 | H96: =+Cotações!J31 -> 15
A98: =+Cotações!A32 -> 18 | B98: Caibro cedrinho 5,0 x 15,0 cm | C98: m | D98: CNPJ | E98: Telefone | F98: Contato | G98: Data | H98: Valor | I98: =IF('Atualizações Cotações'!$B$4="NÃO","Valor adotado","Valor Atualizado") -> Valor Atualizado
A99: =+Cotações!$D$27 -> Madesul | D99: 08.700.319/0001-31 | E99: =+Cotações!$E$27 -> 3016-5500 | F99: Tatiane | G99: 2019-04-11 | H99: =+Cotações!D32 -> 20.25 | I99: =+Insumos!G135 -> 23.64
A100: =+Cotações!$F$27 -> Telharsul | D100: 04.821.045/0001-88 | E100: =+Cotações!$G$27 -> 3084-5474 | F100: Andreia | G100: 2019-04-15 | H100: =+Cotações!F32 -> 18.75
A101: =+Cotações!$H$27 -> Madeben | D101: 03.257.940/0003-10 | E101: =+Cotações!$I$27 -> 3072-0673 | F101: Saulo | G101: 2019-04-11 | H101: =+Cotações!H32 -> 19.98
A102: =+Cotações!$J$27 -> Guarujá | D102: 01.597.505/0001-48 | E102: =+Cotações!$K$27 -> 3246-5944 | F102: Alexandre | G102: 2019-04-11 | H102: =+Cotações!J32 -> 22.1
A104: =+Cotações!A33 -> 19 | B104: Caibro cedrinho 8,0 x 8,0 cm | C104: m | D104: CNPJ | E104: Telefone | F104: Contato | G104: Data | H104: Valor | I104: =IF('Atualizações Cotações'!$B$4="NÃO","Valor adotado","Valor Atualizado") -> Valor Atualizado
A105: =+Cotações!$D$27 -> Madesul | D105: 08.700.319/0001-31 | E105: =+Cotações!$E$27 -> 3016-5500 | F105: Tatiane | G105: 2019-04-11 | H105: =+Cotações!D33 -> 19.84 | I105: =+Insumos!G136 -> 19.91
A106: =+Cotações!$F$27 -> Telharsul | D106: 04.821.045/0001-88 | E106: =+Cotações!$G$27 -> 3084-5474 | F106: Andreia | G106: 2019-04-15 | H106: =+Cotações!F33 -> 16
A107: =+Cotações!$H$27 -> Madeben | D107: 03.257.940/0003-10 | E107: =+Cotações!$I$27 -> 3072-0673 | F107: Saulo | G107: 2019-04-11 | H107: =+Cotações!H33 -> 17.79
A108: =+Cotações!$J$27 -> Guarujá | D108: 01.597.505/0001-48 | E108: =+Cotações!$K$27 -> 3246-5944 | F108: Alexandre | G108: 2019-04-11 | H108: =+Cotações!J33 -> 16.1
A110: =+Cotações!A34 -> 20 | B110: Guia cedrinho 2,5 x 10,0 cm | C110: m | D110: CNPJ | E110: Telefone | F110: Contato | G110: Data | H110: Valor | I110: =IF('Atualizações Cotações'!$B$4="NÃO","Valor adotado","Valor Atualizado") -> Valor Atualizado
A111: =+Cotações!$D$27 -> Madesul | D111: 08.700.319/0001-31 | E111: =+Cotações!$E$27 -> 3016-5500 | F111: Tatiane | G111: 2019-04-11 | H111: =+Cotações!D34 -> 6.75 | I111: =+Insumos!G213 -> 7.87
A112: =+Cotações!$F$27 -> Telharsul | D112: 04.821.045/0001-88 | E112: =+Cotações!$G$27 -> 3084-5474 | F112: Andreia | G112: 2019-04-15 | H112: =+Cotações!F34 -> 6.25
A113: =+Cotações!$H$27 -> Madeben | D113: 03.257.940/0003-10 | E113: =+Cotações!$I$27 -> 3072-0673 | F113: Saulo | G113: 2019-04-11 | H113: =+Cotações!H34 -> 6.66
A114: =+Cotações!$J$27 -> Guarujá | D114: 01.597.505/0001-48 | E114: =+Cotações!$K$27 -> 3246-5944 | F114: Alexandre | G114: 2019-04-11 | H114: =+Cotações!J34 -> 7.5
A116: =+Cotações!A35 -> 21 | B116: Guia cedrinho 2,5 x 15,0 cm | C116: m | D116: CNPJ | E116: Telefone | F116: Contato | G116: Data | H116: Valor | I116: =IF('Atualizações Cotações'!$B$4="NÃO","Valor adotado","Valor Atualizado") -> Valor Atualizado
A117: =+Cotações!$D$27 -> Madesul | D117: 08.700.319/0001-31 | E117: =+Cotações!$E$27 -> 3016-5500 | F117: Tatiane | G117: 2019-04-11 | H117: =+Cotações!D35 -> 10.12 | I117: =+Insumos!G214 -> 11.81
A118: =+Cotações!$F$27 -> Telharsul | D118: 04.821.045/0001-88 | E118: =+Cotações!$G$27 -> 3084-5474 | F118: Andreia | G118: 2019-04-15 | H118: =+Cotações!F35 -> 9.4
A119: =+Cotações!$H$27 -> Madeben | D119: 03.257.940/0003-10 | E119: =+Cotações!$I$27 -> 3072-0673 | F119: Saulo | G119: 2019-04-11 | H119: =+Cotações!H35 -> 9.99
A120: =+Cotações!$J$27 -> Guarujá | D120: 01.597.505/0001-48 | E120: =+Cotações!$K$27 -> 3246-5944 | F120: Alexandre | G120: 2019-04-11 | H120: =+Cotações!J35 -> 11.1
A122: =+Cotações!A36 -> 22 | B122: Guia cedrinho 2,5 x 20,0 cm aplainada 1 lado | C122: m | D122: CNPJ | E122: Telefone | F122: Contato | G122: Data | H122: Valor | I122: =IF('Atualizações Cotações'!$B$4="NÃO","Valor adotado","Valor Atualizado") -> Valor Atualizado
A123: =+Cotações!$D$27 -> Madesul | D123: 08.700.319/0001-31 | E123: =+Cotações!$E$27 -> 3016-5500 | F123: Tatiane | G123: 2019-04-11 | H123: =+Cotações!D36 -> 13.5 | I123: =+Insumos!G215 -> 15.76
A124: =+Cotações!$F$27 -> Telharsul | D124: 04.821.045/0001-88 | E124: =+Cotações!$G$27 -> 3084-5474 | F124: Andreia | G124: 2019-04-15 | H124: =+Cotações!F36 -> 12.5
A125: =+Cotações!$H$27 -> Madeben | D125: 03.257.940/0003-10 | E125: =+Cotações!$I$27 -> 3072-0673 | F125: Saulo | G125: 2019-04-11 | H125: =+Cotações!H36 -> 13.32
A126: =+Cotações!$J$27 -> Guarujá | D126: 01.597.505/0001-48 | E126: =+Cotações!$K$27 -> 3246-5944 | F126: Alexandre | G126: 2019-04-11 | H126: =+Cotações!J36 -> 14.25
A128: =+Cotações!A37 -> 23 | B128: Guia eucalipto 2,5 x 10,0 cm | C128: m | D128: CNPJ | E128: Telefone | F128: Contato | G128: Data | H128: Valor | I128: =IF('Atualizações Cotações'!$B$4="NÃO","Valor adotado","Valor Atualizado") -> Valor Atualizado
A129: =+Cotações!$D$27 -> Madesul | D129: 08.700.319/0001-31 | E129: =+Cotações!$E$27 -> 3016-5500 | F129: Tatiane | G129: 2019-04-11 | H129: =+Cotações!D37 -> 1.75 | I129: =+Insumos!G216 -> 2.04
A130: =+Cotações!$F$27 -> Telharsul | D130: 04.821.045/0001-88 | E130: =+Cotações!$G$27 -> 3084-5474 | F130: Andreia | G130: 2019-04-15 | H130: =+Cotações!F37 -> 3.75
A131: =+Cotações!$H$27 -> Madeben | D131: 03.257.940/0003-10 | E131: =+Cotações!$I$27 -> 3072-0673 | F131: Saulo | G131: 2019-04-11 | H131: =+Cotações!H37 -> 1.742592593
A132: =+Cotações!$J$27 -> Guarujá | D132: 01.597.505/0001-48 | E132: =+Cotações!$K$27 -> 3246-5944 | F132: Alexandre | G132: 2019-04-11 | H132: =+Cotações!J37 -> 1.727272727
A134: =+Cotações!A38 -> 24 | B134: Guia eucalipto 2,5 x 20,0 cm | C134: m | D134: CNPJ | E134: Telefone | F134: Contato | G134: Data | H134: Valor | I134: =IF('Atualizações Cotações'!$B$4="NÃO","Valor adotado","Valor Atualizado") -> Valor Atualizado
A135: =+Cotações!$D$27 -> Madesul | D135: 08.700.319/0001-31 | E135: =+Cotações!$E$27 -> 3016-5500 | F135: Tatiane | G135: 2019-04-11 | H135: =+Cotações!D38 -> 3.5 | I135: =+Insumos!G217 -> 4.1
A136: =+Cotações!$F$27 -> Telharsul | D136: 04.821.045/0001-88 | E136: =+Cotações!$G$27 -> 3084-5474 | F136: Andreia | G136: 2019-04-15 | H136: =+Cotações!F38 -> 7.5
A137: =+Cotações!$H$27 -> Madeben | D137: 03.257.940/0003-10 | E137: =+Cotações!$I$27 -> 3072-0673 | F137: Saulo | G137: 2019-04-11 | H137: =+Cotações!H38 -> 3.487037037
A138: =+Cotações!$J$27 -> Guarujá | D138: 01.597.505/0001-48 | E138: =+Cotações!$K$27 -> 3246-5944 | F138: Alexandre | G138: 2019-04-11 | H138: =+Cotações!J38 -> 3.454545455
A140: =+Cotações!A40 -> 25 | B140: Tábua itaúba lixada e aplainada 2,5x20x5,50 | C140: pç | D140: CNPJ | E140: Telefone | F140: Contato | G140: Data | H140: Valor | I140: =IF('Atualizações Cotações'!$B$4="NÃO","Valor adotado","Valor Atualizado") -> Valor Atualizado
A141: =+Cotações!$D$39 -> Madesul | D141: 08.700.319/0001-31 | E141: =+Cotações!$E$27 -> 3016-5500 | F141: Tatiane | G141: 2019-04-11 | H141: =+Cotações!D40 -> 158.15 | I141: =+Insumos!G319 -> 174.61
A142: =+Cotações!$F$39 -> Canaã | D142: 94.516.002/0001-81 | E142: =+Cotações!$G$39 -> 3364-2999 | F142: Vitor | G142: 2019-04-22 | H142: =+Cotações!F40 -> 137.5
A143: =+Cotações!$H$39 -> Guarujá | D143: 01.597.505/0001-48 | E143: =+Cotações!$K$27 -> 3246-5944 | F143: Alexandre | G143: 2019-04-11 | H143: =+Cotações!H40 -> 148.5
A145: =+Cotações!A41 -> 26 | B145: Tábua itaúba lixada e aplainada 3x22x3,00 | C145: pç | D145: CNPJ | E145: Telefone | F145: Contato | G145: Data | H145: Valor | I145: =IF('Atualizações Cotações'!$B$4="NÃO","Valor adotado","Valor Atualizado") -> Valor Atualizado
A146: =+Cotações!$D$39 -> Madesul | D146: 08.700.319/0001-31 | E146: =+Cotações!$E$27 -> 3016-5500 | F146: Tatiane | G146: 2019-04-11 | H146: =+Cotações!D41 -> 215.62 | I146: =+Insumos!G320 -> 190.48
A147: =+Cotações!$F$39 -> Canaã | D147: 94.516.002/0001-81 | E147: =+Cotações!$G$39 -> 3364-2999 | F147: Vitor | G147: 2019-04-22 | H147: =+Cotações!F41 -> 150
A148: =+Cotações!$H$39 -> Guarujá | D148: 01.597.505/0001-48 | E148: =+Cotações!$K$27 -> 3246-5944 | F148: Alexandre | G148: 2019-04-11 | H148: =+Cotações!H41 -> 162
A150: =+Cotações!A42 -> 27 | B150: Tábua itaúba lixada e aplainada 3x22x4,00 | C150: pç | D150: CNPJ | E150: Telefone | F150: Contato | G150: Data | H150: Valor | I150: =IF('Atualizações Cotações'!$B$4="NÃO","Valor adotado","Valor Atualizado") -> Valor Atualizado
A151: =+Cotações!$D$39 -> Madesul | D151: 08.700.319/0001-31 | E151: =+Cotações!$E$27 -> 3016-5500 | F151: Tatiane | G151: 2019-04-11 | H151: =+Cotações!D42 -> 287.5 | I151: =+Insumos!G321 -> 253.97
A152: =+Cotações!$F$39 -> Canaã | D152: 94.516.002/0001-81 | E152: =+Cotações!$G$39 -> 3364-2999 | F152: Vitor | G152: 2019-04-22 | H152: =+Cotações!F42 -> 200
A153: =+Cotações!$H$39 -> Guarujá | D153: 01.597.505/0001-48 | E153: =+Cotações!$K$27 -> 3246-5944 | F153: Alexandre | G153: 2019-04-11 | H153: =+Cotações!H42 -> 216
A155: =+Cotações!A43 -> 28 | B155: Tábua itaúba lixada e aplainada 3x22x4,50 | C155: pç | D155: CNPJ | E155: Telefone | F155: Contato | G155: Data | H155: Valor | I155: =IF('Atualizações Cotações'!$B$4="NÃO","Valor adotado","Valor Atualizado") -> Valor Atualizado
A156: =+Cotações!$D$39 -> Madesul | D156: 08.700.319/0001-31 | E156: =+Cotações!$E$27 -> 3016-5500 | F156: Tatiane | G156: 2019-04-11 | H156: =+Cotações!D43 -> 323.45 | I156: =+Insumos!G322 -> 285.72
A157: =+Cotações!$F$39 -> Canaã | D157: 94.516.002/0001-81 | E157: =+Cotações!$G$39 -> 3364-2999 | F157: Vitor | G157: 2019-04-22 | H157: =+Cotações!F43 -> 225
A158: =+Cotações!$H$39 -> Guarujá | D158: 01.597.505/0001-48 | E158: =+Cotações!$K$27 -> 3246-5944 | F158: Alexandre | G158: 2019-04-11 | H158: =+Cotações!H43 -> 243
A160: =+Cotações!A44 -> 29 | B160: Tábua itaúba lixada e aplainada 3x30x3,00 | C160: pç | D160: CNPJ | E160: Telefone | F160: Contato | G160: Data | H160: Valor | I160: =IF('Atualizações Cotações'!$B$4="NÃO","Valor adotado","Valor Atualizado") -> Valor Atualizado
A161: =+Cotações!$D$39 -> Madesul | D161: 08.700.319/0001-31 | E161: =+Cotações!$E$27 -> 3016-5500 | F161: Tatiane | G161: 2019-04-11 | H161: =+Cotações!D44 -> 258.75 | I161: =+Insumos!G323 -> 228.58
A162: =+Cotações!$F$39 -> Canaã | D162: 94.516.002/0001-81 | E162: =+Cotações!$G$39 -> 3364-2999 | F162: Vitor | G162: 2019-04-22 | H162: =+Cotações!F44 -> 180
A163: =+Cotações!$H$39 -> Guarujá | D163: 01.597.505/0001-48 | E163: =+Cotações!$K$27 -> 3246-5944 | F163: Alexandre | G163: 2019-04-11 | H163: =+Cotações!H44 -> 194.4
A165: =+Cotações!A45 -> 30 | B165: Tábua itaúba lixada e aplainada 3,5x15x5,50 | C165: pç | D165: CNPJ | E165: Telefone | F165: Contato | G165: Data | H165: Valor | I165: =IF('Atualizações Cotações'!$B$4="NÃO","Valor adotado","Valor Atualizado") -> Valor Atualizado
A166: =+Cotações!$D$39 -> Madesul | D166: 08.700.319/0001-31 | E166: =+Cotações!$E$27 -> 3016-5500 | F166: Tatiane | G166: 2019-04-11 | H166: =+Cotações!D45 -> 237.2 | I166: =+Insumos!G324 -> 216.58
A167: =+Cotações!$F$39 -> Canaã | D167: 94.516.002/0001-81 | E167: =+Cotações!$G$39 -> 3364-2999 | F167: Vitor | G167: 2019-04-22 | H167: =+Cotações!F45 -> 165
A168: =+Cotações!$H$39 -> Guarujá | D168: 01.597.505/0001-48 | E168: =+Cotações!$K$27 -> 3246-5944 | F168: Alexandre | G168: 2019-04-11 | H168: =+Cotações!H45 -> 184.2
A170: =+Cotações!A46 -> 31 | B170: Tábua itaúba lixada e aplainada 3,5x25x2,00 | C170: pç | D170: CNPJ | E170: Telefone | F170: Contato | G170: Data | H170: Valor | I170: =IF('Atualizações Cotações'!$B$4="NÃO","Valor adotado","Valor Atualizado") -> Valor Atualizado
A171: =+Cotações!$D$39 -> Madesul | D171: 08.700.319/0001-31 | E171: =+Cotações!$E$27 -> 3016-5500 | F171: Tatiane | G171: 2019-04-11 | H171: =+Cotações!D46 -> 143.75 | I171: =+Insumos!G325 -> 126.98
A172: =+Cotações!$F$39 -> Canaã | D172: 94.516.002/0001-81 | E172: =+Cotações!$G$39 -> 3364-2999 | F172: Vitor | G172: 2019-04-22 | H172: =+Cotações!F46 -> 100
A173: =+Cotações!$H$39 -> Guarujá | D173: 01.597.505/0001-48 | E173: =+Cotações!$K$27 -> 3246-5944 | F173: Alexandre | G173: 2019-04-11 | H173: =+Cotações!H46 -> 108
A175: =+Cotações!A47 -> 32 | B175: Tábua itaúba lixada e aplainada 4x10x4,00 | C175: pç | D175: CNPJ | E175: Telefone | F175: Contato | G175: Data | H175: Valor | I175: =IF('Atualizações Cotações'!$B$4="NÃO","Valor adotado","Valor Atualizado") -> Valor Atualizado
A176: =+Cotações!$D$39 -> Madesul | D176: 08.700.319/0001-31 | E176: =+Cotações!$E$27 -> 3016-5500 | F176: Tatiane | G176: 2019-04-11 | H176: =+Cotações!D47 -> 115 | I176: =+Insumos!G326 -> 133.33
A177: =+Cotações!$F$39 -> Canaã | D177: 94.516.002/0001-81 | E177: =+Cotações!$G$39 -> 3364-2999 | F177: Vitor | G177: 2019-04-22 | H177: =+Cotações!F47 -> 80
A178: =+Cotações!$H$39 -> Guarujá | D178: 01.597.505/0001-48 | E178: =+Cotações!$K$27 -> 3246-5944 | F178: Alexandre | G178: 2019-04-11 | H178: =+Cotações!H47 -> 113.4
A180: =+Cotações!A48 -> 33 | B180: Tábua itaúba lixada e aplainada 4x10x5,50 | C180: pç | D180: CNPJ | E180: Telefone | F180: Contato | G180: Data | H180: Valor | I180: =IF('Atualizações Cotações'!$B$4="NÃO","Valor adotado","Valor Atualizado") -> Valor Atualizado
A181: =+Cotações!$D$39 -> Madesul | D181: 08.700.319/0001-31 | E181: =+Cotações!$E$27 -> 3016-5500 | F181: Tatiane | G181: 2019-04-11 | H181: =+Cotações!D48 -> 158.15 | I181: =+Insumos!G327 -> 183.42
A182: =+Cotações!$F$39 -> Canaã | D182: 94.516.002/0001-81 | E182: =+Cotações!$G$39 -> 3364-2999 | F182: Vitor | G182: 2019-04-22 | H182: =+Cotações!F48 -> 110
A183: =+Cotações!$H$39 -> Guarujá | D183: 01.597.505/0001-48 | E183: =+Cotações!$K$27 -> 3246-5944 | F183: Alexandre | G183: 2019-04-11 | H183: =+Cotações!H48 -> 156
A185: =+Cotações!A49 -> 34 | B185: Tábua itaúba lixada e aplainada 4x30x3,00 | C185: pç | D185: CNPJ | E185: Telefone | F185: Contato | G185: Data | H185: Valor | I185: =IF('Atualizações Cotações'!$B$4="NÃO","Valor adotado","Valor Atualizado") -> Valor Atualizado
A186: =+Cotações!$D$39 -> Madesul | D186: 08.700.319/0001-31 | E186: =+Cotações!$E$27 -> 3016-5500 | F186: Tatiane | G186: 2019-04-11 | H186: =+Cotações!D49 -> 258.75 | I186: =+Insumos!G328 -> 285.72
A187: =+Cotações!$F$39 -> Canaã | D187: 94.516.002/0001-81 | E187: =+Cotações!$G$39 -> 3364-2999 | F187: Vitor | G187: 2019-04-22 | H187: =+Cotações!F49 -> 180
A188: =+Cotações!$H$39 -> Guarujá | D188: 01.597.505/0001-48 | E188: =+Cotações!$K$27 -> 3246-5944 | F188: Alexandre | G188: 2019-04-11 | H188: =+Cotações!H49 -> 243
A190: =+Cotações!A50 -> 35 | B190: Tábua itaúba lixada e aplainada 4x30x4,00 | C190: pç | D190: CNPJ | E190: Telefone | F190: Contato | G190: Data | H190: Valor | I190: =IF('Atualizações Cotações'!$B$4="NÃO","Valor adotado","Valor Atualizado") -> Valor Atualizado
A191: =+Cotações!$D$39 -> Madesul | D191: 08.700.319/0001-31 | E191: =+Cotações!$E$27 -> 3016-5500 | F191: Tatiane | G191: 2019-04-11 | H191: =+Cotações!D50 -> 345 | I191: =+Insumos!G329 -> 380.96
A192: =+Cotações!$F$39 -> Canaã | D192: 94.516.002/0001-81 | E192: =+Cotações!$G$39 -> 3364-2999 | F192: Vitor | G192: 2019-04-22 | H192: =+Cotações!F50 -> 240
A193: =+Cotações!$H$39 -> Guarujá | D193: 01.597.505/0001-48 | E193: =+Cotações!$K$27 -> 3246-5944 | F193: Alexandre | G193: 2019-04-11 | H193: =+Cotações!H50 -> 324
A195: =+Cotações!A51 -> 36 | B195: Tábua itaúba lixada e aplainada 4x30x4,50 | C195: pç | D195: CNPJ | E195: Telefone | F195: Contato | G195: Data | H195: Valor | I195: =IF('Atualizações Cotações'!$B$4="NÃO","Valor adotado","Valor Atualizado") -> Valor Atualizado
A196: =+Cotações!$D$39 -> Madesul | D196: 08.700.319/0001-31 | E196: =+Cotações!$E$27 -> 3016-5500 | F196: Tatiane | G196: 2019-04-11 | H196: =+Cotações!D51 -> 388.2 | I196: =+Insumos!G330 -> 429.17
A197: =+Cotações!$F$39 -> Canaã | D197: 94.516.002/0001-81 | E197: =+Cotações!$G$39 -> 3364-2999 | F197: Vitor | G197: 2019-04-22 | H197: =+Cotações!F51 -> 270
A198: =+Cotações!$H$39 -> Guarujá | D198: 01.597.505/0001-48 | E198: =+Cotações!$K$27 -> 3246-5944 | F198: Alexandre | G198: 2019-04-11 | H198: =+Cotações!H51 -> 365
A200: =+Cotações!A52 -> 37 | B200: Sarrafo itaúba 2,5x5 | C200: m | D200: CNPJ | E200: Telefone | F200: Contato | G200: Data | H200: Valor | I200: =IF('Atualizações Cotações'!$B$4="NÃO","Valor adotado","Valor Atualizado") -> Valor Atualizado
A201: =+Cotações!$D$39 -> Madesul | D201: 08.700.319/0001-31 | E201: =+Cotações!$E$27 -> 3016-5500 | F201: Tatiane | G201: 2019-04-11 | H201: =+Cotações!D52 -> 5.25 | I201: =+Insumos!G305 -> 6.58
A202: =+Cotações!$F$39 -> Canaã | D202: 94.516.002/0001-81 | E202: =+Cotações!$G$39 -> 3364-2999 | F202: Vitor | G202: 2019-04-22 | H202: =+Cotações!F52 -> 5.6
A203: =+Cotações!$H$39 -> Guarujá | D203: 01.597.505/0001-48 | E203: =+Cotações!$K$27 -> 3246-5944 | F203: Alexandre | G203: 2019-04-11 | H203: =+Cotações!H52 -> 8.1
A205: =+Cotações!A53 -> 38 | B205: Caibro itaúba 5x5 | C205: m | D205: CNPJ | E205: Telefone | F205: Contato | G205: Data | H205: Valor | I205: =IF('Atualizações Cotações'!$B$4="NÃO","Valor adotado","Valor Atualizado") -> Valor Atualizado
A206: =+Cotações!$D$39 -> Madesul | D206: 08.700.319/0001-31 | E206: =+Cotações!$E$27 -> 3016-5500 | F206: Tatiane | G206: 2019-04-11 | H206: =+Cotações!D53 -> 10.5 | I206: =+Insumos!G138 -> 13.16
A207: =+Cotações!$F$39 -> Canaã | D207: 94.516.002/0001-81 | E207: =+Cotações!$G$39 -> 3364-2999 | F207: Vitor | G207: 2019-04-22 | H207: =+Cotações!F53 -> 11.2
A208: =+Cotações!$H$39 -> Guarujá | D208: 01.597.505/0001-48 | E208: =+Cotações!$K$27 -> 3246-5944 | F208: Alexandre | G208: 2019-04-11 | H208: =+Cotações!H53 -> 16.2
A210: =+Cotações!A54 -> 39 | B210: Caibro itaúba 5x7 | C210: m | D210: CNPJ | E210: Telefone | F210: Contato | G210: Data | H210: Valor | I210: =IF('Atualizações Cotações'!$B$4="NÃO","Valor adotado","Valor Atualizado") -> Valor Atualizado
A211: =+Cotações!$D$39 -> Madesul | D211: 08.700.319/0001-31 | E211: =+Cotações!$E$27 -> 3016-5500 | F211: Tatiane | G211: 2019-04-11 | H211: =+Cotações!D54 -> 15.75 | I211: =+Insumos!G139 -> 19.87
A212: =+Cotações!$F$39 -> Canaã | D212: 94.516.002/0001-81 | E212: =+Cotações!$G$39 -> 3364-2999 | F212: Vitor | G212: 2019-04-22 | H212: =+Cotações!F54 -> 16.9
A213: =+Cotações!$H$39 -> Guarujá | D213: 01.597.505/0001-48 | E213: =+Cotações!$K$27 -> 3246-5944 | F213: Alexandre | G213: 2019-04-11 | H213: =+Cotações!H54 -> 20.3
A215: =+Cotações!A55 -> 40 | B215: Caibro itaúba 5x10 | C215: m | D215: CNPJ | E215: Telefone | F215: Contato | G215: Data | H215: Valor | I215: =IF('Atualizações Cotações'!$B$4="NÃO","Valor adotado","Valor Atualizado") -> Valor Atualizado
A216: =+Cotações!$D$39 -> Madesul | D216: 08.700.319/0001-31 | E216: =+Cotações!$E$27 -> 3016-5500 | F216: Tatiane | G216: 2019-04-11 | H216: =+Cotações!D55 -> 21 | I216: =+Insumos!G140 -> 26.45
A217: =+Cotações!$F$39 -> Canaã | D217: 94.516.002/0001-81 | E217: =+Cotações!$G$39 -> 3364-2999 | F217: Vitor | G217: 2019-04-22 | H217: =+Cotações!F55 -> 22.5
A218: =+Cotações!$H$39 -> Guarujá | D218: 01.597.505/0001-48 | E218: =+Cotações!$K$27 -> 3246-5944 | F218: Alexandre | G218: 2019-04-11 | H218: =+Cotações!H55 -> 28.4
A220: =+Cotações!A56 -> 41 | B220: Tábua itaúba 4x15 | C220: m | D220: CNPJ | E220: Telefone | F220: Contato | G220: Data | H220: Valor | I220: =IF('Atualizações Cotações'!$B$4="NÃO","Valor adotado","Valor Atualizado") -> Valor Atualizado
A221: =+Cotações!$D$39 -> Madesul | D221: 08.700.319/0001-31 | E221: =+Cotações!$E$27 -> 3016-5500 | F221: Tatiane | G221: 2019-04-11 | H221: =+Cotações!D56 -> 31.5 | I221: =+Insumos!G314 -> 37.03
A222: =+Cotações!$F$39 -> Canaã | D222: 94.516.002/0001-81 | E222: =+Cotações!$G$39 -> 3364-2999 | F222: Vitor | G222: 2019-04-22 | H222: =+Cotações!F56 -> 27
A223: =+Cotações!$H$39 -> Guarujá | D223: 01.597.505/0001-48 | E223: =+Cotações!$K$27 -> 3246-5944 | F223: Alexandre | G223: 2019-04-11 | H223: =+Cotações!H56 -> 41.9
A225: =+Cotações!A57 -> 42 | B225: Tábua itaúba 4x25 | C225: m | D225: CNPJ | E225: Telefone | F225: Contato | G225: Data | H225: Valor | I225: =IF('Atualizações Cotações'!$B$4="NÃO","Valor adotado","Valor Atualizado") -> Valor Atualizado
A226: =+Cotações!$D$39 -> Madesul | D226: 08.700.319/0001-31 | E226: =+Cotações!$E$27 -> 3016-5500 | F226: Tatiane | G226: 2019-04-11 | H226: =+Cotações!D57 -> 52.5 | I226: =+Insumos!G315 -> 61.73
A227: =+Cotações!$F$39 -> Canaã | D227: 94.516.002/0001-81 | E227: =+Cotações!$G$39 -> 3364-2999 | F227: Vitor | G227: 2019-04-22 | H227: =+Cotações!F57 -> 45
A228: =+Cotações!$H$39 -> Guarujá | D228: 01.597.505/0001-48 | E228: =+Cotações!$K$27 -> 3246-5944 | F228: Alexandre | G228: 2019-04-11 | H228: =+Cotações!H57 -> 67.5
A230: =+Cotações!A58 -> 43 | B230: Tábua itaúba 4x30 | C230: m | D230: CNPJ | E230: Telefone | F230: Contato | G230: Data | H230: Valor | I230: =IF('Atualizações Cotações'!$B$4="NÃO","Valor adotado","Valor Atualizado") -> Valor Atualizado
A231: =+Cotações!$D$39 -> Madesul | D231: 08.700.319/0001-31 | E231: =+Cotações!$E$27 -> 3016-5500 | F231: Tatiane | G231: 2019-04-11 | H231: =+Cotações!D58 -> 63 | I231: =+Insumos!G316 -> 74.07
A232: =+Cotações!$F$39 -> Canaã | D232: 94.516.002/0001-81 | E232: =+Cotações!$G$39 -> 3364-2999 | F232: Vitor | G232: 2019-04-22 | H232: =+Cotações!F58 -> 54
A233: =+Cotações!$H$39 -> Guarujá | D233: 01.597.505/0001-48 | E233: =+Cotações!$K$27 -> 3246-5944 | F233: Alexandre | G233: 2019-04-11 | H233: =+Cotações!H58 -> 81
A235: =+Cotações!A59 -> 44 | B235: Tábua itaúba lixada e aplainada 3,5x19x1,80 | C235: pç | D235: CNPJ | E235: Telefone | F235: Contato | G235: Data | H235: Valor | I235: =IF('Atualizações Cotações'!$B$4="NÃO","Valor adotado","Valor Atualizado") -> Valor Atualizado
A236: =+Cotações!$D$39 -> Madesul | D236: 08.700.319/0001-31 | E236: =+Cotações!$E$27 -> 3016-5500 | F236: Tatiane | G236: 2019-04-11 | H236: =+Cotações!D59 -> 115 | I236: =+Insumos!G317 -> 101.59
A237: =+Cotações!$F$39 -> Canaã | D237: 94.516.002/0001-81 | E237: =+Cotações!$G$39 -> 3364-2999 | F237: Vitor | G237: 2019-04-22 | H237: =+Cotações!F59 -> 80
A238: =+Cotações!$H$39 -> Guarujá | D238: 01.597.505/0001-48 | E238: =+Cotações!$K$27 -> 3246-5944 | F238: Alexandre | G238: 2019-04-11 | H238: =+Cotações!H59 -> 86.4
A240: =+Cotações!A60 -> 45 | B240: Tábua itaúba lixada e aplainada 3,5x19x2,00 | C240: pç | D240: CNPJ | E240: Telefone | F240: Contato | G240: Data | H240: Valor | I240: =IF('Atualizações Cotações'!$B$4="NÃO","Valor adotado","Valor Atualizado") -> Valor Atualizado
A241: =+Cotações!$D$39 -> Madesul | D241: 08.700.319/0001-31 | E241: =+Cotações!$E$27 -> 3016-5500 | F241: Tatiane | G241: 2019-04-11 | H241: =+Cotações!D60 -> 115 | I241: =+Insumos!G318 -> 126.98
A242: =+Cotações!$F$39 -> Canaã | D242: 94.516.002/0001-81 | E242: =+Cotações!$G$39 -> 3364-2999 | F242: Vitor | G242: 2019-04-22 | H242: =+Cotações!F60 -> 80
A243: =+Cotações!$H$39 -> Guarujá | D243: 01.597.505/0001-48 | E243: =+Cotações!$K$27 -> 3246-5944 | F243: Alexandre | G243: 2019-04-11 | H243: =+Cotações!H60 -> 108
A245: =+Cotações!A62 -> 46 | B245: Laminado melamínico texturizado chapa 1,25 x 3,08 m esp=0,8 mm | C245: m² | D245: CNPJ | E245: Telefone | F245: Contato | G245: Data | H245: Valor | I245: =IF('Atualizações Cotações'!$B$4="NÃO","Valor adotado","Valor Atualizado") -> Valor Atualizado
A246: =+Cotações!$D$61 -> Delei Madeiras | D246: 02.519.370/0001-65 | E246: =+Cotações!$E$61 -> 3395-2275 | F246: Rodrigo | G246: 2019-04-11 | H246: =+Cotações!D62 -> 25.71 | I246: =+Insumos!G226 -> 30.23
A247: =+Cotações!$F$61 -> Madelei | D247: 87.106.357/0001-37 | E247: =+Cotações!$G$61 -> 3373-8888 | F247: Douglas | G247: 2019-04-11 | H247: =+Cotações!F62 -> 29.87
... 348 more rows

Sheet Cotações (hidden)
A1: COTAÇÕES DE INSUMOS
A3: *Na célula com o nome do fornecedor, no comentário consta o seu e-mail | K3: Data Cotações: | N3: Abril/2019
A4: **As cotações com valor em vermelho não fazem parte da média
A6: Código | B6: Insumo | C6: un | D6: Fornecedor 1 | E6: Fone | F6: Fornecedor 2 | G6: Fone | H6: Fornecedor 3 | I6: Fone | J6: Reserva | L6: Observações | M6: Média | N6: Mediana
D7: Allcomp | E7: 3024-7100 | F7: RM | G7: 3375-1700 | H7: Sulmak | I7: 2102-6063
A8: 1 | B8: Nível a Laser | C8: d | D8: 120 | F8: 120 | H8: 80 | M8: =TRUNC((AVERAGE(D8,F8,H8)),2) -> 106.66 | N8: =TRUNC((MEDIAN(D8:K8)),2) -> 120
D9: Similar | E9: 3341-5866 | F9: RM | G9: 3375-1700 | H9: Sulmak | I9: 2102-6063
A10: =+A8+1 -> 2 | B10: Betoneira 400 l | C10: d | D10: 50 | F10: 50 | H10: 50 | M10: =TRUNC((AVERAGE(D10,F10,H10)),2) -> 50 | N10: =TRUNC((MEDIAN(D10:K10)),2) -> 50
A11: =+A10+1 -> 3 | B11: Motor elétrico p/vibrador | C11: d | D11: 20 | F11: 30 | H11: 25 | M11: 25 | N11: 25
A12: =+A11+1 -> 4 | B12: Rolo compactador liso RCW900 | C12: h | D12: 56.25 | F12: 56.25 | H12: 50 | L12: Dividir valores por 8 h | M12: 54.16 | N12: 56.25
A13: =+A12+1 -> 5 | B13: Placa vibratória reversível CR3 | C13: d | D13: 90 | F13: 95 | H13: 90 | M13: 91.66 | N13: 90
A14: =+A13+1 -> 6 | B14: Cortadora de piso 350 mm | C14: d | D14: 70 | F14: 60 | H14: 50 | L14: 350 mm | M14: 60 | N14: =TRUNC((MEDIAN(D14:K14)),2) -> 60
A15: =+A14+1 -> 7 | B15: Esmerilhadeira 7" | C15: d | D15: 20 | F15: 20 | H15: 30 | L15: 7" | M15: 23.33 | N15: 20
D16: Juceli | E16: 3341-1060 | F16: Sul Air | G16: 3341-4378 | H16: Hiper-Ar | I16: 3374-4923
A17: =+A15+1 -> 8 | B17: Compressor de ar 175 PCM c/martelete pneumático | C17: d | D17: 500 | F17: 450 | H17: - | M17: =TRUNC((AVERAGE(D17,F17,H17)),2) -> 475 | N17: =TRUNC((MEDIAN(D17:K17)),2) -> 475
D18: Tecnisan | E18: 3428-6359 | F18: Freeban | G18: 3568-5221 | H18: Porto Sul | I18: 3045-4909 | J18: Toalete | K18: 3334-9650
A19: =+A17+1 -> 9 | B19: Locação sanitário Químico | C19: ms | D19: 650 | F19: 800 | H19: 1850 | J19: 650 | L19: 3 limpezas semanais | M19: =TRUNC((AVERAGE(D19,F19,J19)),2) -> 700 | N19: =TRUNC((MEDIAN(D19:K19)),2) -> 725
D20: Planema | E20: 3242-9667 | F20: Sul Air | G20: 3341-4378 | H20: Dunorte | I20: 3361-4866
A21: =+A19+1 -> 10 | B21: Retroescavadeira c/operador | C21: h | D21: 120 | F21: 112.5 | H21: 137.5 | L21: (Tração 4x2) Valor da diária / 8 horas | M21: =TRUNC((AVERAGE(D21,F21,H21)),2) -> 123.33 | N21: =TRUNC((MEDIAN(D21:K21)),2) -> 120
D22: Planeta | E22: 15 3305-8547 | F22: Telbrás | G22: 3466-3066 | H22: Protefix | I22: 3222-0011
A23: =+A21+1 -> 11 | B23: Sinalizador eletrônico luminoso piscante | C23: un | D23: 121 | F23: 80.41 | H23: 105 | M23: =TRUNC((AVERAGE(D23,F23,H23)),2) -> 102.13 | N23: =TRUNC((MEDIAN(D23:K23)),2) -> 105
A24: =+A23+1 -> 12 | B24: Balizador h=1,05 cm | C24: un | D24: 67 | F24: 47 | H24: 55.8 | M24: =TRUNC((AVERAGE(D24,F24,H24)),2) -> 56.6 | N24: =TRUNC((MEDIAN(D24:K24)),2) -> 55.8
D25: 8 horas de engenheiro
A26: =+A24+1 -> 13 | B26: Projeto de Sinalização | C26: un | D26: =8*Insumos!$G$26 -> 858.96 | L26: Projeto com ART | M26: =TRUNC((AVERAGE(D26)),2) -> 858.96 | N26: =TRUNC((MEDIAN(D26:K26)),2) -> 858.96
D27: Madesul | E27: 3016-5500 | F27: Telharsul | G27: 3084-5474 | H27: Madeben | I27: 3072-0673 | J27: Guarujá | K27: 3246-5944
A28: =+A26+1 -> 14 | B28: Sarrafo cedrinho 2,5 x 2,5 cm | C28: m | D28: 2.1 | F28: 1.57 | H28: 1.66 | J28: 2.3 | M28: =TRUNC((AVERAGE(D28,F28,H28,J28)),2) -> 1.9 | N28: =TRUNC((MEDIAN(D28:K28)),2) -> 1.88
A29: =+A28+1 -> 15 | B29: Sarrafo cedrinho 2,5 x 5,0 cm | C29: m | D29: 3.37 | F29: 3.13 | H29: 3.33 | J29: 4.3 | M29: =TRUNC((AVERAGE(D29,F29,H29)),4) -> 3.2766 | N29: =TRUNC((MEDIAN(D29:K29)),4) -> 3.35
A30: =+A29+1 -> 16 | B30: Caibro cedrinho 5 x 7 cm | C30: m | D30: 10.12 | F30: 9.38 | H30: 9.32 | J30: 10.7 | M30: =TRUNC((AVERAGE(D30,F30,H30,J30)),2) -> 9.88 | N30: 9.75
A31: =+A30+1 -> 17 | B31: Caibro cedrinho 5 x 10 cm | C31: m | D31: 13.5 | F31: 12.5 | H31: 13.32 | J31: 15 | M31: 13.58 | N31: 13.41
A32: 18 | B32: Caibro cedrinho 5 x 15 cm | C32: m | D32: 20.25 | F32: 18.75 | H32: 19.98 | J32: 22.1 | M32: 20.27 | N32: =TRUNC((MEDIAN(D32:K32)),2) -> 20.11
A33: 19 | B33: Caibro cedrinho 8 x 8 cm | C33: m | D33: 19.84 | F33: 16 | H33: 17.79 | J33: 16.1 | M33: 17.43 | N33: 16.94
A34: 20 | B34: Guia cedrinho 2,5 x 10 cm | C34: m | D34: 6.75 | F34: 6.25 | H34: 6.66 | J34: 7.5 | M34: 6.79 | N34: 6.7
A35: 21 | B35: Guia cedrinho 2,5 x 15 cm | C35: m | D35: 10.12 | F35: 9.4 | H35: 9.99 | J35: 11.1 | M35: 10.15 | N35: 10.05
A36: 22 | B36: Guia cedrinho 2,5 x 20 cm | C36: m | D36: 13.5 | F36: 12.5 | H36: 13.32 | J36: 14.25 | M36: 13.39 | N36: 13.41
A37: =+A36+1 -> 23 | B37: Guia eucalipto 2,5 x 10 cm | C37: m | D37: 1.75 | F37: 3.75 | H37: =9.41/5.4 -> 1.742592593 | J37: =9.5/5.5 -> 1.727272727 | M37: =TRUNC((AVERAGE(D37,FH37,J37)),2) -> 1.73 | N37: =TRUNC((MEDIAN(D37:K37)),2) -> 1.74
A38: 24 | B38: Guia eucalipto 2,5 x 20 cm | C38: m | D38: 3.5 | F38: 7.5 | H38: =18.83/5.4 -> 3.487037037 | J38: =19/5.5 -> 3.454545455 | M38: =TRUNC((AVERAGE(D38,H38,J38)),2) -> 3.48 | N38: 3.49
D39: Madesul | E39: 3016-5500 | F39: Canaã | G39: 3364-2999 | H39: Guarujá | I39: 3246-5944
A40: =+A38+1 -> 25 | B40: Tábua itaúba lixada e aplainada 2,5x20x5,50 | C40: pç | D40: 158.15 | F40: 137.5 | H40: 148.5 | L40: Bitolas das tábuas brutas: | M40: =TRUNC((AVERAGE(D40,F40,H40)),2) -> 148.05 | N40: =TRUNC((MEDIAN(D40:K40)),2) -> 148.5
A41: 26 | B41: Tábua itaúba lixada e aplainada 3x22x3,00 | C41: pç | D41: 215.62 | F41: 150 | H41: 162 | L41: Esp.: 2,5 , 4 , 5 , 8 , 10 , 15 cm | M41: =TRUNC((AVERAGE(F41,H41)),2) -> 156 | N41: 162
A42: 27 | B42: Tábua itaúba lixada e aplainada 3x22x4,00 | C42: pç | D42: 287.5 | F42: 200 | H42: 216 | L42: Larg.: 5, 7, 10, 15, 20, 25, 30 cm | M42: 208 | N42: 216
A43: 28 | B43: Tábua itaúba lixada e aplainada 3x22x4,50 | C43: pç | D43: 323.45 | F43: 225 | H43: 243 | L43: Comp.: 1, 1,5 , 2, 2,5 , 3, 3,5 , 4, 4,5 , 5, 5,5 m | M43: 234 | N43: 243
A44: 29 | B44: Tábua itaúba lixada e aplainada 3x30x3,00 | C44: pç | D44: 258.75 | F44: 180 | H44: 194.4 | M44: 187.2 | N44: 194.4
A45: 30 | B45: Tábua itaúba lixada e aplainada 3,5x15x5,50 | C45: pç | D45: 237.2 | F45: 165 | H45: 184.2 | M45: 174.6 | N45: 184.2
A46: 31 | B46: Tábua itaúba lixada e aplainada 3,5x25x2,00 | C46: pç | D46: 143.75 | F46: 100 | H46: 108 | M46: 104 | N46: 108
A47: 32 | B47: Tábua itaúba lixada e aplainada 4x10x4,00 | C47: pç | D47: 115 | F47: 80 | H47: 113.4 | M47: =TRUNC((AVERAGE(D47,H47)),2) -> 114.2 | N47: 113.4
A48: 33 | B48: Tábua itaúba lixada e aplainada 4x10x5,50 | C48: pç | D48: 158.15 | F48: 110 | H48: 156 | M48: =TRUNC((AVERAGE(D48,H48)),2) -> 157.07 | N48: 156
A49: 34 | B49: Tábua itaúba lixada e aplainada 4x30x3,00 | C49: pç | D49: 258.75 | F49: 180 | H49: 243 | M49: =TRUNC((AVERAGE(D49,H49)),2) -> 250.87 | N49: 243
A50: 35 | B50: Tábua itaúba lixada e aplainada 4x30x4,00 | C50: pç | D50: 345 | F50: 240 | H50: 324 | M50: =TRUNC((AVERAGE(D50,H50)),2) -> 334.5 | N50: 324
A51: 36 | B51: Tábua itaúba lixada e aplainada 4x30x4,50 | C51: pç | D51: 388.2 | F51: 270 | H51: 365 | M51: =TRUNC((AVERAGE(D51,H51)),2) -> 376.6 | N51: 365
A52: =+A51+1 -> 37 | B52: Sarrafo itaúba 2,5x5 | C52: m | D52: 5.25 | F52: 5.6 | H52: 8.1 | M52: =TRUNC((AVERAGE(D52,F52)),2) -> 5.42 | N52: 5.6
A53: 38 | B53: Caibro itaúba 5x5 | C53: m | D53: 10.5 | F53: 11.2 | H53: 16.2 | M53: 10.85 | N53: 11.2
A54: 39 | B54: Caibro itaúba 5x7 | C54: m | D54: 15.75 | F54: 16.9 | H54: 20.3 | M54: 16.32 | N54: 16.9
A55: 40 | B55: Caibro itaúba 5x10 | C55: m | D55: 21 | F55: 22.5 | H55: 28.4 | M55: 21.75 | N55: 22.5
A56: 41 | B56: Tábua itaúba 4x15 | C56: m | D56: 31.5 | F56: 27 | H56: 41.9 | M56: 29.25 | N56: 31.5
A57: 42 | B57: Tábua itaúba 4x25 | C57: m | D57: 52.5 | F57: 45 | H57: 67.5 | M57: 48.75 | N57: 52.5
A58: 43 | B58: Tábua itaúba 4x30 | C58: m | D58: 63 | F58: 54 | H58: 81 | M58: 58.5 | N58: 63
A59: 44 | B59: Tábua itaúba lixada e aplainada 3,5x19x1,80 | C59: pç | D59: 115 | F59: 80 | H59: 86.4 | M59: =TRUNC((AVERAGE(F59,H59)),2) -> 83.2 | N59: 86.4
A60: 45 | B60: Tábua itaúba lixada e aplainada 3,5x19x2,00 | C60: pç | D60: 115 | F60: 80 | H60: 108 | M60: =TRUNC((AVERAGE(D60,H60)),2) -> 111.5 | N60: 108
D61: Delei Madeiras | E61: 3395-2275 | F61: Madelei | G61: 3373-8888 | H61: Cofel | I61: 3222-2255
A62: =+A60+1 -> 46 | B62: Laminado melamínico texturizado chapa 1,25 x 3,08 m esp=0,8 mm | C62: m² | D62: 25.71 | F62: 29.87 | H62: 25.71 | L62: Dividir o valor pela área da chapa (3,85 m²) | M62: =TRUNC((AVERAGE(D62,F62,H62)),2) -> 27.09 | N62: =TRUNC((MEDIAN(D62:K62)),2) -> 25.71
D63: Mariani | E63: 3403-2222 | F63: Flosul | G63: 51 3681-0100 | H63: MSA | I63: 3556-3711
A64: =+A62+1 -> 47 | B64: Tora eucalipto tratada d=20 cm | C64: m | D64: 57 | F64: 28.41 | H64: 30.1 | L64: Total=frete/m+tora (frete/ 99 m (cancha de bocha)) | M64: =TRUNC((AVERAGE(F64,H64)),2) -> 29.25 | N64: =TRUNC((MEDIAN(D64:K64)),2) -> 30.1
D65: SL parafusos | E65: 3411-9800 | F65: Guido Jacobus | G65: 3024-1200 | H65: Central de parafusos | I65: 3341-9353 | J65: Brasil dos parafusos | K65: 3326-1946
A66: =+A64+1 -> 48 | B66: Parafuso aço inox 1/4" x 3" c/porca | C66: un | D66: 1.13 | F66: 3.18 | H66: 1.23 | J66: 1.35 | L66: Acrescentar o valor da porca quando vier separado (R$ ___) | M66: =TRUNC((AVERAGE(D66,H66,J66)),2) -> 1.23 | N66: =TRUNC((MEDIAN(D66:K66)),2) -> 1.29
A67: 49 | B67: Parafuso francês zincado 5/16" x 2" c/porca | C67: un | D67: 0.4 | F67: 0.38 | H67: 0.47 | J67: 0.46 | M67: =TRUNC((AVERAGE(D67,F67,H67,J67)),2) -> 0.42 | N67: =TRUNC((MEDIAN(D67:K67)),2) -> 0.43
A68: 50 | B68: Parafuso francês zincado 5/16" x 2 1/2" c/ porca | C68: un | D68: 0.46 | F68: 0.44 | H68: 0.54 | J68: 0.53 | M68: =TRUNC((AVERAGE(D68,F68,H68,J68)),4) -> 0.4925 | N68: =TRUNC((MEDIAN(D68:K68)),4) -> 0.495
A69: 51 | B69: Parafuso francês zincado 5/16" x 4" c/ porca | C69: un | D69: 0.64 | F69: 0.61 | H69: 0.75 | J69: 0.74 | M69: =TRUNC((AVERAGE(D69,F69,H69,J69)),2) -> 0.68 | N69: 0.69
A70: 52 | B70: Parafuso francês zincado 5/16" x 5" c/porca | C70: un | D70: 0.75 | F70: 0.71 | H70: 0.9 | J70: 0.87 | M70: =TRUNC((AVERAGE(D70,F70,H70,J70)),2) -> 0.8 | N70: 0.81
A71: 53 | B71: Parafuso inox auto atarraxante 4,8 x 70 cabeça chata | C71: un | D71: 0.51 | F71: 0.62 | H71: 1.1 | J71: 0.77 | M71: =TRUNC((AVERAGE(D71,F71,J71)),2) -> 0.63 | N71: 0.69
A72: 54 | B72: Parafuso inox auto atarraxante 4,8 x 100 cabeça chata | C72: un | D72: 1.04 | F72: - | H72: 1.66 | J72: 1.7 | M72: =TRUNC((AVERAGE(F72,H72,J72)),2) -> 1.68 | N72: 1.66
A73: 55 | B73: Parafuso sextavado aço zincado 1/2" x 1 1/2" | C73: un | D73: 0.74 | F73: 0.7 | H73: 1.1 | J73: 0.9 | M73: =TRUNC((AVERAGE(D73,F73,H73,J73)),2) -> 0.86 | N73: 0.82
A74: 56 | B74: Parafuso sextavado aço zincado 1/2" x 3 1/2" | C74: un | D74: 1.53 | F74: 1.46 | H74: 2.3 | J74: 1.56 | M74: =TRUNC((AVERAGE(D74,F74,J74)),2) -> 1.51 | N74: 1.54
A75: 57 | B75: Parafuso sextavado aço zincado 1/2" x 8" | C75: un | D75: 3.49 | F75: 3.33 | H75: 5.15 | J75: 4.24 | M75: =TRUNC((AVERAGE(D75,F75,J75)),2) -> 3.68 | N75: 3.86
A76: 58 | B76: Parafuso sextavado aço zincado 1/4" x 2" c/ porca | C76: un | D76: 0.24 | F76: 0.24 | H76: 0.4 | J76: 0.29 | L76: Acrescentar o valor da porca quando vier separado (R$ ___) | M76: =TRUNC((AVERAGE(D76,F76,J76)),4) -> 0.2566 | N76: =TRUNC((MEDIAN(D76:K76)),4) -> 0.265
A77: 59 | B77: Parafuso sextavado rosca soberba 1/4" x 30 mm | C77: un | D77: 0.13 | F77: 0.13 | H77: 0.17 | J77: 0.17 | M77: =TRUNC((AVERAGE(D77,F77,H77,J77)),2) -> 0.15 | N77: 0.15
D78: Gerdau | E78: 3373-2500 | F78: Arcelor Mittal | G78: 2121-7777 | H78: Sidersul | I78: 3041-6565
A79: =+A77+1 -> 60 | B79: Barra ferro chato 7/8" x 1/8" | C79: kg | D79: 4.63 | F79: 4.14 | H79: 4.96 | M79: =TRUNC((AVERAGE(D79,F79,H79)),2) -> 4.57 | N79: =TRUNC((MEDIAN(D79:I79)),2) -> 4.63
A80: 61 | B80: Barra ferro chato 7/8" x 1/4" | C80: kg | D80: 4.67 | F80: 4.35 | H80: 4.96 | M80: 4.66 | N80: 4.67
A81: 62 | B81: Barra ferro chato 1 1/4" x 1/4" | C81: kg | D81: 4.67 | F81: 4.14 | H81: 4.96 | M81: 4.59 | N81: 4.67
A82: 63 | B82: Barra ferro chato 2" x 1/8" | C82: kg | D82: 5.21 | F82: 4.83 | H82: 4.96 | M82: 5 | N82: 4.96
A83: 64 | B83: Chapa aço 1/2" | C83: kg | D83: 4.14 | F83: 5.08 | H83: 4.95 | M83: 4.72 | N83: 4.95
A84: 65 | B84: Chapa aço 1/4" | C84: kg | D84: 4.14 | F84: 5.08 | H84: 4.95 | M84: 4.72 | N84: 4.95
A85: 66 | B85: Chapa aço 3/16" | C85: kg | D85: 4.14 | F85: 5.08 | H85: 4.95 | M85: 4.72 | N85: 4.95
D86: Redinox | E86: 3020-0707 | F86: Steel Sul | G86: 3059-8744 | H86: Galeazi | I86: 4042-8322
A87: =+A85+1 -> 67 | B87: Chapa aço inox e=1,00 mm (AISI 304) | C87: m² | D87: 156 | F87: 164.5 | H87: 199.62 | M87: =TRUNC((AVERAGE(D87,F87,H87)),2) -> 173.37 | N87: =TRUNC((MEDIAN(D87:K87)),2) -> 164.5
D88: Chapas aço + galvanização
A89: =+A87+1 -> 68 | B89: Chapa galvanizada 1/2" | C89: kg | L89: Insumo 71 + galvanização/kg (R$ 2,30) | M89: =TRUNC(IF(Cotações!M83<Cotações!N83,Cotações!M83,Cotações!N83)+((IF(Cotações!$M$93<Cotações!$N$93,Cotações!$M$93,Cotações!$N$93))),2) -> 7.12
A90: =+A89+1 -> 69 | B90: Chapa galvanizada 1/4" | C90: kg | L90: Insumo 72 + galvanização/kg (R$ 2,30) | M90: =TRUNC(IF(Cotações!M84<Cotações!N84,Cotações!M84,Cotações!N84)+((IF(Cotações!$M$93<Cotações!$N$93,Cotações!$M$93,Cotações!$N$93))),2) -> 7.12
A91: =+A90+1 -> 70 | B91: Chapa galvanizada 3/16" | C91: kg | L91: Insumo 73 + galvanização/kg (R$ 2,30) | M91: =TRUNC(IF(Cotações!M85<Cotações!N85,Cotações!M85,Cotações!N85)+((IF(Cotações!$M$93<Cotações!$N$93,Cotações!$M$93,Cotações!$N$93))),2) -> 7.12
D92: Beretta | E92: 3479-2222 | F92: ATN | G92: 3470-0000 | H92: Bento Sul | I92: 54 3453-5053
A93: =+A91+1 -> 71 | B93: Galvanização | C93: kg | D93: 2.5 | F93: 2.5 | H93: 2.2 | L93: preço por kg de chapa + 10% relativo ao peso total após galvanização | M93: =TRUNC((AVERAGE(D93,F93,H93)),2) -> 2.4 | N93: =TRUNC((MEDIAN(D93:K93)),2) -> 2.5
D94: Sulfer | E94: 3470-4004 | F94: Scharlau | G94: 3091-1525 | H94: Global Aço | I94: 3470-3522 | J94: Imp. Americana | K94: 3337-4611
A95: =+A93+1 -> 72 | B95: Cumeeira galvalume ondulada 0,50 mm | C95: un | D95: 28.6 | F95: 29.34 | H95: 30 | J95: 23.6 | L95: Cumeeira com 1 m de comprimento | M95: =TRUNC((AVERAGE(D95,F95,H95,J95)),2) -> 27.88 | N95: =TRUNC((MEDIAN(D95:K95)),2) -> 28.97
A96: 73 | B96: Telha galvalume ondulada 0,50 mm x 1,03 m x 1 m | C96: m | D96: 34.9 | F96: 26.3 | H96: 30 | J96: 23.6 | M96: =TRUNC((AVERAGE(D96,F96,H96,J96)),2) -> 28.7 | N96: =TRUNC((MEDIAN(D96:K96)),2) -> 28.15
D97: Sulfer | E97: 3470-4004 | F97: Aço Tubo | G97: 2126-9400 | H97: Açoduto | I97: 3058-5353 | J97: Ipiranga | K97: 3303-2100
A98: =+A96+1 -> 74 | B98: Tubo aço carbono 6" e=6,35 mm (NBR 6591) | C98: m | D98: - | F98: 206.34 | H98: 182.35 | J98: 150.15 | L98: tubo condutor | M98: =TRUNC((AVERAGE(F98,H98,J98)),2) -> 179.61 | N98: =TRUNC((MEDIAN(D98:K98)),2) -> 182.35
A99: 75 | B99: Tubo ferro preto quadrado 7x7 cm esp=3,00 mm | C99: m | D99: 73.71 | F99: - | H99: 56 | J99: 40.6 | L99: tubo / 6,00 m | M99: =TRUNC((AVERAGE(D99,H99,J99)),2) -> 56.77 | N99: =TRUNC((MEDIAN(D99:K99)),2) -> 56
D100: FG | E100: 3358-1213 | F100: Thony | G100: 3369-3737 | H100: FF | I100: 3092-5215
A101: =+A99+1 -> 76 | B101: Corrente aço galvanizado d=5 mm elo longo 22x45 mm | C101: kg | D101: 23.6 | F101: 21.9 | H101: 32.83 | L101: Na próxima atualização utilizar elo curto e=6 mm 22x40 mm | M101: =TRUNC((AVERAGE(D101,F101)),2) -> 22.75 | N101: =TRUNC((MEDIAN(D101:K101)),2) -> 23.6
A102: 77 | B102: Disco de Corte MR832 - 7" - Norton uso geral | C102: un | D102: 22.9 | F102: 26.34 | H102: 16.5 | M102: =TRUNC((AVERAGE(D102,F102)),2) -> 24.62 | N102: =TRUNC((MEDIAN(D102:K102)),2) -> 22.9
D103: Telas Caxias | E103: 3364-1688 | F103: Rio Branco | G103: 3466-8095 | H103: Renovar | I103: 3342-7711 | J103: Sul Tela | K103: 3372-1475
A104: =+A102+1 -> 78 | B104: Esticador de arame | C104: un | D104: 5 | F104: - | H104: 5 | J104: 7 | M104: =TRUNC((AVERAGE(D104,F104,H104,J104)),2) -> 5.66 | N104: =TRUNC((MEDIAN(D104:K104)),2) -> 5
A105: =+A104+1 -> 79 | B105: Tela arame galvanizado 5x5 cm fio 12 BWG | C105: m² | D105: 22 | F105: 21 | H105: 26.5 | J105: 28.6 | M105: =TRUNC((AVERAGE(D105,F105,H105,J105)),2) -> 24.52 | N105: =TRUNC((MEDIAN(D105:K105)),2) -> 24.25
A106: =+A105+1 -> 80 | B106: Tela arame galvanizado 4x4 cm fio 10 BWG | C106: m² | D106: 33 | F106: 49 | H106: 63 | J106: - | M106: =TRUNC((AVERAGE(D106,F106,H106)),2) -> 48.33 | N106: =TRUNC((MEDIAN(D106:K106)),2) -> 49
D107: Fundição Silva Três Rios | E107: (24) 2255-3130
A108: =+A106+1 -> 81 | B108: Fradinho em ferro fundido | C108: un | D108: 216 | M108: =TRUNC((AVERAGE(D108)),2) -> 216 | N108: =TRUNC((MEDIAN(D108:K108)),2) -> 216
D109: Ziober | E109: 44 3029-4410 | F109: Milla (Ginast) | G109: 19 3363-1051 | H109: Flex | I109: 17 3223-2766
A110: =+A108+1 -> 82 | B110: Abdominal | C110: un | D110: 1850 | F110: 6000 | H110: 3500 | L110: Galvanizados | M110: =TRUNC((AVERAGE(D110,H110)),2) -> 2675 | N110: =TRUNC((MEDIAN(D110:K110)),2) -> 3500
A111: =+A110+1 -> 83 | B111: Adução e abdução de pernas duplo | C111: un | D111: 3631 | F111: 9600 | H111: 5900 | M111: =TRUNC((AVERAGE(D111,H111)),2) -> 4765.5 | N111: 5900
A112: 84 | B112: Esqui triplo conjugado | C112: un | D112: 5546 | F112: 12740 | H112: 6515 | M112: 6030.5 | N112: 6515
A113: 85 | B113: Jogo de barras | C113: un | D113: 3050 | F113: 13520 | H113: 4950 | M113: 4000 | N113: 4950
A114: 86 | B114: Multiexercitador conjugado 6 funções | C114: un | D114: 5853 | F114: 15600 | H114: 6650 | M114: 6251.5 | N114: 6650
A115: 87 | B115: Peitoral duplo | C115: un | D115: 4450 | F115: 10900 | H115: 5675 | M115: 5062.5 | N115: 5675
A116: 88 | B116: Placa orientativa (ATI) | C116: un | D116: 2210 | F116: 7080 | H116: 3900 | M116: 3055 | N116: 3900
A117: 89 | B117: Pressão de pernas triplo conjugado | C117: un | D117: 3429 | F117: 6250 | H117: 5100 | M117: 4264.5 | N117: 5100
A118: 90 | B118: Puxador duplo | C118: un | D118: 4436 | F118: 12120 | H118: 5725 | M118: 5080.5 | N118: 5725
A119: 91 | B119: Remada (APC) | C119: un | D119: 2665 | F119: 5020 | H119: 2710 | M119: 2687.5 | N119: 2710
A120: 92 | B120: Simulador de caminhada triplo conjugado | C120: un | D120: 5160 | F120: 9320 | H120: 6150 | M120: 5655 | N120: 6150
A121: 93 | B121: Simulador de remo | C121: un | D121: 2190 | F121: 3400 | H121: 4250 | M121: 3220 | N121: 3400
A122: =+A121+1 -> 94 | B122: Voador peitoral e voador dorsal (APC) | C122: un | D122: 4105 | F122: 5940 | H122: 2710 | M122: 3407.5 | N122: 4105
D123: Shopping de Pedras | E123: 3249-1111 | F123: Eládio | G123: 3328-5858 | H123: São Cristóvão | I123: 54 3477-1305 | J123: Santo Antônio | K123: 54 3242-1061
A124: =+A122+1 -> 95 | B124: Basalto Irregular | C124: m² | D124: 35 | F124: 45 | H124: 33 | J124: 32 | M124: =TRUNC((AVERAGE(D124,H124,J124)),2) -> 33.33 | N124: 34
A125: =+A124+1 -> 96 | B125: Basalto Irregular meio retalhão | C125: m² | D125: 110 | F125: 120 | H125: 100 | J125: 72 | M125: =TRUNC((AVERAGE(D125,F125,H125)),2) -> 110 | N125: 105
A126: =+A125+1 -> 97 | B126: Basalto Regular talhado | C126: =C125 -> m² | D126: 70 | F126: 85 | H126: 70 | J126: 69 | M126: =TRUNC((AVERAGE(D126,H126,J126)),2) -> 69.66 | N126: 70
A127: =+A126+1 -> 98 | B127: Basalto Regular serrado | C127: m² | D127: 86 | F127: 100 | H127: 79 | J127: 96 | M127: =TRUNC((AVERAGE(D127,F127,H127,J127)),2) -> 90.25 | N127: 91
D128: DPS | E128: 3499-1536 | F128: Incorevest | G128: 3062-5119 | H128: Artsul | I128: 3266-1780 | J128: RF Suprimentos | K128: 3059-7270
A129: =+A127+1 -> 99 | B129: Lajota de concreto 45x45cm esp.=2,5cm | C129: m² | D129: 26.9 | F129: 32 | H129: 24.5 | J129: 25.9 | M129: =TRUNC((AVERAGE(D129,H129,J129)),2) -> 25.76 | N129: 26.4
A130: =+A129+1 -> 100 | B130: Piso Podotátil 25 x 25 cm | C130: un | D130: 3 | F130: 2.8 | H130: 3.3 | J130: 3.4 | M130: =TRUNC((AVERAGE(D130,F130,H130,J130)),2) -> 3.12 | N130: =TRUNC((MEDIAN(D130:K130)),2) -> 3.15
D131: Maquitel | E131: 3403-3232
A132: =+A130+1 -> 101 | B132: Saibro rosa - posto obra | C132: m³ | D132: 49.33 | L132: Fazer média dos fretes (Centro, Ipanema, Sarandi) | M132: =TRUNC((AVERAGE(D132)),2) -> 49.33 | N132: 49.33
D133: Rossatto | E133: 3250-5076 | F133: Jardins da Aldeia | G133: 3488-6251 | H133: Gramados Vargas | I133: 3367-2625 | J133: Canoas Garden | K133: 3472-4931
A134: =+A132+1 -> 102 | B134: Composto Orgânico | C134: m³ | D134: 180 | F134: 130 | H134: 120 | J134: 160 | M134: =TRUNC((AVERAGE(D134,F134,H134,J134)),2) -> 147.5 | N134: 145
A135: =+A134+1 -> 103 | B135: Grama catarina (Axonopus compressus) | C135: m² | D135: 9.5 | F135: 12 | H135: 8 | J135: 12 | M135: =TRUNC((AVERAGE(D135,F135,H135,J135)),2) -> 10.37 | N135: 10.75
A136: =+A135+1 -> 104 | B136: Grama de campo ( 1ª qualidade) | C136: =C135 -> m² | D136: - | F136: 6 | H136: 6 | J136: 6.5 | M136: =TRUNC((AVERAGE(F136,H136,J136)),2) -> 6.16 | N136: 6
D137: Sulcopy | E137: 2103-4660 | F137: Impacto | G137: 3334-9900 | H137: Sul10 | I137: 4061-1001 | J137: Pino | K137: 3012-9090
A138: =+A136+1 -> 105 | B138: Placa em lona impressa c/ 6 m² | C138: m² | D138: 80 | F138: 50 | H138: 70 | J138: 51.75 | L138: Solicitar valor de placa com 6,00 m/2 (Dividir valor por 6) | M138: =TRUNC((AVERAGE(D138,F138,H138,J138)),2) -> 62.93 | N138: 60.87
D139: Construtec | E139: 3012-2333 | F139: Reis e Reis | G139: 12 3966-9977 | H139: TecMachine | I139: 11 4643-4846 | J139: Neomatex | K139: 11 4771-1323
A140: =+A138+1 -> 106 | B140: Microfibra de polipropileno (sc 600 g) | C140: sc | D140: 20.4 | F140: 10.94 | H140: 10.59 | J140: 11.4 | L140: Saco de 600 g (600 g/m³ de concreto) | M140: =TRUNC((AVERAGE(F140,H140,J140)),2) -> 10.97 | N140: 11.17
D141: Mineração Peixoto | E141: 51 3678-1020 | F141: Grani Torre | G141: 11 2246-1250 | H141: Polipiso | I141: 99116-4697
A142: =+A140+1 -> 107 | B142: Argamassa de alta resistência (Piso duro) | C142: kg | D142: 0.74 | F142: 0.65 | H142: 0.77 | L142: Frete para 1800,00 kg | M142: =TRUNC((AVERAGE(D142,F142,H142)),2) -> 0.72 | N142: 0.74
D143: Constinta | E143: 3341-6344 | F143: Amauri | G143: 3322-7100 | H143: Porto Cores | I143: 3346-3339 | J143: Aquarela Tintas | K143: 3223-0133
A144: =+A142+1 -> 108 | B144: Fundo p/ galvanizado | C144: l | D144: 27.33 | F144: 23.61 | H144: 29.05 | J144: 27.5 | M144: =TRUNC((AVERAGE(D144,F144,H144,J144)),2) -> 26.87 | N144: 27.41
D145: Drenamac | E145: 3029-7593 | F145: Drenotec | G145: 3119-1244 | H145: Geofoco | I145: 0800-378-8500
A146: =+A144+1 -> 109 | B146: Manta Geotêxtil para cura do concreto | C146: m² | D146: 2.2 | F146: 2.5 | H146: 2.1 | L146: Bidim CC-10 | M146: =TRUNC((AVERAGE(D146,F146,H146)),2) -> 2.26 | N146: =TRUNC((MEDIAN(D146:K146)),2) -> 2.2
D147: Prod Equipam. MB | E147: 3377-2035
A148: =+A146+1 -> 110 | B148: Papeleira metálica basculante H-30 | C148: un | D148: 551 | M148: =TRUNC((AVERAGE(D148)),2) -> 551 | N148: 551
D149: Elevato | E149: 3349-0200 | F149: SIA | G149: 3375-3800 | H149: Mil Torneiras | I149: 3371-3200
A150: =+A148+1 -> 111 | B150: Válvula de mictório anti-vandalismo alta pressão Docol | C150: un | D150: 557.81 | F150: 362.1 | H150: 413.9 | M150: =TRUNC((AVERAGE(D150,F150,H150)),2) -> 444.6 | N150: 413.9
D151: LC | E151: 3217-1323 | F151: De Grandi | G151: 3307-7724 | H151: Bello | I151: 3217-5900 | J151: Belotto | K151: 3541-5521
A152: =+A150+1 -> 112 | B152: Placa de granito | C152: un | D152: 450 | F152: 650 | H152: 840 | J152: 750 | M152: =TRUNC((AVERAGE(D152,F152,H152,J152)),2) -> 672.5 | N152: 700
D153: Gaúcha | E153: 3245-3500 | F153: Desentulha | G153: 3248-2282 | H153: Nichele | I153: 3246-7864
A154: =+A152+1 -> 113 | B154: Caçamba 4,00 m3 | C154: un | D154: 390 | F154: 360 | H154: 405 | L154: Média Centro com Zona Sul caliça e terra | M154: =TRUNC((AVERAGE(D154,F154,H154)),2) -> 385 | N154: 390
D155: Transguga | E155: 3337-6060 | F155: Britas do Sul | G155: 3245-2093 | H155: Areia Norte | I155: 3340-9032 | J155: Balinha | K155: 3434-0059
A156: =+A154+1 -> 114 | B156: Areia Peneirada - posto obra | C156: m³ | D156: 65 | F156: 90 | H156: 65 | J156: 70 | M156: =TRUNC((AVERAGE(D156,F156,H156,J156)),2) -> 72.5 | N156: =TRUNC((MEDIAN(D156:K156)),2) -> 67.5
A157: =+A156+1 -> 115 | B157: Brita 1 ou 2 - posto obra | C157: m³ | D157: 65 | F157: 75 | H157: 65 | J157: 65 | M157: =TRUNC((AVERAGE(D157,F157,H157,J157)),2) -> 67.5 | N157: 65
D158: DMAE | E158: 3289-9537
A159: =+A157+1 -> 116 | B159: Taxa instalação água DMAE | C159: cj | D159: 465.36 | L159: Engª Ana | M159: =TRUNC((AVERAGE(D159)),2) -> 465.36 | N159: 465.36
A160: =+A159+1 -> 117 | B160: Taxa instalação esgoto DMAE | C160: cj | D160: 300.94 | M160: =TRUNC((AVERAGE(D160)),2) -> 300.94 | N160: 300.94
A161: =+A160+1 -> 118 | B161: Água tratada | C161: m³ | D161: 4.02 | M161: =TRUNC((AVERAGE(D161)),2) -> 4.02 | N161: 4.02
A162: =+A161+1 -> 119 | B162: Esgoto cloacal | C162: m³ | D162: =0.8*D161 -> 3.216 | M162: =TRUNC((AVERAGE(D162)),2) -> 3.21 | N162: 3.21
D163: PMPA | E163: Decreto
A164: =+A162+1 -> 120 | B164: Contribuição Iluminação Pública (CIP) | C164: cj | D164: 22.08 | L164: Decreto 19.242, de 7/12/2015 - Consumidor não residencial - Bandeira amarela | M164: =TRUNC((AVERAGE(D164)),2) -> 22.08 | N164: 22.08
D165: Rebello | E165: 3239-4844 | F165: Tomazelli | G165: 3340-2111 | H165: Paraíso das Pedras | I165: 11 2461-0772 | J165: Interlagos | K165: 11 5666-0006
A166: =+A164+1 -> 121 | B166: Pedra Portuguesa | C166: m² | D166: 90 | F166: 78 | H166: 78.75 | J166: 85 | M166: =TRUNC((AVERAGE(D166,F166,H166,J166)),2) -> 82.93 | N166: =TRUNC((MEDIAN(D166:K166)),2) -> 81.87
D167: Tchê | E167: 3522-0206 | F167: SRS | G167: 3544-1156 | H167: Maico Pedras | I167: 99817-3559 | J167: Marcão Pedras | K167: 3431-7078
A168: =+A166+1 -> 122 | B168: Laje de Grês 90x45 | C168: un | D168: 6.9 | F168: 7.5 | H168: 6 | J168: 6.5 | M168: =TRUNC((AVERAGE(D168,F168,H168,J168)),2) -> 6.72 | N168: =TRUNC((MEDIAN(D168:K168)),2) -> 6.7
A169: =+A168+1 -> 123 | B169: Pedra de Grês 43x21x12 | C169: un | D169: 1.9 | F169: 2.2 | H169: 1.8 | J169: 1.75 | M169: =TRUNC((AVERAGE(D169,F169,H169,J169)),2) -> 1.91 | N169: =TRUNC((MEDIAN(D169:K169)),2) -> 1.85
D170: Ponte Pedras | E170: 11 4485-3034 | F170: Balinha | G170: 3434-0059
A171: =+A169+1 -> 124 | B171: Pedra de Alicerce | C171: un | D171: 6 | F171: 4.5 | M171: =TRUNC((AVERAGE(D171,F171)),2) -> 5.25 | N171: =TRUNC((MEDIAN(D171:G171)),2) -> 5.25
D172: Supreme | E172: 3012-9962 | F172: Via Inox | G172: 3275-1111 | H172: Magazine do Inox | I172: 3060-2074 | J172: Stilo Elevato | K172: 3333-8200
A173: =+A171+1 -> 125 | B173: Cuba Inox polida d=38 cm c/válvula 3 1/2" | C173: un | D173: 140 | F173: 161.4 | H173: 150.2 | J173: 301.03 | M173: =TRUNC((AVERAGE(D173,F173,H173)),2) -> 150.53 | N173: =TRUNC((MEDIAN(D173:K173)),2) -> 155.8
D174: RZ | E174: 3212-7911 | F174: Copyserv | G174: 3212-1612 | H174: DWG | I174: 3022-7978 | J174: MI Digital | K174: 3574-8012
A175: =+A173+1 -> 126 | B175: Plotagem | C175: m² | D175: 11.89 | F175: 12 | H175: 10.7 | J175: 10.58 | L175: PB, Papel sulfite, gramatura | M175: =TRUNC((AVERAGE(D175,F175,H175,J175)),2) -> 11.29 | N175: =TRUNC((MEDIAN(D175:K175)),2) -> 11.29
D176: Sinduscon | E176: Site
A177: =+A175+1 -> 127 | B177: CUB-RS R 16-N | C177: un | D177: 1477.13 | M177: =TRUNC((AVERAGE(D177)),2) -> 1477.13 | N177: =TRUNC((MEDIAN(D177:K177)),2) -> 1477.13
D178: CREA-RS | E178: Site
A179: =+A177+1 -> 128 | B179: ART | C179: un | D179: 226.5 | M179: =TRUNC((AVERAGE(D179)),2) -> 226.5 | N179: =TRUNC((MEDIAN(D179:K179)),2) -> 226.5
D180: PMPA | E180: Site
A181: =+A179+1 -> 129 | B181: UFM | C181: un | D181: 4.1771 | M181: =TRUNC((AVERAGE(D181)),2) -> 4.17 | N181: =TRUNC((MEDIAN(D181:K181)),2) -> 4.17
D182: Casa do Granito | E182: 3233-0052 | F182: La Pietra | G182: 3334-6544 | H182: Bonapedras | I182: 3012-4393 | J182: AGPetrea | K182: 3126-3792
A183: =+A181+1 -> 130 | B183: Tabuleiro damas | C183: un | D183: 700 | F183: 320 | H183: 550 | J183: 320 | M183: =TRUNC((AVERAGE(D183,F183,H183,J183)),2) -> 472.5 | N183: =TRUNC((MEDIAN(D183:K183)),2) -> 435
D184: Americanas | E184: Site | F184: Magazine Luiza | G184: Site | H184: Walmart | I184: Site
A185: =+A183+1 -> 131 | B185: Dobradiça galvanizada 4"x2 1/2" | C185: un | D185: 7.9 | F185: 6.63 | H185: 8.39 | M185: =TRUNC((AVERAGE(D185,F185,H185)),2) -> 7.64 | N185: =TRUNC((MEDIAN(D185:K185)),2) -> 7.9

Sheet BDI
A1: Composição do BDI
A3: *Conforme Decreto nº 19.224, de 25 de novembro de 2015 (PMPA)
A5: TOMADOR: | B5: PREFEITURA MUNICIPAL DE PORTO ALEGRE
A6: Nº CONTRATO:
A7: OBJETO: | B7: =+PO!B9 -> REURBANIZAÇÃO DA PRAÇA ARAGUAIA
A8: DATA: | B8: =IF(PO!$B$10="","",PO!$B$10) -> 2021-05-17 | C8: =IF(PO!$C$10="","",PO!$C$10) ->  | D8: =IF(PO!$C$10="","",PO!$C$10) ->  | E8: =IF(PO!$C$10="","",PO!$C$10) ->  | F8: =IF(PO!$C$10="","",PO!$C$10) -> 
A9: ART: | B9: =IF(PO!$B$11="","",PO!$B$11) -> 11276669
A10: CONTRIBUIÇÃO PREVIDENCIÁRIA: | D10: =IF(M.O.!$D$5="c/desoneração","Orçamento COM DESONERAÇÃO (Lei 13.161/2015)","Orçamento SEM DESONERAÇÃO (Lei 13.161/2015)") -> Orçamento SEM DESONERAÇÃO (Lei 13.161/2015)
A12: TIPO DE OBRA | D12: Contratação de obras e serviços de INFRAESTRUTURA, incluindo pavimentação, iluminação pública, praças, saneamento, sistemas de água, esgoto cloacal e pluvial e seus respectivos serviços de conservação e manutenção
A13: Parcelas
A14: (AC) - Administração Central | D14: 4.03
A15: (S) + (G) - Seguro e Garantia | D15: 0.65
A16: (R) - Risco | D16: 1.33
A17: (DF) - Despesas Financeiras | D17: 1.52
A18: (L) - Lucro | D18: 8
A19: (I1) - PIS | D19: 0.65
A20: (I2) - COFINS | D20: 3
A21: (I3) - ISSQN | D21: 1.2
A22: (I4) - Contrib. Previdenciária | D22: 4.5
A23: BDI Calculado, incluindo I4 - com desoneração | D23: 0.2821
A24: BDI Calculado, desconsiderando I4 - sem desoneração | D24: 0.2215
A26: Os valores de BDI foram calculados com o emprego da fórmula abaixo (Acórdão 2622/2013 - TCU):
A33: Declaro para os devidos fins que, conforme legislação tributária municipal, a base de cálculo para o ISS das atividades Pavimentação, Iluminação Pública, Praças, Saneamento, Sistemas de água, Esgoto Cloacal e Pluvial e seus respectivos serviços de conservação e manutenção é de 30%, com a respectiva alíquota de 4%.
A39: Declaro para os devidos fins que o detalhamento de encargos sociais atende ao estabelecido no SINAPI/RS de
B40: =CONCATENATE(M.O.!$E$17,",") -> Abr/2021, | E40: sendo utilizada a opção de mão-de-obra horista e mensalista | F40: =IF(M.O.!$D$5="c/desoneração","com desoneração,","sem desoneração,") -> sem desoneração,
A41: e que esta é a alternativa mais adequada para a Administração Pública.
A46: ___________________________________ | E46: ___________________________________
A47: Responsável Técnico | E47: Responsável Tomador

Sheet Encargos Sociais
A1: Composição dos Encargos Sociais
D3: Mês de referência: | F3: Mar/21
A5: ENCARGOS SOCIAIS SOBRE A MÃO-DE-OBRA
A6: Código | B6: Descrição | C6: Com Desoneração | E6: Sem Desoneração
C7: Horista | D7: Mensalista | E7: Horista | F7: Mensalista
A8: GRUPO A
A9: A1 | B9: INSS | C9: 0 | D9: 0 | E9: 0.2 | F9: 0.2
A10: A2 | B10: SESI | C10: 0.015 | D10: 0.015 | E10: 0.015 | F10: 0.015
A11: A3 | B11: SENAI | C11: 0.01 | D11: 0.01 | E11: 0.01 | F11: 0.01
A12: A4 | B12: INCRA | C12: 0.002 | D12: 0.002 | E12: 0.002 | F12: 0.002
A13: A5 | B13: SEBRAE | C13: 0.006 | D13: 0.006 | E13: 0.006 | F13: 0.006
A14: A6 | B14: Salário Educação | C14: 0.025 | D14: 0.025 | E14: 0.025 | F14: 0.025
A15: A7 | B15: Seguro Contra Acidentes de Trabalho | C15: 0.03 | D15: 0.03 | E15: 0.03 | F15: 0.03
A16: A8 | B16: FGTS | C16: 0.08 | D16: 0.08 | E16: 0.08 | F16: 0.08
A17: A9 | B17: SECONCI | C17: 0 | D17: 0 | E17: 0 | F17: 0
A18: A | B18: Total | C18: =SUM(C9:C17) -> 0.168 | D18: =SUM(D9:D17) -> 0.168 | E18: 0.368 | F18: 0.368
A19: GRUPO B
A20: B1 | B20: Repouso Semanal Remunerado | C20: 0.1793 | D20: 0 | E20: 0.1793 | F20: 0
A21: B2 | B21: Feriados | C21: 0.0424 | D21: 0 | E21: 0.0424 | F21: 0
A22: B3 | B22: Auxílio - Enfermidade | C22: 0.0125 | D22: 0.0091 | E22: 0.0125 | F22: 0.0091
A23: B4 | B23: 13º Salário | C23: 0.1077 | D23: 0.0833 | E23: 0.1077 | F23: 0.0833
A24: B5 | B24: Licença Paternidade | C24: 0.0007 | D24: 0.0006 | E24: 0.0007 | F24: 0.0006
A25: B6 | B25: Faltas Justificadas | C25: 0.0072 | D25: 0.0056 | E25: 0.0072 | F25: 0.0056
A26: B7 | B26: Dias de Chuvas | C26: 0.0153 | D26: 0 | E26: 0.0153 | F26: 0
A27: B8 | B27: Auxílio Acidente de Trabalho | C27: 0.0011 | D27: 0.0009 | E27: 0.0011 | F27: 0.0009
A28: B9 | B28: Férias Gozadas | C28: 0.074 | D28: 0.0572 | E28: 0.074 | F28: 0.0572
A29: B10 | B29: Salário Maternidade | C29: 0.0003 | D29: 0.0003 | E29: 0.0003 | F29: 0.0003
A30: B | B30: Total | C30: =SUM(C20:C29) -> 0.4405 | D30: =SUM(D20:D29) -> 0.157 | E30: 0.4405 | F30: 0.157
A31: GRUPO C
A32: C1 | B32: Aviso Prévio Indenizado | C32: 0.0428 | D32: 0.0332 | E32: 0.0428 | F32: 0.0332
A33: C2 | B33: Aviso Prévio Trabalhado | C33: 0.001 | D33: 0.0008 | E33: 0.001 | F33: 0.0008
A34: C3 | B34: Férias Indenizadas | C34: 0.0529 | D34: 0.0409 | E34: 0.0529 | F34: 0.0409
A35: C4 | B35: Depósito Rescisão Sem Justa Causa | C35: 0.0363 | D35: 0.0281 | E35: 0.0363 | F35: 0.0281
A36: C5 | B36: Indenização Adicional | C36: 0.0036 | D36: 0.0028 | E36: 0.0036 | F36: 0.0028
A37: C | B37: Total | C37: =SUM(C32:C36) -> 0.1366 | D37: =SUM(D32:D36) -> 0.1058 | E37: 0.1366 | F37: 0.1058
A38: GRUPO D
A39: D1 | B39: Reincidência de Grupo A sobre Grupo B | C39: =ROUND((C18*C30),4) -> 0.074 | D39: =ROUND((D18*D30),4) -> 0.0264 | E39: 0.1621 | F39: 0.0578
A40: D2 | B40: Reincidência de Grupo A sobre Aviso Prévio Trabalhado e Reincidência do FGTS sobre Aviso Prévio Indenizado | C40: =ROUND(((C18*C33)+(C16*C32)),4) -> 0.0036 | D40: =ROUND(((D18*D33)+(D16*D32)),4) -> 0.0028 | E40: 0.0038 | F40: 0.003
A41: D | B41: Total | C41: =SUM(C39:C40) -> 0.0776 | D41: =SUM(D39:D40) -> 0.0292 | E41: 0.1659 | F41: 0.0608
A42: TOTAL (A+B+C+D) | C42: =+C18+C30+C37+C41+0.0001 -> 0.8228 | D42: =+D18+D30+D37+D41 -> 0.46 | E42: 1.111 | F42: 0.6916

Sheet Cronograma Parcelas
A1: CRONOGRAMA FÍSICO-FINANCEIRO
A3: OBJETO: | B3: =+PO!$B$9 -> REURBANIZAÇÃO DA PRAÇA ARAGUAIA
A4: DATA: | B4: =IF(PO!$B$10="","",PO!$B$10) -> 2021-05-17
A5: ART nº: | B5: =IF(PO!$B$11="","",PO!$B$11) -> 11276669
A7: Item | B7: Descrição | E7: Valor (R$) | F7: Parcelas | G7: 1 | H7: 2 | I7: 3
A8: 1. | B8: REURBANIZAÇÃO DA PRAÇA ARAGUAIA | E8: =SUM(E11:E27) -> 365060.14 | G8: 30 dias | H8: 60 dias | I8: 90 dias
A11: 1.1. | B11: SERVIÇOS PRELIMINARES | E11: =+PO!L27 -> 8909.13 | F11: % Período: | G11: 1 | H11: 0 | I11: 0
F12: Valor | G12: =+E11*G11 -> 8909.13 | H12: =+E11*H11 -> 0 | I12: =+E11*I11 -> 0
A13: 1.2. | B13: INSTALAÇÕES PROVISÓRIAS | E13: =+PO!L42 -> 29363.55 | F13: % Período: | G13: 0.7494918019 | H13: 0.1663882603 | I13: 0.08411993781
F14: Valor | G14: =+E13*G13 -> 22007.74 | H14: =+E13*H13 -> 4885.75 | I14: =+E13*I13 -> 2470.06
A15: 1.3. | B15: ADMINISTRAÇÃO LOCAL | E15: =+PO!L45 -> 71899 | F15: % Período: | G15: 0.2374141402 | H15: 0.3776011718 | I15: 0.3849846879
F16: Valor | G16: =+E15*G15 -> 17069.83927 | H16: =+E15*H15 -> 27149.14665 | I16: =+E15*I15 -> 27680.01408
A17: 1.4. | B17: MOVIMENTO DE TERRA | E17: =+PO!L51 -> 30054.18 | F17: % Período: | G17: 1 | H17: 0 | I17: 0
F18: Valor | G18: =+E17*G17 -> 30054.18 | H18: =+E17*H17 -> 0 | I18: =+E17*I17 -> 0
A19: 1.5. | B19: PAVIMENTAÇÃO | E19: =+PO!L56 -> 94809.89 | F19: % Período: | G19: 0.08174706246 | H19: 0.8370721662 | I19: 0.08118077133
F20: Valor | G20: =+E19*G19 -> 7750.43 | H20: =+E19*H19 -> 79362.72 | I20: =+E19*I19 -> 7696.74
A21: 1.6. | B21: MEIO-FIO | E21: =+PO!L59 -> 879.12 | F21: % Período: | G21: 1 | H21: 0 | I21: 0
F22: Valor | G22: =+E21*G21 -> 879.12 | H22: =+E21*H21 -> 0 | I22: =+E21*I21 -> 0
A23: 1.7. | B23: ACESSIBILIDADE | E23: =+PO!L62 -> 5441.35 | F23: % Período: | G23: 0 | H23: 0.4 | I23: 0.6
F24: Valor | G24: =+E23*G23 -> 0 | H24: =+E23*H23 -> 2176.54 | I24: =+E23*I23 -> 3264.81
A25: 1.8. | B25: EQUIPAMENTOS/MOBILIÁRIO URBANO | E25: =+PO!L68 -> 45116.45 | F25: % Período: | G25: 0 | H25: 0.5380073122 | I25: 0.4619926878
F26: Valor | G26: =+E25*G25 -> 0 | H26: =+E25*H25 -> 24272.98 | I26: =+E25*I25 -> 20843.47
A27: 1.9. | B27: PLANTIO | E27: =+PO!L71 -> 78587.47 | F27: % Período: | G27: 0 | H27: 0 | I27: 1
F28: Valor | G28: =+E27*G27 -> 0 | H28: =+E27*H27 -> 0 | I28: =+E27*I27 -> 78587.47
A29: TOTAL PARCIAL | F29: %: | G29: =+G30/E8 -> 0.2374141402 | H29: =+H30/E8 -> 0.3776011718 | I29: =+I30/E8 -> 0.3849846879
F30: Valor | G30: =G12+G14+G16+G18+G20+G22+G24+G26+G28 -> 86670.43927 | H30: =H12+H14+H16+H18+H20+H22+H24+H26+H28 -> 137847.1367 | I30: =I12+I14+I16+I18+I20+I22+I24+I26+I28 -> 140542.5641
A31: TOTAL ACUMULADO | F31: %: | G31: =+G29 -> 0.2374141402 | H31: =+G31+H29 -> 0.6150153121 | I31: =+H31+I29 -> 1
F32: Valor | G32: =+G30 -> 86670.43927 | H32: =+G32+H30 -> 224517.5759 | I32: =+H32+I30 -> 365060.14

Sheet Curva ABC
A1: Curva ABC | I1: INSTRUÇÕES
I2: *Acessar a guia dados; *Selecionar a célula E9; *Clicar em classificar de Z a A; *Para desfazer, selecionar a célula B9 e clicar em classificar de A a Z.
B3: OBRA: | C3: =+PO!$B$9 -> REURBANIZAÇÃO DA PRAÇA ARAGUAIA | E3: A=80% DO VALOR DO ORÇAMENTO
B4: DATA: | C4: =IF(PO!$B$10="","",PO!$B$10) -> 2021-05-17 | E4: B=15% DO VALOR DO ORÇAMENTO
B5: ART: | C5: =IF(PO!$B$11="","",PO!$B$11) -> 11276669 | E5: C=5% DO VALOR DO ORÇAMENTO
B7: Item | C7: Descrição | D7: Valor | E7: % | F7: % acum. | G7: ABC | I7: Observação: Se o primeiro item não estiver incluso na seleção,proceder da seguinte forma: *Na guia Dados, clicar em Classificar; *Desmarcar a caixa de seleção "Meus dados contém cabeçalho"; *Clicar novamente em classificar de Z a A.
A9: x | B9: 106 | C9: PISO CONCRETO ARMADO 8 cm - PASSEIO (PANO ÚNICO) | D9: =+PO!L54 -> 85488.2 | E9: =+D9/$D$48 -> 0.2341756621 | F9: =+F8+E9 -> 0.2341756621 | G9: =IF(OR(F9<0.81,E9>0.81),"A",(IF(OR(F9<0.96,E9>0.16),"B","C"))) -> A
A10: x | B10: 257 | C10: GRAMA CATARINA | D10: =+PO!L70 -> 78587.47 | E10: 0.2152726671 | F10: 0.4494483293 | G10: A
A11: x | B11: 90 | C11: ADMINISTRAÇÃO LOCAL | D11: =+PO!L44 -> 71899 | E11: 0.1969511106 | F11: 0.6463994398 | G11: A
B12: 182 | C12: PERGOLADO EM MADEIRA | D12: =+PO!L66 -> 24272.98 | E12: 0.06649035964 | F12: 0.7128897995 | G12: A
A13: x | B13: 154 | C13: BANCO B (C/ ENCOSTO) - L=2,00 m - PADRÃO SMAM | D13: =+PO!L64 -> 14666.9 | E13: 0.04017666788 | F13: 0.7530664673 | G13: A
B14: 100 | C14: REMOÇÃO DO MATERIAL ESCAVADO | D14: =+PO!L50 -> 12497.52 | E14: 0.03423414016 | F14: 0.7873006075 | G14: A
A15: x | B15: 125 | C15: PISO PODOTÁTIL | D15: =+PO!L55 -> 9291.56 | E15: 0.02545213509 | F15: 0.8127527426 | G15: B
A16: x | B16: 91 | C16: MODELAGEM | D16: =+PO!L47 -> 8637.28 | E16: 0.02365988245 | F16: 0.8364126251 | G16: B
A17: x | B17: 98 | C17: ESCAVAÇÃO MANUAL DE SOLO ATÉ 1,30 m | D17: =+PO!L48 -> 8267 | E17: 0.02264558382 | F17: 0.8590582089 | G17: B
A18: x | B18: 62 | C18: TAPUME EM CHAPA DE COMPENSADO RESINADO | D18: =+PO!L29 -> 7232.72 | E18: 0.0198124068 | F18: 0.8788706157 | G18: B
B19: 66 | C19: TELHEIRO | D19: =+PO!L31 -> 5880.25 | E19: 0.01610761997 | F19: 0.8949782356 | G19: B
A20: x | B20: 172 | C20: LIXEIRA METÁLICA | D20: =+PO!L65 -> 5518.14 | E20: 0.01511570121 | F20: 0.9100939369 | G20: B
B21: 135 | C21: RAMPA PPNE'S TIPO 1 - 1,50 m (ABA 1,50 m) | D21: =+PO!L61 -> 5441.35 | E21: 0.01490535231 | F21: 0.9249992892 | G21: B
B22: 76 | C22: SINALIZAÇÃO COM TELA PLÁSTICA LARANJA FIXADA EM CONE PLÁSTICO | D22: =+PO!L39 -> 3323.62 | E22: 0.009104308129 | F22: 0.9341035973 | G22: B
A23: x | B23: 1 | C23: LIMPEZA MANUAL DE VEGETAÇÃO EM TERRENO COM ENXADA | D23: =+PO!L17 -> 3259.44 | E23: 0.008928501479 | F23: 0.9430320988 | G23: B
A24: x | B24: 71 | C24: INSTALAÇÃO PROVISÓRIA DE ENERGIA | D24: =+PO!L35 -> 2703.45 | E24: 0.007405492147 | F24: 0.9504375909 | G24: B
A25: x | B25: 55 | C25: REMOÇÃO DE ENTULHO C/CAÇAMBA | D25: =+PO!L26 -> 2474.4 | E25: 0.006778061281 | F25: 0.9572156522 | G25: B
A26: x | B26: 69 | C26: LOCAÇÃO CONTAINER SANITÁRIO S/FRETE | D26: =+PO!L33 -> 2267 | E26: 0.006209935711 | F26: 0.9634255879 | G26: C
A27: x | B27: 70 | C27: FRETE P/ CONTAINER | D27: =+PO!L34 -> 2031.6 | E27: 0.00556511045 | F27: 0.9689906984 | G27: C
A28: x | B28: 68 | C28: LOCAÇÃO CONTAINER ESCRITÓRIO S/FRETE | D28: =+PO!L32 -> 1560 | E28: 0.004273268509 | F28: 0.9732639669 | G28: C
A29: x | B29: 53 | C29: DESTOCAMENTO | D29: =+PO!L25 -> 1343.04 | E29: 0.003678955473 | F29: 0.9769429223 | G29: C
A30: x | B30: 73 | C30: INSTALAÇÃO PROVISÓRIA DE ESGOTO | D30: =+PO!L37 -> 1057.44 | E30: 0.002896618623 | F30: 0.979839541 | G30: C
A31: x | B31: 72 | C31: INSTALAÇÃO PROVISÓRIA DE ÁGUA | D31: =+PO!L36 -> 977.59 | E31: 0.002677887539 | F31: 0.9825174285 | G31: C
A32: x | B32: 13 | C32: REMOÇÃO MEIO-FIO VIÁRIO | D32: =+PO!L21 -> 919.6 | E32: 0.002519037 | F32: 0.9850364655 | G32: C
A33: x | B33: 129 | C33: REPOSIÇÃO MEIO-FIO VIÁRIO | D33: =+PO!L58 -> 879.12 | E33: 0.002408151161 | F33: 0.9874446167 | G33: C
A34: x | B34: 89 | C34: NIVELAMENTO | D34: =+PO!L41 -> 846.22 | E34: 0.002318029024 | F34: 0.9897626457 | G34: C
A35: x | B35: 88 | C35: LOCAÇÃO | D35: =+PO!L40 -> 740.9 | E35: 0.002029528614 | F35: 0.9917921743 | G35: C
B36: 183 | C36: REVESTIMENTO CERÂMICO | D36: =+PO!L67 -> 658.43 | E36: 0.001803620631 | F36: 0.9935957949 | G36: C
A37: x | B37: 99 | C37: ESCAVAÇÃO MECÂNICA DE SOLO | D37: =+PO!L49 -> 652.38 | E37: 0.001787048019 | F37: =+F36+E37 -> 0.9953828429 | G37: C
A38: x | B38: 74 | C38: PLACA DE OBRA | D38: =+PO!L38 -> 506.04 | E38: 0.001386182562 | F38: 0.9967690255 | G38: C
A39: x | B39: 15 | C39: REMOÇÃO BANCO S/ ENCOSTO | D39: =+PO!L22 -> 367.62 | E39: 0.00100701216 | F39: 0.9977760377 | G39: C
B40: 64 | C40: DESMONTAGEM DE TAPUME | D40: =+PO!L30 -> 236.72 | E40: 0.0006484411034 | F40: 0.9984244788 | G40: C
B41: 5 | C41: REMOÇÃO DE MEIOS-FIOS | D41: =+PO!L19 -> 188.57 | E41: 0.0005165450273 | F41: 0.9989410238 | G41: C
A42: x | B42: 27 | C42: REMOÇÃO LIXEIRA | D42: =+PO!L23 -> 162.99 | E42: 0.0004464743809 | F42: 0.9993874982 | G42: C
B43: 6 | C43: REMOÇÃO DE PASSEIOS | D43: =+PO!L20 -> 109.01 | E43: 0.0002986083334 | F43: 0.9996861065 | G43: C
B44: 4 | C44: REMOÇÃO DE PASTILHAS CERÂMICAS | D44: =+PO!L18 -> 44.42 | E44: 0.0001216785815 | F44: 0.9998077851 | G44: C
B45: 51 | C45: LIMPEZA DOS MONUMENTOS COM JATO DE ALTA PRESSÃO | D45: =+PO!L24 -> 40.04 | E45: 0.0001096805584 | F45: 0.9999174657 | G45: C
A46: x | B46: 102 | C46: NIVELAMENTO CAIXA DE PASSAGEM | D46: =+PO!L53 -> 30.13 | E46: 8.253434626e-05 | F46: 1 | G46: C
A48: x | B48: TOTAL: | D48: =SUM(D9:D46) -> 365060.14 | E48: =SUM(E9:E46) -> 1

Sheet Tabela (hidden)
A1: TABELA DE PREÇOS - SMAMUS
A3: =CONCATENATE("Data Base: ", M.O.!E17) -> Data Base: Abr/2021 | I3: Súmula 253 - TCU
D4: Leis Sociais Horistas: | G4: =+M.O.!D7 -> 1.111 | I4: “Comprovada a inviabilidade técnico-econômica de parcelamento do objeto da licitação, nos termos da legislação em vigor, os itens de fornecimento de materiais e equipamentos de natureza específica que possam ser fornecidos por empresas com especialidades próprias e diversas e que representem percentual significativo do preço global da obra devem apresentar incidência de taxa de Bonificação e Despesas Indiretas – BDI reduzida em relação à taxa aplicável aos demais itens“
D5: Leis Sociais Mensalistas: | G5: =+M.O.!D8 -> 0.6916
F6: BDI: | G6: =+M.O.!F7 -> 22,15%
E7: BDI diferenciado: | G7: =IF($G$6="28,21%",19.35%,13.7%) -> 0.137
E8: BDI de projeto: | G8: =+PO!L13 -> 0.1538
A10: Código | B10: Composição | C10: Un | D10: Material | E10: M.O. | F10: Total | G10: Total c/BDI
A11: 1 | B11: SERVIÇOS PRELIMINARES
A12: =+Composições!A12 -> 98524 | B12: LIMPEZA MANUAL DE VEGETAÇÃO EM TERRENO COM ENXADA | C12: m² | D12: 0 | E12: =+Composições!$C$15 -> 2.65 | F12: =+D12+E12 -> 2.65 | G12: =+Composições!$F$21 -> 3.24
A13: =+Composições!#REF! ->  | B13: DEMOLIÇÃO DE CONCRETO ARMADO COM MARTELETE C/REMOÇÃO DE ENTULHO | C13: m³ | D13: =+Composições!#REF! ->  | E13: =+Composições!#REF! ->  | G13: =+Composições!#REF! -> 
A14: =+Composições!#REF! ->  | B14: DEMOLIÇÃO DE PISO DE CONCRETO ARMADO COM MARTELETE Esp = 8 cm C/REMOÇÃO DE ENTULHO | C14: m² | D14: =+Composições!#REF! ->  | E14: =+Composições!#REF! ->  | F14: =+D14+E14 ->  | G14: =+Composições!#REF! -> 
A15: =+Composições!A46 -> 25 | B15: REMOÇÃO DE PASSEIOS | C15: m² | D15: 0 | E15: =+Composições!$C$49 -> 8.11 | F15: =+D15+E15 -> 8.11 | G15: =+Composições!$F$55 -> 9.91
A16: =+Composições!#REF! ->  | B16: DEMOLIÇÃO TELAMENTO h=5,50 m S/TUBOS E S/VIGA C/REMOÇÃO DE ENTULHO | C16: m | D16: =+Composições!#REF! ->  | E16: =+Composições!#REF! ->  | G16: =+Composições!#REF! -> 
A17: =+Composições!#REF! ->  | B17: DEMOLIÇÃO TELAMENTO h=3,00 m S/TUBOS E S/VIGA C/REMOÇÃO DE ENTULHO | C17: m | D17: =+Composições!#REF! ->  | E17: =+Composições!#REF! ->  | G17: =+Composições!#REF! -> 
A18: =+Composições!#REF! ->  | B18: DEMOLIÇÃO TELAMENTO h=1,00 m C/REMOÇÃO DE ENTULHO | C18: m | D18: =+Composições!#REF! ->  | E18: =+Composições!#REF! ->  | G18: =+Composições!#REF! -> 
A19: =+Composições!#REF! ->  | B19: DEMOLIÇÃO TUBOS TELAMENTO h=5,50 m C/REMOÇÃO DE ENTULHO | C19: m | D19: =+Composições!#REF! ->  | E19: =+Composições!#REF! ->  | G19: =+Composições!#REF! -> 
A20: =+Composições!#REF! ->  | B20: DEMOLIÇÃO TUBOS TELAMENTO h=3,00 m C/REMOÇÃO DE ENTULHO | C20: m | D20: =+Composições!#REF! ->  | E20: =+Composições!#REF! ->  | G20: =+Composições!#REF! -> 
A21: =+Composições!#REF! ->  | B21: DEMOLIÇÃO VIGA TELAMENTO C/REMOÇÃO DE ENTULHO | C21: m | D21: =+Composições!#REF! ->  | E21: =+Composições!#REF! ->  | G21: =+Composições!#REF! -> 
A22: =+Composições!A58 -> 90 | B22: REMOÇÃO MEIO-FIO VIÁRIO C/REMOÇÃO DE ENTULHO | C22: m | D22: 0 | E22: =+Composições!C60 -> 17.11 | F22: 17.11 | G22: =+Composições!F66 -> 20.9
A23: =+Composições!#REF! ->  | B23: REMOÇÃO BANCO C/ ENCOSTO | C23: un | D23: =+Composições!#REF! ->  | E23: =+Composições!#REF! ->  | G23: =+Composições!#REF! -> 
A24: =+Composições!A69 -> 101 | B24: REMOÇÃO BANCO S/ ENCOSTO | C24: un | D24: =+Composições!$C$76 -> 21.49 | E24: =+Composições!$C$79 -> 28.67 | F24: 50.16 | G24: =+Composições!$F$85 -> 61.27
A25: =+Composições!#REF! ->  | B25: REMOÇÃO PARACICLO | C25: un | D25: =+Composições!#REF! ->  | E25: =+Composições!#REF! ->  | G25: =+Composições!#REF! -> 
A26: =+Composições!#REF! ->  | B26: DEMOLIÇÃO CAIXA DE AREIA C/REMOÇÃO DE ENTULHOS | C26: un | D26: =+Composições!#REF! ->  | E26: =+Composições!#REF! ->  | G26: =+Composições!#REF! -> 
A27: =+Composições!#REF! ->  | B27: DEMOLIÇÃO CANCHA DE BOCHA C/REMOÇÃO DE ENTULHOS | C27: un | D27: =+Composições!#REF! ->  | E27: =+Composições!#REF! ->  | G27: =+Composições!#REF! -> 
A28: =+Composições!#REF! ->  | B28: DEMOLIÇÃO COBERTURA CANCHA DE BOCHA C/REMOÇÃO DE ENTULHOS | C28: un | D28: =+Composições!#REF! ->  | E28: =+Composições!#REF! ->  | G28: =+Composições!#REF! -> 
A29: =+Composições!#REF! ->  | B29: DEMOLIÇÃO CHURRASQUEIRA C/REMOÇÃO DE ENTULHOS | C29: un | D29: =+Composições!#REF! ->  | E29: =+Composições!#REF! ->  | G29: =+Composições!#REF! -> 
A30: =+Composições!#REF! ->  | B30: DEMOLIÇÃO MESA E BANCOS DE CONCRETO C/REMOÇÃO DE ENTULHOS | C30: cj | D30: =+Composições!#REF! ->  | E30: =+Composições!#REF! ->  | G30: =+Composições!#REF! -> 
A31: =+Composições!#REF! ->  | B31: DEMOLIÇÃO BEBEDOURO C/ PISO DE CONCRETO C/REMOÇÃO DE ENTULHOS | C31: un | D31: =+Composições!#REF! ->  | E31: =+Composições!#REF! ->  | G31: =+Composições!#REF! -> 
A32: =+Composições!#REF! ->  | B32: DEMOLIÇÃO BEBEDOURO C/REMOÇÃO DE ENTULHOS | C32: un | D32: =+Composições!#REF! ->  | E32: =+Composições!#REF! ->  | G32: =+Composições!#REF! -> 
A33: =+Composições!#REF! ->  | B33: DEMOLIÇÃO FRADINHO BASE CIRCULAR C/REMOÇÃO DE ENTULHOS | C33: un | D33: =+Composições!#REF! ->  | E33: =+Composições!#REF! ->  | G33: =+Composições!#REF! -> 
A34: =+Composições!#REF! ->  | B34: DEMOLIÇÃO FRADINHO BASE OCTOGONAL C/REMOÇÃO DE ENTULHOS | C34: un | D34: =+Composições!#REF! ->  | E34: =+Composições!#REF! ->  | G34: =+Composições!#REF! -> 
A35: =+Composições!#REF! ->  | B35: REMOÇÃO MESA DE DAMAS | C35: un | D35: =+Composições!#REF! ->  | E35: =+Composições!#REF! ->  | G35: =+Composições!#REF! -> 
A36: =+Composições!A88 -> 160 | B36: REMOÇÃO LIXEIRA | C36: un | D36: =+Composições!$C$95 -> 23.63 | E36: =+Composições!$C$98 -> 20.85 | F36: 44.48 | G36: =+Composições!$F$104 -> 54.33
A37: =+Composições!#REF! ->  | B37: REMOÇÃO ESTRUTURA 1, 2, 3, 5 E 7 | C37: un | D37: =+Composições!#REF! ->  | E37: =+Composições!#REF! ->  | G37: =+Composições!#REF! -> 
A38: =+Composições!#REF! ->  | B38: REMOÇÃO ESTRUTURA 4 | C38: un | D38: =+Composições!#REF! ->  | E38: =+Composições!#REF! ->  | G38: =+Composições!#REF! -> 
A39: =+Composições!#REF! ->  | B39: REMOÇÃO ESTRUTURA 6 E 8 | C39: un | D39: =+Composições!#REF! ->  | E39: =+Composições!#REF! ->  | G39: =+Composições!#REF! -> 
A40: =+Composições!#REF! ->  | B40: REMOÇÃO ESTRUTURA 9 | C40: un | D40: =+Composições!#REF! ->  | E40: =+Composições!#REF! ->  | G40: =+Composições!#REF! -> 
A41: =+Composições!#REF! ->  | B41: REMOÇÃO GANGORRA | C41: un | D41: =+Composições!#REF! ->  | E41: =+Composições!#REF! ->  | G41: =+Composições!#REF! -> 
A42: =+Composições!#REF! ->  | B42: REMOÇÃO BARRA-BALANÇO | C42: un | D42: =+Composições!#REF! ->  | E42: =+Composições!#REF! ->  | G42: =+Composições!#REF! -> 
A43: =+Composições!#REF! ->  | B43: REMOÇÃO BALANÇO PADRÃO SMAM | C43: un | D43: =+Composições!#REF! ->  | E43: =+Composições!#REF! ->  | G43: =+Composições!#REF! -> 
A44: =+Composições!#REF! ->  | B44: REMOÇÃO 1/2 BALANÇO | C44: un | D44: =+Composições!#REF! ->  | E44: =+Composições!#REF! ->  | G44: =+Composições!#REF! -> 
A45: =+Composições!#REF! ->  | B45: REMOÇÃO ESCORREGADOR | C45: un | D45: =+Composições!#REF! ->  | E45: =+Composições!#REF! ->  | G45: =+Composições!#REF! -> 
A46: =+Composições!#REF! ->  | B46: REMOÇÃO BARRA ALONGAMENTO - 2 ALTURAS | C46: un | D46: =+Composições!#REF! ->  | E46: =+Composições!#REF! ->  | G46: =+Composições!#REF! -> 
A47: =+Composições!#REF! ->  | B47: REMOÇÃO BARRAS PARALELAS | C47: un | D47: =+Composições!#REF! ->  | E47: =+Composições!#REF! ->  | G47: =+Composições!#REF! -> 
A48: =+Composições!#REF! ->  | B48: REMOÇÃO APOIO P/ MEMBROS SUPERIORES | C48: un | D48: =+Composições!#REF! ->  | E48: =+Composições!#REF! ->  | G48: =+Composições!#REF! -> 
A49: =+Composições!#REF! ->  | B49: REMOÇÃO BARRA P/ ALONGAMENTO | C49: un | D49: =+Composições!#REF! ->  | E49: =+Composições!#REF! ->  | G49: =+Composições!#REF! -> 
A50: =+Composições!#REF! ->  | B50: REMOÇÃO BARRA HORIZONTAL 4 MÓDULOS | C50: un | D50: =+Composições!#REF! ->  | E50: =+Composições!#REF! ->  | G50: =+Composições!#REF! -> 
A51: =+Composições!#REF! ->  | B51: REMOÇÃO BARRA HORIZONTAL 3 MÓDULOS | C51: un | D51: =+Composições!#REF! ->  | E51: =+Composições!#REF! ->  | G51: =+Composições!#REF! -> 
A52: =+Composições!#REF! ->  | B52: REMOÇÃO BARRA HORIZONTAL 1 MÓDULO | C52: un | D52: =+Composições!#REF! ->  | E52: =+Composições!#REF! ->  | G52: =+Composições!#REF! -> 
A53: =+Composições!#REF! ->  | B53: REMOÇÃO ESPALDAR | C53: un | D53: =+Composições!#REF! ->  | E53: =+Composições!#REF! ->  | G53: =+Composições!#REF! -> 
A54: =+Composições!#REF! ->  | B54: REMOÇÃO PRANCHA ABDOMINAIS | C54: un | D54: =+Composições!#REF! ->  | E54: =+Composições!#REF! ->  | G54: =+Composições!#REF! -> 
A55: =+Composições!#REF! ->  | B55: REMOÇÃO GOLEIRA FUTEBOL DE SALÃO | C55: un | D55: =+Composições!#REF! ->  | E55: =+Composições!#REF! ->  | G55: =+Composições!#REF! -> 
A56: =+Composições!#REF! ->  | B56: REMOÇÃO GOLEIRA FUTEBOL SETE | C56: un | D56: =+Composições!#REF! ->  | E56: =+Composições!#REF! ->  | G56: =+Composições!#REF! -> 
A57: =+Composições!#REF! ->  | B57: REMOÇÃO GOLEIRA FUTEBOL DE CAMPO | C57: un | D57: =+Composições!#REF! ->  | E57: =+Composições!#REF! ->  | G57: =+Composições!#REF! -> 
A58: =+Composições!#REF! ->  | B58: REMOÇÃO POSTE DE VÔLEI | C58: un | D58: =+Composições!#REF! ->  | E58: =+Composições!#REF! ->  | G58: =+Composições!#REF! -> 
A59: =+Composições!#REF! ->  | B59: REMOÇÃO TABELA DE BASQUETE | C59: un | D59: =+Composições!#REF! ->  | E59: =+Composições!#REF! ->  | G59: =+Composições!#REF! -> 
A60: 380 | B60: REMOÇÃO DE ÁRVORES | C60: cj | D60: Cotar o
A61: 383 | B61: DESTOCAMENTO | C61: cj | D61: conjunto conforme
A62: 387 | B62: TRANSPLANTE DE ÁRVORES | C62: cj | D62: o projeto
A63: =+Composições!A132 -> 390 | B63: REMOÇÃO DE ENTULHO C/CAÇAMBA | C63: m³ | D63: =+Composições!$C$134 -> 114.64 | E63: =+Composições!$C$136 -> 11.97 | F63: 126.61 | G63: =+Composições!$F$142 -> 154.65
A64: =+Composições!#REF! ->  | B64: PLOTAGENS | C64: m² | D64: =+Composições!#REF! ->  | E64: 0 | F64: =+D64+E64 ->  | G64: =+Composições!#REF! -> 
A65: =+Composições!#REF! ->  | B65: "AS BUILT" | C65: un | D65: 0 | E65: =+Composições!#REF! ->  | F65: =+D65+E65 ->  | G65: =+Composições!#REF! -> 
A66: 2 | B66: DESPESAS LEGAIS, LICENÇAS, TAXAS, CONTRIBUIÇÕES
A67: =+Composições!#REF! ->  | B67: ART (ANOTAÇÃO DE RESPONSABILIDADE TÉCNICA) | C67: un | D67: =+Composições!#REF! ->  | E67: 0 | F67: =+D67+E67 ->  | G67: =+Composições!#REF! -> 
A68: =+Composições!A407 -> AUX. 453 | B68: CIP (CONTRIBUIÇÃO ILUMINAÇÃO PÚBLICA) | C68: % | D68: =+Composições!$C$409 -> 25.96 | E68: 0 | F68: =+D68+E68 -> 25.96 | G68: =+Composições!$F$415 -> 31.71
A69: =+Composições!#REF! ->  | B69: MTRCC (MANIFESTO DE TRANSPORTE DE RESÍDUOS DA CONSTRUÇÃO CIVIL) | C69: un | D69: =+Composições!#REF! ->  | E69: 0 | F69: =+D69+E69 ->  | G69: =+Composições!#REF! -> 
A70: =+Composições!#REF! ->  | B70: PCMAT (PROGRAMA DE CONDIÇÕES E MEIO AMBIENTE DE TRABALHO NA INDÚSTRIA DA CONSTRUÇÃO) | C70: un | D70: =+Composições!#REF! ->  | E70: 0 | F70: =+D70+E70 ->  | G70: =+Composições!#REF! -> 
A71: 3 | B71: INSTALAÇÕES PROVISÓRIAS
A72: =+Composições!A145 -> 500 | B72: TAPUME EM CHAPA DE COMPENSADO RESINADO | C72: m² | D72: =+Composições!$C$154 -> 26.2 | E72: =+Composições!$C$159 -> 41.09 | F72: =+D72+E72 -> 67.29 | G72: =+Composições!$F$165 -> 82.19
A73: =+Composições!#REF! ->  | B73: TAPUME EM TELA GALVANIZADA | C73: m² | D73: =+Composições!#REF! ->  | E73: =+Composições!#REF! ->  | G73: =+Composições!#REF! -> 
A74: =+Composições!A168 -> 507 | B74: DESMONTAGEM DE TAPUME | C74: m² | D74: 0 | E74: =+Composições!C171 -> 2.2 | F74: 2.2 | G74: =+Composições!$F$177 -> 2.69
A75: =+Composições!#REF! ->  | B75: GALPÃO DE OBRA | C75: m² | D75: =+Composições!#REF!*0.7 ->  | E75: =+Composições!#REF!*0.3 ->  | G75: =+Composições!#REF! -> 
A76: =+Composições!A180 -> 508 | B76: TELHEIRO | C76: m² | D76: =+Composições!C182*0.7 -> 269.584 | E76: =+Composições!C182*0.3 -> 115.536 | F76: 385.12 | G76: =+Composições!$F$188 -> 470.42
A77: =+Composições!#REF! ->  | B77: LOCAÇÃO SANITÁRIO QUÍMICO | C77: % | D77: =+Composições!#REF! ->  | E77: 0 | G77: =+Composições!#REF! -> 
A78: =+Composições!A191 -> 515 | B78: LOCAÇÃO CONTAINER ESCRITÓRIO S/FRETE | C78: % | D78: =+Composições!$C$193 -> 12.77 | E78: 0 | F78: 12.77 | G78: =+Composições!$F$199 -> 15.6
A79: =+Composições!A202 -> 517 | B79: LOCAÇÃO CONTAINER SANITÁRIO S/FRETE | C79: % | D79: =+Composições!$C$204 -> 18.56 | E79: 0 | F79: 18.56 | G79: =+Composições!$F$210 -> 22.67
A80: =+Composições!A213 -> 520 | B80: FRETE P/ CONTAINER | C80: cj | D80: =+Composições!$C$215 -> 831.6 | E80: 0 | F80: 831.6 | G80: =+Composições!$F$221 -> 1015.8
A81: =+Composições!A224 -> 530 | B81: INSTALAÇÃO PROVISÓRIA DE ENERGIA | C81: pt | D81: =+Composições!C246 -> 2127.22 | E81: =+Composições!C249 -> 86 | F81: =+D81+E81 -> 2213.22 | G81: =+Composições!F255 -> 2703.45
A82: =+Composições!A258 -> 535 | B82: INSTALAÇÃO PROVISÓRIA DE ÁGUA | C82: pt | D82: =0.7*Composições!$C$266 -> 560.224 | E82: =0.3*Composições!$C$266 -> 240.096 | F82: 800.32 | G82: =+Composições!$F$272 -> 977.59
A83: =+Composições!A275 -> 537 | B83: INSTALAÇÃO PROVISÓRIA DE ESGOTO | C83: pt | D83: =0.7*Composições!$C$280 -> 605.983 | E83: =0.3*Composições!$C$280 -> 259.707 | F83: =+D83+E83 -> 865.69 | G83: =+Composições!$F$286 -> 1057.44
A84: =+Composições!$A$289 -> 542 | B84: PLACA DE OBRA | C84: m² | D84: =+Composições!$C$297 -> 122.21 | E84: =+Composições!$C$302 -> 21.64 | F84: 143.85 | G84: =+Composições!$F$308 -> 175.71
A85: =+Composições!#REF! ->  | B85: SINALIZAÇÃO COM FITA ZEBRADA FIXADA EM CONE PLÁSTICO | C85: m | D85: =+Composições!#REF! ->  | E85: =+Composições!#REF! ->  | G85: =+Composições!#REF! -> 
A86: =+Composições!A311 -> 552 | B86: SINALIZAÇÃO COM TELA PLÁSTICA LARANJA FIXADA EM CONE PLÁSTICO | C86: m | D86: =+Composições!$C$314 -> 5.25 | E86: =+Composições!C317 -> 4.68 | F86: 9.93 | G86: =+Composições!F323 -> 12.13
A87: =+Composições!#REF! ->  | B87: SINALIZAÇÃO COM SINALIZADOR ELETRÔNICO PISCANTE FIXADO EM CONE PLÁSTICO | C87: m | D87: =+Composições!#REF! ->  | E87: =+Composições!#REF! ->  | G87: =+Composições!#REF! -> 
A88: =+Composições!#REF! ->  | B88: PROJETO DE SINALIZAÇÃO | C88: un | D88: 0 | E88: =+Composições!#REF! ->  | G88: =+Composições!#REF! -> 
A89: =+Composições!A326 -> 99064 | B89: LOCAÇÃO | C89: m | D89: =+Composições!$C$328*0.07 -> 0.0357 | E89: =+Composições!$C$328*0.93 -> 0.4743 | F89: =+D89+E89 -> 0.51 | G89: =+Composições!$F$334 -> 0.62
A90: =+Composições!A337 -> 565 | B90: NIVELAMENTO | C90: m² | D90: =+Composições!$C$340 -> 0.02 | E90: =+Composições!$C$344 -> 0.22 | F90: =+D90+E90 -> 0.24 | G90: =+Composições!$F$350 -> 0.29
A91: 4 | B91: ADMINISTRAÇÃO LOCAL
A92: =+Composições!#REF! ->  | B92: ENGENHEIRO | C92: % | D92: 0 | E92: =+Composições!#REF! ->  | F92: =+D92+E92 ->  | G92: =+Composições!#REF! -> 
A93: =+Composições!#REF! ->  | B93: MESTRE DE OBRAS | C93: % | D93: 0 | E93: =+Composições!#REF! ->  | G93: =+Composições!#REF! -> 
A94: =+Composições!#REF! ->  | B94: ENCARREGADO | C94: % | D94: 0 | E94: =+Composições!#REF! ->  | G94: =+Composições!#REF! -> 
A95: =+Composições!#REF! ->  | B95: VIGIA NOTURNO (SINAPI) | C95: % | D95: 0 | E95: =+Composições!#REF! ->  | G95: =+Composições!#REF! -> 
A96: =+Composições!#REF! ->  | B96: VIGIA NOTURNO (SINDICATO) | C96: % | D96: 0 | E96: =+Composições!#REF! ->  | F96: =+D96+E96 ->  | G96: =+Composições!#REF! -> 
A97: =+Composições!#REF! ->  | B97: VIGIA DIURNO SÁBADOS, DOMINGOS E FERIADOS | C97: % | D97: 0 | E97: =+Composições!#REF! ->  | G97: =+Composições!#REF! -> 
A98: =+Composições!#REF! ->  | B98: FORNECIMENTO E INSTALAÇÃO DE EXTINTOR DE PÓ QUÍMICO SECO (PQS), 4 kg | C98: un | D98: =+Composições!#REF! ->  | E98: =+Composições!#REF! ->  | G98: =+Composições!#REF! -> 
A99: =+Composições!#REF! ->  | B99: FORNECIMENTO E INSTALAÇÃO DE EXTINTOR DE ÁGUA PRESSURIZADA (AP), 10 l | C99: un | D99: =+Composições!#REF! ->  | E99: =+Composições!#REF! ->  | G99: =+Composições!#REF! -> 
A100: =+Composições!$A$384 -> AUX. 750 | B100: CONSUMO DE ENERGIA ELÉTRICA | C100: % | D100: =+Composições!$C$386 -> 0.87 | E100: 0 | F100: 0.87 | G100: =+Composições!$F$392 -> 1.06
A101: =+Composições!$A$395 -> AUX. 753 | B101: CONSUMO DE ÁGUA TRATADA | C101: % | D101: =+Composições!$C$398 -> 8.49 | E101: 0 | F101: 8.49 | G101: =+Composições!$F$404 -> 10.37
A102: 5 | B102: MOVIMENTO DE TERRA
A103: =+Composições!A418 -> 1002 | B103: MODELAGEM | C103: m² | D103: 0 | E103: =+Composições!$C$424 -> 2.34 | F103: 2.34 | G103: =+Composições!$F$430 -> 2.96
A104: =+Composições!#REF! ->  | B104: TERRAPLENAGEM | C104: d | D104: =+Composições!#REF! ->  | E104: 0 | G104: =+Composições!#REF! -> 
A105: =+Composições!#REF! ->  | B105: ATERRO MECÂNICO COM MATERIAL IMPORTADO | C105: m³ | D105: =+Composições!#REF! ->  | E105: =+Composições!#REF! ->  | G105: =+Composições!#REF! -> 
A106: =+Composições!#REF! ->  | B106: ATERRO MANUAL COM MATERIAL IMPORTADO COM COMPACTAÇÃO MECÂNICA | C106: m³ | D106: =+Composições!#REF! ->  | E106: =+Composições!#REF! ->  | G106: =+Composições!#REF! -> 
A107: =+Composições!#REF! ->  | B107: ATERRO MANUAL C/MATERIAL IMPORTADO C/COMPACTAÇÃO MANUAL | C107: m³ | D107: =+Composições!#REF! ->  | E107: =+Composições!#REF! ->  | F107: =+D107+E107 ->  | G107: =+Composições!#REF! -> 
A108: =+Composições!A433 -> 93358 | B108: ESCAVAÇÃO MANUAL DE SOLO ATÉ 1,30 m | C108: m³ | D108: 0 | E108: =+Composições!$F$437 -> 67.68 | F108: 67.68 | G108: =+Composições!$F$441 -> 82.67
A109: =+Composições!A444 -> 101114 | B109: ESCAVAÇÃO MECÂNICA DE SOLO | C109: m³ | D109: =+Composições!$C$447 -> 2.69 | E109: 0 | F109: 2.69 | G109: =+Composições!$F$455 -> 3.93
A110: =+Composições!#REF! ->  | B110: REATERRO MANUAL C/COMPACTÇÃO MANUAL | C110: m³ | D110: 0 | E110: =+Composições!#REF! ->  | G110: =+Composições!#REF! -> 
A111: 6 | B111: PAVIMENTAÇÃO
A112: =+Composições!A470 -> 1900 | B112: NIVELAMENTO CAIXAS DE PASSAGEM | C112: un | D112: =+Composições!$C$474 -> 9.71 | E112: =+Composições!$C$477 -> 14.96 | F112: 24.67 | G112: =+Composições!$F$483 -> 30.13
A113: =+Composições!#REF! ->  | B113: LASTRO DE BRITA | C113: m³ | D113: =+Composições!#REF! ->  | E113: =+Composições!#REF! ->  | G113: =+Composições!#REF! -> 
A114: =+Composições!#REF! ->  | B114: SAIBRO ROSA - COMPACTAÇÃO MECÂNICA - 6 cm | C114: m² | D114: =+Composições!#REF! ->  | E114: =+Composições!#REF! ->  | G114: =+Composições!#REF! -> 
A115: =+Composições!#REF! ->  | B115: SAIBRO ROSA - COMPACTAÇÃO MECÂNICA - 6 cm | C115: m³ | D115: =+Composições!#REF! ->  | E115: =+Composições!#REF! ->  | G115: =+Composições!#REF! -> 
A116: =+Composições!A486 -> 2022 | B116: PISO CONCRETO ARMADO 8 cm - PASSEIO (PANO ÚNICO) | C116: m² | D116: =+Composições!$C$497 -> 63.25 | E116: =+Composições!$C$502 -> 13.83 | F116: 77.08 | G116: =+Composições!$F$508 -> 94.15
A117: =+Composições!#REF! ->  | B117: PISO CONCRETO ARMADO 8 cm - QUADRA (PANO ÚNICO) | C117: m² | D117: =+Composições!#REF! ->  | E117: =+Composições!#REF! ->  | F117: =+D117+E117 ->  | G117: =+Composições!#REF! -> 
A118: =+Composições!#REF! ->  | B118: PISO CONCRETO ARMADO 10 cm - ACADEMIA 3ª IDADE | C118: m² | D118: =+Composições!#REF! ->  | E118: =+Composições!#REF! ->  | G118: =+Composições!#REF! -> 
A119: =+Composições!#REF! ->  | B119: PISO CONCRETO ARMADO 20 cm - ARMADURA DUPLA | C119: m² | D119: =+Composições!#REF! ->  | E119: =+Composições!#REF! ->  | G119: =+Composições!#REF! -> 
A120: =+Composições!#REF! ->  | B120: PAVIMENTAÇÃO BLOCOS RETANGULARES DE CONCRETO - 6 cm - 35 MPa | C120: m² | D120: =+Composições!#REF! ->  | E120: =+Composições!#REF! ->  | G120: =+Composições!#REF! -> 
A121: =+Composições!#REF! ->  | B121: PAVIMENTAÇÃO BLOCOS RETANGULARES DE CONCRETO - 8 cm - 35 MPa | C121: m² | D121: =+Composições!#REF! ->  | E121: =+Composições!#REF! ->  | G121: =+Composições!#REF! -> 
A122: =+Composições!#REF! ->  | B122: FAIXAS BLOCOS RETANGULARES DE CONCRETO - 6 cm - 35 MPa (LARGURA 20 cm) | C122: m | D122: =+Composições!#REF! ->  | E122: =+Composições!#REF! ->  | G122: =+Composições!#REF! -> 
A123: =+Composições!#REF! ->  | B123: PAVIMENTAÇÃO PARALELEPÍPEDO DE GRANITO | C123: m² | D123: =+Composições!#REF! ->  | E123: =+Composições!#REF! ->  | G123: =+Composições!#REF! -> 
A124: =+Composições!#REF! ->  | B124: PEDRA PORTUGUESA | C124: m² | D124: =+Composições!#REF! ->  | E124: =+Composições!#REF! ->  | G124: =+Composições!#REF! -> 
A125: =+Composições!#REF! ->  | B125: LAJE DE GRÊS ASSENTADA NA AREIA | C125: m² | D125: =+Composições!#REF! ->  | E125: =+Composições!#REF! ->  | G125: =+Composições!#REF! -> 
A126: =+Composições!#REF! ->  | B126: LAJE DE GRÊS ASSENTADA NA MASSA | C126: m² | D126: =+Composições!#REF! ->  | E126: =+Composições!#REF! ->  | G126: =+Composições!#REF! -> 
A127: =+Composições!#REF! ->  | B127: LAJE DE GRÊS ASSENTADA NA ARGILA | C127: m² | D127: =+Composições!#REF! ->  | E127: =+Composições!#REF! ->  | G127: =+Composições!#REF! -> 
A128: =+Composições!#REF! ->  | B128: BASALTO IRREGULAR - JUNTA BITOLADA | C128: m² | D128: =+Composições!#REF! ->  | E128: =+Composições!#REF! ->  | G128: =+Composições!#REF! -> 
A129: =+Composições!#REF! ->  | B129: BASALTO IRREGULAR | C129: m² | D129: =+Composições!#REF! ->  | E129: =+Composições!#REF! ->  | F129: =+D129+E129 ->  | G129: =+Composições!#REF! -> 
A130: =+Composições!#REF! ->  | B130: BASALTO REGULAR TALHADO | C130: m² | D130: =+Composições!#REF! ->  | E130: =+Composições!#REF! ->  | G130: =+Composições!#REF! -> 
A131: =+Composições!#REF! ->  | B131: BASALTO REGULAR SERRADO | C131: m² | D131: =+Composições!#REF! ->  | E131: =+Composições!#REF! ->  | G131: =+Composições!#REF! -> 
A132: =+Composições!#REF! ->  | B132: AREIA MÉDIA PENEIRADA | C132: m³ | D132: =+Composições!#REF! ->  | E132: =+Composições!#REF! ->  | G132: =+Composições!#REF! -> 
A133: =+Composições!#REF! ->  | B133: LAJOTA CONCRETO | C133: m² | D133: =+Composições!#REF! ->  | E133: =+Composições!#REF! ->  | G133: =+Composições!#REF! -> 
A134: =+Composições!A511 -> 2070 | B134: PISO PODOTÁTIL | C134: m | D134: =+Composições!$C$517 -> 20.24 | E134: =+Composições!$C$520 -> 8.14 | F134: 28.38 | G134: =+Composições!$F$526 -> 34.67
A135: 7 | B135: MEIO-FIO
A136: =+Composições!#REF! ->  | B136: MEIO-FIO CONCRETO MOLDADO NO LOCAL - PADRÃO SMAM | C136: m | D136: =+Composições!#REF! ->  | E136: =+Composições!#REF! ->  | G136: =+Composições!#REF! -> 
A137: =+Composições!#REF! ->  | B137: MEIO-FIO CURVO CONCRETO MOLDADO NO LOCAL - PADRÃO SMAM | C137: m | D137: =+Composições!#REF! ->  | E137: =+Composições!#REF! ->  | G137: =+Composições!#REF! -> 
A138: =+Composições!#REF! ->  | B138: MEIO-FIO VIÁRIO DE CONCRETO PRÉ-MOLDADO | C138: m | D138: =+Composições!#REF! ->  | E138: =+Composições!#REF! ->  | G138: =+Composições!#REF! -> 
A139: =+Composições!A529 -> 2223 | B139: REPOSIÇÃO MEIO-FIO VIÁRIO | C139: m | D139: =+Composições!$C$532 -> 1.47 | E139: =+Composições!$C$535 -> 14.89 | F139: =+D139+E139 -> 16.36 | G139: =+Composições!$F$541 -> 19.98
A140: =+Composições!#REF! ->  | B140: REALINHAMENTO MEIO-FIO VIÁRIO | C140: m | D140: =+Composições!#REF! ->  | E140: =+Composições!#REF! ->  | F140: =+D140+E140 ->  | G140: =+Composições!#REF! -> 
A141: 8 | B141: DEGRAU
A142: =+Composições!#REF! ->  | B142: DEGRAU CONCRETO L=2,00 m - BASE GRANITO - PADRÃO SMAM | C142: un | D142: =+Composições!#REF! ->  | E142: =+Composições!#REF! ->  | G142: =+Composições!#REF! -> 
A143: =+Composições!#REF! ->  | B143: DEGRAU CONCRETO L=2,00 m - BASE GRÊS - PADRÃO SMAM | C143: un | D143: =+Composições!#REF! ->  | E143: =+Composições!#REF! ->  | G143: =+Composições!#REF! -> 
A144: =+Composições!#REF! ->  | B144: DEGRAU CONCRETO L=2,00 m - BASE CONCRETO - PADRÃO SMAM | C144: un | D144: =+Composições!#REF! ->  | E144: =+Composições!#REF! ->  | G144: =+Composições!#REF! -> 
A145: 9 | B145: ACESSIBILIDADE
A146: =+Composições!#REF! ->  | B146: RAMPA PPNE'S TIPO 1 - 1,50 m (ABA 50 cm) | C146: un | D146: =+Composições!#REF! ->  | E146: =+Composições!#REF! ->  | G146: =+Composições!#REF! -> 
A147: =+Composições!A544 -> 2308 | B147: RAMPA PPNE'S TIPO 1 - 1,50 m (ABA 1,50 m) | C147: un | D147: =+Composições!$C$561 -> 527.73 | E147: =+Composições!$C$567 -> 363.2 | F147: 890.93 | G147: =+Composições!$F$573 -> 1088.27
A148: =+Composições!#REF! ->  | B148: RAMPA PPNE'S TIPO 1 - 1,50 m (SEM ABA) | C148: un | D148: =+Composições!#REF! ->  | E148: =+Composições!#REF! ->  | G148: =+Composições!#REF! -> 
A149: =+Composições!#REF! ->  | B149: RAMPA PPNE'S TIPO 1 - 4,00 m | C149: un | D149: =+Composições!#REF! ->  | E149: =+Composições!#REF! ->  | G149: =+Composições!#REF! -> 
A150: =+Composições!#REF! ->  | B150: RAMPA PPNE'S TIPO 2 (CALÇADA ESTREITA) - 1,50 m | C150: un | D150: =+Composições!#REF! ->  | E150: =+Composições!#REF! ->  | G150: =+Composições!#REF! -> 
A151: =+Composições!#REF! ->  | B151: CORRIMÃO PPNE'S | C151: m | D151: =+Composições!#REF! ->  | E151: =+Composições!#REF! ->  | G151: =+Composições!#REF! -> 
A152: 10 | B152: QUADRAS
A153: =+Composições!#REF! ->  | B153: TELAMENTO h=5,50 m - PADRÃO SMAM | C153: m | D153: =+Composições!#REF! ->  | E153: =+Composições!#REF! ->  | G153: =+Composições!#REF! -> 
A154: =+Composições!#REF! ->  | B154: TELAMENTO h=3,00 m - PADRÃO SMAM | C154: m | D154: =+Composições!#REF! ->  | E154: =+Composições!#REF! ->  | G154: =+Composições!#REF! -> 
A155: =+Composições!#REF! ->  | B155: TELAMENTO h=1,00 m - PADRÃO SMAM | C155: m | D155: =+Composições!#REF! ->  | E155: =+Composições!#REF! ->  | G155: =+Composições!#REF! -> 
A156: =+Composições!#REF! ->  | B156: TELAMENTO h=3,00 m VÔLEI DE PRAIA - PADRÃO SMAM | C156: m | D156: =+Composições!#REF! ->  | E156: =+Composições!#REF! ->  | G156: =+Composições!#REF! -> 
A157: =+Composições!#REF! ->  | B157: GOLEIRA FUTSAL | C157: un | D157: =+Composições!#REF! ->  | E157: =+Composições!#REF! ->  | G157: =+Composições!#REF! -> 
A158: =+Composições!#REF! ->  | B158: GOLEIRA FUTEBOL SOCIETY | C158: un | D158: =+Composições!#REF! ->  | E158: =+Composições!#REF! ->  | G158: =+Composições!#REF! -> 
A159: =+Composições!#REF! ->  | B159: GOLEIRA FUTEBOL DE CAMPO | C159: un | D159: =+Composições!#REF! ->  | E159: =+Composições!#REF! ->  | G159: =+Composições!#REF! -> 
A160: =+Composições!#REF! ->  | B160: POSTE DE VÔLEI | C160: un | D160: =+Composições!#REF! ->  | E160: =+Composições!#REF! ->  | G160: =+Composições!#REF! -> 
A161: =+Composições!#REF! ->  | B161: POSTE DE VÔLEI QUADRA DE AREIA | C161: un | D161: =+Composições!#REF! ->  | E161: =+Composições!#REF! ->  | G161: =+Composições!#REF! -> 
A162: =+Composições!#REF! ->  | B162: POSTE DE TÊNIS QUADRA DE AREIA | C162: un | D162: =+Composições!#REF! ->  | E162: =+Composições!#REF! ->  | G162: =+Composições!#REF! -> 
A163: =+Composições!#REF! ->  | B163: TABELA DE BASQUETE - PADRÃO SMAM | C163: un | D163: =+Composições!#REF! ->  | E163: =+Composições!#REF! ->  | G163: =+Composições!#REF! -> 
A164: =+Composições!#REF! ->  | B164: DEMARCAÇÃO QUADRA ESPORTIVA FUTSAL | C164: m | D164: =+Composições!#REF! ->  | E164: =+Composições!#REF! ->  | G164: =+Composições!#REF! -> 
A165: =+Composições!#REF! ->  | B165: DEMARCAÇÃO QUADRA ESPORTIVA BASQUETE E/OU VÔLEI | C165: m | D165: =+Composições!#REF! ->  | E165: =+Composições!#REF! ->  | G165: =+Composições!#REF! -> 
A166: =+Composições!#REF! ->  | B166: DRENO QUADRA DE AREIA | C166: m | D166: =+Composições!#REF! ->  | E166: =+Composições!#REF! ->  | G166: =+Composições!#REF! -> 
A167: 11 | B167: EQUIPAMENTOS/MOBILIÁRIO URBANO
A168: =+Composições!A576 -> 2601 | B168: BANCO B (C/ ENCOSTO) - L=2,00 m - PADRÃO SMAM | C168: un | D168: =+Composições!$C$600 -> 757.47 | E168: =+Composições!$C$607 -> 443.26 | F168: 1200.73 | G168: =+Composições!$F$613 -> 1466.69
A169: =+Composições!#REF! ->  | B169: BANCO A (S/ ENCOSTO) - L=1,80 m - PADRÃO SMAM | C169: un | D169: =+Composições!#REF! ->  | E169: =+Composições!#REF! ->  | G169: =+Composições!#REF! -> 
A170: =+Composições!#REF! ->  | B170: BANCO C (C/ DIVISÃO, C/ ENCOSTO) - L=2,00 m - PADRÃO SMAM | C170: un | D170: =+Composições!#REF! ->  | E170: =+Composições!#REF! ->  | G170: =+Composições!#REF! -> 
A171: =+Composições!#REF! ->  | B171: BANCO B (C/ ENCOSTO) - L=1,80 m - PARQUE FARROUPILHA - PADRÃO SMAM | C171: un | D171: =+Composições!#REF! ->  | E171: =+Composições!#REF! ->  | G171: =+Composições!#REF! -> 
A172: =+Composições!#REF! ->  | B172: BANCO D (S/ ENCOSTO) - L=2,00 m - PADRÃO SMAM | C172: un | D172: =+Composições!#REF! ->  | E172: =+Composições!#REF! ->  | G172: =+Composições!#REF! -> 
A173: =+Composições!#REF! ->  | B173: PARACICLO | C173: un | D173: =+Composições!#REF! ->  | E173: =+Composições!#REF! ->  | G173: =+Composições!#REF! -> 
A174: =+Composições!#REF! ->  | B174: CAIXA DE AREIA - PADRÃO SMAM | C174: un | D174: =+Composições!#REF! ->  | E174: =+Composições!#REF! ->  | G174: =+Composições!#REF! -> 
A175: =+Composições!#REF! ->  | B175: CANCHA DE BOCHA - PADRÃO SMAM | C175: un | D175: =+Composições!#REF! ->  | E175: =+Composições!#REF! ->  | G175: =+Composições!#REF! -> 
A176: =+Composições!#REF! ->  | B176: COBERTURA P/ CANCHA DE BOCHA | C176: un | D176: =+Composições!#REF! ->  | E176: =+Composições!#REF! ->  | G176: =+Composições!#REF! -> 
A177: =+Composições!#REF! ->  | B177: CHURRASQUEIRA C/PISO DE CONCRETO - PADRÃO SMAM | C177: un | D177: =+Composições!#REF! ->  | E177: =+Composições!#REF! ->  | G177: =+Composições!#REF! -> 
A178: =+Composições!#REF! ->  | B178: CHURRASQUEIRA - PADRÃO SMAM | C178: un | D178: =+Composições!#REF! ->  | E178: =+Composições!#REF! ->  | G178: =+Composições!#REF! -> 
A179: =+Composições!#REF! ->  | B179: MESA E BANCOS DE CONCRETO P/ CHURRASQUEIRA - PADRÃO SMAM | C179: cj | D179: =+Composições!#REF! ->  | E179: =+Composições!#REF! ->  | G179: =+Composições!#REF! -> 
A180: =+Composições!#REF! ->  | B180: COBERTURA P/ CHURRASQUEIRA - PADRÃO SMAM | C180: un | D180: =+Composições!#REF! ->  | E180: =+Composições!#REF! ->  | G180: =+Composições!#REF! -> 
A181: =+Composições!#REF! ->  | B181: BEBEDOURO C/ VÁLVULA ANTI-VANDALISMO - PADRÃO SMAM | C181: un | D181: =+Composições!#REF! ->  | E181: =+Composições!#REF! ->  | G181: =+Composições!#REF! -> 
A182: =+Composições!#REF! ->  | B182: FRADINHO CONCRETO BASE CIRCULAR - PADRÃO SMAM | C182: un | D182: =+Composições!#REF! ->  | E182: =+Composições!#REF! ->  | G182: =+Composições!#REF! -> 
A183: =+Composições!#REF! ->  | B183: FRADINHO CONCRETO BASE OCTOGONAL - PADRÃO SMAM | C183: un | D183: =+Composições!#REF! ->  | E183: =+Composições!#REF! ->  | G183: =+Composições!#REF! -> 
A184: =+Composições!#REF! ->  | B184: FRADINHO EM FERRO FUNDIDO | C184: un | D184: =+Composições!#REF! ->  | E184: =+Composições!#REF! ->  | F184: =+D184+E184 ->  | G184: =+Composições!#REF! -> 
A185: =+Composições!#REF! ->  | B185: MESA DE DAMAS - PADRÃO SMAM | C185: un | D185: =+Composições!#REF! ->  | E185: =+Composições!#REF! ->  | G185: =+Composições!#REF! -> 
A186: =+Composições!A616 -> 2671 | B186: LIXEIRA METÁLICA | C186: un | D186: =+Composições!$C$624 -> 682.62 | E186: =+Composições!$C$627 -> 70.3 | F186: 752.92 | G186: =+Composições!$F$633 -> 919.69
A187: =+Composições!#REF! ->  | B187: PISTA DE PATINAÇÃO | C187: un | D187: =+Composições!#REF! ->  | E187: =+Composições!#REF! ->  | F187: =+D187+E187 ->  | G187: =+Composições!#REF! -> 
A188: 2682 | B188: TELAMENTO CACHORRÓDROMO | C188: m | D188: =+Composições!#REF! ->  | E188: =+Composições!#REF! ->  | F188: =+D188+E188 ->  | G188: =+Composições!#REF! -> 
A189: =+Composições!#REF! ->  | B189: GUARDA-CORPO PARA ÁREA INFANTIL | C189: m | D189: =+Composições!#REF! ->  | E189: =+Composições!#REF! ->  | G189: =+Composições!#REF! -> 
A190: =+Composições!#REF! ->  | B190: GRADIL DE FERRO | C190: m | D190: =+Composições!#REF! ->  | E190: =+Composições!#REF! ->  | G190: =+Composições!#REF! -> 
A191: =+Composições!#REF! ->  | B191: CERCAMENTO COM MOURÃO DE CONCRETO S/VIGA DE FUNDAÇÃO | C191: m | D191: =+Composições!#REF! ->  | E191: =+Composições!#REF! ->  | F191: =+D191+E191 ->  | G191: =+Composições!#REF! -> 
A192: =+Composições!#REF! ->  | B192: CERCAMENTO COM MOURÃO DE CONCRETO C/VIGA DE FUNDAÇÃO | C192: m | D192: =+Composições!#REF! ->  | E192: =+Composições!#REF! ->  | F192: =+D192+E192 ->  | G192: =+Composições!#REF! -> 
A193: =+Composições!#REF! ->  | B193: FUNDAÇÃO PEDRA DE GRANITO | C193: m | D193: =+Composições!#REF! ->  | E193: =+Composições!#REF! ->  | F193: =+D193+E193 ->  | G193: =+Composições!#REF! -> 
A194: =+Composições!#REF! ->  | B194: ALVENARIA GRANITO S/FUNDAÇÃO | C194: m² | D194: =+Composições!#REF! ->  | E194: =+Composições!#REF! ->  | F194: =+D194+E194 ->  | G194: =+Composições!#REF! -> 
A195: =+Composições!#REF! ->  | B195: PLACA DE IDENTIFICAÇÃO DE PRAÇA | C195: un | D195: =+Composições!#REF! ->  | E195: =+Composições!#REF! ->  | G195: =+Composições!#REF! -> 
A196: 12 | B196: BRINQUEDOS
A197: =+Composições!#REF! ->  | B197: ESTRUTURA 1 - FERRO GALVANIZADO - "S" | C197: un | D197: =+Composições!#REF! ->  | E197: =+Composições!#REF! ->  | G197: =+Composições!#REF! -> 
A198: =+Composições!#REF! ->  | B198: ESTRUTURA 2 - FERRO GALVANIZADO | C198: un | D198: =+Composições!#REF! ->  | E198: =+Composições!#REF! ->  | G198: =+Composições!#REF! -> 
A199: =+Composições!#REF! ->  | B199: ESTRUTURA 3 - FERRO GALVANIZADO | C199: un | D199: =+Composições!#REF! ->  | E199: =+Composições!#REF! ->  | G199: =+Composições!#REF! -> 
A200: =+Composições!#REF! ->  | B200: ESTRUTURA 4 - FERRO GALVANIZADO - GAIOLA | C200: un | D200: =+Composições!#REF! ->  | E200: =+Composições!#REF! ->  | G200: =+Composições!#REF! -> 
A201: =+Composições!#REF! ->  | B201: ESTRUTURA 5 - FERRO GALVANIZADO - ARCO | C201: un | D201: =+Composições!#REF! ->  | E201: =+Composições!#REF! ->  | G201: =+Composições!#REF! -> 
A202: =+Composições!#REF! ->  | B202: ESTRUTURA 6 - FERRO GALVANIZADO - TÚNEL DE FERRO | C202: un | D202: =+Composições!#REF! ->  | E202: =+Composições!#REF! ->  | G202: =+Composições!#REF! -> 
... 75 more rows

Sheet Vigia (hidden)
A1: VIGIA | AI1: Preencher nas atualizações
A2: Regime 12x36
A3: d | B3: Seg | C3: Ter | D3: Qua | E3: Qui | F3: Sex | G3: Sab | H3: Dom | I3: Seg | J3: Ter | K3: Qua | L3: Qui | M3: Sex | N3: Sab | O3: Dom | P3: Seg | Q3: Ter | R3: Qua | S3: Qui | T3: Sex | U3: Sab | V3: Dom | W3: Seg | X3: Ter | Y3: Qua | Z3: Qui | AA3: Sex | AB3: Sab | AC3: Dom | AD3: Seg | AE3: Ter | AG3: Horário da obra: 7:30 às 17:18
A4: h | B4: 1 | C4: 2 | D4: 3 | E4: 4 | F4: 5 | G4: 6 | H4: 7 | I4: 8 | J4: 9 | K4: 10 | L4: 11 | M4: 12 | N4: 13 | O4: 14 | P4: 15 | Q4: 16 | R4: 17 | S4: 18 | T4: 19 | U4: 20 | V4: 21 | W4: 22 | X4: 23 | Y4: 24 | Z4: 25 | AA4: 26 | AB4: 27 | AC4: 28 | AD4: 29 | AE4: 30 | AG4: Horário Vigia Noturno: 19:00 às 7:00
A5: 0 | B5: 1 | C5: 1 | D5: 1 | E5: 1 | F5: 1 | G5: 1 | H5: 1 | I5: 1 | J5: 1 | K5: 1 | L5: 1 | M5: 1 | N5: 1 | O5: 1 | P5: 1 | Q5: 1 | R5: 1 | S5: 1 | T5: 1 | U5: 1 | V5: 1 | W5: 1 | X5: 1 | Y5: 1 | Z5: 1 | AA5: 1 | AB5: 1 | AC5: 1 | AD5: 1 | AE5: 1 | AG5: Horas extras servente: 2 h 12 min = | AN5: 2.2 | AO5: horas
A6: 1 | B6: 1 | C6: 1 | D6: 1 | E6: 1 | F6: 1 | G6: 1 | H6: 1 | I6: 1 | J6: 1 | K6: 1 | L6: 1 | M6: 1 | N6: 1 | O6: 1 | P6: 1 | Q6: 1 | R6: 1 | S6: 1 | T6: 1 | U6: 1 | V6: 1 | W6: 1 | X6: 1 | Y6: 1 | Z6: 1 | AA6: 1 | AB6: 1 | AC6: 1 | AD6: 1 | AE6: 1
A7: 2 | B7: 1 | C7: 1 | D7: 1 | E7: 1 | F7: 1 | G7: 1 | H7: 1 | I7: 1 | J7: 1 | K7: 1 | L7: 1 | M7: 1 | N7: 1 | O7: 1 | P7: 1 | Q7: 1 | R7: 1 | S7: 1 | T7: 1 | U7: 1 | V7: 1 | W7: 1 | X7: 1 | Y7: 1 | Z7: 1 | AA7: 1 | AB7: 1 | AC7: 1 | AD7: 1 | AE7: 1 | AG7: Hora do Vigia: | AJ7: 5.38 | AL7: Risco = | AN7: 0.15 | AP7: Fonte: SindiVigilantes 2019
A8: 3 | B8: 1 | C8: 1 | D8: 1 | E8: 1 | F8: 1 | G8: 1 | H8: 1 | I8: 1 | J8: 1 | K8: 1 | L8: 1 | M8: 1 | N8: 1 | O8: 1 | P8: 1 | Q8: 1 | R8: 1 | S8: 1 | T8: 1 | U8: 1 | V8: 1 | W8: 1 | X8: 1 | Y8: 1 | Z8: 1 | AA8: 1 | AB8: 1 | AC8: 1 | AD8: 1 | AE8: 1 | AG8: Hora noturna: | AJ8: =+TRUNC((AJ7*1.2),2) -> 6.45
A9: 4 | B9: 1 | C9: 1 | D9: 1 | E9: 1 | F9: 1 | G9: 1 | H9: 1 | I9: 1 | J9: 1 | K9: 1 | L9: 1 | M9: 1 | N9: 1 | O9: 1 | P9: 1 | Q9: 1 | R9: 1 | S9: 1 | T9: 1 | U9: 1 | V9: 1 | W9: 1 | X9: 1 | Y9: 1 | Z9: 1 | AA9: 1 | AB9: 1 | AC9: 1 | AD9: 1 | AE9: 1 | AG9: Hora com risco: | AJ9: Normal: | AL9: =TRUNC(AJ7*(1+AN7),2) -> 6.18
A10: 5 | B10: 1 | C10: 1 | D10: 1 | E10: 1 | F10: 1 | G10: 1 | H10: 1 | I10: 1 | J10: 1 | K10: 1 | L10: 1 | M10: 1 | N10: 1 | O10: 1 | P10: 1 | Q10: 1 | R10: 1 | S10: 1 | T10: 1 | U10: 1 | V10: 1 | W10: 1 | X10: 1 | Y10: 1 | Z10: 1 | AA10: 1 | AB10: 1 | AC10: 1 | AD10: 1 | AE10: 1 | AJ10: Noturna: | AL10: =TRUNC(AJ8*(1+AN7),2) -> 7.41
A11: 6 | B11: 1 | C11: 1 | D11: 1 | E11: 1 | F11: 1 | G11: 1 | H11: 1 | I11: 1 | J11: 1 | K11: 1 | L11: 1 | M11: 1 | N11: 1 | O11: 1 | P11: 1 | Q11: 1 | R11: 1 | S11: 1 | T11: 1 | U11: 1 | V11: 1 | W11: 1 | X11: 1 | Y11: 1 | Z11: 1 | AA11: 1 | AB11: 1 | AC11: 1 | AD11: 1 | AE11: 1 | AG11: Hora normal: | AN11: =+AL9 -> 6.18 | AP11: Fonte: SindiVigilantes 2019
A12: 7 | B12: 0.5 | C12: 1 | D12: 0.5 | E12: 0.5 | F12: 0.5 | G12: 1 | H12: 1 | I12: 0.5 | J12: 0.5 | K12: 0.5 | L12: 0.5 | M12: 0.5 | N12: 1 | O12: 1 | P12: 0.5 | Q12: 0.5 | R12: 0.5 | S12: 0.5 | T12: 0.5 | U12: 1 | V12: 1 | W12: 0.5 | X12: 0.5 | Y12: 0.5 | Z12: 0.5 | AA12: 0.5 | AB12: 1 | AC12: 1 | AD12: 0.5 | AE12: 0.5 | AG12: Hora noturna: | AN12: =+AN11*1.2 -> 7.416
A14: 8 | C14: 1 | G14: 1 | H14: 1 | N14: 1 | O14: 1 | U14: 1 | V14: 1 | AB14: 1 | AC14: 1 | AG14: Hora extra normal: | AN14: =+AN11*1.5 -> 9.27
A15: 9 | C15: 1 | G15: 1 | H15: 1 | N15: 1 | O15: 1 | U15: 1 | V15: 1 | AB15: 1 | AC15: 1 | AG15: Hora extra noturna: | AN15: =+AN14*1.2 -> 11.124
A16: 10 | C16: 1 | G16: 1 | H16: 1 | N16: 1 | O16: 1 | U16: 1 | V16: 1 | AB16: 1 | AC16: 1 | AG16: Hora normal domingos e feriados: | AN16: =TRUNC((AN11*2),2) -> 12.36
A17: 11 | C17: 1 | G17: 1 | H17: 1 | N17: 1 | O17: 1 | U17: 1 | V17: 1 | AB17: 1 | AC17: 1 | AG17: Hora noturna domingos e feriados: | AN17: =+AN16*1.2 -> 14.832
A18: 12 | C18: 1 | G18: 1 | H18: 1 | N18: 1 | O18: 1 | U18: 1 | V18: 1 | AB18: 1 | AC18: 1 | AG18: Regime 12x36 horas Noturno - 15 dias: | AN18: 1602.1
A19: 13 | C19: 1 | G19: 1 | H19: 1 | N19: 1 | O19: 1 | U19: 1 | V19: 1 | AB19: 1 | AC19: 1 | AG19: 2 vigias (30 dias): | AN19: =+AN18*2 -> 3204.2
A20: 14 | C20: 1 | G20: 1 | H20: 1 | N20: 1 | O20: 1 | U20: 1 | V20: 1 | AB20: 1 | AC20: 1 | AG20: Hora servente (c/L.S. c/desoneração): | AN20: =+M.O.!C18 -> 15.35 | AP20: =CONCATENATE("Fonte: SINAPI ",M.O.!$E$17) -> Fonte: SINAPI Abr/2021
A21: 15 | C21: 1 | G21: 1 | H21: 1 | N21: 1 | O21: 1 | U21: 1 | V21: 1 | AB21: 1 | AC21: 1 | AG21: Hora extra servente (c/L.S. c/desoneração): | AN21: =TRUNC((AN20*1.5),2) -> 23.02
A22: 16 | C22: 1 | G22: 1 | H22: 1 | N22: 1 | O22: 1 | U22: 1 | V22: 1 | AB22: 1 | AC22: 1 | AG22: Hora servente (c/L.S. s/desoneração): | AN22: =+M.O.!D18 -> 17.11
A23: 17 | C23: 1 | G23: 1 | H23: 1 | N23: 1 | O23: 1 | U23: 1 | V23: 1 | AB23: 1 | AC23: 1 | AG23: Hora extra servente (c/L.S. s/desoneração): | AN23: =TRUNC((AN22*1.5),2) -> 25.66
B24: 0.7 | D24: 0.7 | E24: 0.7 | F24: 0.7 | I24: 0.7 | J24: 0.7 | K24: 0.7 | L24: 0.7 | M24: 0.7 | P24: 0.7 | Q24: 0.7 | R24: 0.7 | S24: 0.7 | T24: 0.7 | W24: 0.7 | X24: 0.7 | Y24: 0.7 | Z24: 0.7 | AA24: 0.7 | AD24: 0.7 | AE24: 0.7
A25: 18 | B25: 1 | C25: 1 | D25: 1 | E25: 1 | F25: 1 | G25: 1 | H25: 1 | I25: 1 | J25: 1 | K25: 1 | L25: 1 | M25: 1 | N25: 1 | O25: 1 | P25: 1 | Q25: 1 | R25: 1 | S25: 1 | T25: 1 | U25: 1 | V25: 1 | W25: 1 | X25: 1 | Y25: 1 | Z25: 1 | AA25: 1 | AB25: 1 | AC25: 1 | AD25: 1 | AE25: 1 | AG25: Dias úteis: | AI25: 21 | AJ25: dias | AK25: L.S. horista c/desoneração: | AO25: =+'Encargos Sociais'!C42 -> 0.8228 | AP25: =CONCATENATE("Fonte: SINAPI ",M.O.!$E$17) -> Fonte: SINAPI Abr/2021
A26: 19 | B26: 1 | C26: 1 | D26: 1 | E26: 1 | F26: 1 | G26: 1 | H26: 1 | I26: 1 | J26: 1 | K26: 1 | L26: 1 | M26: 1 | N26: 1 | O26: 1 | P26: 1 | Q26: 1 | R26: 1 | S26: 1 | T26: 1 | U26: 1 | V26: 1 | W26: 1 | X26: 1 | Y26: 1 | Z26: 1 | AA26: 1 | AB26: 1 | AC26: 1 | AD26: 1 | AE26: 1 | AG26: Sábados: | AI26: 4 | AJ26: dias | AK26: L.S. horista s/desoneração: | AO26: =+'Encargos Sociais'!E42 -> 1.111
A27: 20 | B27: 1 | C27: 1 | D27: 1 | E27: 1 | F27: 1 | G27: 1 | H27: 1 | I27: 1 | J27: 1 | K27: 1 | L27: 1 | M27: 1 | N27: 1 | O27: 1 | P27: 1 | Q27: 1 | R27: 1 | S27: 1 | T27: 1 | U27: 1 | V27: 1 | W27: 1 | X27: 1 | Y27: 1 | Z27: 1 | AA27: 1 | AB27: 1 | AC27: 1 | AD27: 1 | AE27: 1 | AG27: Domingos: | AI27: 4 | AJ27: dias | AK27: L.S. mensal. c/desoneração: | AO27: =+'Encargos Sociais'!D42 -> 0.46
A28: 21 | B28: 1 | C28: 1 | D28: 1 | E28: 1 | F28: 1 | G28: 1 | H28: 1 | I28: 1 | J28: 1 | K28: 1 | L28: 1 | M28: 1 | N28: 1 | O28: 1 | P28: 1 | Q28: 1 | R28: 1 | S28: 1 | T28: 1 | U28: 1 | V28: 1 | W28: 1 | X28: 1 | Y28: 1 | Z28: 1 | AA28: 1 | AB28: 1 | AC28: 1 | AD28: 1 | AE28: 1 | AG28: Feriados: | AI28: 1 | AJ28: dia | AK28: L.S. mensal. s/desoneração: | AO28: =+'Encargos Sociais'!F42 -> 0.6916
A29: 22 | B29: 1 | C29: 1 | D29: 1 | E29: 1 | F29: 1 | G29: 1 | H29: 1 | I29: 1 | J29: 1 | K29: 1 | L29: 1 | M29: 1 | N29: 1 | O29: 1 | P29: 1 | Q29: 1 | R29: 1 | S29: 1 | T29: 1 | U29: 1 | V29: 1 | W29: 1 | X29: 1 | Y29: 1 | Z29: 1 | AA29: 1 | AB29: 1 | AC29: 1 | AD29: 1 | AE29: 1 | AK29: E.C. horista Vigia: | AN29: =+$Q$48 -> 4.27
A30: 23 | B30: 1 | C30: 1 | D30: 1 | E30: 1 | F30: 1 | G30: 1 | H30: 1 | I30: 1 | J30: 1 | K30: 1 | L30: 1 | M30: 1 | N30: 1 | O30: 1 | P30: 1 | Q30: 1 | R30: 1 | S30: 1 | T30: 1 | U30: 1 | V30: 1 | W30: 1 | X30: 1 | Y30: 1 | Z30: 1 | AA30: 1 | AB30: 1 | AC30: 1 | AD30: 1 | AE30: 1 | AK30: E.C. mens. Vigia c/des.: | AN30: =+$G$48 -> 801.5
AK31: E.C. mens. Vigia s/des.: | AN31: =+$I$48 -> 802.39
B32: Vigia Noturno 1 | AG32: Vigia Noturno (Regime 12x36 - 15d)
B33: Vigia Noturno 2 | AG33: s/ Leis Sociais | AL33: =+AN18 -> 1602.1
B34: Servente | AG34: c/ L.S. c/desoneração: | AL34: =TRUNC((AL33*(1+AO27)),2) -> 2339.06
B35: Vigia Diurno Domingos e Feriados | W35: Feriados: | AG35: c/ L.S. s/desoneração: | AL35: =TRUNC((AL33*(1+AO28)),2) -> 2710.11
B36: Vigia Diurno Sábados | W36: -1º de janeiro | AG36: c/ E.C. c/desoneração: | AL36: =+AL34+AN30 -> 3140.56
W37: -Nossa Senhora dos Navegantes | AG37: c/ E.C. s/desoneração: | AL37: =+AL35+AN31 -> 3512.5
A38: Encargos Complementares | W38: -Sexta-feira Santa | AG38: 2 Vigias Noturnos (Regime 12x36 - 15d) c/desoneração (mês): | AP38: =+AL36*2 -> 6281.12
A39: Mensalista | K39: Horista | W39: -Tiradentes | AG39: 2 Vigias Noturnos (Regime 12x36 - 15d) s/desoneração (mês): | AP39: =+AL37*2 -> 7025
A40: Código | C40: Discriminação | G40: c/des. | I40: s/des. | K40: Código | M40: Discriminação | Q40: c/des. | S40: s/des. | W40: -Dia do Trabalho | AG40: Servente (rendição do vigia) c/desoneração (mês): | AP40: =TRUNC((AN5*AI25*AN21),2) -> 1063.52
A41: 101372 | C41: Curso Capacitação:* | G41: =VLOOKUP(A41,'Comp.SINAPI c_des.'!$M$8:$R$50000,6,FALSE) -> 5.64 | H41: =VLOOKUP(F41,'Comp.SINAPI c_des.'!$G$8:$K$50000,5,FALSE) ->  | I41: =VLOOKUP(A41,'Comp.SINAPI s_des.'!$M$8:$R$50000,6,FALSE) -> 6.53 | J41: =VLOOKUP(H41,'Comp.SINAPI c_des.'!$G$8:$K$50000,5,FALSE) ->  | K41: 95388 | M41: Curso Capacitação: | Q41: =VLOOKUP(K41,'Comp.SINAPI c_des.'!$M$8:$R$50000,6,FALSE) -> 0.05 | R41: =VLOOKUP(P41,'Comp.SINAPI c_des.'!$G$8:$K$50000,5,FALSE) ->  | S41: =VLOOKUP(K41,'Comp.SINAPI s_des.'!$M$8:$R$50000,6,FALSE) -> 0.06 | T41: =VLOOKUP(R41,'Comp.SINAPI c_des.'!$G$8:$K$50000,5,FALSE) ->  | W41: -Corpus Christi | AG41: Servente (rendição do vigia) s/desoneração (mês): | AP41: =TRUNC((AN5*AI25*AN23),2) -> 1185.49
A42: 40861 | C42: Transporte: | G42: =VLOOKUP(A42,'Comp.SINAPI c_des.'!$M$8:$R$50000,6,FALSE) -> 216.81 | H42: =VLOOKUP(F42,'Comp.SINAPI c_des.'!$G$8:$K$50000,5,FALSE) ->  | I42: =VLOOKUP(G42,'Comp.SINAPI c_des.'!$G$8:$K$50000,5,FALSE) ->  | J42: =VLOOKUP(H42,'Comp.SINAPI c_des.'!$G$8:$K$50000,5,FALSE) ->  | K42: 37371 | M42: Transporte: | Q42: =VLOOKUP(K42,'Comp.SINAPI c_des.'!$M$8:$R$50000,6,FALSE) -> 1.15 | R42: =VLOOKUP(P42,'Comp.SINAPI c_des.'!$G$8:$K$50000,5,FALSE) ->  | S42: =VLOOKUP(Q42,'Comp.SINAPI c_des.'!$G$8:$K$50000,5,FALSE) ->  | T42: =VLOOKUP(R42,'Comp.SINAPI c_des.'!$G$8:$K$50000,5,FALSE) ->  | W42: -Independência do Brasil | AG42: Total Vigia Noturno c/desoneração: | AP42: =+AP38+AP40 -> 7344.64
A43: 40862 | C43: Alimentação: | G43: =VLOOKUP(A43,'Comp.SINAPI c_des.'!$M$8:$R$50000,6,FALSE) -> 196 | H43: =VLOOKUP(F43,'Comp.SINAPI c_des.'!$G$8:$K$50000,5,FALSE) ->  | I43: =VLOOKUP(G43,'Comp.SINAPI c_des.'!$G$8:$K$50000,5,FALSE) ->  | J43: =VLOOKUP(H43,'Comp.SINAPI c_des.'!$G$8:$K$50000,5,FALSE) ->  | K43: 37370 | M43: Alimentação: | Q43: =VLOOKUP(K43,'Comp.SINAPI c_des.'!$M$8:$R$50000,6,FALSE) -> 1.04 | R43: =VLOOKUP(P43,'Comp.SINAPI c_des.'!$G$8:$K$50000,5,FALSE) ->  | S43: =VLOOKUP(Q43,'Comp.SINAPI c_des.'!$G$8:$K$50000,5,FALSE) ->  | T43: =VLOOKUP(R43,'Comp.SINAPI c_des.'!$G$8:$K$50000,5,FALSE) ->  | W43: -Revolução Farroupilha | AG43: Total Vigia Noturno s/desoneração: | AP43: =+AP39+AP41 -> 8210.49
A44: 40863 | C44: Exames: | G44: =VLOOKUP(A44,'Comp.SINAPI c_des.'!$M$8:$R$50000,6,FALSE) -> 103.7 | H44: =VLOOKUP(F44,'Comp.SINAPI c_des.'!$G$8:$K$50000,5,FALSE) ->  | I44: =VLOOKUP(G44,'Comp.SINAPI c_des.'!$G$8:$K$50000,5,FALSE) ->  | J44: =VLOOKUP(H44,'Comp.SINAPI c_des.'!$G$8:$K$50000,5,FALSE) ->  | K44: 37372 | M44: Exames: | Q44: =VLOOKUP(K44,'Comp.SINAPI c_des.'!$M$8:$R$50000,6,FALSE) -> 0.55 | R44: =VLOOKUP(P44,'Comp.SINAPI c_des.'!$G$8:$K$50000,5,FALSE) ->  | S44: =VLOOKUP(Q44,'Comp.SINAPI c_des.'!$G$8:$K$50000,5,FALSE) ->  | T44: =VLOOKUP(R44,'Comp.SINAPI c_des.'!$G$8:$K$50000,5,FALSE) ->  | W44: -Nossa Senhora Aparecida | AG44: Vigia Sábados (à tarde)
A45: 40864 | C45: Seguro: | G45: =VLOOKUP(A45,'Comp.SINAPI c_des.'!$M$8:$R$50000,6,FALSE) -> 11.13 | H45: =VLOOKUP(F45,'Comp.SINAPI c_des.'!$G$8:$K$50000,5,FALSE) ->  | I45: =VLOOKUP(G45,'Comp.SINAPI c_des.'!$G$8:$K$50000,5,FALSE) ->  | J45: =VLOOKUP(H45,'Comp.SINAPI c_des.'!$G$8:$K$50000,5,FALSE) ->  | K45: 37373 | M45: Seguro: | Q45: =VLOOKUP(K45,'Comp.SINAPI c_des.'!$M$8:$R$50000,6,FALSE) -> 0.06 | R45: =VLOOKUP(P45,'Comp.SINAPI c_des.'!$G$8:$K$50000,5,FALSE) ->  | S45: =VLOOKUP(Q45,'Comp.SINAPI c_des.'!$G$8:$K$50000,5,FALSE) ->  | T45: =VLOOKUP(R45,'Comp.SINAPI c_des.'!$G$8:$K$50000,5,FALSE) ->  | W45: -Finados | AG45: Horas: | AI45: =+AI26 -> 4 | AJ45: dias | AK45: x | AL45: 12 | AM45: horas | AN45: = | AO45: =+AI45*AL45 -> 48 | AP45: horas
A46: 43479 | C46: Ferramentas: | G46: =VLOOKUP(A46,'Comp.SINAPI c_des.'!$M$8:$R$50000,6,FALSE) -> 76.97 | H46: =VLOOKUP(F46,'Comp.SINAPI c_des.'!$G$8:$K$50000,5,FALSE) ->  | I46: =VLOOKUP(G46,'Comp.SINAPI c_des.'!$G$8:$K$50000,5,FALSE) ->  | J46: =VLOOKUP(H46,'Comp.SINAPI c_des.'!$G$8:$K$50000,5,FALSE) ->  | K46: 43467 | M46: Ferramentas: | Q46: =VLOOKUP(K46,'Comp.SINAPI c_des.'!$M$8:$R$50000,6,FALSE) -> 0.41 | R46: =VLOOKUP(P46,'Comp.SINAPI c_des.'!$G$8:$K$50000,5,FALSE) ->  | S46: =VLOOKUP(Q46,'Comp.SINAPI c_des.'!$G$8:$K$50000,5,FALSE) ->  | T46: =VLOOKUP(R46,'Comp.SINAPI c_des.'!$G$8:$K$50000,5,FALSE) ->  | W46: -Proclamação da República | AG46: Hora c/ L.S. e E.C. c/desoneração: | AM46: =TRUNC(((AN11*(1+AO25))+AN29),2) -> 15.53
A47: 43503 | C47: EPI: | G47: =VLOOKUP(A47,'Comp.SINAPI c_des.'!$M$8:$R$50000,6,FALSE) -> 191.25 | H47: =VLOOKUP(F47,'Comp.SINAPI c_des.'!$G$8:$K$50000,5,FALSE) ->  | I47: =VLOOKUP(G47,'Comp.SINAPI c_des.'!$G$8:$K$50000,5,FALSE) ->  | J47: =VLOOKUP(H47,'Comp.SINAPI c_des.'!$G$8:$K$50000,5,FALSE) ->  | K47: 43491 | M47: EPI: | Q47: =VLOOKUP(K47,'Comp.SINAPI c_des.'!$M$8:$R$50000,6,FALSE) -> 1.01 | R47: =VLOOKUP(P47,'Comp.SINAPI c_des.'!$G$8:$K$50000,5,FALSE) ->  | S47: =VLOOKUP(Q47,'Comp.SINAPI c_des.'!$G$8:$K$50000,5,FALSE) ->  | T47: =VLOOKUP(R47,'Comp.SINAPI c_des.'!$G$8:$K$50000,5,FALSE) ->  | W47: -Natal | AG47: Total c/ L.S. e E.C. c/desoneração: | AM47: =+AO45*AM46 -> 745.44
C48: Total | G48: =+G41+G42+G43+G44+G45+G46+G47 -> 801.5 | I48: =+I41+G42+G43+G44+G45+G46+G47 -> 802.39 | M48: Total | Q48: =+Q41+Q42+Q43+Q44+Q45+Q46+Q47 -> 4.27 | S48: =+S41+Q42+Q43+Q44+Q45+Q46+Q47 -> 4.28 | W48: Total = 12 feriados / 12 meses = 1 Feriado/mês | AG48: Hora c/ L.S. e E.C. s/desoneração: | AM48: =TRUNC(((AN11*(1+AO26))+AN29),2) -> 17.31
A49: * vigia diurno, pois não existe para vigia noturno | AG49: Total c/ L.S. e E.C. s/desoneração: | AM49: =+AO45*AM48 -> 830.88
AG50: Vigia Domingos e Feriados (à tarde)
AG51: Horas: | AI51: =+AI27+AI28 -> 5 | AJ51: dias | AK51: x | AL51: 12 | AM51: horas | AN51: = | AO51: =+AI51*AL51 -> 60 | AP51: horas
AG52: Hora c/ L.S. e E.C. c/desoneração: | AM52: =TRUNC(((AN16*(1+AO25))+AN29),2) -> 26.79
AG53: Total c/ L.S. e E.C. c/desoneração: | AM53: =+AO51*AM52 -> 1607.4
AG54: Hora c/ L.S. e E.C. s/desoneração: | AM54: =TRUNC(((AN16*(1+AO26))+AN29),2) -> 30.36
AG55: Total c/ L.S. e E.C. s/desoneração: | AM55: =+AO51*AM54 -> 1821.6
AG56: Total Vigia Diurno c/desoneração: | AP56: =+AM47+AM53 -> 2352.84
AG57: Total Vigia Diurno s/desoneração: | AP57: =+AM49+AM55 -> 2652.48

Sheet Comparativo
A1: COMPARATIVO ENTRE PREÇOS GLOBAIS EM RELAÇÃO À DESONERAÇÃO OU NÃO DA FOLHA DE PAGAMENTO
A3: OBJETO: OBRA DE URBANIZAÇÃO DA PRAÇA ARAGUAIA
C5: Média | D5: Mediana
A6: s/desoneração | C6: 365180.76 | D6: 365060.14
A7: c/desoneração | C7: 366113.39 | D7: 365977.65
A9: A OPÇÃO MAIS ECONÔMICA AO MUNÍCIPIO É A S/DESONERAÇÃO DA FOLHA DE PAGAMENTO, UTILIZANDO-SE O AGREGADOR MEDIANA.

Sheet Atualizações Cotações (hidden)
A1: ATUALIZAÇÃO COTAÇÕES SMAMS
A4: REAJUSTE? | B4: SIM
A7: Data-base da cotação | E7: Índice
A8: Abril | C8: 2019 | E8: =VLOOKUP($C$8,$A$15:$M$28,MATCH($A$8,$A$15:$M$15,0),FALSE) -> 755.373 | F8: =VLOOKUP($A$8,#REF!,MATCH($C$8,#REF!,0),FALSE) -> 
H9: Índice de Reajuste: | J9: =IF($B$4="NÃO",0,(IF($B$4="SIM",((E11/E8)-1)))) -> 0.1758310133
A10: Data do Reajuste | E10: Índice
A11: Abril | C11: 2021 | E11: =VLOOKUP($C$11,$A$15:$M$28,MATCH($A$11,$A$15:$M$15,0),FALSE) -> 888.191 | F11: =VLOOKUP($A$8,#REF!,MATCH($C$8,#REF!,0),FALSE) -> 
A14: ÍNDICE NACIONAL DA CONSTRUÇÃO CIVIL (INCC)
A15: Mês/Ano | B15: Janeiro | C15: Fevereiro | D15: Março | E15: Abril | F15: Maio | G15: Junho | H15: Julho | I15: Agosto | J15: Setembro | K15: Outubro | L15: Novembro | M15: Dezembro
A16: 2014 | B16: 569.72 | C16: 571.577 | D16: 573.156 | E16: 578.224 | F16: 590.099 | G16: 594.013 | H16: 598.441 | I16: 598.898 | J16: 599.823 | K16: 600.865 | L16: 603.524 | M16: 604.026
A17: 2015 | B17: 609.568 | C17: 611.447 | D17: 615.248 | E17: 618.06 | F17: 623.951 | G17: 635.403 | H17: 638.88 | I17: 642.644 | J17: 644.046 | K17: 646.355 | L17: 648.542 | M17: 649.216
A18: 2016 | B18: 651.759 | C18: 655.263 | D18: 659.446 | E18: 663.057 | F18: 663.61 | G18: 676.42 | H18: 679.751 | I18: 681.756 | J18: 684.025 | K18: 685.489 | L18: 686.607 | M18: 688.985
A19: 2017 | B19: 691.792 | C19: 696.314 | D19: 697.41 | E19: 697.244 | F19: 701.664 | G19: 708.197 | H19: 710.355 | I19: 712.884 | J19: 713.33 | K19: 715.527 | L19: 717.751 | M19: 718.276
A20: 2018 | B20: 720.495 | C20: 721.414 | D20: 723.163 | E20: 725.245 | F20: 726.923 | G20: 733.984 | H20: 738.487 | I20: 739.583 | J20: 741.305 | K20: 743.866 | L20: 744.865 | M20: 745.856
A21: 2019 | B21: 749.517 | C21: 750.18 | D21: 752.524 | E21: 755.373 | F21: 755.625 | G21: 762.304 | H21: 766.699 | I21: 769.951 | J21: 773.52 | K21: 774.939 | L21: 775.225 | M21: 776.839
A22: 2020 | B22: 779.766 | C22: 782.336 | D22: 784.338 | E22: 786.07 | F22: 787.666 | G22: 790.331 | H22: 799.589 | I22: 805.356 | J22: 814.701 | K22: 828.778 | L22: 839.382 | M22: 845.268
A23: 2021 | B23: 852.809 | C23: 868.929 | D23: 880.265 | E23: 888.191
A24: 2022
A25: 2023
A26: 2024
A27: 2025
A28: 2026

Sheet Insumos SINAPI (hidden)
A1: PRECOS DE INSUMOS
A3: MES DE COLETA: 04/2021
A4: LOCALIDADE: 3920 - PORTO ALEGRE
A5: ENCARGOS SOCIAIS (%) HORISTA 111,10 MENSALISTA 69,16
A7: CODIGO | B7: DESCRICAO DO INSUMO | C7: UNIDADE | D7: ORIGEM DO PRECO | E7: PRECO MEDIANO R$
A8: 1363 | B8: !EM PROCESSO DE DESATIVACAO! CHAPA DE MADEIRA COMPENSADA DE PINUS, VIROLA OU EQUIVALENTE, DE *2,2 X 1,6* M, E = 6 MM | C8: M2 | D8: C | E8: 24.9
A9: 1344 | B9: !EM PROCESSO DE DESATIVACAO! CHAPA DE MADEIRA COMPENSADA PLASTIFICADA PARA FORMA DE CONCRETO, DE 2,20 x 1,10 M, E = 6 MM | C9: UN | D9: CR | E9: 40.25
A10: 1342 | B10: !EM PROCESSO DE DESATIVACAO! CHAPA DE MADEIRA COMPENSADA PLASTIFICADA PARA FORMA DE CONCRETO, DE 2,20 X 1,10 m, E = 14 MM | C10: UN | D10: CR | E10: 71.14
A11: 1349 | B11: !EM PROCESSO DE DESATIVACAO! CHAPA DE MADEIRA COMPENSADA PLASTIFICADA PARA FORMA DE CONCRETO, DE 2,20 X 1,10 M, E = 20 MM | C11: UN | D11: CR | E11: 101.46
A12: 1350 | B12: !EM PROCESSO DE DESATIVACAO! CHAPA DE MADEIRA COMPENSADA RESINADA PARA FORMA DE CONCRETO, DE *2,2 X 1,1* M, E = 10 MM | C12: UN | D12: C | E12: 49
A13: 1359 | B13: !EM PROCESSO DE DESATIVACAO! CHAPA DE MADEIRA COMPENSADA RESINADA PARA FORMA DE CONCRETO, DE *2,2 X 1,1* M, E = 20 MM | C13: UN | D13: CR | E13: 96.43
A14: 1351 | B14: !EM PROCESSO DE DESATIVACAO! CHAPA DE MADEIRA COMPENSADA RESINADA PARA FORMA DE CONCRETO, DE *2,2 X 1,1* M, E = 6 MM | C14: UN | D14: CR | E14: 31.07
A15: 2418 | B15: !EM PROCESSO DE DESATIVACAO! DOBRADICA EM ACO/FERRO, 3" X 2 1/2", E= 1,2 A 1,8 MM, SEM ANEL, CROMADO OU ZINCADO, TAMPA BOLA, COM PARAFUSOS | C15: UN | D15: C | E15: 12.81
A16: 6086 | B16: !EM PROCESSO DE DESATIVACAO! FUNDO SINTETICO NIVELADOR BRANCO FOSCO PARA MADEIRA | C16: GL | D16: CR | E16: 88.41
A17: 3378 | B17: !EM PROCESSO DE DESATIVACAO! HASTE DE ATERRAMENTO EM ACO COM 3,00 M DE COMPRIMENTO E DN = 3/4", REVESTIDA COM BAIXA CAMADA DE COBRE, SEM CONECTOR | C17: UN | D17: CR | E17: 83.94
A18: 3380 | B18: !EM PROCESSO DE DESATIVACAO! HASTE DE ATERRAMENTO EM ACO COM 3,00 M DE COMPRIMENTO E DN = 5/8", REVESTIDA COM BAIXA CAMADA DE COBRE, COM CONECTOR TIPO GRAMPO | C18: UN | D18: C | E18: 58.76
A19: 3379 | B19: !EM PROCESSO DE DESATIVACAO! HASTE DE ATERRAMENTO EM ACO COM 3,00 M DE COMPRIMENTO E DN = 5/8", REVESTIDA COM BAIXA CAMADA DE COBRE, SEM CONECTOR | C19: UN | D19: CR | E19: 56.73
A20: 615 | B20: !EM PROCESSO DE DESATIVACAO! JANELA BASCULANTE, ACO, COM BATENTE/REQUADRO, 60 X 80 CM (SEM VIDROS) | C20: M2 | D20: AS | E20: 421.3
A21: 606 | B21: !EM PROCESSO DE DESATIVACAO! JANELA DE CORRER, ACO, BATENTE/REQUADRO DE 6 A 14 CM, QUADRICULADA, PINTURA ANTICORROSIVA, SEM VIDRO, BANDEIRA COM BASCULA, 4 FLS, 120 X 150 CM (A X L) | C21: M2 | D21: AS | E21: 661.81
A22: 13382 | B22: !EM PROCESSO DE DESATIVACAO! LUMINARIA FECHADA P/ ILUMINACAO PUBLICA, TIPO ABL 50/F OU EQUIV, P/ LAMPADA A VAPOR DE MERCURIO 400W | C22: UN | D22: AS | E22: 303.2
A23: 4047 | B23: !EM PROCESSO DE DESATIVACAO! MASSA CORRIDA PVA PARA PAREDES INTERNAS | C23: GL | D23: C | E23: 17.89
A24: 7344 | B24: !EM PROCESSO DE DESATIVACAO! TINTA LATEX PVA PREMIUM, COR BRANCA | C24: GL | D24: C | E24: 75.98
A25: 40514 | B25: !EM PROCESSO DE DESATIVACAO! VERNIZ POLIURETANO BRILHANTE PARA MADEIRA, SEM FILTRO SOLAR, USO INTERNO E EXTERNO | C25: L | D25: C | E25: 26
A26: 11199 | B26: !EM PROCESSO DE DESATIVACAO!JANELA DE CORRER, ACO, BATENTE/REQUADRO DE 6 A 14 CM, COM DIVISAO HORIZ , PINT ANTICORROSIVA, SEM VIDRO, BANDEIRA COM BASCULA, 4 FLS, 120 X 150 CM (A X L) | C26: UN | D26: AS | E26: 949.65
A27: 4053 | B27: !EM PROCESSO DE DESATIVACAO!MASSA A OLEO PARA MADEIRA | C27: GL | D27: CR | E27: 68.15
A28: 4056 | B28: !EM PROCESSO DE DESATIVACAO!MASSA ACRILICA PARA PAREDES INTERIOR/EXTERIOR | C28: GL | D28: CR | E28: 35.83
A29: 21136 | B29: !EM PROCESSO DESATIVACAO! ELETRODUTO EM ACO GALVANIZADO ELETROLITICO, LEVE, DIAMETRO 1", PAREDE DE 0,90 MM | C29: M | D29: CR | E29: 19.38
A30: 21128 | B30: !EM PROCESSO DESATIVACAO! ELETRODUTO EM ACO GALVANIZADO ELETROLITICO, LEVE, DIAMETRO 3/4", PAREDE DE 0,90 MM | C30: M | D30: C | E30: 15
A31: 21130 | B31: !EM PROCESSO DESATIVACAO! ELETRODUTO EM ACO GALVANIZADO ELETROLITICO, SEMI-PESADO, DIAMETRO 1 1/2", PAREDE DE 1,20 MM | C31: M | D31: CR | E31: 37.88
A32: 21135 | B32: !EM PROCESSO DESATIVACAO! ELETRODUTO EM ACO GALVANIZADO ELETROLITICO, SEMI-PESADO, DIAMETRO 1 1/4", PAREDE DE 1,20 MM | C32: M | D32: CR | E32: 37.3
A33: 38605 | B33: ABERTURA PARA ENCAIXE DE CUBA OU LAVATORIO EM BANCADA DE MARMORE/ GRANITO OU OUTRO TIPO DE PEDRA NATURAL | C33: UN | D33: CR | E33: 106.61
A34: 11270 | B34: ABRACADEIRA DE LATAO PARA FIXACAO DE CABO PARA-RAIO, DIMENSOES 32 X 24 X 24 MM | C34: UN | D34: CR | E34: 1.5
A35: 412 | B35: ABRACADEIRA DE NYLON PARA AMARRACAO DE CABOS, COMPRIMENTO DE *230* X *7,6* MM | C35: UN | D35: CR | E35: 0.92
A36: 414 | B36: ABRACADEIRA DE NYLON PARA AMARRACAO DE CABOS, COMPRIMENTO DE 100 X 2,5 MM | C36: UN | D36: CR | E36: 0.05
A37: 410 | B37: ABRACADEIRA DE NYLON PARA AMARRACAO DE CABOS, COMPRIMENTO DE 150 X *3,6* MM | C37: UN | D37: CR | E37: 0.14
A38: 411 | B38: ABRACADEIRA DE NYLON PARA AMARRACAO DE CABOS, COMPRIMENTO DE 200 X *4,6* MM | C38: UN | D38: C | E38: 0.18
A39: 408 | B39: ABRACADEIRA DE NYLON PARA AMARRACAO DE CABOS, COMPRIMENTO DE 390 X *4,6* MM | C39: UN | D39: CR | E39: 0.89
A40: 39131 | B40: ABRACADEIRA EM ACO PARA AMARRACAO DE ELETRODUTOS, TIPO D, COM 1 1/2" E CUNHA DE FIXACAO | C40: UN | D40: CR | E40: 1.83
A41: 394 | B41: ABRACADEIRA EM ACO PARA AMARRACAO DE ELETRODUTOS, TIPO D, COM 1 1/2" E PARAFUSO DE FIXACAO | C41: UN | D41: CR | E41: 1.86
A42: 39130 | B42: ABRACADEIRA EM ACO PARA AMARRACAO DE ELETRODUTOS, TIPO D, COM 1 1/4" E CUNHA DE FIXACAO | C42: UN | D42: CR | E42: 1.67
A43: 395 | B43: ABRACADEIRA EM ACO PARA AMARRACAO DE ELETRODUTOS, TIPO D, COM 1 1/4" E PARAFUSO DE FIXACAO | C43: UN | D43: CR | E43: 1.79
A44: 39127 | B44: ABRACADEIRA EM ACO PARA AMARRACAO DE ELETRODUTOS, TIPO D, COM 1/2" E CUNHA DE FIXACAO | C44: UN | D44: CR | E44: 0.88
A45: 392 | B45: ABRACADEIRA EM ACO PARA AMARRACAO DE ELETRODUTOS, TIPO D, COM 1/2" E PARAFUSO DE FIXACAO | C45: UN | D45: CR | E45: 0.9
A46: 39129 | B46: ABRACADEIRA EM ACO PARA AMARRACAO DE ELETRODUTOS, TIPO D, COM 1" E CUNHA DE FIXACAO | C46: UN | D46: CR | E46: 1.03
A47: 393 | B47: ABRACADEIRA EM ACO PARA AMARRACAO DE ELETRODUTOS, TIPO D, COM 1" E PARAFUSO DE FIXACAO | C47: UN | D47: C | E47: 1.08
A48: 39133 | B48: ABRACADEIRA EM ACO PARA AMARRACAO DE ELETRODUTOS, TIPO D, COM 2 1/2" E CUNHA DE FIXACAO | C48: UN | D48: CR | E48: 2.41
A49: 397 | B49: ABRACADEIRA EM ACO PARA AMARRACAO DE ELETRODUTOS, TIPO D, COM 2 1/2" E PARAFUSO DE FIXACAO | C49: UN | D49: CR | E49: 2.66
A50: 39132 | B50: ABRACADEIRA EM ACO PARA AMARRACAO DE ELETRODUTOS, TIPO D, COM 2" E CUNHA DE FIXACAO | C50: UN | D50: CR | E50: 1.93
A51: 396 | B51: ABRACADEIRA EM ACO PARA AMARRACAO DE ELETRODUTOS, TIPO D, COM 2" E PARAFUSO DE FIXACAO | C51: UN | D51: CR | E51: 2.06
A52: 39135 | B52: ABRACADEIRA EM ACO PARA AMARRACAO DE ELETRODUTOS, TIPO D, COM 3 1/2" E CUNHA DE FIXACAO | C52: UN | D52: CR | E52: 3.86
A53: 39128 | B53: ABRACADEIRA EM ACO PARA AMARRACAO DE ELETRODUTOS, TIPO D, COM 3/4" E CUNHA DE FIXACAO | C53: UN | D53: CR | E53: 0.96
A54: 400 | B54: ABRACADEIRA EM ACO PARA AMARRACAO DE ELETRODUTOS, TIPO D, COM 3/4" E PARAFUSO DE FIXACAO | C54: UN | D54: CR | E54: 0.94
A55: 39125 | B55: ABRACADEIRA EM ACO PARA AMARRACAO DE ELETRODUTOS, TIPO D, COM 3/8" E PARAFUSO DE FIXACAO | C55: UN | D55: CR | E55: 0.96
A56: 39134 | B56: ABRACADEIRA EM ACO PARA AMARRACAO DE ELETRODUTOS, TIPO D, COM 3" E CUNHA DE FIXACAO | C56: UN | D56: CR | E56: 3.21
A57: 398 | B57: ABRACADEIRA EM ACO PARA AMARRACAO DE ELETRODUTOS, TIPO D, COM 3" E PARAFUSO DE FIXACAO | C57: UN | D57: CR | E57: 2.96
A58: 39126 | B58: ABRACADEIRA EM ACO PARA AMARRACAO DE ELETRODUTOS, TIPO D, COM 4" E CUNHA DE FIXACAO | C58: UN | D58: CR | E58: 4.34
A59: 399 | B59: ABRACADEIRA EM ACO PARA AMARRACAO DE ELETRODUTOS, TIPO D, COM 4" E PARAFUSO DE FIXACAO | C59: UN | D59: CR | E59: 3.82
A60: 39158 | B60: ABRACADEIRA EM ACO PARA AMARRACAO DE ELETRODUTOS, TIPO ECONOMICA (GOTA), COM 8" | C60: UN | D60: CR | E60: 10.27
A61: 39141 | B61: ABRACADEIRA EM ACO PARA AMARRACAO DE ELETRODUTOS, TIPO U SIMPLES, COM 1 1/2" | C61: UN | D61: CR | E61: 0.74
A62: 39140 | B62: ABRACADEIRA EM ACO PARA AMARRACAO DE ELETRODUTOS, TIPO U SIMPLES, COM 1 1/4" | C62: UN | D62: CR | E62: 0.67
A63: 39137 | B63: ABRACADEIRA EM ACO PARA AMARRACAO DE ELETRODUTOS, TIPO U SIMPLES, COM 1/2" | C63: UN | D63: CR | E63: 0.39
A64: 39139 | B64: ABRACADEIRA EM ACO PARA AMARRACAO DE ELETRODUTOS, TIPO U SIMPLES, COM 1" | C64: UN | D64: CR | E64: 0.56
A65: 39143 | B65: ABRACADEIRA EM ACO PARA AMARRACAO DE ELETRODUTOS, TIPO U SIMPLES, COM 2 1/2" | C65: UN | D65: CR | E65: 1.53
A66: 39142 | B66: ABRACADEIRA EM ACO PARA AMARRACAO DE ELETRODUTOS, TIPO U SIMPLES, COM 2" | C66: UN | D66: CR | E66: 1.1
A67: 39138 | B67: ABRACADEIRA EM ACO PARA AMARRACAO DE ELETRODUTOS, TIPO U SIMPLES, COM 3/4" | C67: UN | D67: CR | E67: 0.41
A68: 39136 | B68: ABRACADEIRA EM ACO PARA AMARRACAO DE ELETRODUTOS, TIPO U SIMPLES, COM 3/8" | C68: UN | D68: CR | E68: 0.27
A69: 39144 | B69: ABRACADEIRA EM ACO PARA AMARRACAO DE ELETRODUTOS, TIPO U SIMPLES, COM 3" | C69: UN | D69: CR | E69: 1.79
A70: 39145 | B70: ABRACADEIRA EM ACO PARA AMARRACAO DE ELETRODUTOS, TIPO U SIMPLES, COM 4" | C70: UN | D70: CR | E70: 2.95
A71: 12615 | B71: ABRACADEIRA PVC, PARA CALHA PLUVIAL, DIAMETRO ENTRE 80 E 100 MM, PARA DRENAGEM PREDIAL | C71: UN | D71: AS | E71: 4.01
A72: 11927 | B72: ABRACADEIRA, GALVANIZADA/ZINCADA, ROSCA SEM FIM, PARAFUSO INOX, LARGURA FITA *12,6 A *14 MM, D = 2" A 2 1/2" | C72: UN | D72: CR | E72: 4.47
A73: 11928 | B73: ABRACADEIRA, GALVANIZADA/ZINCADA, ROSCA SEM FIM, PARAFUSO INOX, LARGURA FITA *12,6 A *14 MM, D = 3" A 3 3/4" | C73: UN | D73: CR | E73: 5.13
A74: 11929 | B74: ABRACADEIRA, GALVANIZADA/ZINCADA, ROSCA SEM FIM, PARAFUSO INOX, LARGURA FITA *12,6 A *14 MM, D = 4" A 4 3/4" | C74: UN | D74: CR | E74: 7.93
A75: 36801 | B75: ACABAMENTO CROMADO PARA REGISTRO PEQUENO, 1/2 " OU 3/4 " | C75: UN | D75: CR | E75: 32.92
A76: 36246 | B76: ACABAMENTO SIMPLES/CONVENCIONAL PARA FORRO PVC, TIPO "U" OU "C", COR BRANCA, COMPRIMENTO 6 M | C76: M | D76: CR | E76: 4.9
A77: 37600 | B77: ACESSORIO DE LIGACAO NAO ELETRICO PARA CARGAS EXPLOSIVAS, TUBO DE 6 M | C77: UN | D77: AS | E77: 65.97
A78: 37599 | B78: ACESSORIO INICIADOR NAO ELETRICO, TUBO DE 6 M, TEMPO DE RETARDO DE *160* MS | C78: UN | D78: AS | E78: 61.4
A79: 1 | B79: ACETILENO (RECARGA PARA CILINDRO DE CONJUNTO OXICORTE GRANDE) | C79: KG | D79: C | E79: 47.5
A80: 3 | B80: ACIDO MURIATICO, DILUICAO 10% A 12% PARA USO EM LIMPEZA | C80: L | D80: CR | E80: 7.24
A81: 43054 | B81: ACO CA-25, 10,0 MM, OU 12,5 MM, OU 16,0 MM, OU 20,0 MM, OU 25,0 MM, VERGALHAO | C81: KG | D81: CR | E81: 12.37
A82: 42402 | B82: ACO CA-25, 16,0 MM, BARRA DE TRANSFERENCIA | C82: KG | D82: CR | E82: 11.82
A83: 42403 | B83: ACO CA-25, 20,0 MM, BARRA DE TRANSFERENCIA | C83: KG | D83: CR | E83: 15.16
A84: 42404 | B84: ACO CA-25, 25,0 MM, BARRA DE TRANSFERENCIA | C84: KG | D84: CR | E84: 15.08
A85: 42405 | B85: ACO CA-25, 32,0 MM, BARRA DE TRANSFERENCIA | C85: KG | D85: CR | E85: 16.06
A86: 34341 | B86: ACO CA-25, 32,0 MM, VERGALHAO | C86: KG | D86: CR | E86: 13.94
A87: 43053 | B87: ACO CA-25, 6,3 MM OU 8,0 MM, VERGALHAO | C87: KG | D87: CR | E87: 11.05
A88: 43058 | B88: ACO CA-50, 10,0 MM, OU 12,5 MM, OU 16,0 MM, OU 20,0 MM, DOBRADO E CORTADO | C88: KG | D88: CR | E88: 11.45
A89: 34 | B89: ACO CA-50, 10,0 MM, VERGALHAO | C89: KG | D89: CR | E89: 11.51
A90: 43055 | B90: ACO CA-50, 12,5 MM OU 16,0 MM, VERGALHAO | C90: KG | D90: C | E90: 9.97
A91: 43056 | B91: ACO CA-50, 20,0 MM OU 25,0 MM, VERGALHAO | C91: KG | D91: CR | E91: 11.5
A92: 43057 | B92: ACO CA-50, 32,0 MM, VERGALHAO | C92: KG | D92: CR | E92: 12.63
A93: 34449 | B93: ACO CA-50, 6,3 MM, DOBRADO E CORTADO | C93: KG | D93: CR | E93: 13.5
A94: 32 | B94: ACO CA-50, 6,3 MM, VERGALHAO | C94: KG | D94: CR | E94: 12.14
A95: 33 | B95: ACO CA-50, 8,0 MM, VERGALHAO | C95: KG | D95: CR | E95: 12.21
A96: 43061 | B96: ACO CA-60, 4,2 MM OU 5,0 MM, DOBRADO E CORTADO | C96: KG | D96: CR | E96: 11.41
A97: 43059 | B97: ACO CA-60, 4,2 MM, OU 5,0 MM, OU 6,0 MM, OU 7,0 MM, VERGALHAO | C97: KG | D97: CR | E97: 10.89
A98: 43062 | B98: ACO CA-60, 6,0 MM OU 7,0 MM, DOBRADO E CORTADO | C98: KG | D98: CR | E98: 12.07
A99: 43060 | B99: ACO CA-60, 8,0 MM OU 9,5 MM, VERGALHAO | C99: KG | D99: CR | E99: 9.49
A100: 20063 | B100: ACOPLAMENTO DE CONDUTOR PLUVIAL, EM PVC, DIAMETRO ENTRE 80 E 100 MM, PARA DRENAGEM PREDIAL | C100: UN | D100: AS | E100: 3.99
A101: 40410 | B101: ACOPLAMENTO RIGIDO EM FERRO FUNDIDO PARA SISTEMA DE TUBULACAO RANHURADA, DN 50 MM (2") | C101: UN | D101: AS | E101: 23.91
A102: 40411 | B102: ACOPLAMENTO RIGIDO EM FERRO FUNDIDO PARA SISTEMA DE TUBULACAO RANHURADA, DN 65 MM (2 1/2") | C102: UN | D102: AS | E102: 25.95
A103: 40412 | B103: ACOPLAMENTO RIGIDO EM FERRO FUNDIDO PARA SISTEMA DE TUBULACAO RANHURADA, DN 80 MM (3") | C103: UN | D103: AS | E103: 29.12
A104: 38838 | B104: ADAPTADOR DE COBRE PARA TUBULACAO PEX, DN 16 X 15 MM | C104: UN | D104: CR | E104: 15.12
A105: 38839 | B105: ADAPTADOR DE COBRE PARA TUBULACAO PEX, DN 20 X 22 MM | C105: UN | D105: CR | E105: 17.8
A106: 55 | B106: ADAPTADOR DE COMPRESSAO EM POLIPROPILENO (PP), PARA TUBO EM PEAD, 20 MM X 1/2", PARA LIGACAO PREDIAL DE AGUA (NTS 179) | C106: UN | D106: C | E106: 7.78
A107: 61 | B107: ADAPTADOR DE COMPRESSAO EM POLIPROPILENO (PP), PARA TUBO EM PEAD, 20 MM X 3/4", PARA LIGACAO PREDIAL DE AGUA (NTS 179) | C107: UN | D107: CR | E107: 7.36
A108: 62 | B108: ADAPTADOR DE COMPRESSAO EM POLIPROPILENO (PP), PARA TUBO EM PEAD, 32 MM X 1", PARA LIGACAO PREDIAL DE AGUA (NTS 179) | C108: UN | D108: CR | E108: 15.25
A109: 77 | B109: ADAPTADOR PVC PARA SIFAO METALICO, SOLDAVEL, COM ANEL BORRACHA (JE), 40 MM X 1 1/2" | C109: UN | D109: CR | E109: 1.5
A110: 76 | B110: ADAPTADOR PVC PARA SIFAO, ROSCAVEL, 40 MM X 1 1/4" | C110: UN | D110: CR | E110: 1.53
A111: 67 | B111: ADAPTADOR PVC ROSCAVEL, COM FLANGES E ANEL DE VEDACAO, 1/2", PARA CAIXA D' AGUA | C111: UN | D111: CR | E111: 14.71
A112: 71 | B112: ADAPTADOR PVC ROSCAVEL, COM FLANGES E ANEL DE VEDACAO, 1", PARA CAIXA D' AGUA | C112: UN | D112: CR | E112: 27.03
A113: 73 | B113: ADAPTADOR PVC ROSCAVEL, COM FLANGES E ANEL DE VEDACAO, 3/4", PARA CAIXA D' AGUA | C113: UN | D113: CR | E113: 20.19
A114: 103 | B114: ADAPTADOR PVC SOLDAVEL CURTO COM BOLSA E ROSCA, 110 MM X 4", PARA AGUA FRIA | C114: UN | D114: CR | E114: 60.04
A115: 107 | B115: ADAPTADOR PVC SOLDAVEL CURTO COM BOLSA E ROSCA, 20 MM X 1/2", PARA AGUA FRIA | C115: UN | D115: CR | E115: 0.94
A116: 65 | B116: ADAPTADOR PVC SOLDAVEL CURTO COM BOLSA E ROSCA, 25 MM X 3/4", PARA AGUA FRIA | C116: UN | D116: CR | E116: 1.16
A117: 108 | B117: ADAPTADOR PVC SOLDAVEL CURTO COM BOLSA E ROSCA, 32 MM X 1", PARA AGUA FRIA | C117: UN | D117: CR | E117: 2.4
A118: 110 | B118: ADAPTADOR PVC SOLDAVEL CURTO COM BOLSA E ROSCA, 40 MM X 1 1/2", PARA AGUA FRIA | C118: UN | D118: CR | E118: 9.27
A119: 109 | B119: ADAPTADOR PVC SOLDAVEL CURTO COM BOLSA E ROSCA, 40 MM X 1 1/4", PARA AGUA FRIA | C119: UN | D119: CR | E119: 4.57
A120: 111 | B120: ADAPTADOR PVC SOLDAVEL CURTO COM BOLSA E ROSCA, 50 MM X 1 1/4", PARA AGUA FRIA | C120: UN | D120: CR | E120: 10.69
A121: 112 | B121: ADAPTADOR PVC SOLDAVEL CURTO COM BOLSA E ROSCA, 50 MM X1 1/2", PARA AGUA FRIA | C121: UN | D121: CR | E121: 5.82
A122: 113 | B122: ADAPTADOR PVC SOLDAVEL CURTO COM BOLSA E ROSCA, 60 MM X 2", PARA AGUA FRIA | C122: UN | D122: CR | E122: 15.79
A123: 104 | B123: ADAPTADOR PVC SOLDAVEL CURTO COM BOLSA E ROSCA, 75 MM X 2 1/2", PARA AGUA FRIA | C123: UN | D123: CR | E123: 22.97
A124: 102 | B124: ADAPTADOR PVC SOLDAVEL CURTO COM BOLSA E ROSCA, 85 MM X 3", PARA AGUA FRIA | C124: UN | D124: CR | E124: 37.71
A125: 95 | B125: ADAPTADOR PVC SOLDAVEL, COM FLANGE E ANEL DE VEDACAO, 20 MM X 1/2", PARA CAIXA D'AGUA | C125: UN | D125: CR | E125: 12.76
A126: 96 | B126: ADAPTADOR PVC SOLDAVEL, COM FLANGE E ANEL DE VEDACAO, 25 MM X 3/4", PARA CAIXA D'AGUA | C126: UN | D126: CR | E126: 14.68
A127: 97 | B127: ADAPTADOR PVC SOLDAVEL, COM FLANGE E ANEL DE VEDACAO, 32 MM X 1", PARA CAIXA D'AGUA | C127: UN | D127: CR | E127: 19.06
A128: 98 | B128: ADAPTADOR PVC SOLDAVEL, COM FLANGE E ANEL DE VEDACAO, 40 MM X 1 1/4", PARA CAIXA D'AGUA | C128: UN | D128: CR | E128: 25.69
A129: 99 | B129: ADAPTADOR PVC SOLDAVEL, COM FLANGE E ANEL DE VEDACAO, 50 MM X 1 1/2", PARA CAIXA D'AGUA | C129: UN | D129: CR | E129: 31.16
A130: 100 | B130: ADAPTADOR PVC SOLDAVEL, COM FLANGES E ANEL DE VEDACAO, 60 MM X 2", PARA CAIXA D' AGUA | C130: UN | D130: CR | E130: 43.47
A131: 75 | B131: ADAPTADOR PVC SOLDAVEL, COM FLANGES LIVRES, 110 MM X 4", PARA CAIXA D' AGUA | C131: UN | D131: CR | E131: 453.04
A132: 114 | B132: ADAPTADOR PVC SOLDAVEL, COM FLANGES LIVRES, 25 MM X 3/4", PARA CAIXA D' AGUA | C132: UN | D132: CR | E132: 16.51
A133: 68 | B133: ADAPTADOR PVC SOLDAVEL, COM FLANGES LIVRES, 32 MM X 1", PARA CAIXA D' AGUA | C133: UN | D133: CR | E133: 25.24
A134: 86 | B134: ADAPTADOR PVC SOLDAVEL, COM FLANGES LIVRES, 40 MM X 1 1/4", PARA CAIXA D' AGUA | C134: UN | D134: CR | E134: 46.93
A135: 66 | B135: ADAPTADOR PVC SOLDAVEL, COM FLANGES LIVRES, 50 MM X 1 1/2", PARA CAIXA D' AGUA | C135: UN | D135: CR | E135: 47.1
A136: 69 | B136: ADAPTADOR PVC SOLDAVEL, COM FLANGES LIVRES, 60 MM X 2", PARA CAIXA D' AGUA | C136: UN | D136: CR | E136: 71.99
A137: 83 | B137: ADAPTADOR PVC SOLDAVEL, COM FLANGES LIVRES, 75 MM X 2 1/2", PARA CAIXA D' AGUA | C137: UN | D137: CR | E137: 229.92
A138: 74 | B138: ADAPTADOR PVC SOLDAVEL, COM FLANGES LIVRES, 85 MM X 3", PARA CAIXA D' AGUA | C138: UN | D138: CR | E138: 320.99
A139: 106 | B139: ADAPTADOR PVC SOLDAVEL, LONGO, COM FLANGE LIVRE, 110 MM X 4", PARA CAIXA D' AGUA | C139: UN | D139: CR | E139: 487.63
A140: 87 | B140: ADAPTADOR PVC SOLDAVEL, LONGO, COM FLANGE LIVRE, 25 MM X 3/4", PARA CAIXA D' AGUA | C140: UN | D140: CR | E140: 23.18
A141: 88 | B141: ADAPTADOR PVC SOLDAVEL, LONGO, COM FLANGE LIVRE, 32 MM X 1", PARA CAIXA D' AGUA | C141: UN | D141: CR | E141: 25.87
A142: 89 | B142: ADAPTADOR PVC SOLDAVEL, LONGO, COM FLANGE LIVRE, 40 MM X 1 1/4", PARA CAIXA D' AGUA | C142: UN | D142: CR | E142: 38.25
A143: 90 | B143: ADAPTADOR PVC SOLDAVEL, LONGO, COM FLANGE LIVRE, 50 MM X 1 1/2", PARA CAIXA D' AGUA | C143: UN | D143: CR | E143: 43.82
A144: 81 | B144: ADAPTADOR PVC SOLDAVEL, LONGO, COM FLANGE LIVRE, 60 MM X 2", PARA CAIXA D' AGUA | C144: UN | D144: CR | E144: 74.95
A145: 82 | B145: ADAPTADOR PVC SOLDAVEL, LONGO, COM FLANGE LIVRE, 75 MM X 2 1/2", PARA CAIXA D' AGUA | C145: UN | D145: CR | E145: 290.95
A146: 105 | B146: ADAPTADOR PVC SOLDAVEL, LONGO, COM FLANGE LIVRE, 85 MM X 3", PARA CAIXA D' AGUA | C146: UN | D146: CR | E146: 340.63
A147: 60 | B147: ADAPTADOR PVC, COM REGISTRO, PARA PEAD, 20 MM X 3/4", PARA LIGACAO PREDIAL DE AGUA | C147: UN | D147: CR | E147: 10.1
A148: 72 | B148: ADAPTADOR PVC, ROSCAVEL, COM FLANGES E ANEL DE VEDACAO, 1 1/2", PARA CAIXA D'AGUA | C148: UN | D148: CR | E148: 45.82
A149: 70 | B149: ADAPTADOR PVC, ROSCAVEL, COM FLANGES E ANEL DE VEDACAO, 1 1/4", PARA CAIXA D' AGUA | C149: UN | D149: CR | E149: 38.32
A150: 85 | B150: ADAPTADOR PVC, ROSCAVEL, COM FLANGES E ANEL DE VEDACAO, 2", PARA CAIXA D' AGUA | C150: UN | D150: CR | E150: 55.61
A151: 84 | B151: ADAPTADOR PVC, ROSCAVEL, PARA VALVULA PIA OU LAVATORIO, 40 MM | C151: UN | D151: CR | E151: 0.64
A152: 37997 | B152: ADAPTADOR, CPVC, SOLDAVEL, 15 MM, PARA AGUA QUENTE | C152: UN | D152: CR | E152: 7.17
A153: 37998 | B153: ADAPTADOR, CPVC, SOLDAVEL, 22 MM, PARA AGUA QUENTE | C153: UN | D153: CR | E153: 7.43
A154: 10899 | B154: ADAPTADOR, EM LATAO, ENGATE RAPIDO 2 1/2" X ROSCA INTERNA 5 FIOS 2 1/2", PARA INSTALACAO PREDIAL DE COMBATE A INCENDIO | C154: UN | D154: CR | E154: 59.77
A155: 10900 | B155: ADAPTADOR, EM LATAO, ENGATE RAPIDO1 1/2" X ROSCA INTERNA 5 FIOS 2 1/2", PARA INSTALACAO PREDIAL DE COMBATE A INCENDIO | C155: UN | D155: CR | E155: 46.77
A156: 46 | B156: ADAPTADOR, PVC PBA, BOLSA/ROSCA, JE, DN 75 / DE 85 MM | C156: UN | D156: AS | E156: 53.49
A157: 51 | B157: ADAPTADOR, PVC PBA, A BOLSA DEFOFO, JE, DN 100 / DE 110 MM | C157: UN | D157: AS | E157: 147.56
A158: 12863 | B158: ADAPTADOR, PVC PBA, A BOLSA DEFOFO, JE, DN 50 / DE 60 MM | C158: UN | D158: AS | E158: 33.99
A159: 50 | B159: ADAPTADOR, PVC PBA, A BOLSA DEFOFO, JE, DN 75 / DE 85 MM | C159: UN | D159: AS | E159: 77.05
A160: 47 | B160: ADAPTADOR, PVC PBA, BOLSA/ROSCA, JE, DN 100 / DE 110 MM | C160: UN | D160: AS | E160: 91.46
A161: 48 | B161: ADAPTADOR, PVC PBA, BOLSA/ROSCA, JE, DN 50 / DE 60 MM | C161: UN | D161: AS | E161: 23.86
A162: 52 | B162: ADAPTADOR, PVC PBA, PONTA/ROSCA, JE, DN 50 / DE 60 MM | C162: UN | D162: AS | E162: 18.12
A163: 43 | B163: ADAPTADOR, PVC PBA, PONTA/ROSCA, JE, DN 75 / DE 85 MM | C163: UN | D163: AS | E163: 61.17
A164: 4791 | B164: ADESIVO ACRILICO/COLA DE CONTATO | C164: KG | D164: CR | E164: 20.57
A165: 157 | B165: ADESIVO ESTRUTURAL A BASE DE RESINA EPOXI PARA INJECAO EM TRINCAS, BICOMPONENTE, BAIXA VISCOSIDADE | C165: KG | D165: CR | E165: 93.04
A166: 156 | B166: ADESIVO ESTRUTURAL A BASE DE RESINA EPOXI, BICOMPONENTE, FLUIDO | C166: KG | D166: CR | E166: 33.13
A167: 131 | B167: ADESIVO ESTRUTURAL A BASE DE RESINA EPOXI, BICOMPONENTE, PASTOSO (TIXOTROPICO) | C167: KG | D167: CR | E167: 28.33
A168: 39719 | B168: ADESIVO LIQUIDO A BASE DE RESINAS PARA COLAGEM DE ESPUMA DE ISOLAMENTO TERMICO FLEXIVEL | C168: L | D168: CR | E168: 106.47
A169: 21114 | B169: ADESIVO PARA TUBOS CPVC, *75* G | C169: UN | D169: CR | E169: 22.81
A170: 119 | B170: ADESIVO PLASTICO PARA PVC, BISNAGA COM 75 GR | C170: UN | D170: C | E170: 9
A171: 20080 | B171: ADESIVO PLASTICO PARA PVC, FRASCO COM 175 GR | C171: UN | D171: CR | E171: 25.8
A172: 122 | B172: ADESIVO PLASTICO PARA PVC, FRASCO COM 850 GR | C172: UN | D172: CR | E172: 81.3
A173: 3410 | B173: ADESIVO/COLA PARA EPS (ISOPOR) E OUTROS MATERIAIS | C173: KG | D173: CR | E173: 32.9
A174: 124 | B174: ADITIVO ACELERADOR DE PEGA E ENDURECIMENTO PARA ARGAMASSAS E CONCRETOS, LIQUIDO E ISENTO DE CLORETOS | C174: L | D174: CR | E174: 10.92
A175: 7334 | B175: ADITIVO ADESIVO LIQUIDO PARA ARGAMASSAS DE REVESTIMENTOS CIMENTICIOS | C175: L | D175: CR | E175: 11.69
A176: 123 | B176: ADITIVO IMPERMEABILIZANTE DE PEGA NORMAL PARA ARGAMASSAS E CONCRETOS SEM ARMACAO, LIQUIDO E ISENTO DE CLORETOS | C176: L | D176: C | E176: 4.47
A177: 127 | B177: ADITIVO IMPERMEABILIZANTE DE PEGA ULTRARRAPIDA, LIQUIDO E ISENTO DE CLORETOS | C177: L | D177: CR | E177: 10.67
A178: 41373 | B178: ADITIVO LIQUIDO IMPERMEABILIZANTE CRISTALIZANTE | C178: L | D178: CR | E178: 14.87
A179: 133 | B179: ADITIVO LIQUIDO INCORPORADOR DE AR PARA CONCRETO E ARGAMASSA, LIQUIDO E ISENTO DE CLORETOS | C179: L | D179: CR | E179: 4.43
A180: 43617 | B180: ADITIVO PLASTIFICANTE E ESTABILIZADOR PARA ARGAMASSAS DE ASSENTAMENTO E REBOCO, LIQUIDO E ISENTO DE CLORETOS | C180: L | D180: CR | E180: 4.95
A181: 132 | B181: ADITIVO PLASTIFICANTE RETARDADOR DE PEGA E REDUTOR DE AGUA PARA CONCRETO, LIQUIDO E ISENTO DE CLORETOS | C181: L | D181: CR | E181: 4.59
A182: 43618 | B182: ADITIVO SUPERPLASTIFICANTE DE PEGA NORMAL PARA CONCRETO, LIQUIDO E ISENTO DE CLORETOS | C182: KG | D182: CR | E182: 11.56
A183: 37476 | B183: ADUELA/ GALERIA PRE-MOLDADA DE CONCRETO ARMADO, SECAO QUADRADA INTERNA DE 1,50 X 1,50 M (L X A), MISULA DE 20 X 20 CM, C = 1,00 M, ESPESSURA MIN = 15 CM, TB-45 E FCK DO CONCRETO = 30 MPA | C183: UN | D183: CR | E183: 2329.41
A184: 37478 | B184: ADUELA/ GALERIA PRE-MOLDADA DE CONCRETO ARMADO, SECAO RETANGULAR INTERNA DE 2,00 X 2,00 M (L X A), MISULA DE 20 X 20 CM, C = 1,00 M, ESPESSURA MIN = 15 CM, TB-45 E FCK DO CONCRETO = 30 MPA | C184: UN | D184: CR | E184: 2917.64
A185: 37477 | B185: ADUELA/ GALERIA PRE-MOLDADA DE CONCRETO ARMADO, SECAO RETANGULAR INTERNA DE 2,50 X 2,50 M (L X A), MISULA DE 20 X 20 CM, C = 1,00 M, ESPESSURA MIN = 15 CM, TB-45 E FCK DO CONCRETO = 30 MPA | C185: UN | D185: CR | E185: 3952.94
A186: 37479 | B186: ADUELA/ GALERIA PRE-MOLDADA DE CONCRETO ARMADO, SECAO RETANGULAR INTERNA DE 3,00 X 3,00 M (L X A), MISULA DE 20 X 20 CM, C = 1.00 M, ESPESSURA MIN = 20 CM, TB-45 E FCK DO CONCRETO = 30 MPA | C186: UN | D186: CR | E186: 4688.23
A187: 4319 | B187: AFASTADOR PARA TELHA DE FIBROCIMENTO CANALETE 90 OU KALHETAO | C187: UN | D187: CR | E187: 1
A188: 42409 | B188: AGENTE DE CURA, PROTETOR DA EVAPORACAO DA AGUA DE HIDRATACAO DO CONCRETO | C188: KG | D188: CR | E188: 7.28
A189: 40553 | B189: AGREGADO RECICLADO, TIPO RACHAO RECICLADO CINZA, CLASSE A | C189: M3 | D189: AS | E189: 36.45
A190: 6114 | B190: AJUDANTE DE ARMADOR | C190: H | D190: CR | E190: 11.25
A191: 40912 | B191: AJUDANTE DE ARMADOR (MENSALISTA) | C191: MES | D191: CR | E191: 1985.95
A192: 247 | B192: AJUDANTE DE ELETRICISTA | C192: H | D192: CR | E192: 12.51
A193: 40919 | B193: AJUDANTE DE ELETRICISTA (MENSALISTA) | C193: MES | D193: CR | E193: 2209.5
A194: 25958 | B194: AJUDANTE DE ESTRUTURAS METALICAS | C194: H | D194: CR | E194: 13.78
A195: 40984 | B195: AJUDANTE DE ESTRUTURAS METALICAS (MENSALISTA) | C195: MES | D195: CR | E195: 2431.62
A196: 248 | B196: AJUDANTE DE OPERACAO EM GERAL | C196: H | D196: CR | E196: 11.65
A197: 41086 | B197: AJUDANTE DE OPERACAO EM GERAL (MENSALISTA) | C197: MES | D197: CR | E197: 2055
A198: 34466 | B198: AJUDANTE DE PINTOR | C198: H | D198: CR | E198: 11.65
A199: 41083 | B199: AJUDANTE DE PINTOR (MENSALISTA) | C199: MES | D199: CR | E199: 2055
A200: 252 | B200: AJUDANTE DE SERRALHEIRO | C200: H | D200: CR | E200: 12.07
A201: 40909 | B201: AJUDANTE DE SERRALHEIRO (MENSALISTA) | C201: MES | D201: CR | E201: 2130.13
A202: 242 | B202: AJUDANTE ESPECIALIZADO | C202: H | D202: CR | E202: 16.48
... 4993 more rows

Sheet Comp.SINAPI c_des. (hidden)
A1: PCI.818.01 - CUSTOS DE COMPOSIÇÕES ANALÍTICO DATA DE EMISSÃO:15/05/2021 01:44:37 DATA DE RT: 14/05/2021
A2: ENCARGOS SOCIAIS DESONERADOS: 82,28%(HORA) 46,00%(MÊS)
A3: ABRANGENCIA: NACIONAL DATA REFERENCIA TECNICA: 14/05/2021 LOCALIDADE : PORTO ALEGRE DATA DE PREÇO : 04/2021
A4: REFERÊNCIA DE COLETA: MEDIANO
A6: DESCRICAO DA CLASSE | B6: SIGLA DA CLASSE | C6: DESCRICAO DO TIPO 1 | D6: SIGLA DO TIPO 1 | E6: CODIGO DO AGRUPADOR | F6: DESCRICAO DO AGRUPADOR | G6: CODIGO DA COMPOSICAO | H6: DESCRICAO DA COMPOSICAO | I6: UNIDADE | J6: ORIGEM DE PREÇO | K6: CUSTO TOTAL | L6: TIPO ITEM | M6: CODIGO ITEM | N6: DESCRIÇÃO ITEM | O6: UNIDADE ITEM | P6: ORIGEM DE PREÇO ITEM | Q6: COEFICIENTE | R6: PRECO UNITARIO | S6: CUSTO TOTAL | T6: CUSTO MAO DE OBRA | U6: % MAO DE OBRA | V6: CUSTO MATERIAL | W6: % MATERIAL | X6: CUSTO EQUIPAMENTO | Y6: % EQUIPAMENTO | Z6: CUSTO SERVICOS TERCEIROS | AA6: % SERVICOS TERCEIROS | AB6: CUSTO OUTROS | AC6: % OUTROS | AD6: % ATRIBUÍDO SÃO PAULO | AE6: VINCULO
A8: ASSENTAMENTO DE TUBOS E PECAS | B8: ASTU | C8: FORNEC E/OU ASSENT DE TUBO DE FERRO FUNDIDO JUNTA | D8: 45 | G8: 97141 | H8: ASSENTAMENTO DE TUBO DE FERRO FUNDIDO PARA REDE DE ÁGUA, DN 80 MM, JUNTA ELÁSTICA, INSTALADO EM LOCAL COM NÍVEL ALTO DE INTERFERÊNCIAS (NÃO INCLUI FORNECIMENTO). AF_11/2017 | I8: M | J8: COEFICIENTE DE REPRESENTATIVIDADE | K8: 6.71 | T8: 3,93 | U8: 58,3841464 | V8: 1,30 | W8: 19,5121951 | X8: 1,48 | Y8: 22,1036585 | Z8: 0,00 | AA8: 0,0000000 | AB8: 0,00 | AC8: 0,0000000 | AD8: 0 | AE8: CAIXA REFERENCIAL
A9: ASSENTAMENTO DE TUBOS E PECAS | B9: ASTU | C9: FORNEC E/OU ASSENT DE TUBO DE FERRO FUNDIDO JUNTA | D9: 45 | G9: 97141 | H9: ASSENTAMENTO DE TUBO DE FERRO FUNDIDO PARA REDE DE ÁGUA, DN 80 MM, JUNTA ELÁSTICA, INSTALADO EM LOCAL COM NÍVEL ALTO DE INTERFERÊNCIAS (NÃO INCLUI FORNECIMENTO). AF_11/2017 | I9: M | J9: COEFICIENTE DE REPRESENTATIVIDADE | K9: 6.71 | L9: COMPOSICAO | M9: 5678 | N9: RETROESCAVADEIRA SOBRE RODAS COM CARREGADEIRA, TRAÇÃO 4X4, POTÊNCIA LÍQ. 88 HP, CAÇAMBA CARREG. CAP. MÍN. 1 M3, CAÇAMBA RETRO CAP. 0,26 M3, PESO OPERACIONAL MÍN. 6.674 KG, PROFUNDIDADE ESCAVAÇÃO MÁX. 4,37 M - CHP DIURNO. AF_06/2014 | O9: CHP | P9: COEFICIENTE DE REPRESENTATIVIDADE | Q9: 0,0099000 | R9: 106.12 | S9: 1,05 | AE9: CAIXA REFERENCIAL
A10: ASSENTAMENTO DE TUBOS E PECAS | B10: ASTU | C10: FORNEC E/OU ASSENT DE TUBO DE FERRO FUNDIDO JUNTA | D10: 45 | G10: 97141 | H10: ASSENTAMENTO DE TUBO DE FERRO FUNDIDO PARA REDE DE ÁGUA, DN 80 MM, JUNTA ELÁSTICA, INSTALADO EM LOCAL COM NÍVEL ALTO DE INTERFERÊNCIAS (NÃO INCLUI FORNECIMENTO). AF_11/2017 | I10: M | J10: COEFICIENTE DE REPRESENTATIVIDADE | K10: 6.71 | L10: COMPOSICAO | M10: 5679 | N10: RETROESCAVADEIRA SOBRE RODAS COM CARREGADEIRA, TRAÇÃO 4X4, POTÊNCIA LÍQ. 88 HP, CAÇAMBA CARREG. CAP. MÍN. 1 M3, CAÇAMBA RETRO CAP. 0,26 M3, PESO OPERACIONAL MÍN. 6.674 KG, PROFUNDIDADE ESCAVAÇÃO MÁX. 4,37 M - CHI DIURNO. AF_06/2014 | O10: CHI | P10: COEFICIENTE DE REPRESENTATIVIDADE | Q10: 0,0477000 | R10: 45.92 | S10: 2,19 | AE10: CAIXA REFERENCIAL
A11: ASSENTAMENTO DE TUBOS E PECAS | B11: ASTU | C11: FORNEC E/OU ASSENT DE TUBO DE FERRO FUNDIDO JUNTA | D11: 45 | G11: 97141 | H11: ASSENTAMENTO DE TUBO DE FERRO FUNDIDO PARA REDE DE ÁGUA, DN 80 MM, JUNTA ELÁSTICA, INSTALADO EM LOCAL COM NÍVEL ALTO DE INTERFERÊNCIAS (NÃO INCLUI FORNECIMENTO). AF_11/2017 | I11: M | J11: COEFICIENTE DE REPRESENTATIVIDADE | K11: 6.71 | L11: INSUMO | M11: 20078 | N11: PASTA LUBRIFICANTE PARA TUBOS E CONEXOES COM JUNTA ELASTICA (USO EM PVC, ACO, POLIETILENO E OUTROS) ( DE *400* G) | O11: UN | P11: COEFICIENTE DE REPRESENTATIVIDADE | Q11: 0,0046000 | R11: 29.77 | S11: 0,13 | AE11: CAIXA REFERENCIAL
A12: ASSENTAMENTO DE TUBOS E PECAS | B12: ASTU | C12: FORNEC E/OU ASSENT DE TUBO DE FERRO FUNDIDO JUNTA | D12: 45 | G12: 97141 | H12: ASSENTAMENTO DE TUBO DE FERRO FUNDIDO PARA REDE DE ÁGUA, DN 80 MM, JUNTA ELÁSTICA, INSTALADO EM LOCAL COM NÍVEL ALTO DE INTERFERÊNCIAS (NÃO INCLUI FORNECIMENTO). AF_11/2017 | I12: M | J12: COEFICIENTE DE REPRESENTATIVIDADE | K12: 6.71 | L12: COMPOSICAO | M12: 88246 | N12: ASSENTADOR DE TUBOS COM ENCARGOS COMPLEMENTARES | O12: H | P12: COEFICIENTE DE REPRESENTATIVIDADE | Q12: 0,0905000 | R12: 21.68 | S12: 1,96 | AE12: CAIXA REFERENCIAL
A13: ASSENTAMENTO DE TUBOS E PECAS | B13: ASTU | C13: FORNEC E/OU ASSENT DE TUBO DE FERRO FUNDIDO JUNTA | D13: 45 | G13: 97141 | H13: ASSENTAMENTO DE TUBO DE FERRO FUNDIDO PARA REDE DE ÁGUA, DN 80 MM, JUNTA ELÁSTICA, INSTALADO EM LOCAL COM NÍVEL ALTO DE INTERFERÊNCIAS (NÃO INCLUI FORNECIMENTO). AF_11/2017 | I13: M | J13: COEFICIENTE DE REPRESENTATIVIDADE | K13: 6.71 | L13: COMPOSICAO | M13: 88316 | N13: SERVENTE COM ENCARGOS COMPLEMENTARES | O13: H | P13: COLETADO | Q13: 0,0905000 | R13: 15.35 | S13: 1,38 | AE13: CAIXA REFERENCIAL
A14: ASSENTAMENTO DE TUBOS E PECAS | B14: ASTU | C14: FORNEC E/OU ASSENT DE TUBO DE FERRO FUNDIDO JUNTA | D14: 45 | G14: 97142 | H14: ASSENTAMENTO DE TUBO DE FERRO FUNDIDO PARA REDE DE ÁGUA, DN 100 MM, JUNTA ELÁSTICA, INSTALADO EM LOCAL COM NÍVEL ALTO DE INTERFERÊNCIAS (NÃO INCLUI FORNECIMENTO). AF_11/2017 | I14: M | J14: COEFICIENTE DE REPRESENTATIVIDADE | K14: 7.48 | T14: 4,41 | U14: 58,8797815 | V14: 1,48 | W14: 19,8087431 | X14: 1,59 | Y14: 21,3114754 | Z14: 0,00 | AA14: 0,0000000 | AB14: 0,00 | AC14: 0,0000000 | AD14: 0 | AE14: CAIXA REFERENCIAL
A15: ASSENTAMENTO DE TUBOS E PECAS | B15: ASTU | C15: FORNEC E/OU ASSENT DE TUBO DE FERRO FUNDIDO JUNTA | D15: 45 | G15: 97142 | H15: ASSENTAMENTO DE TUBO DE FERRO FUNDIDO PARA REDE DE ÁGUA, DN 100 MM, JUNTA ELÁSTICA, INSTALADO EM LOCAL COM NÍVEL ALTO DE INTERFERÊNCIAS (NÃO INCLUI FORNECIMENTO). AF_11/2017 | I15: M | J15: COEFICIENTE DE REPRESENTATIVIDADE | K15: 7.48 | L15: COMPOSICAO | M15: 5678 | N15: RETROESCAVADEIRA SOBRE RODAS COM CARREGADEIRA, TRAÇÃO 4X4, POTÊNCIA LÍQ. 88 HP, CAÇAMBA CARREG. CAP. MÍN. 1 M3, CAÇAMBA RETRO CAP. 0,26 M3, PESO OPERACIONAL MÍN. 6.674 KG, PROFUNDIDADE ESCAVAÇÃO MÁX. 4,37 M - CHP DIURNO. AF_06/2014 | O15: CHP | P15: COEFICIENTE DE REPRESENTATIVIDADE | Q15: 0,0106000 | R15: 106.12 | S15: 1,12 | AE15: CAIXA REFERENCIAL
A16: ASSENTAMENTO DE TUBOS E PECAS | B16: ASTU | C16: FORNEC E/OU ASSENT DE TUBO DE FERRO FUNDIDO JUNTA | D16: 45 | G16: 97142 | H16: ASSENTAMENTO DE TUBO DE FERRO FUNDIDO PARA REDE DE ÁGUA, DN 100 MM, JUNTA ELÁSTICA, INSTALADO EM LOCAL COM NÍVEL ALTO DE INTERFERÊNCIAS (NÃO INCLUI FORNECIMENTO). AF_11/2017 | I16: M | J16: COEFICIENTE DE REPRESENTATIVIDADE | K16: 7.48 | L16: COMPOSICAO | M16: 5679 | N16: RETROESCAVADEIRA SOBRE RODAS COM CARREGADEIRA, TRAÇÃO 4X4, POTÊNCIA LÍQ. 88 HP, CAÇAMBA CARREG. CAP. MÍN. 1 M3, CAÇAMBA RETRO CAP. 0,26 M3, PESO OPERACIONAL MÍN. 6.674 KG, PROFUNDIDADE ESCAVAÇÃO MÁX. 4,37 M - CHI DIURNO. AF_06/2014 | O16: CHI | P16: COEFICIENTE DE REPRESENTATIVIDADE | Q16: 0,0510000 | R16: 45.92 | S16: 2,34 | AE16: CAIXA REFERENCIAL
A17: ASSENTAMENTO DE TUBOS E PECAS | B17: ASTU | C17: FORNEC E/OU ASSENT DE TUBO DE FERRO FUNDIDO JUNTA | D17: 45 | G17: 97142 | H17: ASSENTAMENTO DE TUBO DE FERRO FUNDIDO PARA REDE DE ÁGUA, DN 100 MM, JUNTA ELÁSTICA, INSTALADO EM LOCAL COM NÍVEL ALTO DE INTERFERÊNCIAS (NÃO INCLUI FORNECIMENTO). AF_11/2017 | I17: M | J17: COEFICIENTE DE REPRESENTATIVIDADE | K17: 7.48 | L17: INSUMO | M17: 20078 | N17: PASTA LUBRIFICANTE PARA TUBOS E CONEXOES COM JUNTA ELASTICA (USO EM PVC, ACO, POLIETILENO E OUTROS) ( DE *400* G) | O17: UN | P17: COEFICIENTE DE REPRESENTATIVIDADE | Q17: 0,0054000 | R17: 29.77 | S17: 0,16 | AE17: CAIXA REFERENCIAL
A18: ASSENTAMENTO DE TUBOS E PECAS | B18: ASTU | C18: FORNEC E/OU ASSENT DE TUBO DE FERRO FUNDIDO JUNTA | D18: 45 | G18: 97142 | H18: ASSENTAMENTO DE TUBO DE FERRO FUNDIDO PARA REDE DE ÁGUA, DN 100 MM, JUNTA ELÁSTICA, INSTALADO EM LOCAL COM NÍVEL ALTO DE INTERFERÊNCIAS (NÃO INCLUI FORNECIMENTO). AF_11/2017 | I18: M | J18: COEFICIENTE DE REPRESENTATIVIDADE | K18: 7.48 | L18: COMPOSICAO | M18: 88246 | N18: ASSENTADOR DE TUBOS COM ENCARGOS COMPLEMENTARES | O18: H | P18: COEFICIENTE DE REPRESENTATIVIDADE | Q18: 0,1045000 | R18: 21.68 | S18: 2,26 | AE18: CAIXA REFERENCIAL
A19: ASSENTAMENTO DE TUBOS E PECAS | B19: ASTU | C19: FORNEC E/OU ASSENT DE TUBO DE FERRO FUNDIDO JUNTA | D19: 45 | G19: 97142 | H19: ASSENTAMENTO DE TUBO DE FERRO FUNDIDO PARA REDE DE ÁGUA, DN 100 MM, JUNTA ELÁSTICA, INSTALADO EM LOCAL COM NÍVEL ALTO DE INTERFERÊNCIAS (NÃO INCLUI FORNECIMENTO). AF_11/2017 | I19: M | J19: COEFICIENTE DE REPRESENTATIVIDADE | K19: 7.48 | L19: COMPOSICAO | M19: 88316 | N19: SERVENTE COM ENCARGOS COMPLEMENTARES | O19: H | P19: COLETADO | Q19: 0,1045000 | R19: 15.35 | S19: 1,60 | AE19: CAIXA REFERENCIAL
A20: ASSENTAMENTO DE TUBOS E PECAS | B20: ASTU | C20: FORNEC E/OU ASSENT DE TUBO DE FERRO FUNDIDO JUNTA | D20: 45 | G20: 97143 | H20: ASSENTAMENTO DE TUBO DE FERRO FUNDIDO PARA REDE DE ÁGUA, DN 150 MM, JUNTA ELÁSTICA, INSTALADO EM LOCAL COM NÍVEL ALTO DE INTERFERÊNCIAS (NÃO INCLUI FORNECIMENTO). AF_11/2017 | I20: M | J20: COEFICIENTE DE REPRESENTATIVIDADE | K20: 9.4 | T20: 5,67 | U20: 60,1941749 | V20: 1,89 | W20: 20,1725997 | X20: 1,84 | Y20: 19,6332254 | Z20: 0,00 | AA20: 0,0000000 | AB20: 0,00 | AC20: 0,0000000 | AD20: 0 | AE20: CAIXA REFERENCIAL
A21: ASSENTAMENTO DE TUBOS E PECAS | B21: ASTU | C21: FORNEC E/OU ASSENT DE TUBO DE FERRO FUNDIDO JUNTA | D21: 45 | G21: 97143 | H21: ASSENTAMENTO DE TUBO DE FERRO FUNDIDO PARA REDE DE ÁGUA, DN 150 MM, JUNTA ELÁSTICA, INSTALADO EM LOCAL COM NÍVEL ALTO DE INTERFERÊNCIAS (NÃO INCLUI FORNECIMENTO). AF_11/2017 | I21: M | J21: COEFICIENTE DE REPRESENTATIVIDADE | K21: 9.4 | L21: COMPOSICAO | M21: 5678 | N21: RETROESCAVADEIRA SOBRE RODAS COM CARREGADEIRA, TRAÇÃO 4X4, POTÊNCIA LÍQ. 88 HP, CAÇAMBA CARREG. CAP. MÍN. 1 M3, CAÇAMBA RETRO CAP. 0,26 M3, PESO OPERACIONAL MÍN. 6.674 KG, PROFUNDIDADE ESCAVAÇÃO MÁX. 4,37 M - CHP DIURNO. AF_06/2014 | O21: CHP | P21: COEFICIENTE DE REPRESENTATIVIDADE | Q21: 0,0124000 | R21: 106.12 | S21: 1,31 | AE21: CAIXA REFERENCIAL
A22: ASSENTAMENTO DE TUBOS E PECAS | B22: ASTU | C22: FORNEC E/OU ASSENT DE TUBO DE FERRO FUNDIDO JUNTA | D22: 45 | G22: 97143 | H22: ASSENTAMENTO DE TUBO DE FERRO FUNDIDO PARA REDE DE ÁGUA, DN 150 MM, JUNTA ELÁSTICA, INSTALADO EM LOCAL COM NÍVEL ALTO DE INTERFERÊNCIAS (NÃO INCLUI FORNECIMENTO). AF_11/2017 | I22: M | J22: COEFICIENTE DE REPRESENTATIVIDADE | K22: 9.4 | L22: COMPOSICAO | M22: 5679 | N22: RETROESCAVADEIRA SOBRE RODAS COM CARREGADEIRA, TRAÇÃO 4X4, POTÊNCIA LÍQ. 88 HP, CAÇAMBA CARREG. CAP. MÍN. 1 M3, CAÇAMBA RETRO CAP. 0,26 M3, PESO OPERACIONAL MÍN. 6.674 KG, PROFUNDIDADE ESCAVAÇÃO MÁX. 4,37 M - CHI DIURNO. AF_06/2014 | O22: CHI | P22: COEFICIENTE DE REPRESENTATIVIDADE | Q22: 0,0594000 | R22: 45.92 | S22: 2,72 | AE22: CAIXA REFERENCIAL
A23: ASSENTAMENTO DE TUBOS E PECAS | B23: ASTU | C23: FORNEC E/OU ASSENT DE TUBO DE FERRO FUNDIDO JUNTA | D23: 45 | G23: 97143 | H23: ASSENTAMENTO DE TUBO DE FERRO FUNDIDO PARA REDE DE ÁGUA, DN 150 MM, JUNTA ELÁSTICA, INSTALADO EM LOCAL COM NÍVEL ALTO DE INTERFERÊNCIAS (NÃO INCLUI FORNECIMENTO). AF_11/2017 | I23: M | J23: COEFICIENTE DE REPRESENTATIVIDADE | K23: 9.4 | L23: INSUMO | M23: 20078 | N23: PASTA LUBRIFICANTE PARA TUBOS E CONEXOES COM JUNTA ELASTICA (USO EM PVC, ACO, POLIETILENO E OUTROS) ( DE *400* G) | O23: UN | P23: COEFICIENTE DE REPRESENTATIVIDADE | Q23: 0,0071000 | R23: 29.77 | S23: 0,21 | AE23: CAIXA REFERENCIAL
A24: ASSENTAMENTO DE TUBOS E PECAS | B24: ASTU | C24: FORNEC E/OU ASSENT DE TUBO DE FERRO FUNDIDO JUNTA | D24: 45 | G24: 97143 | H24: ASSENTAMENTO DE TUBO DE FERRO FUNDIDO PARA REDE DE ÁGUA, DN 150 MM, JUNTA ELÁSTICA, INSTALADO EM LOCAL COM NÍVEL ALTO DE INTERFERÊNCIAS (NÃO INCLUI FORNECIMENTO). AF_11/2017 | I24: M | J24: COEFICIENTE DE REPRESENTATIVIDADE | K24: 9.4 | L24: COMPOSICAO | M24: 88246 | N24: ASSENTADOR DE TUBOS COM ENCARGOS COMPLEMENTARES | O24: H | P24: COEFICIENTE DE REPRESENTATIVIDADE | Q24: 0,1396000 | R24: 21.68 | S24: 3,02 | AE24: CAIXA REFERENCIAL
A25: ASSENTAMENTO DE TUBOS E PECAS | B25: ASTU | C25: FORNEC E/OU ASSENT DE TUBO DE FERRO FUNDIDO JUNTA | D25: 45 | G25: 97143 | H25: ASSENTAMENTO DE TUBO DE FERRO FUNDIDO PARA REDE DE ÁGUA, DN 150 MM, JUNTA ELÁSTICA, INSTALADO EM LOCAL COM NÍVEL ALTO DE INTERFERÊNCIAS (NÃO INCLUI FORNECIMENTO). AF_11/2017 | I25: M | J25: COEFICIENTE DE REPRESENTATIVIDADE | K25: 9.4 | L25: COMPOSICAO | M25: 88316 | N25: SERVENTE COM ENCARGOS COMPLEMENTARES | O25: H | P25: COLETADO | Q25: 0,1396000 | R25: 15.35 | S25: 2,14 | AE25: CAIXA REFERENCIAL
A26: ASSENTAMENTO DE TUBOS E PECAS | B26: ASTU | C26: FORNEC E/OU ASSENT DE TUBO DE FERRO FUNDIDO JUNTA | D26: 45 | G26: 97144 | H26: ASSENTAMENTO DE TUBO DE FERRO FUNDIDO PARA REDE DE ÁGUA, DN 200 MM, JUNTA ELÁSTICA, INSTALADO EM LOCAL COM NÍVEL ALTO DE INTERFERÊNCIAS (NÃO INCLUI FORNECIMENTO). AF_11/2017 | I26: M | J26: COEFICIENTE DE REPRESENTATIVIDADE | K26: 11.31 | T26: 6,90 | U26: 60,9123435 | V26: 2,32 | W26: 20,5724508 | X26: 2,09 | Y26: 18,5152057 | Z26: 0,00 | AA26: 0,0000000 | AB26: 0,00 | AC26: 0,0000000 | AD26: 0 | AE26: CAIXA REFERENCIAL
A27: ASSENTAMENTO DE TUBOS E PECAS | B27: ASTU | C27: FORNEC E/OU ASSENT DE TUBO DE FERRO FUNDIDO JUNTA | D27: 45 | G27: 97144 | H27: ASSENTAMENTO DE TUBO DE FERRO FUNDIDO PARA REDE DE ÁGUA, DN 200 MM, JUNTA ELÁSTICA, INSTALADO EM LOCAL COM NÍVEL ALTO DE INTERFERÊNCIAS (NÃO INCLUI FORNECIMENTO). AF_11/2017 | I27: M | J27: COEFICIENTE DE REPRESENTATIVIDADE | K27: 11.31 | L27: COMPOSICAO | M27: 5678 | N27: RETROESCAVADEIRA SOBRE RODAS COM CARREGADEIRA, TRAÇÃO 4X4, POTÊNCIA LÍQ. 88 HP, CAÇAMBA CARREG. CAP. MÍN. 1 M3, CAÇAMBA RETRO CAP. 0,26 M3, PESO OPERACIONAL MÍN. 6.674 KG, PROFUNDIDADE ESCAVAÇÃO MÁX. 4,37 M - CHP DIURNO. AF_06/2014 | O27: CHP | P27: COEFICIENTE DE REPRESENTATIVIDADE | Q27: 0,0141000 | R27: 106.12 | S27: 1,49 | AE27: CAIXA REFERENCIAL
A28: ASSENTAMENTO DE TUBOS E PECAS | B28: ASTU | C28: FORNEC E/OU ASSENT DE TUBO DE FERRO FUNDIDO JUNTA | D28: 45 | G28: 97144 | H28: ASSENTAMENTO DE TUBO DE FERRO FUNDIDO PARA REDE DE ÁGUA, DN 200 MM, JUNTA ELÁSTICA, INSTALADO EM LOCAL COM NÍVEL ALTO DE INTERFERÊNCIAS (NÃO INCLUI FORNECIMENTO). AF_11/2017 | I28: M | J28: COEFICIENTE DE REPRESENTATIVIDADE | K28: 11.31 | L28: COMPOSICAO | M28: 5679 | N28: RETROESCAVADEIRA SOBRE RODAS COM CARREGADEIRA, TRAÇÃO 4X4, POTÊNCIA LÍQ. 88 HP, CAÇAMBA CARREG. CAP. MÍN. 1 M3, CAÇAMBA RETRO CAP. 0,26 M3, PESO OPERACIONAL MÍN. 6.674 KG, PROFUNDIDADE ESCAVAÇÃO MÁX. 4,37 M - CHI DIURNO. AF_06/2014 | O28: CHI | P28: COEFICIENTE DE REPRESENTATIVIDADE | Q28: 0,0678000 | R28: 45.92 | S28: 3,11 | AE28: CAIXA REFERENCIAL
A29: ASSENTAMENTO DE TUBOS E PECAS | B29: ASTU | C29: FORNEC E/OU ASSENT DE TUBO DE FERRO FUNDIDO JUNTA | D29: 45 | G29: 97144 | H29: ASSENTAMENTO DE TUBO DE FERRO FUNDIDO PARA REDE DE ÁGUA, DN 200 MM, JUNTA ELÁSTICA, INSTALADO EM LOCAL COM NÍVEL ALTO DE INTERFERÊNCIAS (NÃO INCLUI FORNECIMENTO). AF_11/2017 | I29: M | J29: COEFICIENTE DE REPRESENTATIVIDADE | K29: 11.31 | L29: INSUMO | M29: 20078 | N29: PASTA LUBRIFICANTE PARA TUBOS E CONEXOES COM JUNTA ELASTICA (USO EM PVC, ACO, POLIETILENO E OUTROS) ( DE *400* G) | O29: UN | P29: COEFICIENTE DE REPRESENTATIVIDADE | Q29: 0,0087000 | R29: 29.77 | S29: 0,25 | AE29: CAIXA REFERENCIAL
A30: ASSENTAMENTO DE TUBOS E PECAS | B30: ASTU | C30: FORNEC E/OU ASSENT DE TUBO DE FERRO FUNDIDO JUNTA | D30: 45 | G30: 97144 | H30: ASSENTAMENTO DE TUBO DE FERRO FUNDIDO PARA REDE DE ÁGUA, DN 200 MM, JUNTA ELÁSTICA, INSTALADO EM LOCAL COM NÍVEL ALTO DE INTERFERÊNCIAS (NÃO INCLUI FORNECIMENTO). AF_11/2017 | I30: M | J30: COEFICIENTE DE REPRESENTATIVIDADE | K30: 11.31 | L30: COMPOSICAO | M30: 88246 | N30: ASSENTADOR DE TUBOS COM ENCARGOS COMPLEMENTARES | O30: H | P30: COEFICIENTE DE REPRESENTATIVIDADE | Q30: 0,1747000 | R30: 21.68 | S30: 3,78 | AE30: CAIXA REFERENCIAL
A31: ASSENTAMENTO DE TUBOS E PECAS | B31: ASTU | C31: FORNEC E/OU ASSENT DE TUBO DE FERRO FUNDIDO JUNTA | D31: 45 | G31: 97144 | H31: ASSENTAMENTO DE TUBO DE FERRO FUNDIDO PARA REDE DE ÁGUA, DN 200 MM, JUNTA ELÁSTICA, INSTALADO EM LOCAL COM NÍVEL ALTO DE INTERFERÊNCIAS (NÃO INCLUI FORNECIMENTO). AF_11/2017 | I31: M | J31: COEFICIENTE DE REPRESENTATIVIDADE | K31: 11.31 | L31: COMPOSICAO | M31: 88316 | N31: SERVENTE COM ENCARGOS COMPLEMENTARES | O31: H | P31: COLETADO | Q31: 0,1747000 | R31: 15.35 | S31: 2,68 | AE31: CAIXA REFERENCIAL
A32: ASSENTAMENTO DE TUBOS E PECAS | B32: ASTU | C32: FORNEC E/OU ASSENT DE TUBO DE FERRO FUNDIDO JUNTA | D32: 45 | G32: 97145 | H32: ASSENTAMENTO DE TUBO DE FERRO FUNDIDO PARA REDE DE ÁGUA, DN 250 MM, JUNTA ELÁSTICA, INSTALADO EM LOCAL COM NÍVEL ALTO DE INTERFERÊNCIAS (NÃO INCLUI FORNECIMENTO). AF_11/2017 | I32: M | J32: COEFICIENTE DE REPRESENTATIVIDADE | K32: 13.25 | T32: 8,14 | U32: 61,3861387 | V32: 2,75 | W32: 20,7920792 | X32: 2,36 | Y32: 17,8217821 | Z32: 0,00 | AA32: 0,0000000 | AB32: 0,00 | AC32: 0,0000000 | AD32: 0 | AE32: CAIXA REFERENCIAL
A33: ASSENTAMENTO DE TUBOS E PECAS | B33: ASTU | C33: FORNEC E/OU ASSENT DE TUBO DE FERRO FUNDIDO JUNTA | D33: 45 | G33: 97145 | H33: ASSENTAMENTO DE TUBO DE FERRO FUNDIDO PARA REDE DE ÁGUA, DN 250 MM, JUNTA ELÁSTICA, INSTALADO EM LOCAL COM NÍVEL ALTO DE INTERFERÊNCIAS (NÃO INCLUI FORNECIMENTO). AF_11/2017 | I33: M | J33: COEFICIENTE DE REPRESENTATIVIDADE | K33: 13.25 | L33: COMPOSICAO | M33: 5678 | N33: RETROESCAVADEIRA SOBRE RODAS COM CARREGADEIRA, TRAÇÃO 4X4, POTÊNCIA LÍQ. 88 HP, CAÇAMBA CARREG. CAP. MÍN. 1 M3, CAÇAMBA RETRO CAP. 0,26 M3, PESO OPERACIONAL MÍN. 6.674 KG, PROFUNDIDADE ESCAVAÇÃO MÁX. 4,37 M - CHP DIURNO. AF_06/2014 | O33: CHP | P33: COEFICIENTE DE REPRESENTATIVIDADE | Q33: 0,0159000 | R33: 106.12 | S33: 1,68 | AE33: CAIXA REFERENCIAL
A34: ASSENTAMENTO DE TUBOS E PECAS | B34: ASTU | C34: FORNEC E/OU ASSENT DE TUBO DE FERRO FUNDIDO JUNTA | D34: 45 | G34: 97145 | H34: ASSENTAMENTO DE TUBO DE FERRO FUNDIDO PARA REDE DE ÁGUA, DN 250 MM, JUNTA ELÁSTICA, INSTALADO EM LOCAL COM NÍVEL ALTO DE INTERFERÊNCIAS (NÃO INCLUI FORNECIMENTO). AF_11/2017 | I34: M | J34: COEFICIENTE DE REPRESENTATIVIDADE | K34: 13.25 | L34: COMPOSICAO | M34: 5679 | N34: RETROESCAVADEIRA SOBRE RODAS COM CARREGADEIRA, TRAÇÃO 4X4, POTÊNCIA LÍQ. 88 HP, CAÇAMBA CARREG. CAP. MÍN. 1 M3, CAÇAMBA RETRO CAP. 0,26 M3, PESO OPERACIONAL MÍN. 6.674 KG, PROFUNDIDADE ESCAVAÇÃO MÁX. 4,37 M - CHI DIURNO. AF_06/2014 | O34: CHI | P34: COEFICIENTE DE REPRESENTATIVIDADE | Q34: 0,0762000 | R34: 45.92 | S34: 3,49 | AE34: CAIXA REFERENCIAL
A35: ASSENTAMENTO DE TUBOS E PECAS | B35: ASTU | C35: FORNEC E/OU ASSENT DE TUBO DE FERRO FUNDIDO JUNTA | D35: 45 | G35: 97145 | H35: ASSENTAMENTO DE TUBO DE FERRO FUNDIDO PARA REDE DE ÁGUA, DN 250 MM, JUNTA ELÁSTICA, INSTALADO EM LOCAL COM NÍVEL ALTO DE INTERFERÊNCIAS (NÃO INCLUI FORNECIMENTO). AF_11/2017 | I35: M | J35: COEFICIENTE DE REPRESENTATIVIDADE | K35: 13.25 | L35: INSUMO | M35: 20078 | N35: PASTA LUBRIFICANTE PARA TUBOS E CONEXOES COM JUNTA ELASTICA (USO EM PVC, ACO, POLIETILENO E OUTROS) ( DE *400* G) | O35: UN | P35: COEFICIENTE DE REPRESENTATIVIDADE | Q35: 0,0113000 | R35: 29.77 | S35: 0,33 | AE35: CAIXA REFERENCIAL
A36: ASSENTAMENTO DE TUBOS E PECAS | B36: ASTU | C36: FORNEC E/OU ASSENT DE TUBO DE FERRO FUNDIDO JUNTA | D36: 45 | G36: 97145 | H36: ASSENTAMENTO DE TUBO DE FERRO FUNDIDO PARA REDE DE ÁGUA, DN 250 MM, JUNTA ELÁSTICA, INSTALADO EM LOCAL COM NÍVEL ALTO DE INTERFERÊNCIAS (NÃO INCLUI FORNECIMENTO). AF_11/2017 | I36: M | J36: COEFICIENTE DE REPRESENTATIVIDADE | K36: 13.25 | L36: COMPOSICAO | M36: 88246 | N36: ASSENTADOR DE TUBOS COM ENCARGOS COMPLEMENTARES | O36: H | P36: COEFICIENTE DE REPRESENTATIVIDADE | Q36: 0,2097000 | R36: 21.68 | S36: 4,54 | AE36: CAIXA REFERENCIAL
A37: ASSENTAMENTO DE TUBOS E PECAS | B37: ASTU | C37: FORNEC E/OU ASSENT DE TUBO DE FERRO FUNDIDO JUNTA | D37: 45 | G37: 97145 | H37: ASSENTAMENTO DE TUBO DE FERRO FUNDIDO PARA REDE DE ÁGUA, DN 250 MM, JUNTA ELÁSTICA, INSTALADO EM LOCAL COM NÍVEL ALTO DE INTERFERÊNCIAS (NÃO INCLUI FORNECIMENTO). AF_11/2017 | I37: M | J37: COEFICIENTE DE REPRESENTATIVIDADE | K37: 13.25 | L37: COMPOSICAO | M37: 88316 | N37: SERVENTE COM ENCARGOS COMPLEMENTARES | O37: H | P37: COLETADO | Q37: 0,2097000 | R37: 15.35 | S37: 3,21 | AE37: CAIXA REFERENCIAL
A38: ASSENTAMENTO DE TUBOS E PECAS | B38: ASTU | C38: FORNEC E/OU ASSENT DE TUBO DE FERRO FUNDIDO JUNTA | D38: 45 | G38: 97146 | H38: ASSENTAMENTO DE TUBO DE FERRO FUNDIDO PARA REDE DE ÁGUA, DN 300 MM, JUNTA ELÁSTICA, INSTALADO EM LOCAL COM NÍVEL ALTO DE INTERFERÊNCIAS (NÃO INCLUI FORNECIMENTO). AF_11/2017 | I38: M | J38: COEFICIENTE DE REPRESENTATIVIDADE | K38: 15.2 | T38: 9,39 | U38: 61,6865871 | V38: 3,20 | W38: 21,1155378 | X38: 2,61 | Y38: 17,1978751 | Z38: 0,00 | AA38: 0,0000000 | AB38: 0,00 | AC38: 0,0000000 | AD38: 0 | AE38: CAIXA REFERENCIAL
A39: ASSENTAMENTO DE TUBOS E PECAS | B39: ASTU | C39: FORNEC E/OU ASSENT DE TUBO DE FERRO FUNDIDO JUNTA | D39: 45 | G39: 97146 | H39: ASSENTAMENTO DE TUBO DE FERRO FUNDIDO PARA REDE DE ÁGUA, DN 300 MM, JUNTA ELÁSTICA, INSTALADO EM LOCAL COM NÍVEL ALTO DE INTERFERÊNCIAS (NÃO INCLUI FORNECIMENTO). AF_11/2017 | I39: M | J39: COEFICIENTE DE REPRESENTATIVIDADE | K39: 15.2 | L39: COMPOSICAO | M39: 5678 | N39: RETROESCAVADEIRA SOBRE RODAS COM CARREGADEIRA, TRAÇÃO 4X4, POTÊNCIA LÍQ. 88 HP, CAÇAMBA CARREG. CAP. MÍN. 1 M3, CAÇAMBA RETRO CAP. 0,26 M3, PESO OPERACIONAL MÍN. 6.674 KG, PROFUNDIDADE ESCAVAÇÃO MÁX. 4,37 M - CHP DIURNO. AF_06/2014 | O39: CHP | P39: COEFICIENTE DE REPRESENTATIVIDADE | Q39: 0,0176000 | R39: 106.12 | S39: 1,86 | AE39: CAIXA REFERENCIAL
A40: ASSENTAMENTO DE TUBOS E PECAS | B40: ASTU | C40: FORNEC E/OU ASSENT DE TUBO DE FERRO FUNDIDO JUNTA | D40: 45 | G40: 97146 | H40: ASSENTAMENTO DE TUBO DE FERRO FUNDIDO PARA REDE DE ÁGUA, DN 300 MM, JUNTA ELÁSTICA, INSTALADO EM LOCAL COM NÍVEL ALTO DE INTERFERÊNCIAS (NÃO INCLUI FORNECIMENTO). AF_11/2017 | I40: M | J40: COEFICIENTE DE REPRESENTATIVIDADE | K40: 15.2 | L40: COMPOSICAO | M40: 5679 | N40: RETROESCAVADEIRA SOBRE RODAS COM CARREGADEIRA, TRAÇÃO 4X4, POTÊNCIA LÍQ. 88 HP, CAÇAMBA CARREG. CAP. MÍN. 1 M3, CAÇAMBA RETRO CAP. 0,26 M3, PESO OPERACIONAL MÍN. 6.674 KG, PROFUNDIDADE ESCAVAÇÃO MÁX. 4,37 M - CHI DIURNO. AF_06/2014 | O40: CHI | P40: COEFICIENTE DE REPRESENTATIVIDADE | Q40: 0,0846000 | R40: 45.92 | S40: 3,88 | AE40: CAIXA REFERENCIAL
A41: ASSENTAMENTO DE TUBOS E PECAS | B41: ASTU | C41: FORNEC E/OU ASSENT DE TUBO DE FERRO FUNDIDO JUNTA | D41: 45 | G41: 97146 | H41: ASSENTAMENTO DE TUBO DE FERRO FUNDIDO PARA REDE DE ÁGUA, DN 300 MM, JUNTA ELÁSTICA, INSTALADO EM LOCAL COM NÍVEL ALTO DE INTERFERÊNCIAS (NÃO INCLUI FORNECIMENTO). AF_11/2017 | I41: M | J41: COEFICIENTE DE REPRESENTATIVIDADE | K41: 15.2 | L41: INSUMO | M41: 20078 | N41: PASTA LUBRIFICANTE PARA TUBOS E CONEXOES COM JUNTA ELASTICA (USO EM PVC, ACO, POLIETILENO E OUTROS) ( DE *400* G) | O41: UN | P41: COEFICIENTE DE REPRESENTATIVIDADE | Q41: 0,0138000 | R41: 29.77 | S41: 0,41 | AE41: CAIXA REFERENCIAL
A42: ASSENTAMENTO DE TUBOS E PECAS | B42: ASTU | C42: FORNEC E/OU ASSENT DE TUBO DE FERRO FUNDIDO JUNTA | D42: 45 | G42: 97146 | H42: ASSENTAMENTO DE TUBO DE FERRO FUNDIDO PARA REDE DE ÁGUA, DN 300 MM, JUNTA ELÁSTICA, INSTALADO EM LOCAL COM NÍVEL ALTO DE INTERFERÊNCIAS (NÃO INCLUI FORNECIMENTO). AF_11/2017 | I42: M | J42: COEFICIENTE DE REPRESENTATIVIDADE | K42: 15.2 | L42: COMPOSICAO | M42: 88246 | N42: ASSENTADOR DE TUBOS COM ENCARGOS COMPLEMENTARES | O42: H | P42: COEFICIENTE DE REPRESENTATIVIDADE | Q42: 0,2448000 | R42: 21.68 | S42: 5,30 | AE42: CAIXA REFERENCIAL
A43: ASSENTAMENTO DE TUBOS E PECAS | B43: ASTU | C43: FORNEC E/OU ASSENT DE TUBO DE FERRO FUNDIDO JUNTA | D43: 45 | G43: 97146 | H43: ASSENTAMENTO DE TUBO DE FERRO FUNDIDO PARA REDE DE ÁGUA, DN 300 MM, JUNTA ELÁSTICA, INSTALADO EM LOCAL COM NÍVEL ALTO DE INTERFERÊNCIAS (NÃO INCLUI FORNECIMENTO). AF_11/2017 | I43: M | J43: COEFICIENTE DE REPRESENTATIVIDADE | K43: 15.2 | L43: COMPOSICAO | M43: 88316 | N43: SERVENTE COM ENCARGOS COMPLEMENTARES | O43: H | P43: COLETADO | Q43: 0,2448000 | R43: 15.35 | S43: 3,75 | AE43: CAIXA REFERENCIAL
A44: ASSENTAMENTO DE TUBOS E PECAS | B44: ASTU | C44: FORNEC E/OU ASSENT DE TUBO DE FERRO FUNDIDO JUNTA | D44: 45 | G44: 97147 | H44: ASSENTAMENTO DE TUBO DE FERRO FUNDIDO PARA REDE DE ÁGUA, DN 350 MM, JUNTA ELÁSTICA, INSTALADO EM LOCAL COM NÍVEL ALTO DE INTERFERÊNCIAS (NÃO INCLUI FORNECIMENTO). AF_11/2017 | I44: M | J44: COEFICIENTE DE REPRESENTATIVIDADE | K44: 17.15 | T44: 10,63 | U44: 61,9495010 | V44: 3,65 | W44: 21,3153258 | X44: 2,87 | Y44: 16,7351732 | Z44: 0,00 | AA44: 0,0000000 | AB44: 0,00 | AC44: 0,0000000 | AD44: 0 | AE44: CAIXA REFERENCIAL
A45: ASSENTAMENTO DE TUBOS E PECAS | B45: ASTU | C45: FORNEC E/OU ASSENT DE TUBO DE FERRO FUNDIDO JUNTA | D45: 45 | G45: 97147 | H45: ASSENTAMENTO DE TUBO DE FERRO FUNDIDO PARA REDE DE ÁGUA, DN 350 MM, JUNTA ELÁSTICA, INSTALADO EM LOCAL COM NÍVEL ALTO DE INTERFERÊNCIAS (NÃO INCLUI FORNECIMENTO). AF_11/2017 | I45: M | J45: COEFICIENTE DE REPRESENTATIVIDADE | K45: 17.15 | L45: COMPOSICAO | M45: 5678 | N45: RETROESCAVADEIRA SOBRE RODAS COM CARREGADEIRA, TRAÇÃO 4X4, POTÊNCIA LÍQ. 88 HP, CAÇAMBA CARREG. CAP. MÍN. 1 M3, CAÇAMBA RETRO CAP. 0,26 M3, PESO OPERACIONAL MÍN. 6.674 KG, PROFUNDIDADE ESCAVAÇÃO MÁX. 4,37 M - CHP DIURNO. AF_06/2014 | O45: CHP | P45: COEFICIENTE DE REPRESENTATIVIDADE | Q45: 0,0194000 | R45: 106.12 | S45: 2,05 | AE45: CAIXA REFERENCIAL
A46: ASSENTAMENTO DE TUBOS E PECAS | B46: ASTU | C46: FORNEC E/OU ASSENT DE TUBO DE FERRO FUNDIDO JUNTA | D46: 45 | G46: 97147 | H46: ASSENTAMENTO DE TUBO DE FERRO FUNDIDO PARA REDE DE ÁGUA, DN 350 MM, JUNTA ELÁSTICA, INSTALADO EM LOCAL COM NÍVEL ALTO DE INTERFERÊNCIAS (NÃO INCLUI FORNECIMENTO). AF_11/2017 | I46: M | J46: COEFICIENTE DE REPRESENTATIVIDADE | K46: 17.15 | L46: COMPOSICAO | M46: 5679 | N46: RETROESCAVADEIRA SOBRE RODAS COM CARREGADEIRA, TRAÇÃO 4X4, POTÊNCIA LÍQ. 88 HP, CAÇAMBA CARREG. CAP. MÍN. 1 M3, CAÇAMBA RETRO CAP. 0,26 M3, PESO OPERACIONAL MÍN. 6.674 KG, PROFUNDIDADE ESCAVAÇÃO MÁX. 4,37 M - CHI DIURNO. AF_06/2014 | O46: CHI | P46: COEFICIENTE DE REPRESENTATIVIDADE | Q46: 0,0930000 | R46: 45.92 | S46: 4,27 | AE46: CAIXA REFERENCIAL
A47: ASSENTAMENTO DE TUBOS E PECAS | B47: ASTU | C47: FORNEC E/OU ASSENT DE TUBO DE FERRO FUNDIDO JUNTA | D47: 45 | G47: 97147 | H47: ASSENTAMENTO DE TUBO DE FERRO FUNDIDO PARA REDE DE ÁGUA, DN 350 MM, JUNTA ELÁSTICA, INSTALADO EM LOCAL COM NÍVEL ALTO DE INTERFERÊNCIAS (NÃO INCLUI FORNECIMENTO). AF_11/2017 | I47: M | J47: COEFICIENTE DE REPRESENTATIVIDADE | K47: 17.15 | L47: INSUMO | M47: 20078 | N47: PASTA LUBRIFICANTE PARA TUBOS E CONEXOES COM JUNTA ELASTICA (USO EM PVC, ACO, POLIETILENO E OUTROS) ( DE *400* G) | O47: UN | P47: COEFICIENTE DE REPRESENTATIVIDADE | Q47: 0,0163000 | R47: 29.77 | S47: 0,48 | AE47: CAIXA REFERENCIAL
A48: ASSENTAMENTO DE TUBOS E PECAS | B48: ASTU | C48: FORNEC E/OU ASSENT DE TUBO DE FERRO FUNDIDO JUNTA | D48: 45 | G48: 97147 | H48: ASSENTAMENTO DE TUBO DE FERRO FUNDIDO PARA REDE DE ÁGUA, DN 350 MM, JUNTA ELÁSTICA, INSTALADO EM LOCAL COM NÍVEL ALTO DE INTERFERÊNCIAS (NÃO INCLUI FORNECIMENTO). AF_11/2017 | I48: M | J48: COEFICIENTE DE REPRESENTATIVIDADE | K48: 17.15 | L48: COMPOSICAO | M48: 88246 | N48: ASSENTADOR DE TUBOS COM ENCARGOS COMPLEMENTARES | O48: H | P48: COEFICIENTE DE REPRESENTATIVIDADE | Q48: 0,2799000 | R48: 21.68 | S48: 6,06 | AE48: CAIXA REFERENCIAL
A49: ASSENTAMENTO DE TUBOS E PECAS | B49: ASTU | C49: FORNEC E/OU ASSENT DE TUBO DE FERRO FUNDIDO JUNTA | D49: 45 | G49: 97147 | H49: ASSENTAMENTO DE TUBO DE FERRO FUNDIDO PARA REDE DE ÁGUA, DN 350 MM, JUNTA ELÁSTICA, INSTALADO EM LOCAL COM NÍVEL ALTO DE INTERFERÊNCIAS (NÃO INCLUI FORNECIMENTO). AF_11/2017 | I49: M | J49: COEFICIENTE DE REPRESENTATIVIDADE | K49: 17.15 | L49: COMPOSICAO | M49: 88316 | N49: SERVENTE COM ENCARGOS COMPLEMENTARES | O49: H | P49: COLETADO | Q49: 0,2799000 | R49: 15.35 | S49: 4,29 | AE49: CAIXA REFERENCIAL
A50: ASSENTAMENTO DE TUBOS E PECAS | B50: ASTU | C50: FORNEC E/OU ASSENT DE TUBO DE FERRO FUNDIDO JUNTA | D50: 45 | G50: 97148 | H50: ASSENTAMENTO DE TUBO DE FERRO FUNDIDO PARA REDE DE ÁGUA, DN 400 MM, JUNTA ELÁSTICA, INSTALADO EM LOCAL COM NÍVEL ALTO DE INTERFERÊNCIAS (NÃO INCLUI FORNECIMENTO). AF_11/2017 | I50: M | J50: COEFICIENTE DE REPRESENTATIVIDADE | K50: 19.08 | T50: 11,87 | U50: 62,1764396 | V50: 4,06 | W50: 21,2889593 | X50: 3,15 | Y50: 16,5346011 | Z50: 0,00 | AA50: 0,0000000 | AB50: 0,00 | AC50: 0,0000000 | AD50: 0 | AE50: CAIXA REFERENCIAL
A51: ASSENTAMENTO DE TUBOS E PECAS | B51: ASTU | C51: FORNEC E/OU ASSENT DE TUBO DE FERRO FUNDIDO JUNTA | D51: 45 | G51: 97148 | H51: ASSENTAMENTO DE TUBO DE FERRO FUNDIDO PARA REDE DE ÁGUA, DN 400 MM, JUNTA ELÁSTICA, INSTALADO EM LOCAL COM NÍVEL ALTO DE INTERFERÊNCIAS (NÃO INCLUI FORNECIMENTO). AF_11/2017 | I51: M | J51: COEFICIENTE DE REPRESENTATIVIDADE | K51: 19.08 | L51: COMPOSICAO | M51: 5678 | N51: RETROESCAVADEIRA SOBRE RODAS COM CARREGADEIRA, TRAÇÃO 4X4, POTÊNCIA LÍQ. 88 HP, CAÇAMBA CARREG. CAP. MÍN. 1 M3, CAÇAMBA RETRO CAP. 0,26 M3, PESO OPERACIONAL MÍN. 6.674 KG, PROFUNDIDADE ESCAVAÇÃO MÁX. 4,37 M - CHP DIURNO. AF_06/2014 | O51: CHP | P51: COEFICIENTE DE REPRESENTATIVIDADE | Q51: 0,0211000 | R51: 106.12 | S51: 2,23 | AE51: CAIXA REFERENCIAL
A52: ASSENTAMENTO DE TUBOS E PECAS | B52: ASTU | C52: FORNEC E/OU ASSENT DE TUBO DE FERRO FUNDIDO JUNTA | D52: 45 | G52: 97148 | H52: ASSENTAMENTO DE TUBO DE FERRO FUNDIDO PARA REDE DE ÁGUA, DN 400 MM, JUNTA ELÁSTICA, INSTALADO EM LOCAL COM NÍVEL ALTO DE INTERFERÊNCIAS (NÃO INCLUI FORNECIMENTO). AF_11/2017 | I52: M | J52: COEFICIENTE DE REPRESENTATIVIDADE | K52: 19.08 | L52: COMPOSICAO | M52: 5679 | N52: RETROESCAVADEIRA SOBRE RODAS COM CARREGADEIRA, TRAÇÃO 4X4, POTÊNCIA LÍQ. 88 HP, CAÇAMBA CARREG. CAP. MÍN. 1 M3, CAÇAMBA RETRO CAP. 0,26 M3, PESO OPERACIONAL MÍN. 6.674 KG, PROFUNDIDADE ESCAVAÇÃO MÁX. 4,37 M - CHI DIURNO. AF_06/2014 | O52: CHI | P52: COEFICIENTE DE REPRESENTATIVIDADE | Q52: 0,1014000 | R52: 45.92 | S52: 4,65 | AE52: CAIXA REFERENCIAL
A53: ASSENTAMENTO DE TUBOS E PECAS | B53: ASTU | C53: FORNEC E/OU ASSENT DE TUBO DE FERRO FUNDIDO JUNTA | D53: 45 | G53: 97148 | H53: ASSENTAMENTO DE TUBO DE FERRO FUNDIDO PARA REDE DE ÁGUA, DN 400 MM, JUNTA ELÁSTICA, INSTALADO EM LOCAL COM NÍVEL ALTO DE INTERFERÊNCIAS (NÃO INCLUI FORNECIMENTO). AF_11/2017 | I53: M | J53: COEFICIENTE DE REPRESENTATIVIDADE | K53: 19.08 | L53: INSUMO | M53: 20078 | N53: PASTA LUBRIFICANTE PARA TUBOS E CONEXOES COM JUNTA ELASTICA (USO EM PVC, ACO, POLIETILENO E OUTROS) ( DE *400* G) | O53: UN | P53: COEFICIENTE DE REPRESENTATIVIDADE | Q53: 0,0188000 | R53: 29.77 | S53: 0,55 | AE53: CAIXA REFERENCIAL
A54: ASSENTAMENTO DE TUBOS E PECAS | B54: ASTU | C54: FORNEC E/OU ASSENT DE TUBO DE FERRO FUNDIDO JUNTA | D54: 45 | G54: 97148 | H54: ASSENTAMENTO DE TUBO DE FERRO FUNDIDO PARA REDE DE ÁGUA, DN 400 MM, JUNTA ELÁSTICA, INSTALADO EM LOCAL COM NÍVEL ALTO DE INTERFERÊNCIAS (NÃO INCLUI FORNECIMENTO). AF_11/2017 | I54: M | J54: COEFICIENTE DE REPRESENTATIVIDADE | K54: 19.08 | L54: COMPOSICAO | M54: 88246 | N54: ASSENTADOR DE TUBOS COM ENCARGOS COMPLEMENTARES | O54: H | P54: COEFICIENTE DE REPRESENTATIVIDADE | Q54: 0,3150000 | R54: 21.68 | S54: 6,82 | AE54: CAIXA REFERENCIAL
A55: ASSENTAMENTO DE TUBOS E PECAS | B55: ASTU | C55: FORNEC E/OU ASSENT DE TUBO DE FERRO FUNDIDO JUNTA | D55: 45 | G55: 97148 | H55: ASSENTAMENTO DE TUBO DE FERRO FUNDIDO PARA REDE DE ÁGUA, DN 400 MM, JUNTA ELÁSTICA, INSTALADO EM LOCAL COM NÍVEL ALTO DE INTERFERÊNCIAS (NÃO INCLUI FORNECIMENTO). AF_11/2017 | I55: M | J55: COEFICIENTE DE REPRESENTATIVIDADE | K55: 19.08 | L55: COMPOSICAO | M55: 88316 | N55: SERVENTE COM ENCARGOS COMPLEMENTARES | O55: H | P55: COLETADO | Q55: 0,3150000 | R55: 15.35 | S55: 4,83 | AE55: CAIXA REFERENCIAL
A56: ASSENTAMENTO DE TUBOS E PECAS | B56: ASTU | C56: FORNEC E/OU ASSENT DE TUBO DE FERRO FUNDIDO JUNTA | D56: 45 | G56: 97149 | H56: ASSENTAMENTO DE TUBO DE FERRO FUNDIDO PARA REDE DE ÁGUA, DN 450 MM, JUNTA ELÁSTICA, INSTALADO EM LOCAL COM NÍVEL ALTO DE INTERFERÊNCIAS (NÃO INCLUI FORNECIMENTO). AF_11/2017 | I56: M | J56: COEFICIENTE DE REPRESENTATIVIDADE | K56: 21.08 | T56: 13,11 | U56: 62,1776505 | V56: 4,57 | W56: 21,6809933 | X56: 3,40 | Y56: 16,1413562 | Z56: 0,00 | AA56: 0,0000000 | AB56: 0,00 | AC56: 0,0000000 | AD56: 0 | AE56: CAIXA REFERENCIAL
A57: ASSENTAMENTO DE TUBOS E PECAS | B57: ASTU | C57: FORNEC E/OU ASSENT DE TUBO DE FERRO FUNDIDO JUNTA | D57: 45 | G57: 97149 | H57: ASSENTAMENTO DE TUBO DE FERRO FUNDIDO PARA REDE DE ÁGUA, DN 450 MM, JUNTA ELÁSTICA, INSTALADO EM LOCAL COM NÍVEL ALTO DE INTERFERÊNCIAS (NÃO INCLUI FORNECIMENTO). AF_11/2017 | I57: M | J57: COEFICIENTE DE REPRESENTATIVIDADE | K57: 21.08 | L57: COMPOSICAO | M57: 5678 | N57: RETROESCAVADEIRA SOBRE RODAS COM CARREGADEIRA, TRAÇÃO 4X4, POTÊNCIA LÍQ. 88 HP, CAÇAMBA CARREG. CAP. MÍN. 1 M3, CAÇAMBA RETRO CAP. 0,26 M3, PESO OPERACIONAL MÍN. 6.674 KG, PROFUNDIDADE ESCAVAÇÃO MÁX. 4,37 M - CHP DIURNO. AF_06/2014 | O57: CHP | P57: COEFICIENTE DE REPRESENTATIVIDADE | Q57: 0,0229000 | R57: 106.12 | S57: 2,43 | AE57: CAIXA REFERENCIAL
